Workbook

Sheet Leaderboard
A6: No. | B6: Player | C6: Team Name | D6: 2014-08-01 | E6: 2014-09-01 | F6: 2014-10-01 | G6: 2014-11-01 | H6: 2014-12-01 | I6: 2015-01-01 | J6: 2015-02-01 | K6: 2015-03-01 | L6: 2015-04-01 | M6: 2015-05-01 | N6: Total
A7: 1 | B7: Ralph Goodwin | C7: Sky Blue Army | D7: =HLOOKUP(B7,August!$G$1:$CB$87,87,FALSE) -> 110 | E7: =HLOOKUP(B7,September!$G$1:$CB$87,87,FALSE) -> 110 | F7: =HLOOKUP(B7,October!$G$1:$CB$87,87,FALSE) -> 130 | G7: =HLOOKUP(B7,November!$G$1:$CB$102,102,FALSE) -> 155 | H7: =HLOOKUP(B7,December!$G$1:$CB$129,129,FALSE) -> 245 | I7: =HLOOKUP(B7,January!$G$1:$CB$71,71,FALSE) -> 135 | J7: =HLOOKUP(B7,February!$G$1:$CB$73,73,FALSE) -> 135 | K7: =HLOOKUP(B7,March!$G$1:$CB$70,70,FALSE) -> 155 | L7: =HLOOKUP(B7,April!$G$1:$CB$85,85,FALSE) -> 125 | M7: =HLOOKUP(B7,May!$G$1:$CB$82,82,FALSE) -> 180 | N7: =SUM(D7:M7) -> 1480
A8: 2 | B8: Con McSweeney | C8: Glassey_Alleys | D8: =HLOOKUP(B8,August!$G$1:$CB$87,87,FALSE) -> 105 | E8: =HLOOKUP(B8,September!$G$1:$CB$87,87,FALSE) -> 115 | F8: =HLOOKUP(B8,October!$G$1:$CB$87,87,FALSE) -> 170 | G8: =HLOOKUP(B8,November!$G$1:$CB$102,102,FALSE) -> 125 | H8: =HLOOKUP(B8,December!$G$1:$CB$129,129,FALSE) -> 250 | I8: =HLOOKUP(B8,January!$G$1:$CB$71,71,FALSE) -> 145 | J8: =HLOOKUP(B8,February!$G$1:$CB$73,73,FALSE) -> 115 | K8: =HLOOKUP(B8,March!$G$1:$CB$70,70,FALSE) -> 145 | L8: =HLOOKUP(B8,April!$G$1:$CB$85,85,FALSE) -> 130 | M8: =HLOOKUP(B8,May!$G$1:$CB$82,82,FALSE) -> 170 | N8: =SUM(D8:M8) -> 1470
A9: 3 | B9: Brian Sotolongo | C9: Punchin' Horses For Fun | D9: =HLOOKUP(B9,August!$G$1:$CB$87,87,FALSE) -> 120 | E9: =HLOOKUP(B9,September!$G$1:$CB$87,87,FALSE) -> 135 | F9: =HLOOKUP(B9,October!$G$1:$CB$87,87,FALSE) -> 140 | G9: =HLOOKUP(B9,November!$G$1:$CB$102,102,FALSE) -> 195 | H9: =HLOOKUP(B9,December!$G$1:$CB$129,129,FALSE) -> 205 | I9: =HLOOKUP(B9,January!$G$1:$CB$71,71,FALSE) -> 140 | J9: =HLOOKUP(B9,February!$G$1:$CB$73,73,FALSE) -> 110 | K9: =HLOOKUP(B9,March!$G$1:$CB$70,70,FALSE) -> 145 | L9: =HLOOKUP(B9,April!$G$1:$CB$85,85,FALSE) -> 110 | M9: =HLOOKUP(B9,May!$G$1:$CB$82,82,FALSE) -> 160 | N9: =SUM(D9:M9) -> 1460
A10: 4 | B10: Padraic Carney | C10: Sheep Shaggers | D10: =HLOOKUP(B10,August!$G$1:$CB$87,87,FALSE) -> 135 | E10: =HLOOKUP(B10,September!$G$1:$CB$87,87,FALSE) -> 120 | F10: =HLOOKUP(B10,October!$G$1:$CB$87,87,FALSE) -> 140 | G10: =HLOOKUP(B10,November!$G$1:$CB$102,102,FALSE) -> 135 | H10: =HLOOKUP(B10,December!$G$1:$CB$129,129,FALSE) -> 240 | I10: =HLOOKUP(B10,January!$G$1:$CB$71,71,FALSE) -> 125 | J10: =HLOOKUP(B10,February!$G$1:$CB$73,73,FALSE) -> 125 | K10: =HLOOKUP(B10,March!$G$1:$CB$70,70,FALSE) -> 125 | L10: =HLOOKUP(B10,April!$G$1:$CB$85,85,FALSE) -> 130 | M10: =HLOOKUP(B10,May!$G$1:$CB$82,82,FALSE) -> 155 | N10: =SUM(D10:M10) -> 1430
A11: 5 | B11: Dave McGinley | C11: Reservoir Dubs | D11: =HLOOKUP(B11,August!$G$1:$CB$87,87,FALSE) -> 110 | E11: =HLOOKUP(B11,September!$G$1:$CB$87,87,FALSE) -> 150 | F11: =HLOOKUP(B11,October!$G$1:$CB$87,87,FALSE) -> 150 | G11: =HLOOKUP(B11,November!$G$1:$CB$102,102,FALSE) -> 140 | H11: =HLOOKUP(B11,December!$G$1:$CB$129,129,FALSE) -> 210 | I11: =HLOOKUP(B11,January!$G$1:$CB$71,71,FALSE) -> 105 | J11: =HLOOKUP(B11,February!$G$1:$CB$73,73,FALSE) -> 110 | K11: =HLOOKUP(B11,March!$G$1:$CB$70,70,FALSE) -> 145 | L11: =HLOOKUP(B11,April!$G$1:$CB$85,85,FALSE) -> 150 | M11: =HLOOKUP(B11,May!$G$1:$CB$82,82,FALSE) -> 150 | N11: =SUM(D11:M11) -> 1420
A12: 6 | B12: Anastas Popov | C12: FC Botev | D12: =HLOOKUP(B12,August!$G$1:$CB$87,87,FALSE) -> 105 | E12: =HLOOKUP(B12,September!$G$1:$CB$87,87,FALSE) -> 115 | F12: =HLOOKUP(B12,October!$G$1:$CB$87,87,FALSE) -> 135 | G12: =HLOOKUP(B12,November!$G$1:$CB$102,102,FALSE) -> 105 | H12: =HLOOKUP(B12,December!$G$1:$CB$129,129,FALSE) -> 260 | I12: =HLOOKUP(B12,January!$G$1:$CB$71,71,FALSE) -> 115 | J12: =HLOOKUP(B12,February!$G$1:$CB$73,73,FALSE) -> 125 | K12: =HLOOKUP(B12,March!$G$1:$CB$70,70,FALSE) -> 180 | L12: =HLOOKUP(B12,April!$G$1:$CB$85,85,FALSE) -> 130 | M12: =HLOOKUP(B12,May!$G$1:$CB$82,82,FALSE) -> 145 | N12: =SUM(D12:M12) -> 1415
A13: 7 | B13: Eamon Fox | C13: Saoirkat | D13: =HLOOKUP(B13,August!$G$1:$CB$87,87,FALSE) -> 110 | E13: =HLOOKUP(B13,September!$G$1:$CB$87,87,FALSE) -> 120 | F13: =HLOOKUP(B13,October!$G$1:$CB$87,87,FALSE) -> 150 | G13: =HLOOKUP(B13,November!$G$1:$CB$102,102,FALSE) -> 115 | H13: =HLOOKUP(B13,December!$G$1:$CB$129,129,FALSE) -> 270 | I13: =HLOOKUP(B13,January!$G$1:$CB$71,71,FALSE) -> 145 | J13: =HLOOKUP(B13,February!$G$1:$CB$73,73,FALSE) -> 105 | K13: =HLOOKUP(B13,March!$G$1:$CB$70,70,FALSE) -> 135 | L13: =HLOOKUP(B13,April!$G$1:$CB$85,85,FALSE) -> 125 | M13: =HLOOKUP(B13,May!$G$1:$CB$82,82,FALSE) -> 125 | N13: =SUM(D13:M13) -> 1400
A14: 8 | B14: Gavin Morgan | C14: Route One | D14: =HLOOKUP(B14,August!$G$1:$CB$87,87,FALSE) -> 85 | E14: =HLOOKUP(B14,September!$G$1:$CB$87,87,FALSE) -> 105 | F14: =HLOOKUP(B14,October!$G$1:$CB$87,87,FALSE) -> 155 | G14: =HLOOKUP(B14,November!$G$1:$CB$102,102,FALSE) -> 160 | H14: =HLOOKUP(B14,December!$G$1:$CB$129,129,FALSE) -> 220 | I14: =HLOOKUP(B14,January!$G$1:$CB$71,71,FALSE) -> 115 | J14: =HLOOKUP(B14,February!$G$1:$CB$73,73,FALSE) -> 155 | K14: =HLOOKUP(B14,March!$G$1:$CB$70,70,FALSE) -> 150 | L14: =HLOOKUP(B14,April!$G$1:$CB$85,85,FALSE) -> 105 | M14: =HLOOKUP(B14,May!$G$1:$CB$82,82,FALSE) -> 150 | N14: =SUM(D14:M14) -> 1400
A15: 9 | B15: David Bone | C15: Brunton Blues | D15: =HLOOKUP(B15,August!$G$1:$CB$87,87,FALSE) -> 105 | E15: =HLOOKUP(B15,September!$G$1:$CB$87,87,FALSE) -> 75 | F15: =HLOOKUP(B15,October!$G$1:$CB$87,87,FALSE) -> 155 | G15: =HLOOKUP(B15,November!$G$1:$CB$102,102,FALSE) -> 175 | H15: =HLOOKUP(B15,December!$G$1:$CB$129,129,FALSE) -> 235 | I15: =HLOOKUP(B15,January!$G$1:$CB$71,71,FALSE) -> 120 | J15: =HLOOKUP(B15,February!$G$1:$CB$73,73,FALSE) -> 110 | K15: =HLOOKUP(B15,March!$G$1:$CB$70,70,FALSE) -> 145 | L15: =HLOOKUP(B15,April!$G$1:$CB$85,85,FALSE) -> 130 | M15: =HLOOKUP(B15,May!$G$1:$CB$82,82,FALSE) -> 145 | N15: =SUM(D15:M15) -> 1395
A16: 10 | B16: Barry Healy | C16: Dangleberries United | D16: =HLOOKUP(B16,August!$G$1:$CB$87,87,FALSE) -> 115 | E16: =HLOOKUP(B16,September!$G$1:$CB$87,87,FALSE) -> 125 | F16: =HLOOKUP(B16,October!$G$1:$CB$87,87,FALSE) -> 100 | G16: =HLOOKUP(B16,November!$G$1:$CB$102,102,FALSE) -> 135 | H16: =HLOOKUP(B16,December!$G$1:$CB$129,129,FALSE) -> 265 | I16: =HLOOKUP(B16,January!$G$1:$CB$71,71,FALSE) -> 130 | J16: =HLOOKUP(B16,February!$G$1:$CB$73,73,FALSE) -> 115 | K16: =HLOOKUP(B16,March!$G$1:$CB$70,70,FALSE) -> 135 | L16: =HLOOKUP(B16,April!$G$1:$CB$85,85,FALSE) -> 130 | M16: =HLOOKUP(B16,May!$G$1:$CB$82,82,FALSE) -> 140 | N16: =SUM(D16:M16) -> 1390
A17: 11 | B17: Brian Prendergast | C17: Gunnersaurus | D17: =HLOOKUP(B17,August!$G$1:$CB$87,87,FALSE) -> 115 | E17: =HLOOKUP(B17,September!$G$1:$CB$87,87,FALSE) -> 140 | F17: =HLOOKUP(B17,October!$G$1:$CB$87,87,FALSE) -> 115 | G17: =HLOOKUP(B17,November!$G$1:$CB$102,102,FALSE) -> 135 | H17: =HLOOKUP(B17,December!$G$1:$CB$129,129,FALSE) -> 250 | I17: =HLOOKUP(B17,January!$G$1:$CB$71,71,FALSE) -> 115 | J17: =HLOOKUP(B17,February!$G$1:$CB$73,73,FALSE) -> 100 | K17: =HLOOKUP(B17,March!$G$1:$CB$70,70,FALSE) -> 170 | L17: =HLOOKUP(B17,April!$G$1:$CB$85,85,FALSE) -> 135 | M17: =HLOOKUP(B17,May!$G$1:$CB$82,82,FALSE) -> 115 | N17: =SUM(D17:M17) -> 1390
A18: 12 | B18: Gerry Draper | C18: Everton 10 | D18: =HLOOKUP(B18,August!$G$1:$CB$87,87,FALSE) -> 120 | E18: =HLOOKUP(B18,September!$G$1:$CB$87,87,FALSE) -> 95 | F18: =HLOOKUP(B18,October!$G$1:$CB$87,87,FALSE) -> 140 | G18: =HLOOKUP(B18,November!$G$1:$CB$102,102,FALSE) -> 135 | H18: =HLOOKUP(B18,December!$G$1:$CB$129,129,FALSE) -> 250 | I18: =HLOOKUP(B18,January!$G$1:$CB$71,71,FALSE) -> 140 | J18: =HLOOKUP(B18,February!$G$1:$CB$73,73,FALSE) -> 95 | K18: =HLOOKUP(B18,March!$G$1:$CB$70,70,FALSE) -> 130 | L18: =HLOOKUP(B18,April!$G$1:$CB$85,85,FALSE) -> 145 | M18: =HLOOKUP(B18,May!$G$1:$CB$82,82,FALSE) -> 140 | N18: =SUM(D18:M18) -> 1390
A19: 13 | B19: Colin McAnaspie | C19: AC A Little Silhouette of Milan | D19: =HLOOKUP(B19,August!$G$1:$CB$87,87,FALSE) -> 105 | E19: =HLOOKUP(B19,September!$G$1:$CB$87,87,FALSE) -> 135 | F19: =HLOOKUP(B19,October!$G$1:$CB$87,87,FALSE) -> 140 | G19: =HLOOKUP(B19,November!$G$1:$CB$102,102,FALSE) -> 145 | H19: =HLOOKUP(B19,December!$G$1:$CB$129,129,FALSE) -> 235 | I19: =HLOOKUP(B19,January!$G$1:$CB$71,71,FALSE) -> 110 | J19: =HLOOKUP(B19,February!$G$1:$CB$73,73,FALSE) -> 115 | K19: =HLOOKUP(B19,March!$G$1:$CB$70,70,FALSE) -> 140 | L19: =HLOOKUP(B19,April!$G$1:$CB$85,85,FALSE) -> 125 | M19: =HLOOKUP(B19,May!$G$1:$CB$82,82,FALSE) -> 135 | N19: =SUM(D19:M19) -> 1385
A20: 14 | B20: Paul Prendergast | C20: The Untouchables | D20: =HLOOKUP(B20,August!$G$1:$CB$87,87,FALSE) -> 105 | E20: =HLOOKUP(B20,September!$G$1:$CB$87,87,FALSE) -> 110 | F20: =HLOOKUP(B20,October!$G$1:$CB$87,87,FALSE) -> 130 | G20: =HLOOKUP(B20,November!$G$1:$CB$102,102,FALSE) -> 160 | H20: =HLOOKUP(B20,December!$G$1:$CB$129,129,FALSE) -> 230 | I20: =HLOOKUP(B20,January!$G$1:$CB$71,71,FALSE) -> 120 | J20: =HLOOKUP(B20,February!$G$1:$CB$73,73,FALSE) -> 140 | K20: =HLOOKUP(B20,March!$G$1:$CB$70,70,FALSE) -> 130 | L20: =HLOOKUP(B20,April!$G$1:$CB$85,85,FALSE) -> 115 | M20: =HLOOKUP(B20,May!$G$1:$CB$82,82,FALSE) -> 140 | N20: =SUM(D20:M20) -> 1380
A21: 15 | B21: Fiachra Moynihan | C21: What's Another Year | D21: =HLOOKUP(B21,August!$G$1:$CB$87,87,FALSE) -> 105 | E21: =HLOOKUP(B21,September!$G$1:$CB$87,87,FALSE) -> 105 | F21: =HLOOKUP(B21,October!$G$1:$CB$87,87,FALSE) -> 145 | G21: =HLOOKUP(B21,November!$G$1:$CB$102,102,FALSE) -> 155 | H21: =HLOOKUP(B21,December!$G$1:$CB$129,129,FALSE) -> 245 | I21: =HLOOKUP(B21,January!$G$1:$CB$71,71,FALSE) -> 105 | J21: =HLOOKUP(B21,February!$G$1:$CB$73,73,FALSE) -> 100 | K21: =HLOOKUP(B21,March!$G$1:$CB$70,70,FALSE) -> 155 | L21: =HLOOKUP(B21,April!$G$1:$CB$85,85,FALSE) -> 140 | M21: =HLOOKUP(B21,May!$G$1:$CB$82,82,FALSE) -> 120 | N21: =SUM(D21:M21) -> 1375
A22: 16 | B22: Cillian Conway | C22: Big Dick Dunne XI | D22: =HLOOKUP(B22,August!$G$1:$CB$87,87,FALSE) -> 90 | E22: =HLOOKUP(B22,September!$G$1:$CB$87,87,FALSE) -> 145 | F22: =HLOOKUP(B22,October!$G$1:$CB$87,87,FALSE) -> 120 | G22: =HLOOKUP(B22,November!$G$1:$CB$102,102,FALSE) -> 145 | H22: =HLOOKUP(B22,December!$G$1:$CB$129,129,FALSE) -> 210 | I22: =HLOOKUP(B22,January!$G$1:$CB$71,71,FALSE) -> 120 | J22: =HLOOKUP(B22,February!$G$1:$CB$73,73,FALSE) -> 110 | K22: =HLOOKUP(B22,March!$G$1:$CB$70,70,FALSE) -> 115 | L22: =HLOOKUP(B22,April!$G$1:$CB$85,85,FALSE) -> 175 | M22: =HLOOKUP(B22,May!$G$1:$CB$82,82,FALSE) -> 140 | N22: =SUM(D22:M22) -> 1370
A23: 17 | B23: Aidan Knight | C23: Unaganaguna | D23: =HLOOKUP(B23,August!$G$1:$CB$87,87,FALSE) -> 90 | E23: =HLOOKUP(B23,September!$G$1:$CB$87,87,FALSE) -> 120 | F23: =HLOOKUP(B23,October!$G$1:$CB$87,87,FALSE) -> 105 | G23: =HLOOKUP(B23,November!$G$1:$CB$102,102,FALSE) -> 185 | H23: =HLOOKUP(B23,December!$G$1:$CB$129,129,FALSE) -> 230 | I23: =HLOOKUP(B23,January!$G$1:$CB$71,71,FALSE) -> 140 | J23: =HLOOKUP(B23,February!$G$1:$CB$73,73,FALSE) -> 125 | K23: =HLOOKUP(B23,March!$G$1:$CB$70,70,FALSE) -> 130 | L23: =HLOOKUP(B23,April!$G$1:$CB$85,85,FALSE) -> 110 | M23: =HLOOKUP(B23,May!$G$1:$CB$82,82,FALSE) -> 130 | N23: =SUM(D23:M23) -> 1365
A24: 18 | B24: Jonathan Fox | C24: Lallanas In Pajamas | D24: =HLOOKUP(B24,August!$G$1:$CB$87,87,FALSE) -> 105 | E24: =HLOOKUP(B24,September!$G$1:$CB$87,87,FALSE) -> 115 | F24: =HLOOKUP(B24,October!$G$1:$CB$87,87,FALSE) -> 145 | G24: =HLOOKUP(B24,November!$G$1:$CB$102,102,FALSE) -> 130 | H24: =HLOOKUP(B24,December!$G$1:$CB$129,129,FALSE) -> 230 | I24: =HLOOKUP(B24,January!$G$1:$CB$71,71,FALSE) -> 155 | J24: =HLOOKUP(B24,February!$G$1:$CB$73,73,FALSE) -> 105 | K24: =HLOOKUP(B24,March!$G$1:$CB$70,70,FALSE) -> 165 | L24: =HLOOKUP(B24,April!$G$1:$CB$85,85,FALSE) -> 100 | M24: =HLOOKUP(B24,May!$G$1:$CB$82,82,FALSE) -> 115 | N24: =SUM(D24:M24) -> 1365
A25: 19 | B25: Simon Purdue | C25: Game of Throw-Ins | D25: =HLOOKUP(B25,August!$G$1:$CB$87,87,FALSE) -> 110 | E25: =HLOOKUP(B25,September!$G$1:$CB$87,87,FALSE) -> 85 | F25: =HLOOKUP(B25,October!$G$1:$CB$87,87,FALSE) -> 130 | G25: =HLOOKUP(B25,November!$G$1:$CB$102,102,FALSE) -> 125 | H25: =HLOOKUP(B25,December!$G$1:$CB$129,129,FALSE) -> 240 | I25: =HLOOKUP(B25,January!$G$1:$CB$71,71,FALSE) -> 105 | J25: =HLOOKUP(B25,February!$G$1:$CB$73,73,FALSE) -> 145 | K25: =HLOOKUP(B25,March!$G$1:$CB$70,70,FALSE) -> 150 | L25: =HLOOKUP(B25,April!$G$1:$CB$85,85,FALSE) -> 150 | M25: =HLOOKUP(B25,May!$G$1:$CB$82,82,FALSE) -> 120 | N25: =SUM(D25:M25) -> 1360
A26: 20 | B26: Brian Mullen | C26: Plumbers Mate | D26: =HLOOKUP(B26,August!$G$1:$CB$87,87,FALSE) -> 105 | E26: =HLOOKUP(B26,September!$G$1:$CB$87,87,FALSE) -> 115 | F26: =HLOOKUP(B26,October!$G$1:$CB$87,87,FALSE) -> 125 | G26: =HLOOKUP(B26,November!$G$1:$CB$102,102,FALSE) -> 155 | H26: =HLOOKUP(B26,December!$G$1:$CB$129,129,FALSE) -> 215 | I26: =HLOOKUP(B26,January!$G$1:$CB$71,71,FALSE) -> 120 | J26: =HLOOKUP(B26,February!$G$1:$CB$73,73,FALSE) -> 100 | K26: =HLOOKUP(B26,March!$G$1:$CB$70,70,FALSE) -> 150 | L26: =HLOOKUP(B26,April!$G$1:$CB$85,85,FALSE) -> 115 | M26: =HLOOKUP(B26,May!$G$1:$CB$82,82,FALSE) -> 155 | N26: =SUM(D26:M26) -> 1355
A27: 21 | B27: Kevin Philpott | C27: Kevin van Philpott | D27: =HLOOKUP(B27,August!$G$1:$CB$87,87,FALSE) -> 80 | E27: =HLOOKUP(B27,September!$G$1:$CB$87,87,FALSE) -> 110 | F27: =HLOOKUP(B27,October!$G$1:$CB$87,87,FALSE) -> 110 | G27: =HLOOKUP(B27,November!$G$1:$CB$102,102,FALSE) -> 185 | H27: =HLOOKUP(B27,December!$G$1:$CB$129,129,FALSE) -> 220 | I27: =HLOOKUP(B27,January!$G$1:$CB$71,71,FALSE) -> 135 | J27: =HLOOKUP(B27,February!$G$1:$CB$73,73,FALSE) -> 120 | K27: =HLOOKUP(B27,March!$G$1:$CB$70,70,FALSE) -> 150 | L27: =HLOOKUP(B27,April!$G$1:$CB$85,85,FALSE) -> 110 | M27: =HLOOKUP(B27,May!$G$1:$CB$82,82,FALSE) -> 135 | N27: =SUM(D27:M27) -> 1355
A28: 22 | B28: Andy Dunne | C28: AC Pozallo | D28: =HLOOKUP(B28,August!$G$1:$CB$87,87,FALSE) -> 110 | E28: =HLOOKUP(B28,September!$G$1:$CB$87,87,FALSE) -> 90 | F28: =HLOOKUP(B28,October!$G$1:$CB$87,87,FALSE) -> 145 | G28: =HLOOKUP(B28,November!$G$1:$CB$102,102,FALSE) -> 125 | H28: =HLOOKUP(B28,December!$G$1:$CB$129,129,FALSE) -> 205 | I28: =HLOOKUP(B28,January!$G$1:$CB$71,71,FALSE) -> 120 | J28: =HLOOKUP(B28,February!$G$1:$CB$73,73,FALSE) -> 115 | K28: =HLOOKUP(B28,March!$G$1:$CB$70,70,FALSE) -> 140 | L28: =HLOOKUP(B28,April!$G$1:$CB$85,85,FALSE) -> 145 | M28: =HLOOKUP(B28,May!$G$1:$CB$82,82,FALSE) -> 150 | N28: =SUM(D28:M28) -> 1345
A29: 23 | B29: Maria Jordan | C29: Ria's Rovers | D29: =HLOOKUP(B29,August!$G$1:$CB$87,87,FALSE) -> 125 | E29: =HLOOKUP(B29,September!$G$1:$CB$87,87,FALSE) -> 90 | F29: =HLOOKUP(B29,October!$G$1:$CB$87,87,FALSE) -> 130 | G29: =HLOOKUP(B29,November!$G$1:$CB$102,102,FALSE) -> 160 | H29: =HLOOKUP(B29,December!$G$1:$CB$129,129,FALSE) -> 190 | I29: =HLOOKUP(B29,January!$G$1:$CB$71,71,FALSE) -> 125 | J29: =HLOOKUP(B29,February!$G$1:$CB$73,73,FALSE) -> 145 | K29: =HLOOKUP(B29,March!$G$1:$CB$70,70,FALSE) -> 140 | L29: =HLOOKUP(B29,April!$G$1:$CB$85,85,FALSE) -> 120 | M29: =HLOOKUP(B29,May!$G$1:$CB$82,82,FALSE) -> 120 | N29: =SUM(D29:M29) -> 1345
A30: 24 | B30: Richard Johnston | C30: Let There Be No Panic | D30: =HLOOKUP(B30,August!$G$1:$CB$87,87,FALSE) -> 95 | E30: =HLOOKUP(B30,September!$G$1:$CB$87,87,FALSE) -> 85 | F30: =HLOOKUP(B30,October!$G$1:$CB$87,87,FALSE) -> 115 | G30: =HLOOKUP(B30,November!$G$1:$CB$102,102,FALSE) -> 125 | H30: =HLOOKUP(B30,December!$G$1:$CB$129,129,FALSE) -> 260 | I30: =HLOOKUP(B30,January!$G$1:$CB$71,71,FALSE) -> 140 | J30: =HLOOKUP(B30,February!$G$1:$CB$73,73,FALSE) -> 125 | K30: =HLOOKUP(B30,March!$G$1:$CB$70,70,FALSE) -> 150 | L30: =HLOOKUP(B30,April!$G$1:$CB$85,85,FALSE) -> 135 | M30: =HLOOKUP(B30,May!$G$1:$CB$82,82,FALSE) -> 115 | N30: =SUM(D30:M30) -> 1345
A31: 25 | B31: Sharon Behan | C31: Holly's Heroes | D31: =HLOOKUP(B31,August!$G$1:$CB$87,87,FALSE) -> 110 | E31: =HLOOKUP(B31,September!$G$1:$CB$87,87,FALSE) -> 135 | F31: =HLOOKUP(B31,October!$G$1:$CB$87,87,FALSE) -> 110 | G31: =HLOOKUP(B31,November!$G$1:$CB$102,102,FALSE) -> 155 | H31: =HLOOKUP(B31,December!$G$1:$CB$129,129,FALSE) -> 245 | I31: =HLOOKUP(B31,January!$G$1:$CB$71,71,FALSE) -> 95 | J31: =HLOOKUP(B31,February!$G$1:$CB$73,73,FALSE) -> 125 | K31: =HLOOKUP(B31,March!$G$1:$CB$70,70,FALSE) -> 145 | L31: =HLOOKUP(B31,April!$G$1:$CB$85,85,FALSE) -> 115 | M31: =HLOOKUP(B31,May!$G$1:$CB$82,82,FALSE) -> 95 | N31: =SUM(D31:M31) -> 1330
A32: 26 | B32: Conor Horan | C32: Ricky Lamb Legs | D32: =HLOOKUP(B32,August!$G$1:$CB$87,87,FALSE) -> 100 | E32: =HLOOKUP(B32,September!$G$1:$CB$87,87,FALSE) -> 85 | F32: =HLOOKUP(B32,October!$G$1:$CB$87,87,FALSE) -> 120 | G32: =HLOOKUP(B32,November!$G$1:$CB$102,102,FALSE) -> 145 | H32: =HLOOKUP(B32,December!$G$1:$CB$129,129,FALSE) -> 215 | I32: =HLOOKUP(B32,January!$G$1:$CB$71,71,FALSE) -> 140 | J32: =HLOOKUP(B32,February!$G$1:$CB$73,73,FALSE) -> 120 | K32: =HLOOKUP(B32,March!$G$1:$CB$70,70,FALSE) -> 170 | L32: =HLOOKUP(B32,April!$G$1:$CB$85,85,FALSE) -> 110 | M32: =HLOOKUP(B32,May!$G$1:$CB$82,82,FALSE) -> 115 | N32: =SUM(D32:M32) -> 1320
A33: 27 | B33: Joe Turner | C33: While My Qatar Gently Weeps | D33: =HLOOKUP(B33,August!$G$1:$CB$87,87,FALSE) -> 105 | E33: =HLOOKUP(B33,September!$G$1:$CB$87,87,FALSE) -> 115 | F33: =HLOOKUP(B33,October!$G$1:$CB$87,87,FALSE) -> 115 | G33: =HLOOKUP(B33,November!$G$1:$CB$102,102,FALSE) -> 95 | H33: =HLOOKUP(B33,December!$G$1:$CB$129,129,FALSE) -> 205 | I33: =HLOOKUP(B33,January!$G$1:$CB$71,71,FALSE) -> 135 | J33: =HLOOKUP(B33,February!$G$1:$CB$73,73,FALSE) -> 135 | K33: =HLOOKUP(B33,March!$G$1:$CB$70,70,FALSE) -> 125 | L33: =HLOOKUP(B33,April!$G$1:$CB$85,85,FALSE) -> 160 | M33: =HLOOKUP(B33,May!$G$1:$CB$82,82,FALSE) -> 130 | N33: =SUM(D33:M33) -> 1320
A34: 28 | B34: Oisin O'Reilly | C34: Battle Cruiser | D34: =HLOOKUP(B34,August!$G$1:$CB$87,87,FALSE) -> 95 | E34: =HLOOKUP(B34,September!$G$1:$CB$87,87,FALSE) -> 115 | F34: =HLOOKUP(B34,October!$G$1:$CB$87,87,FALSE) -> 100 | G34: =HLOOKUP(B34,November!$G$1:$CB$102,102,FALSE) -> 150 | H34: =HLOOKUP(B34,December!$G$1:$CB$129,129,FALSE) -> 225 | I34: =HLOOKUP(B34,January!$G$1:$CB$71,71,FALSE) -> 140 | J34: =HLOOKUP(B34,February!$G$1:$CB$73,73,FALSE) -> 110 | K34: =HLOOKUP(B34,March!$G$1:$CB$70,70,FALSE) -> 155 | L34: =HLOOKUP(B34,April!$G$1:$CB$85,85,FALSE) -> 115 | M34: =HLOOKUP(B34,May!$G$1:$CB$82,82,FALSE) -> 115 | N34: =SUM(D34:M34) -> 1320
A35: 29 | B35: Pat Jordan | C35: Zac Attack | D35: =HLOOKUP(B35,August!$G$1:$CB$87,87,FALSE) -> 90 | E35: =HLOOKUP(B35,September!$G$1:$CB$87,87,FALSE) -> 110 | F35: =HLOOKUP(B35,October!$G$1:$CB$87,87,FALSE) -> 110 | G35: =HLOOKUP(B35,November!$G$1:$CB$102,102,FALSE) -> 110 | H35: =HLOOKUP(B35,December!$G$1:$CB$129,129,FALSE) -> 250 | I35: =HLOOKUP(B35,January!$G$1:$CB$71,71,FALSE) -> 135 | J35: =HLOOKUP(B35,February!$G$1:$CB$73,73,FALSE) -> 100 | K35: =HLOOKUP(B35,March!$G$1:$CB$70,70,FALSE) -> 145 | L35: =HLOOKUP(B35,April!$G$1:$CB$85,85,FALSE) -> 110 | M35: =HLOOKUP(B35,May!$G$1:$CB$82,82,FALSE) -> 145 | N35: =SUM(D35:M35) -> 1305
A36: 30 | B36: Konstantin Kulev | C36: Benkovski Byala | D36: =HLOOKUP(B36,August!$G$1:$CB$87,87,FALSE) -> 95 | E36: =HLOOKUP(B36,September!$G$1:$CB$87,87,FALSE) -> 115 | F36: =HLOOKUP(B36,October!$G$1:$CB$87,87,FALSE) -> 125 | G36: =HLOOKUP(B36,November!$G$1:$CB$102,102,FALSE) -> 185 | H36: =HLOOKUP(B36,December!$G$1:$CB$129,129,FALSE) -> 200 | I36: =HLOOKUP(B36,January!$G$1:$CB$71,71,FALSE) -> 140 | J36: =HLOOKUP(B36,February!$G$1:$CB$73,73,FALSE) -> 105 | K36: =HLOOKUP(B36,March!$G$1:$CB$70,70,FALSE) -> 115 | L36: =HLOOKUP(B36,April!$G$1:$CB$85,85,FALSE) -> 110 | M36: =HLOOKUP(B36,May!$G$1:$CB$82,82,FALSE) -> 110 | N36: =SUM(D36:M36) -> 1300
A37: 31 | B37: Joe O'Hehir | C37: Louis De First | D37: =HLOOKUP(B37,August!$G$1:$CB$87,87,FALSE) -> 90 | E37: =HLOOKUP(B37,September!$G$1:$CB$87,87,FALSE) -> 105 | F37: =HLOOKUP(B37,October!$G$1:$CB$87,87,FALSE) -> 135 | G37: =HLOOKUP(B37,November!$G$1:$CB$102,102,FALSE) -> 115 | H37: =HLOOKUP(B37,December!$G$1:$CB$129,129,FALSE) -> 245 | I37: =HLOOKUP(B37,January!$G$1:$CB$71,71,FALSE) -> 100 | J37: =HLOOKUP(B37,February!$G$1:$CB$73,73,FALSE) -> 95 | K37: =HLOOKUP(B37,March!$G$1:$CB$70,70,FALSE) -> 165 | L37: =HLOOKUP(B37,April!$G$1:$CB$85,85,FALSE) -> 120 | M37: =HLOOKUP(B37,May!$G$1:$CB$82,82,FALSE) -> 120 | N37: =SUM(D37:M37) -> 1290
A38: 32 | B38: Mike Hall | C38: Azpilicueta We Call Him Dave | D38: =HLOOKUP(B38,August!$G$1:$CB$87,87,FALSE) -> 115 | E38: =HLOOKUP(B38,September!$G$1:$CB$87,87,FALSE) -> 135 | F38: =HLOOKUP(B38,October!$G$1:$CB$87,87,FALSE) -> 105 | G38: =HLOOKUP(B38,November!$G$1:$CB$102,102,FALSE) -> 155 | H38: =HLOOKUP(B38,December!$G$1:$CB$129,129,FALSE) -> 215 | I38: =HLOOKUP(B38,January!$G$1:$CB$71,71,FALSE) -> 115 | J38: =HLOOKUP(B38,February!$G$1:$CB$73,73,FALSE) -> 115 | K38: =HLOOKUP(B38,March!$G$1:$CB$70,70,FALSE) -> 130 | L38: =HLOOKUP(B38,April!$G$1:$CB$85,85,FALSE) -> 105 | M38: =HLOOKUP(B38,May!$G$1:$CB$82,82,FALSE) -> 100 | N38: =SUM(D38:M38) -> 1290
A39: 33 | B39: Anthony Hughes | C39: Tekkerslovakia | D39: =HLOOKUP(B39,August!$G$1:$CB$87,87,FALSE) -> 130 | E39: =HLOOKUP(B39,September!$G$1:$CB$87,87,FALSE) -> 110 | F39: =HLOOKUP(B39,October!$G$1:$CB$87,87,FALSE) -> 70 | G39: =HLOOKUP(B39,November!$G$1:$CB$102,102,FALSE) -> 175 | H39: =HLOOKUP(B39,December!$G$1:$CB$129,129,FALSE) -> 215 | I39: =HLOOKUP(B39,January!$G$1:$CB$71,71,FALSE) -> 135 | J39: =HLOOKUP(B39,February!$G$1:$CB$73,73,FALSE) -> 90 | K39: =HLOOKUP(B39,March!$G$1:$CB$70,70,FALSE) -> 145 | L39: =HLOOKUP(B39,April!$G$1:$CB$85,85,FALSE) -> 120 | M39: =HLOOKUP(B39,May!$G$1:$CB$82,82,FALSE) -> 95 | N39: =SUM(D39:M39) -> 1285
A40: 34 | B40: Gary McGurk | C40: Barksdale's Crew | D40: =HLOOKUP(B40,August!$G$1:$CB$87,87,FALSE) -> 100 | E40: =HLOOKUP(B40,September!$G$1:$CB$87,87,FALSE) -> 110 | F40: =HLOOKUP(B40,October!$G$1:$CB$87,87,FALSE) -> 130 | G40: =HLOOKUP(B40,November!$G$1:$CB$102,102,FALSE) -> 135 | H40: =HLOOKUP(B40,December!$G$1:$CB$129,129,FALSE) -> 215 | I40: =HLOOKUP(B40,January!$G$1:$CB$71,71,FALSE) -> 135 | J40: =HLOOKUP(B40,February!$G$1:$CB$73,73,FALSE) -> 110 | K40: =HLOOKUP(B40,March!$G$1:$CB$70,70,FALSE) -> 115 | L40: =HLOOKUP(B40,April!$G$1:$CB$85,85,FALSE) -> 120 | M40: =HLOOKUP(B40,May!$G$1:$CB$82,82,FALSE) -> 115 | N40: =SUM(D40:M40) -> 1285
A41: 35 | B41: Aidan White | C41: Lambert's Puppet Theatre | D41: =HLOOKUP(B41,August!$G$1:$CB$87,87,FALSE) -> 105 | E41: =HLOOKUP(B41,September!$G$1:$CB$87,87,FALSE) -> 130 | F41: =HLOOKUP(B41,October!$G$1:$CB$87,87,FALSE) -> 90 | G41: =HLOOKUP(B41,November!$G$1:$CB$102,102,FALSE) -> 145 | H41: =HLOOKUP(B41,December!$G$1:$CB$129,129,FALSE) -> 190 | I41: =HLOOKUP(B41,January!$G$1:$CB$71,71,FALSE) -> 150 | J41: =HLOOKUP(B41,February!$G$1:$CB$73,73,FALSE) -> 105 | K41: =HLOOKUP(B41,March!$G$1:$CB$70,70,FALSE) -> 155 | L41: =HLOOKUP(B41,April!$G$1:$CB$85,85,FALSE) -> 115 | M41: =HLOOKUP(B41,May!$G$1:$CB$82,82,FALSE) -> 95 | N41: =SUM(D41:M41) -> 1280
A42: 36 | B42: Kevin Donohoe | C42: LTFC | D42: =HLOOKUP(B42,August!$G$1:$CB$87,87,FALSE) -> 115 | E42: =HLOOKUP(B42,September!$G$1:$CB$87,87,FALSE) -> 130 | F42: =HLOOKUP(B42,October!$G$1:$CB$87,87,FALSE) -> 95 | G42: =HLOOKUP(B42,November!$G$1:$CB$102,102,FALSE) -> 135 | H42: =HLOOKUP(B42,December!$G$1:$CB$129,129,FALSE) -> 240 | I42: =HLOOKUP(B42,January!$G$1:$CB$71,71,FALSE) -> 135 | J42: =HLOOKUP(B42,February!$G$1:$CB$73,73,FALSE) -> 145 | K42: =HLOOKUP(B42,March!$G$1:$CB$70,70,FALSE) -> 135 | L42: =HLOOKUP(B42,April!$G$1:$CB$85,85,FALSE) -> 100 | M42: =HLOOKUP(B42,May!$G$1:$CB$82,82,FALSE) -> 50 | N42: =SUM(D42:M42) -> 1280
A43: 37 | B43: Paul Moore | C43: "We Go To Norwich" | D43: =HLOOKUP(B43,August!$G$1:$CB$87,87,FALSE) -> 100 | E43: =HLOOKUP(B43,September!$G$1:$CB$87,87,FALSE) -> 105 | F43: =HLOOKUP(B43,October!$G$1:$CB$87,87,FALSE) -> 130 | G43: =HLOOKUP(B43,November!$G$1:$CB$102,102,FALSE) -> 140 | H43: =HLOOKUP(B43,December!$G$1:$CB$129,129,FALSE) -> 210 | I43: =HLOOKUP(B43,January!$G$1:$CB$71,71,FALSE) -> 135 | J43: =HLOOKUP(B43,February!$G$1:$CB$73,73,FALSE) -> 120 | K43: =HLOOKUP(B43,March!$G$1:$CB$70,70,FALSE) -> 115 | L43: =HLOOKUP(B43,April!$G$1:$CB$85,85,FALSE) -> 115 | M43: =HLOOKUP(B43,May!$G$1:$CB$82,82,FALSE) -> 105 | N43: =SUM(D43:M43) -> 1275
A44: 38 | B44: Gerry Moore | C44: Gunning For Title | D44: =HLOOKUP(B44,August!$G$1:$CB$87,87,FALSE) -> 115 | E44: =HLOOKUP(B44,September!$G$1:$CB$87,87,FALSE) -> 105 | F44: =HLOOKUP(B44,October!$G$1:$CB$87,87,FALSE) -> 110 | G44: =HLOOKUP(B44,November!$G$1:$CB$102,102,FALSE) -> 110 | H44: =HLOOKUP(B44,December!$G$1:$CB$129,129,FALSE) -> 215 | I44: =HLOOKUP(B44,January!$G$1:$CB$71,71,FALSE) -> 135 | J44: =HLOOKUP(B44,February!$G$1:$CB$73,73,FALSE) -> 140 | K44: =HLOOKUP(B44,March!$G$1:$CB$70,70,FALSE) -> 100 | L44: =HLOOKUP(B44,April!$G$1:$CB$85,85,FALSE) -> 135 | M44: =HLOOKUP(B44,May!$G$1:$CB$82,82,FALSE) -> 105 | N44: =SUM(D44:M44) -> 1270
A45: 39 | B45: Gareth Pierpoint | C45: Balotellitubbies | D45: =HLOOKUP(B45,August!$G$1:$CB$87,87,FALSE) -> 105 | E45: =HLOOKUP(B45,September!$G$1:$CB$87,87,FALSE) -> 100 | F45: =HLOOKUP(B45,October!$G$1:$CB$87,87,FALSE) -> 105 | G45: =HLOOKUP(B45,November!$G$1:$CB$102,102,FALSE) -> 120 | H45: =HLOOKUP(B45,December!$G$1:$CB$129,129,FALSE) -> 235 | I45: =HLOOKUP(B45,January!$G$1:$CB$71,71,FALSE) -> 130 | J45: =HLOOKUP(B45,February!$G$1:$CB$73,73,FALSE) -> 110 | K45: =HLOOKUP(B45,March!$G$1:$CB$70,70,FALSE) -> 130 | L45: =HLOOKUP(B45,April!$G$1:$CB$85,85,FALSE) -> 120 | M45: =HLOOKUP(B45,May!$G$1:$CB$82,82,FALSE) -> 110 | N45: =SUM(D45:M45) -> 1265
A46: 40 | B46: Kris Stainton | C46: Van Gaal's Galore | D46: =HLOOKUP(B46,August!$G$1:$CB$87,87,FALSE) -> 95 | E46: =HLOOKUP(B46,September!$G$1:$CB$87,87,FALSE) -> 135 | F46: =HLOOKUP(B46,October!$G$1:$CB$87,87,FALSE) -> 100 | G46: =HLOOKUP(B46,November!$G$1:$CB$102,102,FALSE) -> 160 | H46: =HLOOKUP(B46,December!$G$1:$CB$129,129,FALSE) -> 190 | I46: =HLOOKUP(B46,January!$G$1:$CB$71,71,FALSE) -> 130 | J46: =HLOOKUP(B46,February!$G$1:$CB$73,73,FALSE) -> 95 | K46: =HLOOKUP(B46,March!$G$1:$CB$70,70,FALSE) -> 155 | L46: =HLOOKUP(B46,April!$G$1:$CB$85,85,FALSE) -> 120 | M46: =HLOOKUP(B46,May!$G$1:$CB$82,82,FALSE) -> 85 | N46: =SUM(D46:M46) -> 1265
A47: 41 | B47: Siobhan Murphy | C47: Kopout | D47: =HLOOKUP(B47,August!$G$1:$CB$87,87,FALSE) -> 100 | E47: =HLOOKUP(B47,September!$G$1:$CB$87,87,FALSE) -> 90 | F47: =HLOOKUP(B47,October!$G$1:$CB$87,87,FALSE) -> 135 | G47: =HLOOKUP(B47,November!$G$1:$CB$102,102,FALSE) -> 135 | H47: =HLOOKUP(B47,December!$G$1:$CB$129,129,FALSE) -> 245 | I47: =HLOOKUP(B47,January!$G$1:$CB$71,71,FALSE) -> 110 | J47: =HLOOKUP(B47,February!$G$1:$CB$73,73,FALSE) -> 95 | K47: =HLOOKUP(B47,March!$G$1:$CB$70,70,FALSE) -> 135 | L47: =HLOOKUP(B47,April!$G$1:$CB$85,85,FALSE) -> 120 | M47: =HLOOKUP(B47,May!$G$1:$CB$82,82,FALSE) -> 100 | N47: =SUM(D47:M47) -> 1265
A48: 42 | B48: Aiden Desch | C48: Yid Army | D48: =HLOOKUP(B48,August!$G$1:$CB$87,87,FALSE) -> 95 | E48: =HLOOKUP(B48,September!$G$1:$CB$87,87,FALSE) -> 100 | F48: =HLOOKUP(B48,October!$G$1:$CB$87,87,FALSE) -> 105 | G48: =HLOOKUP(B48,November!$G$1:$CB$102,102,FALSE) -> 165 | H48: =HLOOKUP(B48,December!$G$1:$CB$129,129,FALSE) -> 205 | I48: =HLOOKUP(B48,January!$G$1:$CB$71,71,FALSE) -> 90 | J48: =HLOOKUP(B48,February!$G$1:$CB$73,73,FALSE) -> 115 | K48: =HLOOKUP(B48,March!$G$1:$CB$70,70,FALSE) -> 135 | L48: =HLOOKUP(B48,April!$G$1:$CB$85,85,FALSE) -> 155 | M48: =HLOOKUP(B48,May!$G$1:$CB$82,82,FALSE) -> 95 | N48: =SUM(D48:M48) -> 1260
A49: 43 | B49: Brendan Maguire | C49: Back on Top | D49: =HLOOKUP(B49,August!$G$1:$CB$87,87,FALSE) -> 95 | E49: =HLOOKUP(B49,September!$G$1:$CB$87,87,FALSE) -> 110 | F49: =HLOOKUP(B49,October!$G$1:$CB$87,87,FALSE) -> 105 | G49: =HLOOKUP(B49,November!$G$1:$CB$102,102,FALSE) -> 145 | H49: =HLOOKUP(B49,December!$G$1:$CB$129,129,FALSE) -> 200 | I49: =HLOOKUP(B49,January!$G$1:$CB$71,71,FALSE) -> 90 | J49: =HLOOKUP(B49,February!$G$1:$CB$73,73,FALSE) -> 115 | K49: =HLOOKUP(B49,March!$G$1:$CB$70,70,FALSE) -> 150 | L49: =HLOOKUP(B49,April!$G$1:$CB$85,85,FALSE) -> 125 | M49: =HLOOKUP(B49,May!$G$1:$CB$82,82,FALSE) -> 125 | N49: =SUM(D49:M49) -> 1260
A50: 44 | B50: David Cooney | C50: Ranaghan City | D50: =HLOOKUP(B50,August!$G$1:$CB$87,87,FALSE) -> 130 | E50: =HLOOKUP(B50,September!$G$1:$CB$87,87,FALSE) -> 95 | F50: =HLOOKUP(B50,October!$G$1:$CB$87,87,FALSE) -> 105 | G50: =HLOOKUP(B50,November!$G$1:$CB$102,102,FALSE) -> 130 | H50: =HLOOKUP(B50,December!$G$1:$CB$129,129,FALSE) -> 245 | I50: =HLOOKUP(B50,January!$G$1:$CB$71,71,FALSE) -> 120 | J50: =HLOOKUP(B50,February!$G$1:$CB$73,73,FALSE) -> 85 | K50: =HLOOKUP(B50,March!$G$1:$CB$70,70,FALSE) -> 120 | L50: =HLOOKUP(B50,April!$G$1:$CB$85,85,FALSE) -> 115 | M50: =HLOOKUP(B50,May!$G$1:$CB$82,82,FALSE) -> 110 | N50: =SUM(D50:M50) -> 1255
A51: 45 | B51: David Keavney | C51: YaJokinArnYa | D51: =HLOOKUP(B51,August!$G$1:$CB$87,87,FALSE) -> 110 | E51: =HLOOKUP(B51,September!$G$1:$CB$87,87,FALSE) -> 115 | F51: =HLOOKUP(B51,October!$G$1:$CB$87,87,FALSE) -> 95 | G51: =HLOOKUP(B51,November!$G$1:$CB$102,102,FALSE) -> 120 | H51: =HLOOKUP(B51,December!$G$1:$CB$129,129,FALSE) -> 220 | I51: =HLOOKUP(B51,January!$G$1:$CB$71,71,FALSE) -> 130 | J51: =HLOOKUP(B51,February!$G$1:$CB$73,73,FALSE) -> 95 | K51: =HLOOKUP(B51,March!$G$1:$CB$70,70,FALSE) -> 165 | L51: =HLOOKUP(B51,April!$G$1:$CB$85,85,FALSE) -> 115 | M51: =HLOOKUP(B51,May!$G$1:$CB$82,82,FALSE) -> 85 | N51: =SUM(D51:M51) -> 1250
A52: 46 | B52: Philip Jordan | C52: Vale 46 | D52: =HLOOKUP(B52,August!$G$1:$CB$87,87,FALSE) -> 105 | E52: =HLOOKUP(B52,September!$G$1:$CB$87,87,FALSE) -> 125 | F52: =HLOOKUP(B52,October!$G$1:$CB$87,87,FALSE) -> 120 | G52: =HLOOKUP(B52,November!$G$1:$CB$102,102,FALSE) -> 120 | H52: =HLOOKUP(B52,December!$G$1:$CB$129,129,FALSE) -> 245 | I52: =HLOOKUP(B52,January!$G$1:$CB$71,71,FALSE) -> 105 | J52: =HLOOKUP(B52,February!$G$1:$CB$73,73,FALSE) -> 85 | K52: =HLOOKUP(B52,March!$G$1:$CB$70,70,FALSE) -> 140 | L52: =HLOOKUP(B52,April!$G$1:$CB$85,85,FALSE) -> 115 | M52: =HLOOKUP(B52,May!$G$1:$CB$82,82,FALSE) -> 90 | N52: =SUM(D52:M52) -> 1250
A53: 47 | B53: Wayne Donovan | C53: Thy Kingdom Come | D53: =HLOOKUP(B53,August!$G$1:$CB$87,87,FALSE) -> 130 | E53: =HLOOKUP(B53,September!$G$1:$CB$87,87,FALSE) -> 120 | F53: =HLOOKUP(B53,October!$G$1:$CB$87,87,FALSE) -> 100 | G53: =HLOOKUP(B53,November!$G$1:$CB$102,102,FALSE) -> 135 | H53: =HLOOKUP(B53,December!$G$1:$CB$129,129,FALSE) -> 225 | I53: =HLOOKUP(B53,January!$G$1:$CB$71,71,FALSE) -> 120 | J53: =HLOOKUP(B53,February!$G$1:$CB$73,73,FALSE) -> 95 | K53: =HLOOKUP(B53,March!$G$1:$CB$70,70,FALSE) -> 135 | L53: =HLOOKUP(B53,April!$G$1:$CB$85,85,FALSE) -> 115 | M53: =HLOOKUP(B53,May!$G$1:$CB$82,82,FALSE) -> 75 | N53: =SUM(D53:M53) -> 1250
A54: 48 | B54: Ciaran O'Hart | C54: Riverchapel Plate | D54: =HLOOKUP(B54,August!$G$1:$CB$87,87,FALSE) -> 95 | E54: =HLOOKUP(B54,September!$G$1:$CB$87,87,FALSE) -> 100 | F54: =HLOOKUP(B54,October!$G$1:$CB$87,87,FALSE) -> 115 | G54: =HLOOKUP(B54,November!$G$1:$CB$102,102,FALSE) -> 155 | H54: =HLOOKUP(B54,December!$G$1:$CB$129,129,FALSE) -> 205 | I54: =HLOOKUP(B54,January!$G$1:$CB$71,71,FALSE) -> 115 | J54: =HLOOKUP(B54,February!$G$1:$CB$73,73,FALSE) -> 115 | K54: =HLOOKUP(B54,March!$G$1:$CB$70,70,FALSE) -> 140 | L54: =HLOOKUP(B54,April!$G$1:$CB$85,85,FALSE) -> 100 | M54: =HLOOKUP(B54,May!$G$1:$CB$82,82,FALSE) -> 95 | N54: =SUM(D54:M54) -> 1235
A55: 49 | B55: Shane Horan | C55: ShaneyHoransFC | D55: =HLOOKUP(B55,August!$G$1:$CB$87,87,FALSE) -> 100 | E55: =HLOOKUP(B55,September!$G$1:$CB$87,87,FALSE) -> 90 | F55: =HLOOKUP(B55,October!$G$1:$CB$87,87,FALSE) -> 95 | G55: =HLOOKUP(B55,November!$G$1:$CB$102,102,FALSE) -> 145 | H55: =HLOOKUP(B55,December!$G$1:$CB$129,129,FALSE) -> 200 | I55: =HLOOKUP(B55,January!$G$1:$CB$71,71,FALSE) -> 105 | J55: =HLOOKUP(B55,February!$G$1:$CB$73,73,FALSE) -> 145 | K55: =HLOOKUP(B55,March!$G$1:$CB$70,70,FALSE) -> 160 | L55: =HLOOKUP(B55,April!$G$1:$CB$85,85,FALSE) -> 145 | M55: =HLOOKUP(B55,May!$G$1:$CB$82,82,FALSE) -> 50 | N55: =SUM(D55:M55) -> 1235
A56: 50 | B56: Phil Doyle | C56: FC Muertos Vivientes Goteo de Snr Z | D56: =HLOOKUP(B56,August!$G$1:$CB$87,87,FALSE) -> 90 | E56: =HLOOKUP(B56,September!$G$1:$CB$87,87,FALSE) -> 90 | F56: =HLOOKUP(B56,October!$G$1:$CB$87,87,FALSE) -> 65 | G56: =HLOOKUP(B56,November!$G$1:$CB$102,102,FALSE) -> 180 | H56: =HLOOKUP(B56,December!$G$1:$CB$129,129,FALSE) -> 245 | I56: =HLOOKUP(B56,January!$G$1:$CB$71,71,FALSE) -> 120 | J56: =HLOOKUP(B56,February!$G$1:$CB$73,73,FALSE) -> 90 | K56: =HLOOKUP(B56,March!$G$1:$CB$70,70,FALSE) -> 145 | L56: =HLOOKUP(B56,April!$G$1:$CB$85,85,FALSE) -> 120 | M56: =HLOOKUP(B56,May!$G$1:$CB$82,82,FALSE) -> 85 | N56: =SUM(D56:M56) -> 1230
A57: 51 | B57: Liam Butler | C57: Happy Hammers | D57: =HLOOKUP(B57,August!$G$1:$CB$87,87,FALSE) -> 90 | E57: =HLOOKUP(B57,September!$G$1:$CB$87,87,FALSE) -> 90 | F57: =HLOOKUP(B57,October!$G$1:$CB$87,87,FALSE) -> 90 | G57: =HLOOKUP(B57,November!$G$1:$CB$102,102,FALSE) -> 145 | H57: =HLOOKUP(B57,December!$G$1:$CB$129,129,FALSE) -> 230 | I57: =HLOOKUP(B57,January!$G$1:$CB$71,71,FALSE) -> 105 | J57: =HLOOKUP(B57,February!$G$1:$CB$73,73,FALSE) -> 105 | K57: =HLOOKUP(B57,March!$G$1:$CB$70,70,FALSE) -> 150 | L57: =HLOOKUP(B57,April!$G$1:$CB$85,85,FALSE) -> 120 | M57: =HLOOKUP(B57,May!$G$1:$CB$82,82,FALSE) -> 100 | N57: =SUM(D57:M57) -> 1225
A58: 52 | B58: Sean O'Mairtin | C58: Creweless | D58: =HLOOKUP(B58,August!$G$1:$CB$87,87,FALSE) -> 70 | E58: =HLOOKUP(B58,September!$G$1:$CB$87,87,FALSE) -> 95 | F58: =HLOOKUP(B58,October!$G$1:$CB$87,87,FALSE) -> 105 | G58: =HLOOKUP(B58,November!$G$1:$CB$102,102,FALSE) -> 105 | H58: =HLOOKUP(B58,December!$G$1:$CB$129,129,FALSE) -> 210 | I58: =HLOOKUP(B58,January!$G$1:$CB$71,71,FALSE) -> 155 | J58: =HLOOKUP(B58,February!$G$1:$CB$73,73,FALSE) -> 120 | K58: =HLOOKUP(B58,March!$G$1:$CB$70,70,FALSE) -> 120 | L58: =HLOOKUP(B58,April!$G$1:$CB$85,85,FALSE) -> 105 | M58: =HLOOKUP(B58,May!$G$1:$CB$82,82,FALSE) -> 130 | N58: =SUM(D58:M58) -> 1215
A59: 53 | B59: Craig Calvert | C59: Red Van Man | D59: =HLOOKUP(B59,August!$G$1:$CB$87,87,FALSE) -> 75 | E59: =HLOOKUP(B59,September!$G$1:$CB$87,87,FALSE) -> 115 | F59: =HLOOKUP(B59,October!$G$1:$CB$87,87,FALSE) -> 100 | G59: =HLOOKUP(B59,November!$G$1:$CB$102,102,FALSE) -> 115 | H59: =HLOOKUP(B59,December!$G$1:$CB$129,129,FALSE) -> 245 | I59: =HLOOKUP(B59,January!$G$1:$CB$71,71,FALSE) -> 100 | J59: =HLOOKUP(B59,February!$G$1:$CB$73,73,FALSE) -> 115 | K59: =HLOOKUP(B59,March!$G$1:$CB$70,70,FALSE) -> 145 | L59: =HLOOKUP(B59,April!$G$1:$CB$85,85,FALSE) -> 100 | M59: =HLOOKUP(B59,May!$G$1:$CB$82,82,FALSE) -> 100 | N59: =SUM(D59:M59) -> 1210
A60: 54 | B60: Dave Green | C60: Hope It's This Year | D60: =HLOOKUP(B60,August!$G$1:$CB$87,87,FALSE) -> 110 | E60: =HLOOKUP(B60,September!$G$1:$CB$87,87,FALSE) -> 115 | F60: =HLOOKUP(B60,October!$G$1:$CB$87,87,FALSE) -> 70 | G60: =HLOOKUP(B60,November!$G$1:$CB$102,102,FALSE) -> 120 | H60: =HLOOKUP(B60,December!$G$1:$CB$129,129,FALSE) -> 230 | I60: =HLOOKUP(B60,January!$G$1:$CB$71,71,FALSE) -> 110 | J60: =HLOOKUP(B60,February!$G$1:$CB$73,73,FALSE) -> 130 | K60: =HLOOKUP(B60,March!$G$1:$CB$70,70,FALSE) -> 120 | L60: =HLOOKUP(B60,April!$G$1:$CB$85,85,FALSE) -> 105 | M60: =HLOOKUP(B60,May!$G$1:$CB$82,82,FALSE) -> 90 | N60: =SUM(D60:M60) -> 1200
A61: 55 | B61: Joe Behan | C61: Melchester Rovers | D61: =HLOOKUP(B61,August!$G$1:$CB$87,87,FALSE) -> 115 | E61: =HLOOKUP(B61,September!$G$1:$CB$87,87,FALSE) -> 105 | F61: =HLOOKUP(B61,October!$G$1:$CB$87,87,FALSE) -> 105 | G61: =HLOOKUP(B61,November!$G$1:$CB$102,102,FALSE) -> 120 | H61: =HLOOKUP(B61,December!$G$1:$CB$129,129,FALSE) -> 180 | I61: =HLOOKUP(B61,January!$G$1:$CB$71,71,FALSE) -> 125 | J61: =HLOOKUP(B61,February!$G$1:$CB$73,73,FALSE) -> 110 | K61: =HLOOKUP(B61,March!$G$1:$CB$70,70,FALSE) -> 110 | L61: =HLOOKUP(B61,April!$G$1:$CB$85,85,FALSE) -> 105 | M61: =HLOOKUP(B61,May!$G$1:$CB$82,82,FALSE) -> 120 | N61: =SUM(D61:M61) -> 1195
A62: 56 | B62: Niall Carroll | C62: Baker's Corner | D62: =HLOOKUP(B62,August!$G$1:$CB$87,87,FALSE) -> 90 | E62: =HLOOKUP(B62,September!$G$1:$CB$87,87,FALSE) -> 120 | F62: =HLOOKUP(B62,October!$G$1:$CB$87,87,FALSE) -> 100 | G62: =HLOOKUP(B62,November!$G$1:$CB$102,102,FALSE) -> 100 | H62: =HLOOKUP(B62,December!$G$1:$CB$129,129,FALSE) -> 215 | I62: =HLOOKUP(B62,January!$G$1:$CB$71,71,FALSE) -> 115 | J62: =HLOOKUP(B62,February!$G$1:$CB$73,73,FALSE) -> 100 | K62: =HLOOKUP(B62,March!$G$1:$CB$70,70,FALSE) -> 110 | L62: =HLOOKUP(B62,April!$G$1:$CB$85,85,FALSE) -> 120 | M62: =HLOOKUP(B62,May!$G$1:$CB$82,82,FALSE) -> 105 | N62: =SUM(D62:M62) -> 1175
A63: 57 | B63: Liam Geraghty | C63: All Aboard Jose's Big Blue Bus | D63: =HLOOKUP(B63,August!$G$1:$CB$87,87,FALSE) -> 95 | E63: =HLOOKUP(B63,September!$G$1:$CB$87,87,FALSE) -> 110 | F63: =HLOOKUP(B63,October!$G$1:$CB$87,87,FALSE) -> 100 | G63: =HLOOKUP(B63,November!$G$1:$CB$102,102,FALSE) -> 125 | H63: =HLOOKUP(B63,December!$G$1:$CB$129,129,FALSE) -> 170 | I63: =HLOOKUP(B63,January!$G$1:$CB$71,71,FALSE) -> 145 | J63: =HLOOKUP(B63,February!$G$1:$CB$73,73,FALSE) -> 100 | K63: =HLOOKUP(B63,March!$G$1:$CB$70,70,FALSE) -> 150 | L63: =HLOOKUP(B63,April!$G$1:$CB$85,85,FALSE) -> 75 | M63: =HLOOKUP(B63,May!$G$1:$CB$82,82,FALSE) -> 90 | N63: =SUM(D63:M63) -> 1160
A64: 58 | B64: Aidan Scanlon | C64: Kilflynn Santos | D64: =HLOOKUP(B64,August!$G$1:$CB$87,87,FALSE) -> 80 | E64: =HLOOKUP(B64,September!$G$1:$CB$87,87,FALSE) -> 120 | F64: =HLOOKUP(B64,October!$G$1:$CB$87,87,FALSE) -> 105 | G64: =HLOOKUP(B64,November!$G$1:$CB$102,102,FALSE) -> 150 | H64: =HLOOKUP(B64,December!$G$1:$CB$129,129,FALSE) -> 185 | I64: =HLOOKUP(B64,January!$G$1:$CB$71,71,FALSE) -> 110 | J64: =HLOOKUP(B64,February!$G$1:$CB$73,73,FALSE) -> 80 | K64: =HLOOKUP(B64,March!$G$1:$CB$70,70,FALSE) -> 105 | L64: =HLOOKUP(B64,April!$G$1:$CB$85,85,FALSE) -> 115 | M64: =HLOOKUP(B64,May!$G$1:$CB$82,82,FALSE) -> 100 | N64: =SUM(D64:M64) -> 1150
A65: 59 | B65: Alan Boyle | C65: What For Ref? | D65: =HLOOKUP(B65,August!$G$1:$CB$87,87,FALSE) -> 115 | E65: =HLOOKUP(B65,September!$G$1:$CB$87,87,FALSE) -> 95 | F65: =HLOOKUP(B65,October!$G$1:$CB$87,87,FALSE) -> 145 | G65: =HLOOKUP(B65,November!$G$1:$CB$102,102,FALSE) -> 155 | H65: =HLOOKUP(B65,December!$G$1:$CB$129,129,FALSE) -> 175 | I65: =HLOOKUP(B65,January!$G$1:$CB$71,71,FALSE) -> 145 | J65: =HLOOKUP(B65,February!$G$1:$CB$73,73,FALSE) -> 105 | K65: =HLOOKUP(B65,March!$G$1:$CB$70,70,FALSE) -> 160 | L65: =HLOOKUP(B65,April!$G$1:$CB$85,85,FALSE) -> 50 | M65: =HLOOKUP(B65,May!$G$1:$CB$82,82,FALSE) -> 5 | N65: =SUM(D65:M65) -> 1150
A66: 60 | B66: Chris Hall | C66: Kangaroo Court | D66: =HLOOKUP(B66,August!$G$1:$CB$87,87,FALSE) -> 95 | E66: =HLOOKUP(B66,September!$G$1:$CB$87,87,FALSE) -> 75 | F66: =HLOOKUP(B66,October!$G$1:$CB$87,87,FALSE) -> 100 | G66: =HLOOKUP(B66,November!$G$1:$CB$102,102,FALSE) -> 120 | H66: =HLOOKUP(B66,December!$G$1:$CB$129,129,FALSE) -> 205 | I66: =HLOOKUP(B66,January!$G$1:$CB$71,71,FALSE) -> 120 | J66: =HLOOKUP(B66,February!$G$1:$CB$73,73,FALSE) -> 75 | K66: =HLOOKUP(B66,March!$G$1:$CB$70,70,FALSE) -> 110 | L66: =HLOOKUP(B66,April!$G$1:$CB$85,85,FALSE) -> 105 | M66: =HLOOKUP(B66,May!$G$1:$CB$82,82,FALSE) -> 115 | N66: =SUM(D66:M66) -> 1120
A67: 61 | B67: Javier Suarez Barreiro | C67: Tiki Taka | D67: =HLOOKUP(B67,August!$G$1:$CB$87,87,FALSE) -> 115 | E67: =HLOOKUP(B67,September!$G$1:$CB$87,87,FALSE) -> 80 | F67: =HLOOKUP(B67,October!$G$1:$CB$87,87,FALSE) -> 95 | G67: =HLOOKUP(B67,November!$G$1:$CB$102,102,FALSE) -> 130 | H67: =HLOOKUP(B67,December!$G$1:$CB$129,129,FALSE) -> 225 | I67: =HLOOKUP(B67,January!$G$1:$CB$71,71,FALSE) -> 130 | J67: =HLOOKUP(B67,February!$G$1:$CB$73,73,FALSE) -> 120 | K67: =HLOOKUP(B67,March!$G$1:$CB$70,70,FALSE) -> 130 | L67: =HLOOKUP(B67,April!$G$1:$CB$85,85,FALSE) -> 40 | M67: =HLOOKUP(B67,May!$G$1:$CB$82,82,FALSE) -> 15 | N67: =SUM(D67:M67) -> 1080
A68: 62 | B68: Rhona Devlin | C68: LFC Rhoz | D68: =HLOOKUP(B68,August!$G$1:$CB$87,87,FALSE) -> 130 | E68: =HLOOKUP(B68,September!$G$1:$CB$87,87,FALSE) -> 80 | F68: =HLOOKUP(B68,October!$G$1:$CB$87,87,FALSE) -> 65 | G68: =HLOOKUP(B68,November!$G$1:$CB$102,102,FALSE) -> 115 | H68: =HLOOKUP(B68,December!$G$1:$CB$129,129,FALSE) -> 125 | I68: =HLOOKUP(B68,January!$G$1:$CB$71,71,FALSE) -> 105 | J68: =HLOOKUP(B68,February!$G$1:$CB$73,73,FALSE) -> 110 | K68: =HLOOKUP(B68,March!$G$1:$CB$70,70,FALSE) -> 110 | L68: =HLOOKUP(B68,April!$G$1:$CB$85,85,FALSE) -> 75 | M68: =HLOOKUP(B68,May!$G$1:$CB$82,82,FALSE) -> 75 | N68: =SUM(D68:M68) -> 990
A69: 63 | B69: Terry Behan | C69: Utd4Ever | D69: =HLOOKUP(B69,August!$G$1:$CB$87,87,FALSE) -> 100 | E69: =HLOOKUP(B69,September!$G$1:$CB$87,87,FALSE) -> 95 | F69: =HLOOKUP(B69,October!$G$1:$CB$87,87,FALSE) -> 95 | G69: =HLOOKUP(B69,November!$G$1:$CB$102,102,FALSE) -> 140 | H69: =HLOOKUP(B69,December!$G$1:$CB$129,129,FALSE) -> 200 | I69: =HLOOKUP(B69,January!$G$1:$CB$71,71,FALSE) -> 115 | J69: =HLOOKUP(B69,February!$G$1:$CB$73,73,FALSE) -> 120 | K69: =HLOOKUP(B69,March!$G$1:$CB$70,70,FALSE) -> 100 | L69: =HLOOKUP(B69,April!$G$1:$CB$85,85,FALSE) -> 5 | M69: =HLOOKUP(B69,May!$G$1:$CB$82,82,FALSE) -> 10 | N69: =SUM(D69:M69) -> 980
A70: 64 | B70: Tom McHugh | C70: Crystal Pulis | D70: =HLOOKUP(B70,August!$G$1:$CB$87,87,FALSE) -> 110 | E70: =HLOOKUP(B70,September!$G$1:$CB$87,87,FALSE) -> 110 | F70: =HLOOKUP(B70,October!$G$1:$CB$87,87,FALSE) -> 105 | G70: =HLOOKUP(B70,November!$G$1:$CB$102,102,FALSE) -> 100 | H70: =HLOOKUP(B70,December!$G$1:$CB$129,129,FALSE) -> 240 | I70: =HLOOKUP(B70,January!$G$1:$CB$71,71,FALSE) -> 90 | J70: =HLOOKUP(B70,February!$G$1:$CB$73,73,FALSE) -> 75 | K70: =HLOOKUP(B70,March!$G$1:$CB$70,70,FALSE) -> 20 | L70: =HLOOKUP(B70,April!$G$1:$CB$85,85,FALSE) -> 0 | M70: =HLOOKUP(B70,May!$G$1:$CB$82,82,FALSE) -> 5 | N70: =SUM(D70:M70) -> 855
A71: 65 | B71: Ray Ellis | C71: Hodge Ball FC | D71: =HLOOKUP(B71,August!$G$1:$CB$87,87,FALSE) -> 95 | E71: =HLOOKUP(B71,September!$G$1:$CB$87,87,FALSE) -> 95 | F71: =HLOOKUP(B71,October!$G$1:$CB$87,87,FALSE) -> 115 | G71: =HLOOKUP(B71,November!$G$1:$CB$102,102,FALSE) -> 130 | H71: =HLOOKUP(B71,December!$G$1:$CB$129,129,FALSE) -> 120 | I71: =HLOOKUP(B71,January!$G$1:$CB$71,71,FALSE) -> 115 | J71: =HLOOKUP(B71,February!$G$1:$CB$73,73,FALSE) -> 75 | K71: =HLOOKUP(B71,March!$G$1:$CB$70,70,FALSE) -> 65 | L71: =HLOOKUP(B71,April!$G$1:$CB$85,85,FALSE) -> 0 | M71: =HLOOKUP(B71,May!$G$1:$CB$82,82,FALSE) -> 5 | N71: =SUM(D71:M71) -> 815
A72: 66 | B72: Aaron Byrne | C72: Crash n Byrne | D72: =HLOOKUP(B72,August!$G$1:$CB$87,87,FALSE) -> 80 | E72: =HLOOKUP(B72,September!$G$1:$CB$87,87,FALSE) -> 95 | F72: =HLOOKUP(B72,October!$G$1:$CB$87,87,FALSE) -> 140 | G72: =HLOOKUP(B72,November!$G$1:$CB$102,102,FALSE) -> 145 | H72: =HLOOKUP(B72,December!$G$1:$CB$129,129,FALSE) -> 215 | I72: =HLOOKUP(B72,January!$G$1:$CB$71,71,FALSE) -> 100 | J72: =HLOOKUP(B72,February!$G$1:$CB$73,73,FALSE) -> 10 | K72: =HLOOKUP(B72,March!$G$1:$CB$70,70,FALSE) -> 15 | L72: =HLOOKUP(B72,April!$G$1:$CB$85,85,FALSE) -> 0 | M72: =HLOOKUP(B72,May!$G$1:$CB$82,82,FALSE) -> 10 | N72: =SUM(D72:M72) -> 810
A73: 67 | B73: Keith Horan | C73: Death By Football | D73: =HLOOKUP(B73,August!$G$1:$CB$87,87,FALSE) -> 105 | E73: =HLOOKUP(B73,September!$G$1:$CB$87,87,FALSE) -> 115 | F73: =HLOOKUP(B73,October!$G$1:$CB$87,87,FALSE) -> 105 | G73: =HLOOKUP(B73,November!$G$1:$CB$102,102,FALSE) -> 150 | H73: =HLOOKUP(B73,December!$G$1:$CB$129,129,FALSE) -> 195 | I73: =HLOOKUP(B73,January!$G$1:$CB$71,71,FALSE) -> 60 | J73: =HLOOKUP(B73,February!$G$1:$CB$73,73,FALSE) -> 10 | K73: =HLOOKUP(B73,March!$G$1:$CB$70,70,FALSE) -> 45 | L73: =HLOOKUP(B73,April!$G$1:$CB$85,85,FALSE) -> 5 | M73: =HLOOKUP(B73,May!$G$1:$CB$82,82,FALSE) -> 5 | N73: =SUM(D73:M73) -> 795
A74: 68 | B74: David Byrne | C74: In Parry I Trust | D74: =HLOOKUP(B74,August!$G$1:$CB$87,87,FALSE) -> 115 | E74: =HLOOKUP(B74,September!$G$1:$CB$87,87,FALSE) -> 85 | F74: =HLOOKUP(B74,October!$G$1:$CB$87,87,FALSE) -> 115 | G74: =HLOOKUP(B74,November!$G$1:$CB$102,102,FALSE) -> 125 | H74: =HLOOKUP(B74,December!$G$1:$CB$129,129,FALSE) -> 135 | I74: =HLOOKUP(B74,January!$G$1:$CB$71,71,FALSE) -> 155 | J74: =HLOOKUP(B74,February!$G$1:$CB$73,73,FALSE) -> 5 | K74: =HLOOKUP(B74,March!$G$1:$CB$70,70,FALSE) -> 20 | L74: =HLOOKUP(B74,April!$G$1:$CB$85,85,FALSE) -> 5 | M74: =HLOOKUP(B74,May!$G$1:$CB$82,82,FALSE) -> 15 | N74: =SUM(D74:M74) -> 775
A75: 69 | B75: Peter Behan | C75: FC Nerazzuri | D75: =HLOOKUP(B75,August!$G$1:$CB$87,87,FALSE) -> 100 | E75: =HLOOKUP(B75,September!$G$1:$CB$87,87,FALSE) -> 85 | F75: =HLOOKUP(B75,October!$G$1:$CB$87,87,FALSE) -> 110 | G75: =HLOOKUP(B75,November!$G$1:$CB$102,102,FALSE) -> 165 | H75: =HLOOKUP(B75,December!$G$1:$CB$129,129,FALSE) -> 200 | I75: =HLOOKUP(B75,January!$G$1:$CB$71,71,FALSE) -> 20 | J75: =HLOOKUP(B75,February!$G$1:$CB$73,73,FALSE) -> 10 | K75: =HLOOKUP(B75,March!$G$1:$CB$70,70,FALSE) -> 20 | L75: =HLOOKUP(B75,April!$G$1:$CB$85,85,FALSE) -> 10 | M75: =HLOOKUP(B75,May!$G$1:$CB$82,82,FALSE) -> 10 | N75: =SUM(D75:M75) -> 730
A76: 70 | B76: Tiago Moreira | C76: Moriera United | D76: =HLOOKUP(B76,August!$G$1:$CB$87,87,FALSE) -> 105 | E76: =HLOOKUP(B76,September!$G$1:$CB$87,87,FALSE) -> 145 | F76: =HLOOKUP(B76,October!$G$1:$CB$87,87,FALSE) -> 100 | G76: =HLOOKUP(B76,November!$G$1:$CB$102,102,FALSE) -> 55 | H76: =HLOOKUP(B76,December!$G$1:$CB$129,129,FALSE) -> 70 | I76: =HLOOKUP(B76,January!$G$1:$CB$71,71,FALSE) -> 70 | J76: =HLOOKUP(B76,February!$G$1:$CB$73,73,FALSE) -> 60 | K76: =HLOOKUP(B76,March!$G$1:$CB$70,70,FALSE) -> 70 | L76: =HLOOKUP(B76,April!$G$1:$CB$85,85,FALSE) -> 15 | M76: =HLOOKUP(B76,May!$G$1:$CB$82,82,FALSE) -> 25 | N76: =SUM(D76:M76) -> 715
A77: 71 | B77: Paul Stainton | C77: Don't Slip Stevie | D77: =HLOOKUP(B77,August!$G$1:$CB$87,87,FALSE) -> 105 | E77: =HLOOKUP(B77,September!$G$1:$CB$87,87,FALSE) -> 65 | F77: =HLOOKUP(B77,October!$G$1:$CB$87,87,FALSE) -> 135 | G77: =HLOOKUP(B77,November!$G$1:$CB$102,102,FALSE) -> 175 | H77: =HLOOKUP(B77,December!$G$1:$CB$129,129,FALSE) -> 90 | I77: =HLOOKUP(B77,January!$G$1:$CB$71,71,FALSE) -> 50 | J77: =HLOOKUP(B77,February!$G$1:$CB$73,73,FALSE) -> 40 | K77: =HLOOKUP(B77,March!$G$1:$CB$70,70,FALSE) -> 20 | L77: =HLOOKUP(B77,April!$G$1:$CB$85,85,FALSE) -> 10 | M77: =HLOOKUP(B77,May!$G$1:$CB$82,82,FALSE) -> 10 | N77: =SUM(D77:M77) -> 700
A78: 72 | B78: Ian Healy | C78: Foffyz Fuzz | D78: =HLOOKUP(B78,August!$G$1:$CB$87,87,FALSE) -> 85 | E78: =HLOOKUP(B78,September!$G$1:$CB$87,87,FALSE) -> 100 | F78: =HLOOKUP(B78,October!$G$1:$CB$87,87,FALSE) -> 140 | G78: =HLOOKUP(B78,November!$G$1:$CB$102,102,FALSE) -> 100 | H78: =HLOOKUP(B78,December!$G$1:$CB$129,129,FALSE) -> 20 | I78: =HLOOKUP(B78,January!$G$1:$CB$71,71,FALSE) -> 25 | J78: =HLOOKUP(B78,February!$G$1:$CB$73,73,FALSE) -> 15 | K78: =HLOOKUP(B78,March!$G$1:$CB$70,70,FALSE) -> 20 | L78: =HLOOKUP(B78,April!$G$1:$CB$85,85,FALSE) -> 20 | M78: =HLOOKUP(B78,May!$G$1:$CB$82,82,FALSE) -> 30 | N78: =SUM(D78:M78) -> 555
A79: 73 | B79: Jenny Ellis | C79: Ellis Eleven | D79: =HLOOKUP(B79,August!$G$1:$CB$87,87,FALSE) -> 95 | E79: =HLOOKUP(B79,September!$G$1:$CB$87,87,FALSE) -> 90 | F79: =HLOOKUP(B79,October!$G$1:$CB$87,87,FALSE) -> 120 | G79: =HLOOKUP(B79,November!$G$1:$CB$102,102,FALSE) -> 135 | H79: =HLOOKUP(B79,December!$G$1:$CB$129,129,FALSE) -> 55 | I79: =HLOOKUP(B79,January!$G$1:$CB$71,71,FALSE) -> 15 | J79: =HLOOKUP(B79,February!$G$1:$CB$73,73,FALSE) -> 10 | K79: =HLOOKUP(B79,March!$G$1:$CB$70,70,FALSE) -> 10 | L79: =HLOOKUP(B79,April!$G$1:$CB$85,85,FALSE) -> 5 | M79: =HLOOKUP(B79,May!$G$1:$CB$82,82,FALSE) -> 10 | N79: =SUM(D79:M79) -> 545
A80: 74 | B80: Sean Moloney | C80: 66/1 Outsider | D80: =HLOOKUP(B80,August!$G$1:$CB$87,87,FALSE) -> 90 | E80: =HLOOKUP(B80,September!$G$1:$CB$87,87,FALSE) -> 70 | F80: =HLOOKUP(B80,October!$G$1:$CB$87,87,FALSE) -> 75 | G80: =HLOOKUP(B80,November!$G$1:$CB$102,102,FALSE) -> 55 | H80: =HLOOKUP(B80,December!$G$1:$CB$129,129,FALSE) -> 15 | I80: =HLOOKUP(B80,January!$G$1:$CB$71,71,FALSE) -> 5 | J80: =HLOOKUP(B80,February!$G$1:$CB$73,73,FALSE) -> 10 | K80: =HLOOKUP(B80,March!$G$1:$CB$70,70,FALSE) -> 15 | L80: =HLOOKUP(B80,April!$G$1:$CB$85,85,FALSE) -> 5 | M80: =HLOOKUP(B80,May!$G$1:$CB$82,82,FALSE) -> 0 | N80: =SUM(D80:M80) -> 340

Sheet August
G1: Aaron Byrne | H1: Aidan Knight | I1: Aidan Scanlon | J1: Aidan White | K1: Aiden Desch | L1: Alan Boyle | M1: Anastas Popov | N1: Andy Dunne | O1: Anthony Hughes | P1: Barry Healy | Q1: Brendan Maguire | R1: Brian Mullen | S1: Brian Prendergast | T1: Brian Sotolongo | U1: Chris Hall | V1: Ciaran O'Hart | W1: Cillian Conway | X1: Colin McAnaspie | Y1: Con McSweeney | Z1: Conor Horan | AA1: Craig Calvert | AB1: Dave Green | AC1: Dave McGinley | AD1: David Bone | AE1: David Byrne | AF1: David Cooney | AG1: David Keavney | AH1: Eamon Fox | AI1: Fiachra Moynihan | AJ1: Gareth Pierpoint | AK1: Gary McGurk | AL1: Gavin Morgan | AM1: Gerry Draper | AN1: Gerry Moore | AO1: Ian Healy | AP1: Javier Suarez Barreiro | AQ1: Jenny Ellis | AR1: Joe Behan | AS1: Joe O'Hehir | AT1: Joe Turner | AU1: Jonathan Fox | AV1: Keith Horan | AW1: Kevin Donohoe | AX1: Kevin Philpott | AY1: Konstantin Kulev | AZ1: Kris Stainton | BA1: Liam Butler | BB1: Liam Geraghty | BC1: Maria Jordan | BD1: Mike Hall | BE1: Niall Carroll | BF1: Oisin O'Reilly | BG1: Padraic Carney | BH1: Pat Jordan | BI1: Paul Moore | BJ1: Paul Prendergast | BK1: Paul Stainton | BL1: Peter Behan | BM1: Phil Doyle | BN1: Philip Jordan | BO1: Ralph Goodwin | BP1: Ray Ellis | BQ1: Rhona Devlin | BR1: Richard Johnston | BS1: Sean Moloney | BT1: Sean O'Mairtin | BU1: Shane Horan | BV1: Sharon Behan | BW1: Simon Purdue | BX1: Siobhan Murphy | BY1: Terry Behan | BZ1: Tiago Moreira | CA1: Tom McHugh | CB1: Wayne Donovan
A2: Saturday, August 16th
A3: Man United | B3: 1 | C3: 2 | D3: Swansea City | E3: 12:45:00 | G3: 0 | H3: 0 | I3: 0 | J3: 0 | K3: 0 | L3: 0 | M3: 0 | N3: 0 | O3: 0 | P3: 0 | Q3: 0 | R3: 0 | S3: 0 | T3: 0 | U3: 0 | V3: 0 | W3: 0 | X3: 0 | Y3: 0 | Z3: 0 | AA3: 0 | AB3: 0 | AC3: 0 | AD3: 0 | AE3: 0 | AF3: 0 | AG3: 0 | AH3: 0 | AI3: 0 | AJ3: 0 | AK3: 0 | AL3: 0 | AM3: 0 | AN3: 0 | AO3: 0 | AP3: 0 | AQ3: 0 | AR3: 0 | AS3: 0 | AT3: 0 | AU3: 0 | AV3: 0 | AW3: 0 | AX3: 0 | AY3: 0 | AZ3: 0 | BA3: 0 | BB3: 0 | BC3: 0 | BD3: 0 | BE3: 0 | BF3: 0 | BG3: 0 | BH3: 0 | BI3: 0 | BJ3: 0 | BK3: 0 | BL3: 0 | BM3: 0 | BN3: 0 | BO3: 0 | BP3: 0 | BQ3: 0 | BR3: 0 | BS3: 0 | BT3: 0 | BU3: 0 | BV3: 0 | BW3: 0 | BX3: 0 | BY3: 0 | BZ3: 0 | CA3: 0 | CB3: 0
A4: Leicester City | B4: 2 | C4: 2 | D4: Everton | E4: 15:00:00 | G4: 0 | H4: 0 | I4: 0 | J4: 0 | K4: 0 | L4: 5 | M4: 5 | N4: 0 | O4: 0 | P4: 0 | Q4: 5 | R4: 0 | S4: 5 | T4: 0 | U4: 0 | V4: 5 | W4: 5 | X4: 0 | Y4: 5 | Z4: 0 | AA4: 0 | AB4: 0 | AC4: 0 | AD4: 5 | AE4: 5 | AF4: 5 | AG4: 0 | AH4: 5 | AI4: 10 | AJ4: 0 | AK4: 0 | AL4: 0 | AM4: 0 | AN4: 0 | AO4: 0 | AP4: 0 | AQ4: 5 | AR4: 0 | AS4: 0 | AT4: 10 | AU4: 0 | AV4: 0 | AW4: 5 | AX4: 0 | AY4: 0 | AZ4: 0 | BA4: 5 | BB4: 0 | BC4: 5 | BD4: 5 | BE4: 0 | BF4: 0 | BG4: 5 | BH4: 0 | BI4: 0 | BJ4: 5 | BK4: 0 | BL4: 0 | BM4: 0 | BN4: 0 | BO4: 0 | BP4: 0 | BQ4: 0 | BR4: 0 | BS4: 0 | BT4: 0 | BU4: 10 | BV4: 0 | BW4: 0 | BX4: 5 | BY4: 5 | BZ4: 0 | CA4: 0 | CB4: 5
A5: QPR | B5: 0 | C5: 1 | D5: Hull City | E5: 15:00:00 | G5: 0 | H5: 0 | I5: 0 | J5: 0 | K5: 0 | L5: 0 | M5: 0 | N5: 0 | O5: 0 | P5: 0 | Q5: 0 | R5: 0 | S5: 0 | T5: 5 | U5: 0 | V5: 0 | W5: 0 | X5: 0 | Y5: 0 | Z5: 0 | AA5: 0 | AB5: 0 | AC5: 0 | AD5: 5 | AE5: 0 | AF5: 0 | AG5: 0 | AH5: 0 | AI5: 0 | AJ5: 0 | AK5: 0 | AL5: 0 | AM5: 0 | AN5: 0 | AO5: 0 | AP5: 0 | AQ5: 0 | AR5: 0 | AS5: 0 | AT5: 0 | AU5: 0 | AV5: 0 | AW5: 0 | AX5: 0 | AY5: 0 | AZ5: 0 | BA5: 0 | BB5: 5 | BC5: 0 | BD5: 0 | BE5: 0 | BF5: 0 | BG5: 0 | BH5: 0 | BI5: 0 | BJ5: 0 | BK5: 0 | BL5: 0 | BM5: 0 | BN5: 0 | BO5: 5 | BP5: 0 | BQ5: 10 | BR5: 0 | BS5: 0 | BT5: 0 | BU5: 0 | BV5: 0 | BW5: 0 | BX5: 0 | BY5: 5 | BZ5: 0 | CA5: 0 | CB5: 0
A6: Stoke City | B6: 0 | C6: 1 | D6: Aston Villa | E6: 15:00:00 | G6: 0 | H6: 0 | I6: 0 | J6: 0 | K6: 0 | L6: 0 | M6: 0 | N6: 0 | O6: 5 | P6: 0 | Q6: 0 | R6: 0 | S6: 0 | T6: 0 | U6: 0 | V6: 0 | W6: 0 | X6: 0 | Y6: 0 | Z6: 0 | AA6: 0 | AB6: 0 | AC6: 0 | AD6: 0 | AE6: 0 | AF6: 0 | AG6: 0 | AH6: 0 | AI6: 0 | AJ6: 0 | AK6: 0 | AL6: 0 | AM6: 0 | AN6: 0 | AO6: 0 | AP6: 0 | AQ6: 0 | AR6: 0 | AS6: 0 | AT6: 0 | AU6: 0 | AV6: 0 | AW6: 0 | AX6: 0 | AY6: 0 | AZ6: 0 | BA6: 0 | BB6: 0 | BC6: 5 | BD6: 0 | BE6: 0 | BF6: 0 | BG6: 0 | BH6: 0 | BI6: 0 | BJ6: 0 | BK6: 0 | BL6: 0 | BM6: 0 | BN6: 0 | BO6: 0 | BP6: 0 | BQ6: 0 | BR6: 0 | BS6: 0 | BT6: 0 | BU6: 10 | BV6: 0 | BW6: 0 | BX6: 0 | BY6: 0 | BZ6: 0 | CA6: 0 | CB6: 0
A7: West Brom | B7: 2 | C7: 2 | D7: Sunderland | E7: 15:00:00 | G7: 0 | H7: 0 | I7: 0 | J7: 5 | K7: 5 | L7: 0 | M7: 5 | N7: 5 | O7: 5 | P7: 5 | Q7: 5 | R7: 5 | S7: 5 | T7: 5 | U7: 0 | V7: 0 | W7: 0 | X7: 5 | Y7: 5 | Z7: 5 | AA7: 0 | AB7: 5 | AC7: 5 | AD7: 0 | AE7: 5 | AF7: 5 | AG7: 0 | AH7: 0 | AI7: 10 | AJ7: 10 | AK7: 5 | AL7: 0 | AM7: 10 | AN7: 5 | AO7: 0 | AP7: 5 | AQ7: 0 | AR7: 0 | AS7: 0 | AT7: 5 | AU7: 0 | AV7: 0 | AW7: 0 | AX7: 5 | AY7: 5 | AZ7: 0 | BA7: 0 | BB7: 0 | BC7: 0 | BD7: 5 | BE7: 10 | BF7: 0 | BG7: 5 | BH7: 0 | BI7: 5 | BJ7: 0 | BK7: 0 | BL7: 0 | BM7: 0 | BN7: 5 | BO7: 0 | BP7: 0 | BQ7: 0 | BR7: 0 | BS7: 0 | BT7: 10 | BU7: 0 | BV7: 5 | BW7: 5 | BX7: 0 | BY7: 5 | BZ7: 0 | CA7: 0 | CB7: 5
A8: West Ham | B8: 0 | C8: 1 | D8: Tottenham | E8: 15:00:00 | G8: 0 | H8: 0 | I8: 5 | J8: 5 | K8: 5 | L8: 5 | M8: 0 | N8: 5 | O8: 5 | P8: 5 | Q8: 0 | R8: 5 | S8: 0 | T8: 0 | U8: 10 | V8: 5 | W8: 5 | X8: 5 | Y8: 5 | Z8: 5 | AA8: 5 | AB8: 0 | AC8: 0 | AD8: 5 | AE8: 0 | AF8: 0 | AG8: 0 | AH8: 5 | AI8: 5 | AJ8: 0 | AK8: 5 | AL8: 5 | AM8: 5 | AN8: 5 | AO8: 5 | AP8: 5 | AQ8: 5 | AR8: 5 | AS8: 5 | AT8: 0 | AU8: 10 | AV8: 0 | AW8: 0 | AX8: 5 | AY8: 5 | AZ8: 5 | BA8: 0 | BB8: 0 | BC8: 0 | BD8: 5 | BE8: 5 | BF8: 5 | BG8: 0 | BH8: 5 | BI8: 0 | BJ8: 0 | BK8: 5 | BL8: 5 | BM8: 5 | BN8: 5 | BO8: 10 | BP8: 5 | BQ8: 0 | BR8: 5 | BS8: 5 | BT8: 0 | BU8: 5 | BV8: 5 | BW8: 5 | BX8: 5 | BY8: 5 | BZ8: 5 | CA8: 5 | CB8: 0
A9: Arsenal | B9: 2 | C9: 1 | D9: Crystal Palace | E9: 17:30:00 | G9: 5 | H9: 5 | I9: 5 | J9: 5 | K9: 5 | L9: 5 | M9: 5 | N9: 5 | O9: 5 | P9: 5 | Q9: 5 | R9: 5 | S9: 5 | T9: 5 | U9: 5 | V9: 5 | W9: 5 | X9: 5 | Y9: 5 | Z9: 5 | AA9: 5 | AB9: 5 | AC9: 5 | AD9: 5 | AE9: 5 | AF9: 5 | AG9: 5 | AH9: 5 | AI9: 5 | AJ9: 5 | AK9: 5 | AL9: 5 | AM9: 5 | AN9: 5 | AO9: 5 | AP9: 5 | AQ9: 5 | AR9: 5 | AS9: 5 | AT9: 5 | AU9: 5 | AV9: 5 | AW9: 5 | AX9: 5 | AY9: 5 | AZ9: 5 | BA9: 5 | BB9: 5 | BC9: 10 | BD9: 5 | BE9: 5 | BF9: 5 | BG9: 5 | BH9: 5 | BI9: 5 | BJ9: 5 | BK9: 5 | BL9: 5 | BM9: 5 | BN9: 5 | BO9: 5 | BP9: 5 | BQ9: 5 | BR9: 5 | BS9: 5 | BT9: 5 | BU9: 5 | BV9: 5 | BW9: 5 | BX9: 5 | BY9: 5 | BZ9: 5 | CA9: 5 | CB9: 5
A11: Sunday, August 17th
A12: Liverpool | B12: 2 | C12: 1 | D12: Southampton | E12: 13:30:00 | G12: 5 | H12: 5 | I12: 0 | J12: 10 | K12: 5 | L12: 5 | M12: 5 | N12: 5 | O12: 5 | P12: 5 | Q12: 5 | R12: 5 | S12: 5 | T12: 10 | U12: 5 | V12: 5 | W12: 5 | X12: 5 | Y12: 5 | Z12: 5 | AA12: 10 | AB12: 5 | AC12: 5 | AD12: 5 | AE12: 5 | AF12: 5 | AG12: 5 | AH12: 5 | AI12: 5 | AJ12: 5 | AK12: 5 | AL12: 5 | AM12: 5 | AN12: 5 | AO12: 5 | AP12: 5 | AQ12: 10 | AR12: 5 | AS12: 5 | AT12: 5 | AU12: 5 | AV12: 5 | AW12: 5 | AX12: 5 | AY12: 5 | AZ12: 0 | BA12: 5 | BB12: 5 | BC12: 10 | BD12: 10 | BE12: 5 | BF12: 10 | BG12: 5 | BH12: 5 | BI12: 5 | BJ12: 5 | BK12: 10 | BL12: 5 | BM12: 10 | BN12: 10 | BO12: 5 | BP12: 10 | BQ12: 5 | BR12: 5 | BS12: 5 | BT12: 5 | BU12: 5 | BV12: 5 | BW12: 5 | BX12: 0 | BY12: 5 | BZ12: 10 | CA12: 5 | CB12: 5
A13: Newcastle United | B13: 0 | C13: 2 | D13: Man City | E13: 16:00:00 | G13: 5 | H13: 5 | I13: 0 | J13: 5 | K13: 10 | L13: 5 | M13: 5 | N13: 10 | O13: 5 | P13: 5 | Q13: 10 | R13: 5 | S13: 5 | T13: 10 | U13: 5 | V13: 0 | W13: 5 | X13: 10 | Y13: 10 | Z13: 5 | AA13: 5 | AB13: 5 | AC13: 5 | AD13: 5 | AE13: 5 | AF13: 10 | AG13: 0 | AH13: 0 | AI13: 5 | AJ13: 5 | AK13: 5 | AL13: 5 | AM13: 5 | AN13: 5 | AO13: 5 | AP13: 5 | AQ13: 5 | AR13: 5 | AS13: 10 | AT13: 5 | AU13: 5 | AV13: 0 | AW13: 10 | AX13: 5 | AY13: 10 | AZ13: 5 | BA13: 10 | BB13: 5 | BC13: 10 | BD13: 5 | BE13: 0 | BF13: 5 | BG13: 5 | BH13: 5 | BI13: 5 | BJ13: 5 | BK13: 5 | BL13: 10 | BM13: 5 | BN13: 5 | BO13: 10 | BP13: 5 | BQ13: 10 | BR13: 5 | BS13: 0 | BT13: 0 | BU13: 0 | BV13: 5 | BW13: 5 | BX13: 10 | BY13: 5 | BZ13: 5 | CA13: 0 | CB13: 5
A15: Monday, August 18th
A16: Burnley | B16: 1 | C16: 3 | D16: Chelsea | E16: 20:00:00 | G16: 5 | H16: 5 | I16: 5 | J16: 5 | K16: 5 | L16: 5 | M16: 5 | N16: 5 | O16: 10 | P16: 5 | Q16: 5 | R16: 5 | S16: 5 | T16: 5 | U16: 5 | V16: 5 | W16: 5 | X16: 5 | Y16: 5 | Z16: 5 | AA16: 5 | AB16: 10 | AC16: 5 | AD16: 5 | AE16: 10 | AF16: 5 | AG16: 5 | AH16: 5 | AI16: 5 | AJ16: 5 | AK16: 5 | AL16: 5 | AM16: 5 | AN16: 5 | AO16: 5 | AP16: 10 | AQ16: 10 | AR16: 10 | AS16: 5 | AT16: 5 | AU16: 5 | AV16: 5 | AW16: 5 | AX16: 5 | AY16: 5 | AZ16: 5 | BA16: 5 | BB16: 5 | BC16: 5 | BD16: 5 | BE16: 5 | BF16: 5 | BG16: 5 | BH16: 5 | BI16: 5 | BJ16: 5 | BK16: 10 | BL16: 5 | BM16: 5 | BN16: 10 | BO16: 5 | BP16: 5 | BQ16: 5 | BR16: 5 | BS16: 5 | BT16: 5 | BU16: 5 | BV16: 5 | BW16: 10 | BX16: 10 | BY16: 5 | BZ16: 5 | CA16: 10 | CB16: 5
A18: Saturday, August 23rd
A19: Aston Villa | B19: 0 | C19: 0 | D19: Newcastle | E19: 12:45:00 | G19: 0 | H19: 5 | I19: 0 | J19: 5 | K19: 5 | L19: 0 | M19: 0 | N19: 5 | O19: 5 | P19: 0 | Q19: 5 | R19: 0 | S19: 0 | T19: 5 | U19: 5 | V19: 10 | W19: 5 | X19: 0 | Y19: 5 | Z19: 0 | AA19: 5 | AB19: 5 | AC19: 5 | AD19: 0 | AE19: 0 | AF19: 0 | AG19: 5 | AH19: 5 | AI19: 5 | AJ19: 0 | AK19: 0 | AL19: 0 | AM19: 0 | AN19: 0 | AO19: 0 | AP19: 5 | AQ19: 0 | AR19: 5 | AS19: 0 | AT19: 0 | AU19: 0 | AV19: 5 | AW19: 5 | AX19: 5 | AY19: 0 | AZ19: 0 | BA19: 0 | BB19: 0 | BC19: 0 | BD19: 10 | BE19: 0 | BF19: 0 | BG19: 0 | BH19: 0 | BI19: 5 | BJ19: 5 | BK19: 0 | BL19: 5 | BM19: 0 | BN19: 5 | BO19: 0 | BP19: 0 | BQ19: 0 | BR19: 0 | BS19: 5 | BT19: 0 | BU19: 0 | BV19: 5 | BW19: 5 | BX19: 5 | BY19: 0 | BZ19: 0 | CA19: 5 | CB19: 0
A20: Chelsea | B20: 2 | C20: 0 | D20: Leicester City | E20: 15:00:00 | G20: 5 | H20: 5 | I20: 5 | J20: 5 | K20: 10 | L20: 5 | M20: 5 | N20: 5 | O20: 5 | P20: 5 | Q20: 10 | R20: 5 | S20: 5 | T20: 5 | U20: 5 | V20: 10 | W20: 5 | X20: 10 | Y20: 5 | Z20: 5 | AA20: 5 | AB20: 5 | AC20: 5 | AD20: 5 | AE20: 5 | AF20: 5 | AG20: 5 | AH20: 10 | AI20: 5 | AJ20: 5 | AK20: 5 | AL20: 5 | AM20: 5 | AN20: 5 | AO20: 5 | AP20: 5 | AQ20: 5 | AR20: 10 | AS20: 5 | AT20: 5 | AU20: 5 | AV20: 5 | AW20: 10 | AX20: 5 | AY20: 10 | AZ20: 10 | BA20: 5 | BB20: 5 | BC20: 5 | BD20: 5 | BE20: 5 | BF20: 5 | BG20: 5 | BH20: 5 | BI20: 5 | BJ20: 5 | BK20: 5 | BL20: 5 | BM20: 10 | BN20: 5 | BO20: 5 | BP20: 5 | BQ20: 5 | BR20: 5 | BS20: 5 | BT20: 5 | BU20: 10 | BV20: 10 | BW20: 5 | BX20: 10 | BY20: 5 | BZ20: 10 | CA20: 5 | CB20: 5
A21: Crystal Palace | B21: 1 | C21: 3 | D21: West Ham | E21: 15:00:00 | G21: 5 | H21: 0 | I21: 5 | J21: 0 | K21: 0 | L21: 0 | M21: 0 | N21: 0 | O21: 0 | P21: 0 | Q21: 0 | R21: 0 | S21: 0 | T21: 0 | U21: 0 | V21: 0 | W21: 5 | X21: 0 | Y21: 0 | Z21: 0 | AA21: 0 | AB21: 5 | AC21: 0 | AD21: 0 | AE21: 0 | AF21: 0 | AG21: 0 | AH21: 0 | AI21: 0 | AJ21: 0 | AK21: 0 | AL21: 0 | AM21: 5 | AN21: 0 | AO21: 0 | AP21: 5 | AQ21: 0 | AR21: 0 | AS21: 5 | AT21: 0 | AU21: 0 | AV21: 0 | AW21: 0 | AX21: 5 | AY21: 0 | AZ21: 0 | BA21: 5 | BB21: 0 | BC21: 0 | BD21: 0 | BE21: 0 | BF21: 0 | BG21: 0 | BH21: 0 | BI21: 0 | BJ21: 0 | BK21: 5 | BL21: 0 | BM21: 5 | BN21: 5 | BO21: 0 | BP21: 0 | BQ21: 5 | BR21: 0 | BS21: 5 | BT21: 0 | BU21: 0 | BV21: 0 | BW21: 0 | BX21: 5 | BY21: 0 | BZ21: 0 | CA21: 0 | CB21: 0
A22: Southampton | B22: 0 | C22: 0 | D22: West Brom | E22: 15:00:00 | G22: 5 | H22: 0 | I22: 0 | J22: 0 | K22: 0 | L22: 0 | M22: 0 | N22: 0 | O22: 0 | P22: 0 | Q22: 0 | R22: 0 | S22: 0 | T22: 0 | U22: 0 | V22: 0 | W22: 0 | X22: 0 | Y22: 0 | Z22: 0 | AA22: 0 | AB22: 0 | AC22: 0 | AD22: 0 | AE22: 0 | AF22: 0 | AG22: 0 | AH22: 0 | AI22: 0 | AJ22: 0 | AK22: 0 | AL22: 0 | AM22: 5 | AN22: 0 | AO22: 0 | AP22: 0 | AQ22: 0 | AR22: 5 | AS22: 0 | AT22: 0 | AU22: 0 | AV22: 0 | AW22: 0 | AX22: 0 | AY22: 0 | AZ22: 0 | BA22: 5 | BB22: 0 | BC22: 0 | BD22: 0 | BE22: 0 | BF22: 0 | BG22: 0 | BH22: 0 | BI22: 0 | BJ22: 0 | BK22: 0 | BL22: 0 | BM22: 5 | BN22: 0 | BO22: 0 | BP22: 0 | BQ22: 10 | BR22: 5 | BS22: 0 | BT22: 0 | BU22: 0 | BV22: 0 | BW22: 0 | BX22: 0 | BY22: 0 | BZ22: 0 | CA22: 0 | CB22: 0
A23: Swansea City | B23: 1 | C23: 0 | D23: Burnley | E23: 15:00:00 | G23: 5 | H23: 5 | I23: 5 | J23: 0 | K23: 0 | L23: 5 | M23: 5 | N23: 5 | O23: 5 | P23: 10 | Q23: 5 | R23: 5 | S23: 5 | T23: 10 | U23: 10 | V23: 10 | W23: 5 | X23: 10 | Y23: 5 | Z23: 5 | AA23: 5 | AB23: 5 | AC23: 10 | AD23: 10 | AE23: 10 | AF23: 5 | AG23: 10 | AH23: 10 | AI23: 5 | AJ23: 5 | AK23: 5 | AL23: 5 | AM23: 10 | AN23: 5 | AO23: 0 | AP23: 5 | AQ23: 5 | AR23: 5 | AS23: 5 | AT23: 5 | AU23: 10 | AV23: 5 | AW23: 5 | AX23: 5 | AY23: 5 | AZ23: 0 | BA23: 5 | BB23: 5 | BC23: 10 | BD23: 5 | BE23: 5 | BF23: 5 | BG23: 5 | BH23: 5 | BI23: 0 | BJ23: 5 | BK23: 5 | BL23: 5 | BM23: 5 | BN23: 0 | BO23: 5 | BP23: 0 | BQ23: 10 | BR23: 5 | BS23: 5 | BT23: 5 | BU23: 5 | BV23: 5 | BW23: 5 | BX23: 10 | BY23: 5 | BZ23: 5 | CA23: 5 | CB23: 5
A24: Everton | B24: 2 | C24: 2 | D24: Arsenal | E24: 17:30:00 | G24: 0 | H24: 5 | I24: 0 | J24: 10 | K24: 0 | L24: 5 | M24: 5 | N24: 5 | O24: 5 | P24: 5 | Q24: 5 | R24: 0 | S24: 5 | T24: 0 | U24: 10 | V24: 5 | W24: 5 | X24: 0 | Y24: 5 | Z24: 0 | AA24: 0 | AB24: 10 | AC24: 5 | AD24: 0 | AE24: 5 | AF24: 5 | AG24: 0 | AH24: 5 | AI24: 5 | AJ24: 10 | AK24: 0 | AL24: 0 | AM24: 10 | AN24: 10 | AO24: 0 | AP24: 0 | AQ24: 10 | AR24: 0 | AS24: 0 | AT24: 0 | AU24: 0 | AV24: 5 | AW24: 5 | AX24: 0 | AY24: 5 | AZ24: 0 | BA24: 0 | BB24: 0 | BC24: 5 | BD24: 5 | BE24: 5 | BF24: 0 | BG24: 5 | BH24: 0 | BI24: 10 | BJ24: 5 | BK24: 10 | BL24: 0 | BM24: 0 | BN24: 0 | BO24: 0 | BP24: 5 | BQ24: 10 | BR24: 10 | BS24: 5 | BT24: 5 | BU24: 0 | BV24: 0 | BW24: 5 | BX24: 0 | BY24: 10 | BZ24: 5 | CA24: 10 | CB24: 5
A26: Sunday, August 24th
A27: Hull City | B27: 1 | C27: 1 | D27: Stoke City | E27: 13:30:00 | G27: 10 | H27: 0 | I27: 10 | J27: 10 | K27: 10 | L27: 10 | M27: 0 | N27: 0 | O27: 10 | P27: 10 | Q27: 0 | R27: 5 | S27: 0 | T27: 0 | U27: 0 | V27: 0 | W27: 0 | X27: 5 | Y27: 10 | Z27: 0 | AA27: 0 | AB27: 0 | AC27: 10 | AD27: 10 | AE27: 0 | AF27: 5 | AG27: 0 | AH27: 10 | AI27: 0 | AJ27: 0 | AK27: 5 | AL27: 10 | AM27: 0 | AN27: 5 | AO27: 0 | AP27: 0 | AQ27: 0 | AR27: 0 | AS27: 0 | AT27: 10 | AU27: 0 | AV27: 5 | AW27: 0 | AX27: 10 | AY27: 0 | AZ27: 0 | BA27: 0 | BB27: 0 | BC27: 0 | BD27: 0 | BE27: 10 | BF27: 0 | BG27: 5 | BH27: 0 | BI27: 10 | BJ27: 10 | BK27: 0 | BL27: 5 | BM27: 10 | BN27: 0 | BO27: 0 | BP27: 0 | BQ27: 0 | BR27: 0 | BS27: 10 | BT27: 10 | BU27: 0 | BV27: 10 | BW27: 10 | BX27: 0 | BY27: 10 | BZ27: 5 | CA27: 0 | CB27: 10
A28: Tottenham | B28: 4 | C28: 0 | D28: QPR | E28: 13:30:00 | G28: 5 | H28: 5 | I28: 5 | J28: 5 | K28: 5 | L28: 5 | M28: 5 | N28: 5 | O28: 5 | P28: 5 | Q28: 5 | R28: 5 | S28: 5 | T28: 5 | U28: 5 | V28: 5 | W28: 5 | X28: 5 | Y28: 5 | Z28: 5 | AA28: 5 | AB28: 5 | AC28: 5 | AD28: 5 | AE28: 0 | AF28: 5 | AG28: 5 | AH28: 5 | AI28: 5 | AJ28: 5 | AK28: 5 | AL28: 5 | AM28: 5 | AN28: 5 | AO28: 5 | AP28: 0 | AQ28: 5 | AR28: 5 | AS28: 0 | AT28: 5 | AU28: 5 | AV28: 5 | AW28: 5 | AX28: 5 | AY28: 5 | AZ28: 5 | BA28: 0 | BB28: 5 | BC28: 5 | BD28: 5 | BE28: 5 | BF28: 5 | BG28: 5 | BH28: 5 | BI28: 5 | BJ28: 5 | BK28: 5 | BL28: 5 | BM28: 5 | BN28: 5 | BO28: 5 | BP28: 5 | BQ28: 5 | BR28: 5 | BS28: 5 | BT28: 5 | BU28: 5 | BV28: 5 | BW28: 5 | BX28: 5 | BY28: 5 | BZ28: 5 | CA28: 0 | CB28: 5
A29: Sunderland | B29: 1 | C29: 1 | D29: Man United | E29: 16:00:00 | G29: 0 | H29: 0 | I29: 0 | J29: 0 | K29: 0 | L29: 0 | M29: 0 | N29: 10 | O29: 0 | P29: 0 | Q29: 0 | R29: 0 | S29: 10 | T29: 10 | U29: 0 | V29: 0 | W29: 0 | X29: 0 | Y29: 0 | Z29: 0 | AA29: 0 | AB29: 0 | AC29: 0 | AD29: 5 | AE29: 0 | AF29: 5 | AG29: 10 | AH29: 0 | AI29: 0 | AJ29: 0 | AK29: 0 | AL29: 0 | AM29: 0 | AN29: 10 | AO29: 0 | AP29: 5 | AQ29: 5 | AR29: 10 | AS29: 0 | AT29: 0 | AU29: 0 | AV29: 10 | AW29: 0 | AX29: 0 | AY29: 0 | AZ29: 0 | BA29: 0 | BB29: 0 | BC29: 0 | BD29: 0 | BE29: 0 | BF29: 0 | BG29: 10 | BH29: 0 | BI29: 0 | BJ29: 0 | BK29: 0 | BL29: 0 | BM29: 0 | BN29: 0 | BO29: 0 | BP29: 0 | BQ29: 10 | BR29: 0 | BS29: 10 | BT29: 0 | BU29: 0 | BV29: 10 | BW29: 0 | BX29: 0 | BY29: 0 | BZ29: 0 | CA29: 10 | CB29: 10
A31: Monday, August 25th
A32: Man City | B32: 3 | C32: 1 | D32: Liverpool | E32: 20:00:00 | G32: 0 | H32: 5 | I32: 5 | J32: 0 | K32: 5 | L32: 10 | M32: 5 | N32: 0 | O32: 5 | P32: 5 | Q32: 5 | R32: 10 | S32: 5 | T32: 5 | U32: 5 | V32: 5 | W32: 0 | X32: 0 | Y32: 5 | Z32: 0 | AA32: 5 | AB32: 5 | AC32: 5 | AD32: 5 | AE32: 0 | AF32: 5 | AG32: 5 | AH32: 5 | AI32: 0 | AJ32: 5 | AK32: 0 | AL32: 5 | AM32: 5 | AN32: 10 | AO32: 0 | AP32: 5 | AQ32: 5 | AR32: 5 | AS32: 5 | AT32: 0 | AU32: 5 | AV32: 0 | AW32: 0 | AX32: 0 | AY32: 5 | AZ32: 5 | BA32: 0 | BB32: 5 | BC32: 0 | BD32: 5 | BE32: 0 | BF32: 10 | BG32: 5 | BH32: 5 | BI32: 0 | BJ32: 0 | BK32: 5 | BL32: 10 | BM32: 5 | BN32: 10 | BO32: 0 | BP32: 5 | BQ32: 0 | BR32: 0 | BS32: 0 | BT32: 5 | BU32: 0 | BV32: 5 | BW32: 5 | BX32: 5 | BY32: 5 | BZ32: 5 | CA32: 0 | CB32: 5
A34: Saturday, August 30th
A35: Burnley | B35: 0 | C35: 0 | D35: Man United | E35: 12:45:00 | G35: 0 | H35: 0 | I35: 0 | J35: 0 | K35: 0 | L35: 0 | M35: 0 | N35: 0 | O35: 0 | P35: 0 | Q35: 0 | R35: 0 | S35: 5 | T35: 0 | U35: 0 | V35: 0 | W35: 0 | X35: 0 | Y35: 0 | Z35: 0 | AA35: 0 | AB35: 0 | AC35: 0 | AD35: 0 | AE35: 0 | AF35: 5 | AG35: 0 | AH35: 0 | AI35: 0 | AJ35: 0 | AK35: 0 | AL35: 0 | AM35: 5 | AN35: 0 | AO35: 0 | AP35: 5 | AQ35: 0 | AR35: 0 | AS35: 0 | AT35: 0 | AU35: 0 | AV35: 5 | AW35: 0 | AX35: 0 | AY35: 0 | AZ35: 0 | BA35: 0 | BB35: 5 | BC35: 0 | BD35: 0 | BE35: 0 | BF35: 0 | BG35: 0 | BH35: 0 | BI35: 0 | BJ35: 0 | BK35: 0 | BL35: 0 | BM35: 0 | BN35: 0 | BO35: 0 | BP35: 0 | BQ35: 0 | BR35: 0 | BS35: 0 | BT35: 0 | BU35: 0 | BV35: 0 | BW35: 0 | BX35: 0 | BY35: 0 | BZ35: 5 | CA35: 0 | CB35: 5
A36: Man City | B36: 0 | C36: 1 | D36: Stoke City | E36: 15:00:00 | G36: 0 | H36: 0 | I36: 0 | J36: 0 | K36: 0 | L36: 0 | M36: 0 | N36: 0 | O36: 0 | P36: 0 | Q36: 0 | R36: 0 | S36: 0 | T36: 0 | U36: 0 | V36: 0 | W36: 0 | X36: 0 | Y36: 0 | Z36: 0 | AA36: 0 | AB36: 0 | AC36: 0 | AD36: 0 | AE36: 0 | AF36: 0 | AG36: 0 | AH36: 0 | AI36: 0 | AJ36: 0 | AK36: 0 | AL36: 0 | AM36: 0 | AN36: 0 | AO36: 0 | AP36: 0 | AQ36: 0 | AR36: 0 | AS36: 0 | AT36: 0 | AU36: 0 | AV36: 0 | AW36: 0 | AX36: 0 | AY36: 0 | AZ36: 0 | BA36: 0 | BB36: 0 | BC36: 0 | BD36: 0 | BE36: 0 | BF36: 0 | BG36: 0 | BH36: 0 | BI36: 0 | BJ36: 0 | BK36: 0 | BL36: 0 | BM36: 0 | BN36: 0 | BO36: 0 | BP36: 0 | BQ36: 0 | BR36: 0 | BS36: 0 | BT36: 0 | BU36: 0 | BV36: 0 | BW36: 0 | BX36: 0 | BY36: 0 | BZ36: 0 | CA36: 0 | CB36: 0
A37: Newcastle | B37: 3 | C37: 3 | D37: Crystal Palace | E37: 15:00:00 | G37: 5 | H37: 0 | I37: 0 | J37: 0 | K37: 0 | L37: 0 | M37: 0 | N37: 0 | O37: 5 | P37: 0 | Q37: 0 | R37: 0 | S37: 5 | T37: 0 | U37: 5 | V37: 0 | W37: 0 | X37: 0 | Y37: 0 | Z37: 0 | AA37: 0 | AB37: 0 | AC37: 0 | AD37: 0 | AE37: 0 | AF37: 0 | AG37: 0 | AH37: 0 | AI37: 0 | AJ37: 0 | AK37: 0 | AL37: 0 | AM37: 0 | AN37: 0 | AO37: 0 | AP37: 0 | AQ37: 0 | AR37: 0 | AS37: 0 | AT37: 0 | AU37: 0 | AV37: 0 | AW37: 0 | AX37: 0 | AY37: 0 | AZ37: 5 | BA37: 0 | BB37: 0 | BC37: 5 | BD37: 5 | BE37: 0 | BF37: 0 | BG37: 5 | BH37: 0 | BI37: 0 | BJ37: 5 | BK37: 0 | BL37: 0 | BM37: 0 | BN37: 0 | BO37: 0 | BP37: 0 | BQ37: 5 | BR37: 0 | BS37: 0 | BT37: 0 | BU37: 0 | BV37: 5 | BW37: 0 | BX37: 0 | BY37: 5 | BZ37: 5 | CA37: 0 | CB37: 0
A38: QPR | B38: 1 | C38: 0 | D38: Sunderland | E38: 15:00:00 | G38: 0 | H38: 0 | I38: 0 | J38: 0 | K38: 10 | L38: 5 | M38: 5 | N38: 0 | O38: 0 | P38: 0 | Q38: 0 | R38: 10 | S38: 0 | T38: 5 | U38: 5 | V38: 10 | W38: 0 | X38: 5 | Y38: 0 | Z38: 5 | AA38: 0 | AB38: 0 | AC38: 0 | AD38: 0 | AE38: 10 | AF38: 0 | AG38: 10 | AH38: 0 | AI38: 0 | AJ38: 0 | AK38: 0 | AL38: 0 | AM38: 5 | AN38: 0 | AO38: 5 | AP38: 0 | AQ38: 0 | AR38: 0 | AS38: 0 | AT38: 0 | AU38: 10 | AV38: 0 | AW38: 5 | AX38: 0 | AY38: 0 | AZ38: 0 | BA38: 10 | BB38: 0 | BC38: 10 | BD38: 0 | BE38: 10 | BF38: 0 | BG38: 0 | BH38: 0 | BI38: 0 | BJ38: 0 | BK38: 5 | BL38: 0 | BM38: 0 | BN38: 5 | BO38: 10 | BP38: 5 | BQ38: 0 | BR38: 5 | BS38: 0 | BT38: 0 | BU38: 0 | BV38: 0 | BW38: 0 | BX38: 0 | BY38: 0 | BZ38: 0 | CA38: 0 | CB38: 0
A39: Swansea City | B39: 3 | C39: 0 | D39: West Brom | E39: 15:00:00 | G39: 5 | H39: 5 | I39: 5 | J39: 5 | K39: 0 | L39: 0 | M39: 5 | N39: 0 | O39: 5 | P39: 5 | Q39: 5 | R39: 5 | S39: 5 | T39: 5 | U39: 0 | V39: 0 | W39: 5 | X39: 5 | Y39: 5 | Z39: 5 | AA39: 5 | AB39: 5 | AC39: 5 | AD39: 0 | AE39: 5 | AF39: 5 | AG39: 5 | AH39: 5 | AI39: 5 | AJ39: 5 | AK39: 5 | AL39: 5 | AM39: 5 | AN39: 5 | AO39: 5 | AP39: 5 | AQ39: 5 | AR39: 5 | AS39: 5 | AT39: 5 | AU39: 5 | AV39: 5 | AW39: 5 | AX39: 5 | AY39: 5 | AZ39: 5 | BA39: 0 | BB39: 5 | BC39: 5 | BD39: 5 | BE39: 5 | BF39: 5 | BG39: 5 | BH39: 5 | BI39: 5 | BJ39: 5 | BK39: 5 | BL39: 5 | BM39: 0 | BN39: 0 | BO39: 5 | BP39: 5 | BQ39: 5 | BR39: 5 | BS39: 5 | BT39: 5 | BU39: 5 | BV39: 5 | BW39: 5 | BX39: 5 | BY39: 5 | BZ39: 0 | CA39: 5 | CB39: 5
A40: West Ham | B40: 1 | C40: 3 | D40: Southampton | E40: 15:00:00 | G40: 0 | H40: 0 | I40: 0 | J40: 0 | K40: 0 | L40: 0 | M40: 0 | N40: 0 | O40: 0 | P40: 5 | Q40: 0 | R40: 0 | S40: 0 | T40: 0 | U40: 0 | V40: 0 | W40: 0 | X40: 0 | Y40: 0 | Z40: 5 | AA40: 0 | AB40: 0 | AC40: 0 | AD40: 5 | AE40: 5 | AF40: 0 | AG40: 0 | AH40: 0 | AI40: 5 | AJ40: 0 | AK40: 0 | AL40: 0 | AM40: 0 | AN40: 0 | AO40: 0 | AP40: 5 | AQ40: 0 | AR40: 0 | AS40: 0 | AT40: 0 | AU40: 0 | AV40: 0 | AW40: 0 | AX40: 0 | AY40: 0 | AZ40: 5 | BA40: 0 | BB40: 0 | BC40: 5 | BD40: 0 | BE40: 0 | BF40: 0 | BG40: 0 | BH40: 0 | BI40: 0 | BJ40: 0 | BK40: 0 | BL40: 0 | BM40: 0 | BN40: 0 | BO40: 0 | BP40: 0 | BQ40: 0 | BR40: 0 | BS40: 0 | BT40: 0 | BU40: 5 | BV40: 0 | BW40: 0 | BX40: 0 | BY40: 0 | BZ40: 0 | CA40: 0 | CB40: 0
A41: Everton | B41: 3 | C41: 6 | D41: Chelsea | E41: 17:30:00 | G41: 5 | H41: 5 | I41: 5 | J41: 5 | K41: 0 | L41: 5 | M41: 5 | N41: 5 | O41: 5 | P41: 5 | Q41: 0 | R41: 5 | S41: 5 | T41: 5 | U41: 5 | V41: 0 | W41: 0 | X41: 0 | Y41: 0 | Z41: 5 | AA41: 5 | AB41: 5 | AC41: 0 | AD41: 5 | AE41: 5 | AF41: 5 | AG41: 5 | AH41: 5 | AI41: 5 | AJ41: 5 | AK41: 5 | AL41: 5 | AM41: 5 | AN41: 5 | AO41: 0 | AP41: 0 | AQ41: 5 | AR41: 5 | AS41: 5 | AT41: 0 | AU41: 5 | AV41: 5 | AW41: 5 | AX41: 5 | AY41: 0 | AZ41: 0 | BA41: 0 | BB41: 5 | BC41: 5 | BD41: 5 | BE41: 5 | BF41: 5 | BG41: 5 | BH41: 5 | BI41: 5 | BJ41: 5 | BK41: 5 | BL41: 5 | BM41: 5 | BN41: 5 | BO41: 0 | BP41: 5 | BQ41: 0 | BR41: 0 | BS41: 0 | BT41: 0 | BU41: 0 | BV41: 5 | BW41: 5 | BX41: 5 | BY41: 5 | BZ41: 0 | CA41: 5 | CB41: 5
A43: Sunday, August 31st
A44: Aston Villa | B44: 2 | C44: 1 | D44: Hull City | E44: 13:30:00 | G44: 5 | H44: 5 | I44: 10 | J44: 0 | K44: 0 | L44: 10 | M44: 0 | N44: 10 | O44: 0 | P44: 5 | Q44: 5 | R44: 10 | S44: 5 | T44: 0 | U44: 5 | V44: 5 | W44: 5 | X44: 10 | Y44: 5 | Z44: 0 | AA44: 0 | AB44: 5 | AC44: 0 | AD44: 0 | AE44: 5 | AF44: 10 | AG44: 0 | AH44: 5 | AI44: 5 | AJ44: 5 | AK44: 0 | AL44: 5 | AM44: 5 | AN44: 5 | AO44: 5 | AP44: 5 | AQ44: 5 | AR44: 0 | AS44: 10 | AT44: 10 | AU44: 5 | AV44: 5 | AW44: 5 | AX44: 0 | AY44: 10 | AZ44: 10 | BA44: 5 | BB44: 0 | BC44: 5 | BD44: 0 | BE44: 0 | BF44: 0 | BG44: 10 | BH44: 5 | BI44: 0 | BJ44: 10 | BK44: 5 | BL44: 5 | BM44: 0 | BN44: 0 | BO44: 5 | BP44: 5 | BQ44: 5 | BR44: 5 | BS44: 0 | BT44: 0 | BU44: 5 | BV44: 0 | BW44: 5 | BX44: 5 | BY44: 0 | BZ44: 0 | CA44: 10 | CB44: 0
A45: Tottenham | B45: 0 | C45: 3 | D45: Liverpool | E45: 13:30:00 | G45: 0 | H45: 0 | I45: 0 | J45: 0 | K45: 0 | L45: 0 | M45: 0 | N45: 5 | O45: 5 | P45: 0 | Q45: 0 | R45: 0 | S45: 0 | T45: 0 | U45: 0 | V45: 0 | W45: 0 | X45: 5 | Y45: 0 | Z45: 5 | AA45: 0 | AB45: 0 | AC45: 0 | AD45: 5 | AE45: 5 | AF45: 0 | AG45: 0 | AH45: 0 | AI45: 0 | AJ45: 5 | AK45: 5 | AL45: 0 | AM45: 0 | AN45: 0 | AO45: 0 | AP45: 5 | AQ45: 0 | AR45: 5 | AS45: 5 | AT45: 0 | AU45: 0 | AV45: 0 | AW45: 0 | AX45: 0 | AY45: 0 | AZ45: 0 | BA45: 0 | BB45: 0 | BC45: 5 | BD45: 0 | BE45: 0 | BF45: 0 | BG45: 0 | BH45: 5 | BI45: 5 | BJ45: 5 | BK45: 0 | BL45: 5 | BM45: 0 | BN45: 0 | BO45: 5 | BP45: 5 | BQ45: 5 | BR45: 5 | BS45: 0 | BT45: 0 | BU45: 5 | BV45: 5 | BW45: 0 | BX45: 0 | BY45: 0 | BZ45: 0 | CA45: 5 | CB45: 0
A46: Leicester City | B46: 1 | C46: 1 | D46: Arsenal | E46: 16:00:00 | G46: 0 | H46: 0 | I46: 0 | J46: 0 | K46: 0 | L46: 0 | M46: 0 | N46: 0 | O46: 0 | P46: 0 | Q46: 0 | R46: 0 | S46: 0 | T46: 0 | U46: 0 | V46: 0 | W46: 0 | X46: 0 | Y46: 0 | Z46: 0 | AA46: 0 | AB46: 0 | AC46: 0 | AD46: 0 | AE46: 0 | AF46: 10 | AG46: 10 | AH46: 0 | AI46: 0 | AJ46: 0 | AK46: 0 | AL46: 0 | AM46: 0 | AN46: 0 | AO46: 0 | AP46: 0 | AQ46: 0 | AR46: 0 | AS46: 0 | AT46: 0 | AU46: 0 | AV46: 0 | AW46: 10 | AX46: 0 | AY46: 0 | AZ46: 0 | BA46: 0 | BB46: 10 | BC46: 0 | BD46: 0 | BE46: 0 | BF46: 0 | BG46: 10 | BH46: 0 | BI46: 0 | BJ46: 0 | BK46: 0 | BL46: 0 | BM46: 0 | BN46: 0 | BO46: 0 | BP46: 0 | BQ46: 0 | BR46: 0 | BS46: 0 | BT46: 0 | BU46: 0 | BV46: 0 | BW46: 0 | BX46: 0 | BY46: 0 | BZ46: 5 | CA46: 0 | CB46: 10
A48: Golden Boots
A49: Alexis Sanchez - Arsenal | E49: =0+0+1 -> 1 | F49: =COUNT(G49:CB49) -> 14 | H49: =5*$E49 -> 5 | N49: =5*$E49 -> 5 | T49: =5*$E49 -> 5 | Y49: =5*$E49 -> 5 | Z49: =5*$E49 -> 5 | AC49: =5*$E49 -> 5 | AQ49: =5*$E49 -> 5 | AS49: =5*$E49 -> 5 | AZ49: =5*$E49 -> 5 | BF49: =5*$E49 -> 5 | BK49: =5*$E49 -> 5 | BL49: =5*$E49 -> 5 | BV49: =5*$E49 -> 5 | BZ49: =5*$E49 -> 5
A50: Daniel Sturridge - Liverpool | E50: =1+0+0 -> 1 | F50: 52 | G50: =5*$E50 -> 5 | I50: =5*$E50 -> 5 | J50: =5*$E50 -> 5 | K50: =5*$E50 -> 5 | M50: =5*$E50 -> 5 | N50: =5*$E50 -> 5 | O50: =5*$E50 -> 5 | P50: =5*$E50 -> 5 | Q50: =5*$E50 -> 5 | R50: =5*$E50 -> 5 | S50: =5*$E50 -> 5 | V50: =5*$E50 -> 5 | W50: =5*$E50 -> 5 | X50: =5*$E50 -> 5 | Z50: =5*$E50 -> 5 | AA50: =5*$E50 -> 5 | AB50: =5*$E50 -> 5 | AE50: =5*$E50 -> 5 | AF50: =5*$E50 -> 5 | AG50: =5*$E50 -> 5 | AI50: =5*$E50 -> 5 | AJ50: 5 | AK50: 5 | AL50: 5 | AM50: 5 | AO50: 5 | AP50: 5 | AR50: =5*$E50 -> 5 | AS50: =5*$E50 -> 5 | AU50: =5*$E50 -> 5 | AV50: =5*$E50 -> 5 | AX50: =5*$E50 -> 5 | AY50: =5*$E50 -> 5 | BA50: =5*$E50 -> 5 | BB50: =5*$E50 -> 5 | BC50: =5*$E50 -> 5 | BD50: =5*$E50 -> 5 | BE50: =5*$E50 -> 5 | BF50: =5*$E50 -> 5 | BI50: =5*$E50 -> 5 | BJ50: =5*$E50 -> 5 | BK50: =5*$E50 -> 5 | BL50: 5 | BM50: =5*$E50 -> 5 | BQ50: =5*$E50 -> 5 | BS50: =5*$E50 -> 5 | BT50: =5*$E50 -> 5 | BU50: =5*$E50 -> 5 | BW50: =5*$E50 -> 5 | BX50: =5*$E50 -> 5 | CA50: =5*$E50 -> 5 | CB50: =5*$E50 -> 5
A51: Diego Costa - Chelsea | E51: =1+1+2 -> 4 | F51: 39 | H51: =5*$E51 -> 20 | J51: 20 | L51: =5*$E51 -> 20 | M51: =5*$E51 -> 20 | O51: 20 | P51: =5*$E51 -> 20 | S51: =5*$E51 -> 20 | T51: =5*$E51 -> 20 | Z51: =5*$E51 -> 20 | AB51: =5*$E51 -> 20 | AC51: =5*$E51 -> 20 | AE51: 20 | AF51: =5*$E51 -> 20 | AG51: =5*$E51 -> 20 | AH51: =5*$E51 -> 20 | AJ51: =5*$E51 -> 20 | AK51: =5*$E51 -> 20 | AO51: =5*$E51 -> 20 | AP51: =5*$E51 -> 20 | AR51: =5*$E51 -> 20 | AT51: =5*$E51 -> 20 | AU51: 20 | AV51: =5*$E51 -> 20 | AW51: =5*$E51 -> 20 | AZ51: =5*$E51 -> 20 | BA51: =5*$E51 -> 20 | BB51: =5*$E51 -> 20 | BD51: =5*$E51 -> 20 | BF51: =5*$E51 -> 20 | BG51: =5*$E51 -> 20 | BH51: =5*$E51 -> 20 | BI51: =5*$E51 -> 20 | BN51: =5*$E51 -> 20 | BO51: =5*$E51 -> 20 | BP51: =5*$E51 -> 20 | BR51: =5*$E51 -> 20 | BZ51: =5*$E51 -> 20 | CA51: =5*$E51 -> 20 | CB51: 20
A52: Eden Hazard - Chelsea | E52: =0+1+0 -> 1 | F52: 2 | K52: =5*$E52 -> 5 | BX52: =5*$E52 -> 5
A53: Edin Dzeko - Man City | E53: =0+0+0 -> 0 | F53: 6 | L53: =5*$E53 -> 0 | AB53: =5*$E53 -> 0 | AQ53: =5*$E53 -> 0 | AT53: =5*$E53 -> 0 | BP53: =5*$E53 -> 0 | BV53: =5*$E53 -> 0
A54: Emmanuel Adebayor - Tottenham | E54: =0+1+0 -> 1 | F54: 3 | U54: =5*$E54 -> 5 | AN54: =5*$E54 -> 5 | BS54: =5*$E54 -> 5
A55: Olivier Giroud - Arsenal | E55: =0+1+0 -> 1 | F55: 4 | L55: =5*$E55 -> 5 | AD55: =5*$E55 -> 5 | AN55: =5*$E55 -> 5 | AV55: =5*$E55 -> 5
A56: Raheem Sterling - Liverpool | E56: =1+0+1 -> 2 | F56: 3 | AT56: =5*$E56 -> 10 | BQ56: =5*$E56 -> 10 | BU56: =5*$E56 -> 10
A57: Robin van Persie - Man United | E57: =0+0+0 -> 0 | F57: 45 | G57: =5*$E57 -> 0 | H57: =5*$E57 -> 0 | J57: =5*$E57 -> 0 | P57: =5*$E57 -> 0 | Q57: =5*$E57 -> 0 | R57: =5*$E57 -> 0 | S57: =5*$E57 -> 0 | U57: =5*$E57 -> 0 | V57: =5*$E57 -> 0 | X57: =5*$E57 -> 0 | Y57: =5*$E57 -> 0 | AA57: =5*$E57 -> 0 | AD57: =5*$E57 -> 0 | AF57: =5*$E57 -> 0 | AG57: =5*$E57 -> 0 | AH57: =5*$E57 -> 0 | AI57: =5*$E57 -> 0 | AJ57: =5*$E57 -> 0 | AL57: =5*$E57 -> 0 | AM57: =5*$E57 -> 0 | AP57: =5*$E57 -> 0 | AQ57: =5*$E57 -> 0 | AR57: =5*$E57 -> 0 | AU57: =5*$E57 -> 0 | AW57: =5*$E57 -> 0 | AX57: =5*$E57 -> 0 | AY57: =5*$E57 -> 0 | BA57: =5*$E57 -> 0 | BB57: =5*$E57 -> 0 | BC57: =5*$E57 -> 0 | BD57: =5*$E57 -> 0 | BE57: =5*$E57 -> 0 | BG57: =5*$E57 -> 0 | BH57: =5*$E57 -> 0 | BI57: =5*$E57 -> 0 | BJ57: =5*$E57 -> 0 | BM57: =5*$E57 -> 0 | BN57: =5*$E57 -> 0 | BO57: =5*$E57 -> 0 | BP57: =5*$E57 -> 0 | BR57: =5*$E57 -> 0 | BT57: =5*$E57 -> 0 | BX57: =5*$E57 -> 0 | BY57: =5*$E57 -> 0 | CA57: =5*$E57 -> 0
A58: Romelu Lukaku - Everton | E58: =0+0+0 -> 0 | F58: 7 | G58: =5*$E58 -> 0 | I58: =5*$E58 -> 0 | T58: =5*$E58 -> 0 | U58: =5*$E58 -> 0 | AX58: =5*$E58 -> 0 | BY58: =5*$E58 -> 0 | BZ58: =5*$E58 -> 0
A59: Sergio Aguero - Man City | E59: =1+1+0 -> 2 | F59: 21 | M59: =5*$E59 -> 10 | N59: =5*$E59 -> 10 | Q59: =5*$E59 -> 10 | R59: =5*$E59 -> 10 | W59: =5*$E59 -> 10 | X59: =5*$E59 -> 10 | Y59: =5*$E59 -> 10 | AC59: =5*$E59 -> 10 | AD59: =5*$E59 -> 10 | AI59: =5*$E59 -> 10 | AK59: =5*$E59 -> 10 | AL59: =5*$E59 -> 10 | AM59: =5*$E59 -> 10 | AN59: =5*$E59 -> 10 | AO59: =5*$E59 -> 10 | AY59: =5*$E59 -> 10 | BC59: =5*$E59 -> 10 | BG59: =5*$E59 -> 10 | BJ59: =5*$E59 -> 10 | BO59: =5*$E59 -> 10 | BW59: =5*$E59 -> 10
A60: Steven Gerrard - Liverpool | E60: =0+0+1 -> 1 | F60: 1 | BQ60: =5*$E60 -> 5
A61: Wayne Rooney - Man United | E61: =1+0+0 -> 1 | F61: 21 | I61: =5*$E61 -> 5 | K61: =5*$E61 -> 5 | O61: =5*$E61 -> 5 | V61: =5*$E61 -> 5 | W61: =5*$E61 -> 5 | AA61: =5*$E61 -> 5 | AS61: =5*$E61 -> 5 | AW61: =5*$E61 -> 5 | AZ61: =5*$E61 -> 5 | BE61: =5*$E61 -> 5 | BH61: =5*$E61 -> 5 | BK61: =5*$E61 -> 5 | BL61: =5*$E61 -> 5 | BM61: =5*$E61 -> 5 | BN61: =5*$E61 -> 5 | BS61: =5*$E61 -> 5 | BU61: =5*$E61 -> 5 | BV61: =5*$E61 -> 5 | BW61: =5*$E61 -> 5 | BY61: =5*$E61 -> 5 | CB61: =5*$E61 -> 5
A62: Wilfried Bony - Swansea City | E62: =0+0+0 -> 0 | F62: 1 | AH62: =5*$E62 -> 0
A63: Yaya Toure - Man City | E63: =0+0+0 -> 0 | F63: 3 | AE63: =5*$E63 -> 0 | BR63: =5*$E63 -> 0 | BT63: =5*$E63 -> 0
A66: Sack Race
A67: Alan Irvine - West Brom | F67: =COUNT(G67:CB67) -> 5 | M67: =25*$E67 -> 0 | S67: =25*$E67 -> 0 | AG67: =25*$E67 -> 0 | BK67: =25*$E67 -> 0 | BU67: =25*$E67 -> 0
A68: Alan Pardew - Newcastle | F68: 8 | G68: =25*$E68 -> 0 | K68: =25*$E68 -> 0 | U68: =25*$E68 -> 0 | V68: =25*$E68 -> 0 | AK68: =25*$E68 -> 0 | AY68: =25*$E68 -> 0 | BO68: =25*$E68 -> 0 | CB68: =25*$E68 -> 0
A69: Arsene Wenger - Arsenal | F69: 0
A70: Brendan Rodgers - Liverpool | F70: 0
A71: Garry Monk - Swansea City | F71: 6 | AA71: =25*$E71 -> 0 | AB71: =25*$E71 -> 0 | AW71: =25*$E71 -> 0 | BA71: =25*$E71 -> 0 | BC71: =25*$E71 -> 0 | BL71: =25*$E71 -> 0
A72: Gus Poyet - Sunderland | F72: 0
A73: Harry Redknapp - QPR | F73: 2 | AN73: =25*$E73 -> 0 | BR73: =25*$E73 -> 0
A74: Jose Mourinho - Chelsea | F74: 0
A75: Louis van Gaal - Man United | F75: 1 | BQ75: =25*$E75 -> 0
A76: Manuel Pellegrini - Man City | F76: 0
A77: Mark Hughes - Stoke City | F77: 0
A78: Mauricio Pochettino - Tottenham | F78: 0
A79: Nigel Pearson - Leicester City | F79: 3 | L79: =25*$E79 -> 0 | AF79: =25*$E79 -> 0 | AJ79: =25*$E79 -> 0
A80: Paul Lambert - Aston Villa | F80: 13 | T80: =25*$E80 -> 0 | Y80: =25*$E80 -> 0 | Z80: =25*$E80 -> 0 | AD80: =25*$E80 -> 0 | AE80: =25*$E80 -> 0 | AL80: =25*$E80 -> 0 | AM80: =25*$E80 -> 0 | AS80: =25*$E80 -> 0 | AT80: =25*$E80 -> 0 | AV80: =25*$E80 -> 0 | AX80: =25*$E80 -> 0 | BB80: =25*$E80 -> 0 | BM80: =25*$E80 -> 0
A81: Roberto Martinez - Everton | F81: 0
A82: Ronald Koeman - Southampton | F82: 4 | R82: =25*$E82 -> 0 | AP82: =25*$E82 -> 0 | BP82: =25*$E82 -> 0 | BV82: =25*$E82 -> 0
A83: Sam Allardyce - West Ham | F83: 27 | I83: =25*$E83 -> 0 | J83: =25*$E83 -> 0 | N83: =25*$E83 -> 0 | O83: =25*$E83 -> 0 | P83: =25*$E83 -> 0 | Q83: =25*$E83 -> 0 | W83: =25*$E83 -> 0 | X83: =25*$E83 -> 0 | AC83: =25*$E83 -> 0 | AH83: =25*$E83 -> 0 | AI83: =25*$E83 -> 0 | AO83: =25*$E83 -> 0 | AQ83: =25*$E83 -> 0 | AR83: =25*$E83 -> 0 | AU83: =25*$E83 -> 0 | AZ83: =25*$E83 -> 0 | BD83: =25*$E83 -> 0 | BE83: =25*$E83 -> 0 | BH83: =25*$E83 -> 0 | BI83: =25*$E83 -> 0 | BN83: =25*$E83 -> 0 | BS83: =25*$E83 -> 0 | BT83: =25*$E83 -> 0 | BW83: =25*$E83 -> 0 | BX83: =25*$E83 -> 0 | BY83: =25*$E83 -> 0 | CA83: =25*$E83 -> 0
A84: Sean Dyche - Burnley | F84: 4 | H84: =25*$E84 -> 0 | BF84: =25*$E84 -> 0 | BG84: =25*$E84 -> 0 | BJ84: =25*$E84 -> 0
A85: Steve Bruce - Hull City | F85: 1 | BZ85: =25*$E85 -> 0
A87: Total Points - August | G87: =SUM(G2:G86) -> 80 | H87: 90 | I87: 80 | J87: 105 | K87: 95 | L87: 115 | M87: 105 | N87: 110 | O87: 130 | P87: 115 | Q87: 95 | R87: 105 | S87: 115 | T87: 120 | U87: 95 | V87: 95 | W87: 90 | X87: 105 | Y87: 105 | Z87: 100 | AA87: 75 | AB87: 110 | AC87: 110 | AD87: 105 | AE87: 115 | AF87: 130 | AG87: 110 | AH87: 110 | AI87: 105 | AJ87: 105 | AK87: 100 | AL87: 85 | AM87: =SUM(AM2:AM86) -> 120 | AN87: 115 | AO87: 85 | AP87: 115 | AQ87: 95 | AR87: 115 | AS87: 90 | AT87: 105 | AU87: 105 | AV87: 105 | AW87: 115 | AX87: 80 | AY87: 95 | AZ87: 95 | BA87: 90 | BB87: 95 | BC87: 125 | BD87: 115 | BE87: 90 | BF87: 95 | BG87: 135 | BH87: 90 | BI87: 100 | BJ87: 105 | BK87: 105 | BL87: 100 | BM87: 90 | BN87: 105 | BO87: 110 | BP87: 95 | BQ87: 130 | BR87: 95 | BS87: =SUM(BS2:BS86) -> 90 | BT87: 70 | BU87: 100 | BV87: 110 | BW87: 110 | BX87: 100 | BY87: 100 | BZ87: 105 | CA87: 110 | CB87: 130
G89: =IF(COUNT(G48:G86)=4,"a","g") -> a | H89: a | I89: a | J89: a | K89: a | L89: a | M89: a | N89: a | O89: a | P89: a | Q89: a | R89: a | S89: a | T89: a | U89: a | V89: a | W89: a | X89: a | Y89: a | Z89: a | AA89: a | AB89: a | AC89: a | AD89: a | AE89: a | AF89: a | AG89: a | AH89: a | AI89: a | AJ89: a | AK89: a | AL89: a | AM89: =IF(COUNT(AM48:AM86)=4,"a","g") -> a | AN89: a | AO89: a | AP89: a | AQ89: a | AR89: a | AS89: a | AT89: a | AU89: a | AV89: a | AW89: a | AX89: a | AY89: a | AZ89: a | BA89: a | BB89: a | BC89: a | BD89: a | BE89: a | BF89: a | BG89: a | BH89: a | BI89: a | BJ89: a | BK89: a | BL89: a | BM89: a | BN89: a | BO89: a | BP89: a | BQ89: a | BR89: a | BS89: =IF(COUNT(BS48:BS86)=4,"a","g") -> a | BT89: a | BU89: a | BV89: a | BW89: a | BX89: a | BY89: a | BZ89: a | CA89: a | CB89: a

Sheet September
G1: Aaron Byrne | H1: Aidan Knight | I1: Aidan Scanlon | J1: Aidan White | K1: Aiden Desch | L1: Alan Boyle | M1: Anastas Popov | N1: Andy Dunne | O1: Anthony Hughes | P1: Barry Healy | Q1: Brendan Maguire | R1: Brian Mullen | S1: Brian Prendergast | T1: Brian Sotolongo | U1: Chris Hall | V1: Ciaran O'Hart | W1: Cillian Conway | X1: Colin McAnaspie | Y1: Con McSweeney | Z1: Conor Horan | AA1: Craig Calvert | AB1: Dave Green | AC1: Dave McGinley | AD1: David Bone | AE1: David Byrne | AF1: David Cooney | AG1: David Keavney | AH1: Eamon Fox | AI1: Fiachra Moynihan | AJ1: Gareth Pierpoint | AK1: Gary McGurk | AL1: Gavin Morgan | AM1: Gerry Draper | AN1: Gerry Moore | AO1: Ian Healy | AP1: Javier Suarez Barreiro | AQ1: Jenny Ellis | AR1: Joe Behan | AS1: Joe O'Hehir | AT1: Joe Turner | AU1: Jonathan Fox | AV1: Keith Horan | AW1: Kevin Donohoe | AX1: Kevin Philpott | AY1: Konstantin Kulev | AZ1: Kris Stainton | BA1: Liam Butler | BB1: Liam Geraghty | BC1: Maria Jordan | BD1: Mike Hall | BE1: Niall Carroll | BF1: Oisin O'Reilly | BG1: Padraic Carney | BH1: Pat Jordan | BI1: Paul Moore | BJ1: Paul Prendergast | BK1: Paul Stainton | BL1: Peter Behan | BM1: Phil Doyle | BN1: Philip Jordan | BO1: Ralph Goodwin | BP1: Ray Ellis | BQ1: Rhona Devlin | BR1: Richard Johnston | BS1: Sean Moloney | BT1: Sean O'Mairtin | BU1: Shane Horan | BV1: Sharon Behan | BW1: Simon Purdue | BX1: Siobhan Murphy | BY1: Terry Behan | BZ1: Tiago Moreira | CA1: Tom McHugh | CB1: Wayne Donovan
A2: Saturday, September 13th
A3: Arsenal | B3: 2 | C3: 2 | D3: Man City | E3: 12:45:00 | G3: 0 | H3: 0 | I3: 10 | J3: 5 | K3: 5 | L3: 0 | M3: 5 | N3: 0 | O3: 0 | P3: 5 | Q3: 10 | R3: 10 | S3: 5 | T3: 5 | U3: 0 | V3: 5 | W3: 5 | X3: 0 | Y3: 5 | Z3: 0 | AA3: 5 | AB3: 0 | AC3: 5 | AD3: 0 | AE3: 0 | AF3: 0 | AG3: 0 | AH3: 5 | AI3: 0 | AJ3: 0 | AK3: 0 | AL3: 0 | AM3: 5 | AN3: 5 | AO3: 0 | AP3: 0 | AQ3: 0 | AR3: 0 | AS3: 5 | AT3: 5 | AU3: 0 | AV3: 10 | AW3: 5 | AX3: 5 | AY3: 0 | AZ3: 0 | BA3: 0 | BB3: 0 | BC3: 0 | BD3: 0 | BE3: 10 | BF3: 0 | BG3: 5 | BH3: 0 | BI3: 0 | BJ3: 0 | BK3: 0 | BL3: 0 | BM3: 0 | BN3: 0 | BO3: 0 | BP3: 0 | BQ3: 0 | BR3: 0 | BS3: 0 | BT3: 5 | BU3: 0 | BV3: 0 | BW3: 5 | BX3: 0 | BY3: 0 | BZ3: 10 | CA3: 10 | CB3: 0
A4: Chelsea | B4: 4 | C4: 2 | D4: Swansea City | E4: 15:00:00 | G4: 5 | H4: 5 | I4: 5 | J4: 5 | K4: 5 | L4: 5 | M4: 5 | N4: 5 | O4: 5 | P4: 5 | Q4: 5 | R4: 5 | S4: 5 | T4: 5 | U4: 5 | V4: 5 | W4: 5 | X4: 5 | Y4: 5 | Z4: 5 | AA4: 5 | AB4: 5 | AC4: 5 | AD4: 5 | AE4: 5 | AF4: 5 | AG4: 5 | AH4: 5 | AI4: 5 | AJ4: 5 | AK4: 5 | AL4: 5 | AM4: 5 | AN4: 5 | AO4: 5 | AP4: 5 | AQ4: 5 | AR4: 10 | AS4: 5 | AT4: 5 | AU4: 5 | AV4: 5 | AW4: 5 | AX4: 5 | AY4: 5 | AZ4: 5 | BA4: 5 | BB4: 5 | BC4: 5 | BD4: 5 | BE4: 5 | BF4: 5 | BG4: 5 | BH4: 5 | BI4: 5 | BJ4: 5 | BK4: 5 | BL4: 5 | BM4: 5 | BN4: 5 | BO4: 5 | BP4: 5 | BQ4: 5 | BR4: 5 | BS4: 5 | BT4: 5 | BU4: 5 | BV4: 5 | BW4: 5 | BX4: 5 | BY4: 5 | BZ4: 0 | CA4: 5 | CB4: 5
A5: Crystal Palace | B5: 0 | C5: 0 | D5: Burnley | E5: 15:00:00 | G5: 5 | H5: 0 | I5: 0 | J5: 10 | K5: 0 | L5: 0 | M5: 0 | N5: 0 | O5: 5 | P5: 0 | Q5: 0 | R5: 5 | S5: 0 | T5: 10 | U5: 0 | V5: 0 | W5: 0 | X5: 10 | Y5: 0 | Z5: 0 | AA5: 0 | AB5: 0 | AC5: 0 | AD5: 0 | AE5: 0 | AF5: 5 | AG5: 0 | AH5: 0 | AI5: 0 | AJ5: 0 | AK5: 0 | AL5: 0 | AM5: 0 | AN5: 0 | AO5: 0 | AP5: 0 | AQ5: 0 | AR5: 5 | AS5: 0 | AT5: 0 | AU5: 0 | AV5: 0 | AW5: 0 | AX5: 5 | AY5: 0 | AZ5: 0 | BA5: 5 | BB5: 5 | BC5: 5 | BD5: 0 | BE5: 0 | BF5: 0 | BG5: 0 | BH5: 0 | BI5: 5 | BJ5: 0 | BK5: 0 | BL5: 0 | BM5: 5 | BN5: 5 | BO5: 0 | BP5: 5 | BQ5: 0 | BR5: 0 | BS5: 0 | BT5: 0 | BU5: 0 | BV5: 5 | BW5: 0 | BX5: 5 | BY5: 0 | BZ5: 5 | CA5: 0 | CB5: 0
A6: Southampton | B6: 4 | C6: 0 | D6: Newcastle United | E6: 15:00:00 | G6: 0 | H6: 0 | I6: 5 | J6: 5 | K6: 0 | L6: 0 | M6: 5 | N6: 5 | O6: 5 | P6: 5 | Q6: 0 | R6: 0 | S6: 5 | T6: 5 | U6: 0 | V6: 5 | W6: 5 | X6: 5 | Y6: 5 | Z6: 0 | AA6: 5 | AB6: 5 | AC6: 5 | AD6: 0 | AE6: 0 | AF6: 5 | AG6: 5 | AH6: 5 | AI6: 5 | AJ6: 0 | AK6: 5 | AL6: 5 | AM6: 5 | AN6: 5 | AO6: 5 | AP6: 5 | AQ6: 5 | AR6: 5 | AS6: 5 | AT6: 5 | AU6: 5 | AV6: 5 | AW6: 5 | AX6: 5 | AY6: 5 | AZ6: 5 | BA6: 5 | BB6: 5 | BC6: 0 | BD6: 5 | BE6: 5 | BF6: 0 | BG6: 5 | BH6: 5 | BI6: 5 | BJ6: 5 | BK6: 5 | BL6: 0 | BM6: 5 | BN6: 5 | BO6: 5 | BP6: 0 | BQ6: 0 | BR6: 0 | BS6: 0 | BT6: 5 | BU6: 0 | BV6: 5 | BW6: 5 | BX6: 5 | BY6: 5 | BZ6: 0 | CA6: 5 | CB6: 5
A7: Stoke City | B7: 0 | C7: 1 | D7: Leicester City | E7: 15:00:00 | G7: 0 | H7: 0 | I7: 0 | J7: 0 | K7: 0 | L7: 0 | M7: 0 | N7: 0 | O7: 0 | P7: 0 | Q7: 0 | R7: 0 | S7: 0 | T7: 0 | U7: 0 | V7: 0 | W7: 0 | X7: 0 | Y7: 0 | Z7: 0 | AA7: 0 | AB7: 0 | AC7: 0 | AD7: 0 | AE7: 0 | AF7: 0 | AG7: 0 | AH7: 0 | AI7: 0 | AJ7: 0 | AK7: 0 | AL7: 0 | AM7: 0 | AN7: 0 | AO7: 0 | AP7: 0 | AQ7: 0 | AR7: 0 | AS7: 0 | AT7: 0 | AU7: 0 | AV7: 0 | AW7: 0 | AX7: 0 | AY7: 0 | AZ7: 10 | BA7: 0 | BB7: 0 | BC7: 0 | BD7: 0 | BE7: 0 | BF7: 0 | BG7: 0 | BH7: 0 | BI7: 0 | BJ7: 0 | BK7: 0 | BL7: 0 | BM7: 0 | BN7: 0 | BO7: 0 | BP7: 0 | BQ7: 0 | BR7: 0 | BS7: 0 | BT7: 0 | BU7: 0 | BV7: 0 | BW7: 0 | BX7: 0 | BY7: 0 | BZ7: 0 | CA7: 0 | CB7: 0
A8: Sunderland | B8: 2 | C8: 2 | D8: Tottenham | E8: 15:00:00 | G8: 0 | H8: 0 | I8: 10 | J8: 0 | K8: 0 | L8: 0 | M8: 0 | N8: 5 | O8: 0 | P8: 0 | Q8: 0 | R8: 0 | S8: 0 | T8: 0 | U8: 0 | V8: 0 | W8: 5 | X8: 0 | Y8: 0 | Z8: 0 | AA8: 5 | AB8: 0 | AC8: 0 | AD8: 0 | AE8: 0 | AF8: 0 | AG8: 5 | AH8: 5 | AI8: 5 | AJ8: 0 | AK8: 5 | AL8: 0 | AM8: 5 | AN8: 0 | AO8: 0 | AP8: 0 | AQ8: 0 | AR8: 0 | AS8: 5 | AT8: 5 | AU8: 0 | AV8: 0 | AW8: 0 | AX8: 0 | AY8: 0 | AZ8: 0 | BA8: 0 | BB8: 10 | BC8: 0 | BD8: 0 | BE8: 0 | BF8: 0 | BG8: 5 | BH8: 0 | BI8: 5 | BJ8: 5 | BK8: 0 | BL8: 0 | BM8: 0 | BN8: 0 | BO8: 0 | BP8: 0 | BQ8: 0 | BR8: 0 | BS8: 0 | BT8: 0 | BU8: 0 | BV8: 0 | BW8: 0 | BX8: 0 | BY8: 5 | BZ8: 10 | CA8: 0 | CB8: 5
A9: West Brom | B9: 0 | C9: 2 | D9: Everton | E9: 15:00:00 | G9: 0 | H9: 5 | I9: 5 | J9: 5 | K9: 5 | L9: 5 | M9: 5 | N9: 5 | O9: 5 | P9: 0 | Q9: 10 | R9: 5 | S9: 5 | T9: 5 | U9: 0 | V9: 5 | W9: 5 | X9: 5 | Y9: 10 | Z9: 5 | AA9: 5 | AB9: 5 | AC9: 5 | AD9: 0 | AE9: 5 | AF9: 5 | AG9: 5 | AH9: 5 | AI9: 5 | AJ9: 10 | AK9: 0 | AL9: 5 | AM9: 5 | AN9: 10 | AO9: 5 | AP9: 0 | AQ9: 5 | AR9: 10 | AS9: 5 | AT9: 0 | AU9: 5 | AV9: 0 | AW9: 5 | AX9: 5 | AY9: 5 | AZ9: 5 | BA9: 5 | BB9: 5 | BC9: 10 | BD9: 5 | BE9: 5 | BF9: 0 | BG9: 0 | BH9: 5 | BI9: 5 | BJ9: 0 | BK9: 0 | BL9: 5 | BM9: 5 | BN9: 5 | BO9: 5 | BP9: 5 | BQ9: 10 | BR9: 5 | BS9: 0 | BT9: 5 | BU9: 10 | BV9: 5 | BW9: 5 | BX9: 5 | BY9: 0 | BZ9: 0 | CA9: 5 | CB9: 5
A10: Liverpool | B10: 0 | C10: 1 | D10: Aston Villa | E10: 17:30:00 | G10: 0 | H10: 0 | I10: 0 | J10: 0 | K10: 0 | L10: 0 | M10: 0 | N10: 0 | O10: 0 | P10: 0 | Q10: 0 | R10: 0 | S10: 0 | T10: 0 | U10: 0 | V10: 0 | W10: 0 | X10: 0 | Y10: 0 | Z10: 0 | AA10: 0 | AB10: 0 | AC10: 0 | AD10: 0 | AE10: 0 | AF10: 0 | AG10: 0 | AH10: 0 | AI10: 0 | AJ10: 0 | AK10: 0 | AL10: 0 | AM10: 0 | AN10: 0 | AO10: 0 | AP10: 0 | AQ10: 0 | AR10: 0 | AS10: 0 | AT10: 0 | AU10: 0 | AV10: 0 | AW10: 0 | AX10: 0 | AY10: 0 | AZ10: 0 | BA10: 0 | BB10: 0 | BC10: 0 | BD10: 0 | BE10: 0 | BF10: 0 | BG10: 0 | BH10: 0 | BI10: 0 | BJ10: 0 | BK10: 0 | BL10: 0 | BM10: 0 | BN10: 0 | BO10: 0 | BP10: 0 | BQ10: 0 | BR10: 0 | BS10: 0 | BT10: 0 | BU10: 0 | BV10: 0 | BW10: 0 | BX10: 0 | BY10: 0 | BZ10: 0 | CA10: 0 | CB10: 0
A12: Sunday, September 14th
A13: Man United | B13: 4 | C13: 0 | D13: QPR | E13: 16:00:00 | G13: 5 | H13: 5 | I13: 5 | J13: 5 | K13: 5 | L13: 10 | M13: 5 | N13: 5 | O13: 5 | P13: 5 | Q13: 5 | R13: 5 | S13: 5 | T13: 5 | U13: 10 | V13: 5 | W13: 10 | X13: 5 | Y13: 5 | Z13: 5 | AA13: 5 | AB13: 5 | AC13: 5 | AD13: 5 | AE13: 5 | AF13: 5 | AG13: 5 | AH13: 5 | AI13: 5 | AJ13: 5 | AK13: 10 | AL13: 5 | AM13: 5 | AN13: 5 | AO13: 5 | AP13: 5 | AQ13: 5 | AR13: 5 | AS13: 5 | AT13: 5 | AU13: 5 | AV13: 5 | AW13: 5 | AX13: 5 | AY13: 10 | AZ13: 10 | BA13: 0 | BB13: 5 | BC13: 5 | BD13: 5 | BE13: 5 | BF13: 10 | BG13: 5 | BH13: 10 | BI13: 10 | BJ13: 5 | BK13: 5 | BL13: 5 | BM13: 5 | BN13: 5 | BO13: 5 | BP13: 5 | BQ13: 5 | BR13: 0 | BS13: 5 | BT13: 5 | BU13: 10 | BV13: 5 | BW13: 5 | BX13: 5 | BY13: 10 | BZ13: 0 | CA13: 5 | CB13: 5
A15: Monday, September 15th
A16: Hull City | B16: 2 | C16: 2 | D16: West Ham | E16: 20:00:00 | G16: 10 | H16: 5 | I16: 5 | J16: 0 | K16: 0 | L16: 0 | M16: 0 | N16: 10 | O16: 0 | P16: 5 | Q16: 0 | R16: 5 | S16: 10 | T16: 0 | U16: 0 | V16: 5 | W16: 0 | X16: 5 | Y16: 5 | Z16: 0 | AA16: 0 | AB16: 10 | AC16: 5 | AD16: 0 | AE16: 0 | AF16: 0 | AG16: 0 | AH16: 5 | AI16: 0 | AJ16: 5 | AK16: 10 | AL16: 0 | AM16: 5 | AN16: 5 | AO16: 0 | AP16: 0 | AQ16: 0 | AR16: 0 | AS16: 0 | AT16: 0 | AU16: 0 | AV16: 10 | AW16: 0 | AX16: 0 | AY16: 10 | AZ16: 0 | BA16: 0 | BB16: 5 | BC16: 5 | BD16: 5 | BE16: 0 | BF16: 5 | BG16: 0 | BH16: 0 | BI16: 0 | BJ16: 0 | BK16: 0 | BL16: 0 | BM16: 5 | BN16: 0 | BO16: 0 | BP16: 0 | BQ16: 5 | BR16: 0 | BS16: 0 | BT16: 0 | BU16: 0 | BV16: 0 | BW16: 0 | BX16: 0 | BY16: 0 | BZ16: 10 | CA16: 0 | CB16: 5
A18: Saturday, September 20th
A19: QPR | B19: 2 | C19: 2 | D19: Stoke City | E19: 12:45:00 | G19: 5 | H19: 5 | I19: 0 | J19: 5 | K19: 5 | L19: 0 | M19: 5 | N19: 0 | O19: 0 | P19: 5 | Q19: 5 | R19: 5 | S19: 5 | T19: 0 | U19: 0 | V19: 0 | W19: 5 | X19: 0 | Y19: 5 | Z19: 0 | AA19: 5 | AB19: 5 | AC19: 5 | AD19: 0 | AE19: 0 | AF19: 5 | AG19: 5 | AH19: 5 | AI19: 5 | AJ19: 0 | AK19: 5 | AL19: 0 | AM19: 0 | AN19: 0 | AO19: 0 | AP19: 5 | AQ19: 0 | AR19: 0 | AS19: 0 | AT19: 10 | AU19: 0 | AV19: 5 | AW19: 5 | AX19: 5 | AY19: 0 | AZ19: 0 | BA19: 0 | BB19: 0 | BC19: 0 | BD19: 0 | BE19: 5 | BF19: 0 | BG19: 0 | BH19: 0 | BI19: 5 | BJ19: 5 | BK19: 0 | BL19: 5 | BM19: 0 | BN19: 0 | BO19: 0 | BP19: 0 | BQ19: 0 | BR19: 0 | BS19: 0 | BT19: 5 | BU19: 0 | BV19: 5 | BW19: 0 | BX19: 0 | BY19: 0 | BZ19: 10 | CA19: 0 | CB19: 5
A20: Aston Villa | B20: 0 | C20: 3 | D20: Arsenal | E20: 15:00:00 | G20: 5 | H20: 5 | I20: 0 | J20: 0 | K20: 0 | L20: 5 | M20: 5 | N20: 0 | O20: 5 | P20: 5 | Q20: 5 | R20: 5 | S20: 5 | T20: 5 | U20: 5 | V20: 5 | W20: 5 | X20: 0 | Y20: 5 | Z20: 5 | AA20: 5 | AB20: 5 | AC20: 5 | AD20: 5 | AE20: 5 | AF20: 0 | AG20: 5 | AH20: 0 | AI20: 5 | AJ20: 5 | AK20: 5 | AL20: 5 | AM20: 0 | AN20: 5 | AO20: 5 | AP20: 0 | AQ20: 5 | AR20: 0 | AS20: 0 | AT20: 0 | AU20: 5 | AV20: 0 | AW20: 5 | AX20: 5 | AY20: 5 | AZ20: 0 | BA20: 0 | BB20: 0 | BC20: 5 | BD20: 5 | BE20: 0 | BF20: 5 | BG20: 0 | BH20: 5 | BI20: 0 | BJ20: 5 | BK20: 0 | BL20: 0 | BM20: 5 | BN20: 5 | BO20: 5 | BP20: 0 | BQ20: 0 | BR20: 5 | BS20: 0 | BT20: 5 | BU20: 10 | BV20: 5 | BW20: 0 | BX20: 5 | BY20: 0 | BZ20: 0 | CA20: 5 | CB20: 0
A21: Burnley | B21: 0 | C21: 0 | D21: Sunderland | E21: 15:00:00 | G21: 0 | H21: 0 | I21: 0 | J21: 0 | K21: 0 | L21: 0 | M21: 0 | N21: 5 | O21: 5 | P21: 0 | Q21: 5 | R21: 0 | S21: 10 | T21: 5 | U21: 0 | V21: 0 | W21: 0 | X21: 0 | Y21: 0 | Z21: 5 | AA21: 0 | AB21: 5 | AC21: 5 | AD21: 0 | AE21: 0 | AF21: 0 | AG21: 5 | AH21: 5 | AI21: 0 | AJ21: 0 | AK21: 0 | AL21: 5 | AM21: 10 | AN21: 0 | AO21: 0 | AP21: 0 | AQ21: 5 | AR21: 10 | AS21: 0 | AT21: 0 | AU21: 0 | AV21: 0 | AW21: 5 | AX21: 5 | AY21: 0 | AZ21: 0 | BA21: 0 | BB21: 0 | BC21: 5 | BD21: 0 | BE21: 0 | BF21: 0 | BG21: 10 | BH21: 0 | BI21: 0 | BJ21: 0 | BK21: 0 | BL21: 0 | BM21: 0 | BN21: 0 | BO21: 0 | BP21: 0 | BQ21: 10 | BR21: 0 | BS21: 0 | BT21: 5 | BU21: 0 | BV21: 5 | BW21: 0 | BX21: 5 | BY21: 0 | BZ21: 5 | CA21: 10 | CB21: 0
A22: Newcastle United | B22: 2 | C22: 2 | D22: Hull City | E22: 15:00:00 | G22: 5 | H22: 0 | I22: 10 | J22: 0 | K22: 0 | L22: 0 | M22: 0 | N22: 5 | O22: 0 | P22: 5 | Q22: 0 | R22: 0 | S22: 10 | T22: 0 | U22: 5 | V22: 5 | W22: 5 | X22: 10 | Y22: 0 | Z22: 0 | AA22: 10 | AB22: 0 | AC22: 10 | AD22: 0 | AE22: 0 | AF22: 0 | AG22: 0 | AH22: 0 | AI22: 0 | AJ22: 0 | AK22: 0 | AL22: 0 | AM22: 0 | AN22: 5 | AO22: 0 | AP22: 0 | AQ22: 0 | AR22: 0 | AS22: 0 | AT22: 0 | AU22: 0 | AV22: 0 | AW22: 0 | AX22: 0 | AY22: 0 | AZ22: 0 | BA22: 0 | BB22: 0 | BC22: 0 | BD22: 0 | BE22: 10 | BF22: 5 | BG22: 0 | BH22: 5 | BI22: 5 | BJ22: 5 | BK22: 0 | BL22: 0 | BM22: 0 | BN22: 10 | BO22: 0 | BP22: 0 | BQ22: 5 | BR22: 0 | BS22: 0 | BT22: 0 | BU22: 0 | BV22: 0 | BW22: 0 | BX22: 0 | BY22: 0 | BZ22: 10 | CA22: 0 | CB22: 5
A23: Swansea City | B23: 0 | C23: 1 | D23: Southampton | E23: 15:00:00 | G23: 0 | H23: 0 | I23: 0 | J23: 0 | K23: 0 | L23: 0 | M23: 0 | N23: 0 | O23: 0 | P23: 0 | Q23: 0 | R23: 0 | S23: 0 | T23: 0 | U23: 0 | V23: 0 | W23: 0 | X23: 0 | Y23: 0 | Z23: 5 | AA23: 0 | AB23: 0 | AC23: 0 | AD23: 0 | AE23: 0 | AF23: 0 | AG23: 0 | AH23: 0 | AI23: 0 | AJ23: 0 | AK23: 0 | AL23: 0 | AM23: 0 | AN23: 5 | AO23: 5 | AP23: 5 | AQ23: 0 | AR23: 0 | AS23: 5 | AT23: 0 | AU23: 0 | AV23: 0 | AW23: 0 | AX23: 0 | AY23: 0 | AZ23: 5 | BA23: 0 | BB23: 0 | BC23: 0 | BD23: 10 | BE23: 0 | BF23: 5 | BG23: 0 | BH23: 0 | BI23: 0 | BJ23: 0 | BK23: 0 | BL23: 0 | BM23: 0 | BN23: 0 | BO23: 0 | BP23: 0 | BQ23: 0 | BR23: 0 | BS23: 0 | BT23: 0 | BU23: 0 | BV23: 0 | BW23: 0 | BX23: 0 | BY23: 0 | BZ23: 0 | CA23: 0 | CB23: 0
A24: West Ham | B24: 3 | C24: 1 | D24: Liverpool | E24: 17:30:00 | G24: 0 | H24: 0 | I24: 5 | J24: 0 | K24: 0 | L24: 0 | M24: 0 | N24: 0 | O24: 0 | P24: 0 | Q24: 0 | R24: 0 | S24: 5 | T24: 5 | U24: 0 | V24: 0 | W24: 0 | X24: 0 | Y24: 0 | Z24: 0 | AA24: 0 | AB24: 0 | AC24: 0 | AD24: 0 | AE24: 0 | AF24: 0 | AG24: 0 | AH24: 0 | AI24: 0 | AJ24: 0 | AK24: 0 | AL24: 0 | AM24: 0 | AN24: 0 | AO24: 0 | AP24: 0 | AQ24: 0 | AR24: 0 | AS24: 0 | AT24: 5 | AU24: 0 | AV24: 0 | AW24: 0 | AX24: 0 | AY24: 0 | AZ24: 0 | BA24: 0 | BB24: 5 | BC24: 0 | BD24: 0 | BE24: 10 | BF24: 0 | BG24: 0 | BH24: 0 | BI24: 0 | BJ24: 0 | BK24: 5 | BL24: 0 | BM24: 0 | BN24: 0 | BO24: 0 | BP24: 0 | BQ24: 0 | BR24: 0 | BS24: 0 | BT24: 0 | BU24: 0 | BV24: 0 | BW24: 0 | BX24: 5 | BY24: 0 | BZ24: 0 | CA24: 0 | CB24: 0
A26: Sunday, September 21st
A27: Leicester City | B27: 5 | C27: 3 | D27: Man United | E27: 13:30:00 | G27: 0 | H27: 0 | I27: 0 | J27: 0 | K27: 0 | L27: 0 | M27: 0 | N27: 0 | O27: 0 | P27: 0 | Q27: 0 | R27: 0 | S27: 0 | T27: 0 | U27: 0 | V27: 0 | W27: 0 | X27: 0 | Y27: 0 | Z27: 0 | AA27: 0 | AB27: 0 | AC27: 0 | AD27: 0 | AE27: 0 | AF27: 0 | AG27: 0 | AH27: 0 | AI27: 0 | AJ27: 0 | AK27: 0 | AL27: 0 | AM27: 0 | AN27: 0 | AO27: 0 | AP27: 0 | AQ27: 0 | AR27: 0 | AS27: 0 | AT27: 0 | AU27: 0 | AV27: 0 | AW27: 0 | AX27: 0 | AY27: 0 | AZ27: 0 | BA27: 0 | BB27: 0 | BC27: 0 | BD27: 0 | BE27: 0 | BF27: 0 | BG27: 0 | BH27: 0 | BI27: 0 | BJ27: 0 | BK27: 5 | BL27: 0 | BM27: 0 | BN27: 0 | BO27: 0 | BP27: 0 | BQ27: 0 | BR27: 0 | BS27: 0 | BT27: 0 | BU27: 0 | BV27: 0 | BW27: 0 | BX27: 0 | BY27: 0 | BZ27: 0 | CA27: 0 | CB27: 0
A28: Tottenham | B28: 0 | C28: 1 | D28: West Brom | E28: 13:30:00 | G28: 0 | H28: 0 | I28: 0 | J28: 0 | K28: 0 | L28: 0 | M28: 0 | N28: 0 | O28: 0 | P28: 0 | Q28: 0 | R28: 0 | S28: 0 | T28: 0 | U28: 0 | V28: 0 | W28: 0 | X28: 0 | Y28: 0 | Z28: 0 | AA28: 0 | AB28: 0 | AC28: 0 | AD28: 0 | AE28: 0 | AF28: 0 | AG28: 0 | AH28: 0 | AI28: 0 | AJ28: 0 | AK28: 0 | AL28: 0 | AM28: 0 | AN28: 0 | AO28: 0 | AP28: 0 | AQ28: 0 | AR28: 0 | AS28: 0 | AT28: 0 | AU28: 0 | AV28: 0 | AW28: 0 | AX28: 0 | AY28: 0 | AZ28: 0 | BA28: 0 | BB28: 0 | BC28: 0 | BD28: 0 | BE28: 0 | BF28: 0 | BG28: 0 | BH28: 0 | BI28: 0 | BJ28: 0 | BK28: 0 | BL28: 0 | BM28: 0 | BN28: 0 | BO28: 0 | BP28: 0 | BQ28: 0 | BR28: 0 | BS28: 0 | BT28: 0 | BU28: 0 | BV28: 0 | BW28: 0 | BX28: 0 | BY28: 0 | BZ28: 0 | CA28: 0 | CB28: 0
A29: Everton | B29: 2 | C29: 3 | D29: Crystal Palace | E29: 16:00:00 | G29: 0 | H29: 0 | I29: 0 | J29: 0 | K29: 0 | L29: 0 | M29: 0 | N29: 0 | O29: 0 | P29: 0 | Q29: 0 | R29: 0 | S29: 0 | T29: 0 | U29: 0 | V29: 0 | W29: 0 | X29: 0 | Y29: 0 | Z29: 0 | AA29: 0 | AB29: 0 | AC29: 0 | AD29: 0 | AE29: 0 | AF29: 0 | AG29: 0 | AH29: 0 | AI29: 0 | AJ29: 0 | AK29: 0 | AL29: 0 | AM29: 0 | AN29: 0 | AO29: 0 | AP29: 0 | AQ29: 0 | AR29: 0 | AS29: 0 | AT29: 0 | AU29: 0 | AV29: 0 | AW29: 0 | AX29: 0 | AY29: 0 | AZ29: 0 | BA29: 0 | BB29: 0 | BC29: 0 | BD29: 0 | BE29: 0 | BF29: 0 | BG29: 0 | BH29: 0 | BI29: 0 | BJ29: 0 | BK29: 0 | BL29: 0 | BM29: 0 | BN29: 0 | BO29: 0 | BP29: 0 | BQ29: 0 | BR29: 0 | BS29: 0 | BT29: 0 | BU29: 0 | BV29: 0 | BW29: 0 | BX29: 0 | BY29: 0 | BZ29: 0 | CA29: 0 | CB29: 0
A30: Man City | B30: 1 | C30: 1 | D30: Chelsea | E30: 16:00:00 | G30: 0 | H30: 5 | I30: 0 | J30: 0 | K30: 10 | L30: 0 | M30: 10 | N30: 5 | O30: 5 | P30: 10 | Q30: 10 | R30: 5 | S30: 0 | T30: 10 | U30: 0 | V30: 10 | W30: 10 | X30: 10 | Y30: 10 | Z30: 5 | AA30: 10 | AB30: 5 | AC30: 10 | AD30: 5 | AE30: 5 | AF30: 0 | AG30: 10 | AH30: 10 | AI30: 10 | AJ30: 0 | AK30: 5 | AL30: 5 | AM30: 5 | AN30: 10 | AO30: 0 | AP30: 0 | AQ30: 0 | AR30: 0 | AS30: 0 | AT30: 0 | AU30: 10 | AV30: 10 | AW30: 10 | AX30: 5 | AY30: 0 | AZ30: 5 | BA30: 5 | BB30: 0 | BC30: 0 | BD30: 0 | BE30: 10 | BF30: 5 | BG30: 10 | BH30: 0 | BI30: 5 | BJ30: 5 | BK30: 0 | BL30: 0 | BM30: 5 | BN30: 5 | BO30: 10 | BP30: 0 | BQ30: 5 | BR30: 0 | BS30: 10 | BT30: 10 | BU30: 5 | BV30: 10 | BW30: 0 | BX30: 0 | BY30: 0 | BZ30: 5 | CA30: 0 | CB30: 10
A32: Saturday, September 27th
A33: Liverpool | B33: 1 | C33: 1 | D33: Everton | E33: 12:45:00 | G33: 0 | H33: 10 | I33: 5 | J33: 10 | K33: 5 | L33: 0 | M33: 0 | N33: 0 | O33: 10 | P33: 10 | Q33: 5 | R33: 10 | S33: 0 | T33: 0 | U33: 0 | V33: 0 | W33: 10 | X33: 10 | Y33: 10 | Z33: 0 | AA33: 5 | AB33: 5 | AC33: 10 | AD33: 0 | AE33: 0 | AF33: 5 | AG33: 0 | AH33: 0 | AI33: 5 | AJ33: 0 | AK33: 0 | AL33: 10 | AM33: 0 | AN33: 5 | AO33: 10 | AP33: 0 | AQ33: 0 | AR33: 5 | AS33: 10 | AT33: 0 | AU33: 0 | AV33: 0 | AW33: 10 | AX33: 5 | AY33: 0 | AZ33: 10 | BA33: 0 | BB33: 0 | BC33: 0 | BD33: 10 | BE33: 0 | BF33: 0 | BG33: 0 | BH33: 0 | BI33: 0 | BJ33: 0 | BK33: 0 | BL33: 0 | BM33: 5 | BN33: 0 | BO33: 0 | BP33: 0 | BQ33: 0 | BR33: 0 | BS33: 0 | BT33: 0 | BU33: 0 | BV33: 10 | BW33: 5 | BX33: 0 | BY33: 5 | BZ33: 10 | CA33: 5 | CB33: 10
A34: Chelsea | B34: 3 | C34: 0 | D34: Aston Villa | E34: 15:00:00 | G34: 10 | H34: 10 | I34: 10 | J34: 5 | K34: 5 | L34: 5 | M34: 5 | N34: 5 | O34: 5 | P34: 5 | Q34: 5 | R34: 5 | S34: 5 | T34: 5 | U34: 10 | V34: 5 | W34: 10 | X34: 10 | Y34: 5 | Z34: 10 | AA34: 5 | AB34: 5 | AC34: 5 | AD34: 5 | AE34: 10 | AF34: 5 | AG34: 5 | AH34: 5 | AI34: 10 | AJ34: 5 | AK34: 10 | AL34: 5 | AM34: 5 | AN34: 5 | AO34: 5 | AP34: 5 | AQ34: 5 | AR34: 5 | AS34: 10 | AT34: 5 | AU34: 10 | AV34: 5 | AW34: 5 | AX34: 5 | AY34: 10 | AZ34: 5 | BA34: 5 | BB34: 5 | BC34: 5 | BD34: 10 | BE34: 5 | BF34: 5 | BG34: 5 | BH34: 5 | BI34: 5 | BJ34: 10 | BK34: 5 | BL34: 10 | BM34: 5 | BN34: 10 | BO34: 5 | BP34: 5 | BQ34: 0 | BR34: 5 | BS34: 5 | BT34: 5 | BU34: 5 | BV34: 10 | BW34: 10 | BX34: 5 | BY34: 5 | BZ34: 10 | CA34: 5 | CB34: 5
A35: Crystal Palace | B35: 2 | C35: 0 | D35: Leicester City | E35: 15:00:00 | G35: 0 | H35: 0 | I35: 5 | J35: 0 | K35: 0 | L35: 5 | M35: 5 | N35: 0 | O35: 0 | P35: 5 | Q35: 0 | R35: 0 | S35: 10 | T35: 5 | U35: 5 | V35: 0 | W35: 5 | X35: 0 | Y35: 0 | Z35: 0 | AA35: 0 | AB35: 0 | AC35: 0 | AD35: 0 | AE35: 10 | AF35: 0 | AG35: 5 | AH35: 0 | AI35: 0 | AJ35: 0 | AK35: 0 | AL35: 5 | AM35: 0 | AN35: 0 | AO35: 0 | AP35: 0 | AQ35: 5 | AR35: 0 | AS35: 0 | AT35: 5 | AU35: 5 | AV35: 0 | AW35: 5 | AX35: 0 | AY35: 5 | AZ35: 0 | BA35: 0 | BB35: 0 | BC35: 5 | BD35: 5 | BE35: 0 | BF35: 0 | BG35: 0 | BH35: 0 | BI35: 0 | BJ35: 5 | BK35: 0 | BL35: 0 | BM35: 0 | BN35: 5 | BO35: 5 | BP35: 0 | BQ35: 5 | BR35: 0 | BS35: 10 | BT35: 5 | BU35: 0 | BV35: 0 | BW35: 0 | BX35: 0 | BY35: 0 | BZ35: 0 | CA35: 0 | CB35: 0
A36: Hull City | B36: 2 | C36: 4 | D36: Man City | E36: 15:00:00 | G36: 5 | H36: 5 | I36: 5 | J36: 5 | K36: 5 | L36: 5 | M36: 5 | N36: 5 | O36: 5 | P36: 5 | Q36: 5 | R36: 5 | S36: 5 | T36: 5 | U36: 5 | V36: 5 | W36: 5 | X36: 5 | Y36: 5 | Z36: 5 | AA36: 5 | AB36: 5 | AC36: 5 | AD36: 5 | AE36: 5 | AF36: 5 | AG36: 5 | AH36: 5 | AI36: 5 | AJ36: 5 | AK36: 0 | AL36: 5 | AM36: 5 | AN36: 5 | AO36: 5 | AP36: 5 | AQ36: 0 | AR36: 5 | AS36: 5 | AT36: 5 | AU36: 5 | AV36: 5 | AW36: 5 | AX36: 5 | AY36: 5 | AZ36: 5 | BA36: 5 | BB36: 5 | BC36: 5 | BD36: 5 | BE36: 5 | BF36: 5 | BG36: 5 | BH36: 5 | BI36: 5 | BJ36: 5 | BK36: 5 | BL36: 5 | BM36: 5 | BN36: 5 | BO36: 0 | BP36: 5 | BQ36: 5 | BR36: 5 | BS36: 5 | BT36: 5 | BU36: 5 | BV36: 5 | BW36: 5 | BX36: 5 | BY36: 5 | BZ36: 5 | CA36: 5 | CB36: 5
A37: Man United | B37: 2 | C37: 1 | D37: West Ham | E37: 15:00:00 | G37: 10 | H37: 5 | I37: 5 | J37: 10 | K37: 10 | L37: 5 | M37: 5 | N37: 0 | O37: 5 | P37: 10 | Q37: 5 | R37: 10 | S37: 5 | T37: 10 | U37: 5 | V37: 5 | W37: 10 | X37: 5 | Y37: 5 | Z37: 0 | AA37: 5 | AB37: 5 | AC37: 5 | AD37: 5 | AE37: 5 | AF37: 5 | AG37: 5 | AH37: 10 | AI37: 5 | AJ37: 10 | AK37: 5 | AL37: 5 | AM37: 0 | AN37: 0 | AO37: 10 | AP37: 0 | AQ37: 5 | AR37: 5 | AS37: 5 | AT37: 5 | AU37: 10 | AV37: 10 | AW37: 5 | AX37: 5 | AY37: 5 | AZ37: 5 | BA37: 0 | BB37: 0 | BC37: 10 | BD37: 10 | BE37: 5 | BF37: 10 | BG37: 10 | BH37: 5 | BI37: 0 | BJ37: 5 | BK37: 5 | BL37: 5 | BM37: 5 | BN37: 5 | BO37: 5 | BP37: 10 | BQ37: 0 | BR37: 10 | BS37: 5 | BT37: 5 | BU37: 5 | BV37: 5 | BW37: 5 | BX37: 10 | BY37: 5 | BZ37: 5 | CA37: 5 | CB37: 5
A38: Southampton | B38: 2 | C38: 1 | D38: QPR | E38: 15:00:00 | G38: 5 | H38: 5 | I38: 5 | J38: 5 | K38: 5 | L38: 10 | M38: 5 | N38: 10 | O38: 5 | P38: 5 | Q38: 5 | R38: 5 | S38: 10 | T38: 10 | U38: 0 | V38: 10 | W38: 10 | X38: 5 | Y38: 5 | Z38: 10 | AA38: 5 | AB38: 5 | AC38: 10 | AD38: 5 | AE38: 5 | AF38: 5 | AG38: 5 | AH38: 5 | AI38: 5 | AJ38: 5 | AK38: 5 | AL38: 5 | AM38: 5 | AN38: 5 | AO38: 5 | AP38: 5 | AQ38: 5 | AR38: 5 | AS38: 5 | AT38: 5 | AU38: 5 | AV38: 5 | AW38: 5 | AX38: 10 | AY38: 10 | AZ38: 5 | BA38: 5 | BB38: 5 | BC38: 0 | BD38: 5 | BE38: 10 | BF38: 10 | BG38: 5 | BH38: 10 | BI38: 5 | BJ38: 5 | BK38: 5 | BL38: 5 | BM38: 5 | BN38: 5 | BO38: 5 | BP38: 5 | BQ38: 0 | BR38: 5 | BS38: 5 | BT38: 5 | BU38: 10 | BV38: 10 | BW38: 5 | BX38: 5 | BY38: 5 | BZ38: 5 | CA38: 5 | CB38: 10
A39: Sunderland | B39: 0 | C39: 0 | D39: Swansea City | E39: 15:00:00 | G39: 0 | H39: 0 | I39: 0 | J39: 5 | K39: 5 | L39: 0 | M39: 5 | N39: 5 | O39: 0 | P39: 0 | Q39: 5 | R39: 5 | S39: 5 | T39: 0 | U39: 0 | V39: 0 | W39: 5 | X39: 0 | Y39: 0 | Z39: 0 | AA39: 0 | AB39: 0 | AC39: 5 | AD39: 5 | AE39: 5 | AF39: 0 | AG39: 0 | AH39: 5 | AI39: 5 | AJ39: 5 | AK39: 5 | AL39: 0 | AM39: 5 | AN39: 5 | AO39: 0 | AP39: 5 | AQ39: 0 | AR39: 0 | AS39: 10 | AT39: 5 | AU39: 0 | AV39: 10 | AW39: 0 | AX39: 5 | AY39: 10 | AZ39: 10 | BA39: 0 | BB39: 5 | BC39: 0 | BD39: 10 | BE39: 0 | BF39: 5 | BG39: 5 | BH39: 0 | BI39: 5 | BJ39: 10 | BK39: 0 | BL39: 10 | BM39: 0 | BN39: 0 | BO39: 0 | BP39: 0 | BQ39: 5 | BR39: 5 | BS39: 0 | BT39: 5 | BU39: 5 | BV39: 5 | BW39: 5 | BX39: 5 | BY39: 5 | BZ39: 10 | CA39: 0 | CB39: 0
A40: Arsenal | B40: 1 | C40: 1 | D40: Tottenham | E40: 17:30:00 | G40: 0 | H40: 0 | I40: 0 | J40: 5 | K40: 10 | L40: 0 | M40: 0 | N40: 0 | O40: 0 | P40: 0 | Q40: 0 | R40: 0 | S40: 0 | T40: 0 | U40: 0 | V40: 0 | W40: 0 | X40: 10 | Y40: 0 | Z40: 0 | AA40: 0 | AB40: 10 | AC40: 0 | AD40: 0 | AE40: 0 | AF40: 0 | AG40: 0 | AH40: 0 | AI40: 0 | AJ40: 0 | AK40: 5 | AL40: 0 | AM40: 0 | AN40: 0 | AO40: 0 | AP40: 5 | AQ40: 0 | AR40: 0 | AS40: 0 | AT40: 0 | AU40: 0 | AV40: 0 | AW40: 0 | AX40: 0 | AY40: 0 | AZ40: 5 | BA40: 10 | BB40: 5 | BC40: 0 | BD40: 0 | BE40: 0 | BF40: 10 | BG40: 0 | BH40: 0 | BI40: 0 | BJ40: 0 | BK40: 0 | BL40: 0 | BM40: 0 | BN40: 0 | BO40: 0 | BP40: 0 | BQ40: 0 | BR40: 0 | BS40: 0 | BT40: 0 | BU40: 0 | BV40: 0 | BW40: 0 | BX40: 0 | BY40: 0 | BZ40: 0 | CA40: 5 | CB40: 0
A42: Sunday, September 28th
A43: West Brom | B43: 4 | C43: 0 | D43: Burnley | E43: 16:00:00 | G43: 5 | H43: 5 | I43: 5 | J43: 5 | K43: 0 | L43: 5 | M43: 5 | N43: 0 | O43: 0 | P43: 0 | Q43: 5 | R43: 0 | S43: 0 | T43: 0 | U43: 5 | V43: 5 | W43: 5 | X43: 5 | Y43: 5 | Z43: 0 | AA43: 0 | AB43: 0 | AC43: 5 | AD43: 0 | AE43: 0 | AF43: 5 | AG43: 5 | AH43: 5 | AI43: 5 | AJ43: 5 | AK43: 0 | AL43: 5 | AM43: 0 | AN43: 5 | AO43: 5 | AP43: 0 | AQ43: 5 | AR43: 0 | AS43: 5 | AT43: 5 | AU43: 5 | AV43: 5 | AW43: 5 | AX43: 0 | AY43: 5 | AZ43: 5 | BA43: 5 | BB43: 5 | BC43: 5 | BD43: 0 | BE43: 5 | BF43: 5 | BG43: 5 | BH43: 5 | BI43: 0 | BJ43: 5 | BK43: 0 | BL43: 5 | BM43: 0 | BN43: 5 | BO43: 5 | BP43: 5 | BQ43: 0 | BR43: 5 | BS43: 5 | BT43: 5 | BU43: 5 | BV43: 5 | BW43: 0 | BX43: 0 | BY43: 5 | BZ43: 0 | CA43: 0 | CB43: 5
A45: Monday, September 29th
A46: Stoke City | B46: 1 | C46: 0 | D46: Newcastle United | E46: 20:00:00 | G46: 0 | H46: 10 | I46: 0 | J46: 10 | K46: 10 | L46: 5 | M46: 5 | N46: 0 | O46: 10 | P46: 5 | Q46: 0 | R46: 5 | S46: 0 | T46: 5 | U46: 0 | V46: 0 | W46: 5 | X46: 10 | Y46: 0 | Z46: 0 | AA46: 10 | AB46: 0 | AC46: 5 | AD46: 10 | AE46: 0 | AF46: 5 | AG46: 5 | AH46: 0 | AI46: 0 | AJ46: 5 | AK46: 0 | AL46: 10 | AM46: 5 | AN46: 5 | AO46: 0 | AP46: 0 | AQ46: 10 | AR46: 5 | AS46: 5 | AT46: 5 | AU46: 10 | AV46: 5 | AW46: 0 | AX46: 5 | AY46: 5 | AZ46: 5 | BA46: 5 | BB46: 5 | BC46: 0 | BD46: 10 | BE46: 5 | BF46: 0 | BG46: 0 | BH46: 5 | BI46: 5 | BJ46: 5 | BK46: 5 | BL46: 10 | BM46: 5 | BN46: 5 | BO46: 10 | BP46: 5 | BQ46: 10 | BR46: 5 | BS46: 5 | BT46: 0 | BU46: 0 | BV46: 10 | BW46: 5 | BX46: 10 | BY46: 5 | BZ46: 0 | CA46: 5 | CB46: 0
A48: Golden Boots
A49: Alexis Sanchez - Arsenal | E49: =1+0+0 -> 1 | F49: =COUNT(G49:CB49) -> 14 | H49: =5*$E49 -> 5 | N49: =5*$E49 -> 5 | T49: =5*$E49 -> 5 | Y49: =5*$E49 -> 5 | Z49: =5*$E49 -> 5 | AC49: =5*$E49 -> 5 | AQ49: =5*$E49 -> 5 | AS49: =5*$E49 -> 5 | AZ49: =5*$E49 -> 5 | BF49: =5*$E49 -> 5 | BK49: =5*$E49 -> 5 | BL49: =5*$E49 -> 5 | BV49: =5*$E49 -> 5 | BZ49: =5*$E49 -> 5
A50: Daniel Sturridge - Liverpool | E50: =0+0+0 -> 0 | F50: 52 | G50: =5*$E50 -> 0 | I50: =5*$E50 -> 0 | J50: =5*$E50 -> 0 | K50: =5*$E50 -> 0 | M50: =5*$E50 -> 0 | N50: =5*$E50 -> 0 | O50: =5*$E50 -> 0 | P50: =5*$E50 -> 0 | Q50: =5*$E50 -> 0 | R50: =5*$E50 -> 0 | S50: =5*$E50 -> 0 | V50: =5*$E50 -> 0 | W50: =5*$E50 -> 0 | X50: =5*$E50 -> 0 | Z50: =5*$E50 -> 0 | AA50: =5*$E50 -> 0 | AB50: =5*$E50 -> 0 | AE50: =5*$E50 -> 0 | AF50: =5*$E50 -> 0 | AG50: =5*$E50 -> 0 | AI50: =5*$E50 -> 0 | AJ50: 0 | AK50: 0 | AL50: 0 | AM50: 0 | AO50: 0 | AP50: 0 | AR50: =5*$E50 -> 0 | AS50: =5*$E50 -> 0 | AU50: =5*$E50 -> 0 | AV50: =5*$E50 -> 0 | AX50: =5*$E50 -> 0 | AY50: =5*$E50 -> 0 | BA50: =5*$E50 -> 0 | BB50: =5*$E50 -> 0 | BC50: =5*$E50 -> 0 | BD50: =5*$E50 -> 0 | BE50: =5*$E50 -> 0 | BF50: =5*$E50 -> 0 | BI50: =5*$E50 -> 0 | BJ50: =5*$E50 -> 0 | BK50: =5*$E50 -> 0 | BL50: 0 | BM50: =5*$E50 -> 0 | BQ50: =5*$E50 -> 0 | BS50: =5*$E50 -> 0 | BT50: =5*$E50 -> 0 | BU50: =5*$E50 -> 0 | BW50: =5*$E50 -> 0 | BX50: =5*$E50 -> 0 | CA50: =5*$E50 -> 0 | CB50: =5*$E50 -> 0
A51: Diego Costa - Chelsea | E51: =3+0+1 -> 4 | F51: 39 | H51: =5*$E51 -> 20 | J51: 20 | L51: =5*$E51 -> 20 | M51: =5*$E51 -> 20 | O51: 20 | P51: =5*$E51 -> 20 | S51: =5*$E51 -> 20 | T51: =5*$E51 -> 20 | Z51: =5*$E51 -> 20 | AB51: =5*$E51 -> 20 | AC51: =5*$E51 -> 20 | AE51: 20 | AF51: =5*$E51 -> 20 | AG51: =5*$E51 -> 20 | AH51: =5*$E51 -> 20 | AJ51: =5*$E51 -> 20 | AK51: =5*$E51 -> 20 | AO51: =5*$E51 -> 20 | AP51: =5*$E51 -> 20 | AR51: =5*$E51 -> 20 | AT51: =5*$E51 -> 20 | AU51: 20 | AV51: =5*$E51 -> 20 | AW51: =5*$E51 -> 20 | AZ51: =5*$E51 -> 20 | BA51: =5*$E51 -> 20 | BB51: =5*$E51 -> 20 | BD51: =5*$E51 -> 20 | BF51: =5*$E51 -> 20 | BG51: =5*$E51 -> 20 | BH51: =5*$E51 -> 20 | BI51: =5*$E51 -> 20 | BN51: =5*$E51 -> 20 | BO51: =5*$E51 -> 20 | BP51: =5*$E51 -> 20 | BR51: =5*$E51 -> 20 | BZ51: =5*$E51 -> 20 | CA51: =5*$E51 -> 20 | CB51: 20
A52: Eden Hazard - Chelsea | E52: =0+0+0 -> 0 | F52: 2 | K52: =5*$E52 -> 0 | BX52: =5*$E52 -> 0
A53: Edin Dzeko - Man City | E53: =0+0+2 -> 2 | F53: 6 | L53: =5*$E53 -> 10 | AB53: =5*$E53 -> 10 | AQ53: =5*$E53 -> 10 | AT53: =5*$E53 -> 10 | BP53: =5*$E53 -> 10 | BV53: =5*$E53 -> 10
A54: Emmanuel Adebayor - Tottenham | E54: =0+0+0 -> 0 | F54: 3 | U54: =5*$E54 -> 0 | AN54: =5*$E54 -> 0 | BS54: =5*$E54 -> 0
A55: Olivier Giroud - Arsenal | E55: =0+0+0 -> 0 | F55: 4 | L55: =5*$E55 -> 0 | AD55: =5*$E55 -> 0 | AN55: 0 | AV55: =5*$E55 -> 0
A56: Raheem Sterling - Liverpool | E56: =0+1+0 -> 1 | F56: 3 | AT56: =5*$E56 -> 5 | BQ56: =5*$E56 -> 5 | BU56: =5*$E56 -> 5
A57: Robin van Persie - Man United | E57: =0+1+1 -> 2 | F57: 45 | G57: =5*$E57 -> 10 | H57: =5*$E57 -> 10 | J57: =5*$E57 -> 10 | P57: =5*$E57 -> 10 | Q57: =5*$E57 -> 10 | R57: =5*$E57 -> 10 | S57: =5*$E57 -> 10 | U57: =5*$E57 -> 10 | V57: =5*$E57 -> 10 | X57: =5*$E57 -> 10 | Y57: =5*$E57 -> 10 | AA57: =5*$E57 -> 10 | AD57: =5*$E57 -> 10 | AF57: =5*$E57 -> 10 | AG57: =5*$E57 -> 10 | AH57: =5*$E57 -> 10 | AI57: =5*$E57 -> 10 | AJ57: =5*$E57 -> 10 | AL57: =5*$E57 -> 10 | AM57: =5*$E57 -> 10 | AP57: =5*$E57 -> 10 | AQ57: =5*$E57 -> 10 | AR57: =5*$E57 -> 10 | AU57: =5*$E57 -> 10 | AW57: =5*$E57 -> 10 | AX57: =5*$E57 -> 10 | AY57: =5*$E57 -> 10 | BA57: =5*$E57 -> 10 | BB57: =5*$E57 -> 10 | BC57: =5*$E57 -> 10 | BD57: =5*$E57 -> 10 | BE57: =5*$E57 -> 10 | BG57: =5*$E57 -> 10 | BH57: =5*$E57 -> 10 | BI57: =5*$E57 -> 10 | BJ57: =5*$E57 -> 10 | BM57: =5*$E57 -> 10 | BN57: =5*$E57 -> 10 | BO57: =5*$E57 -> 10 | BP57: =5*$E57 -> 10 | BR57: =5*$E57 -> 10 | BT57: =5*$E57 -> 10 | BX57: =5*$E57 -> 10 | BY57: =5*$E57 -> 10 | CA57: =5*$E57 -> 10
A58: Romelu Lukaku - Everton | E58: =1+1+0 -> 2 | F58: 7 | G58: =5*$E58 -> 10 | I58: =5*$E58 -> 10 | T58: =5*$E58 -> 10 | U58: =5*$E58 -> 10 | AX58: =5*$E58 -> 10 | BY58: =5*$E58 -> 10 | BZ58: =5*$E58 -> 10
A59: Sergio Aguero - Man City | E59: =1+0+1 -> 2 | F59: 21 | M59: =5*$E59 -> 10 | N59: =5*$E59 -> 10 | Q59: =5*$E59 -> 10 | R59: =5*$E59 -> 10 | W59: =5*$E59 -> 10 | X59: =5*$E59 -> 10 | Y59: =5*$E59 -> 10 | AC59: =5*$E59 -> 10 | AD59: =5*$E59 -> 10 | AI59: =5*$E59 -> 10 | AK59: =5*$E59 -> 10 | AL59: =5*$E59 -> 10 | AM59: =5*$E59 -> 10 | AN59: =5*$E59 -> 10 | AO59: =5*$E59 -> 10 | AY59: =5*$E59 -> 10 | BC59: =5*$E59 -> 10 | BG59: =5*$E59 -> 10 | BJ59: =5*$E59 -> 10 | BO59: =5*$E59 -> 10 | BW59: =5*$E59 -> 10
A60: Steven Gerrard - Liverpool | E60: =0+0+1 -> 1 | F60: 1 | BQ60: =5*$E60 -> 5
A61: Wayne Rooney - Man United | E61: =1+0+1 -> 2 | F61: 21 | I61: =5*$E61 -> 10 | K61: =5*$E61 -> 10 | O61: =5*$E61 -> 10 | V61: =5*$E61 -> 10 | W61: =5*$E61 -> 10 | AA61: =5*$E61 -> 10 | AS61: =5*$E61 -> 10 | AW61: =5*$E61 -> 10 | AZ61: =5*$E61 -> 10 | BE61: =5*$E61 -> 10 | BH61: =5*$E61 -> 10 | BK61: =5*$E61 -> 10 | BL61: =5*$E61 -> 10 | BM61: =5*$E61 -> 10 | BN61: =5*$E61 -> 10 | BS61: =5*$E61 -> 10 | BU61: =5*$E61 -> 10 | BV61: =5*$E61 -> 10 | BW61: =5*$E61 -> 10 | BY61: =5*$E61 -> 10 | CB61: =5*$E61 -> 10
A62: Wilfried Bony - Swansea City | E62: =0+0+0 -> 0 | F62: 1 | AH62: =5*$E62 -> 0
A63: Yaya Toure - Man City | E63: =0+0+0 -> 0 | F63: 3 | AE63: =5*$E63 -> 0 | BR63: =5*$E63 -> 0 | BT63: =5*$E63 -> 0
A66: Sack Race
A67: Alan Irvine - West Brom | F67: =COUNT(G67:CB67) -> 5 | M67: =25*$E67 -> 0 | S67: =25*$E67 -> 0 | AG67: =25*$E67 -> 0 | BK67: =25*$E67 -> 0 | BU67: =25*$E67 -> 0
A68: Alan Pardew - Newcastle | F68: 8 | G68: =25*$E68 -> 0 | K68: =25*$E68 -> 0 | U68: =25*$E68 -> 0 | V68: =25*$E68 -> 0 | AK68: =25*$E68 -> 0 | AY68: =25*$E68 -> 0 | BO68: =25*$E68 -> 0 | CB68: =25*$E68 -> 0
A69: Arsene Wenger - Arsenal | F69: 0
A70: Brendan Rodgers - Liverpool | F70: 0
A71: Garry Monk - Swansea City | F71: 6 | AA71: =25*$E71 -> 0 | AB71: =25*$E71 -> 0 | AW71: =25*$E71 -> 0 | BA71: =25*$E71 -> 0 | BC71: =25*$E71 -> 0 | BL71: =25*$E71 -> 0
A72: Gus Poyet - Sunderland | F72: 0
A73: Harry Redknapp - QPR | F73: 2 | AN73: =25*$E73 -> 0 | BR73: =25*$E73 -> 0
A74: Jose Mourinho - Chelsea | F74: 0
A75: Louis van Gaal - Man United | F75: 1 | BQ75: =25*$E75 -> 0
A76: Manuel Pellegrini - Man City | F76: 0
A77: Mark Hughes - Stoke City | F77: 0
A78: Mauricio Pochettino - Tottenham | F78: 0
A79: Nigel Pearson - Leicester City | F79: 3 | L79: =25*$E79 -> 0 | AF79: =25*$E79 -> 0 | AJ79: =25*$E79 -> 0
A80: Paul Lambert - Aston Villa | F80: 13 | T80: =25*$E80 -> 0 | Y80: =25*$E80 -> 0 | Z80: =25*$E80 -> 0 | AD80: =25*$E80 -> 0 | AE80: =25*$E80 -> 0 | AL80: =25*$E80 -> 0 | AM80: =25*$E80 -> 0 | AS80: =25*$E80 -> 0 | AT80: =25*$E80 -> 0 | AV80: =25*$E80 -> 0 | AX80: =25*$E80 -> 0 | BB80: =25*$E80 -> 0 | BM80: =25*$E80 -> 0
A81: Roberto Martinez - Everton | F81: 0
A82: Ronald Koeman - Southampton | F82: 4 | R82: =25*$E82 -> 0 | AP82: =25*$E82 -> 0 | BP82: =25*$E82 -> 0 | BV82: =25*$E82 -> 0
A83: Sam Allardyce - West Ham | F83: 27 | I83: =25*$E83 -> 0 | J83: =25*$E83 -> 0 | N83: =25*$E83 -> 0 | O83: =25*$E83 -> 0 | P83: =25*$E83 -> 0 | Q83: =25*$E83 -> 0 | W83: =25*$E83 -> 0 | X83: =25*$E83 -> 0 | AC83: =25*$E83 -> 0 | AH83: =25*$E83 -> 0 | AI83: =25*$E83 -> 0 | AO83: =25*$E83 -> 0 | AQ83: =25*$E83 -> 0 | AR83: =25*$E83 -> 0 | AU83: =25*$E83 -> 0 | AZ83: =25*$E83 -> 0 | BD83: =25*$E83 -> 0 | BE83: =25*$E83 -> 0 | BH83: =25*$E83 -> 0 | BI83: =25*$E83 -> 0 | BN83: =25*$E83 -> 0 | BS83: =25*$E83 -> 0 | BT83: =25*$E83 -> 0 | BW83: =25*$E83 -> 0 | BX83: =25*$E83 -> 0 | BY83: =25*$E83 -> 0 | CA83: =25*$E83 -> 0
A84: Sean Dyche - Burnley | F84: 4 | H84: =25*$E84 -> 0 | BF84: =25*$E84 -> 0 | BG84: =25*$E84 -> 0 | BJ84: =25*$E84 -> 0
A85: Steve Bruce - Hull City | F85: 1 | BZ85: =25*$E85 -> 0
A87: Total Points - September | G87: =SUM(G2:G86) -> 95 | H87: 120 | I87: 120 | J87: 130 | K87: 100 | L87: 95 | M87: 115 | N87: 90 | O87: 110 | P87: 125 | Q87: 110 | R87: 115 | S87: 140 | T87: 135 | U87: 75 | V87: 100 | W87: 145 | X87: 135 | Y87: 115 | Z87: 85 | AA87: 115 | AB87: 115 | AC87: 150 | AD87: 75 | AE87: 85 | AF87: 95 | AG87: 115 | AH87: 120 | AI87: 105 | AJ87: 100 | AK87: 110 | AL87: 105 | AM87: =SUM(AM2:AM86) -> 95 | AN87: 105 | AO87: 100 | AP87: 80 | AQ87: 90 | AR87: 105 | AS87: 105 | AT87: 115 | AU87: 115 | AV87: 115 | AW87: 130 | AX87: 110 | AY87: 115 | AZ87: 135 | BA87: 90 | BB87: 110 | BC87: 90 | BD87: 135 | BE87: 120 | BF87: 115 | BG87: 120 | BH87: 110 | BI87: 105 | BJ87: 110 | BK87: 65 | BL87: 85 | BM87: 90 | BN87: 125 | BO87: 110 | BP87: 95 | BQ87: 80 | BR87: 85 | BS87: =SUM(BS2:BS86) -> 70 | BT87: 95 | BU87: 90 | BV87: 135 | BW87: 85 | BX87: 90 | BY87: 95 | BZ87: 145 | CA87: 110 | CB87: 120
G89: =IF(COUNT(G48:G86)=4,"a","g") -> a | H89: a | I89: a | J89: a | K89: a | L89: a | M89: a | N89: a | O89: a | P89: a | Q89: a | R89: a | S89: a | T89: a | U89: a | V89: a | W89: a | X89: a | Y89: a | Z89: a | AA89: a | AB89: a | AC89: a | AD89: a | AE89: a | AF89: a | AG89: a | AH89: a | AI89: a | AJ89: a | AK89: a | AL89: a | AM89: a | AN89: a | AO89: a | AP89: a | AQ89: a | AR89: a | AS89: a | AT89: a | AU89: a | AV89: a | AW89: a | AX89: a | AY89: a | AZ89: a | BA89: a | BB89: a | BC89: a | BD89: a | BE89: a | BF89: a | BG89: a | BH89: a | BI89: a | BJ89: a | BK89: a | BL89: a | BM89: a | BN89: a | BO89: a | BP89: a | BQ89: a | BR89: a | BS89: =IF(COUNT(BS48:BS86)=4,"a","g") -> a | BT89: a | BU89: a | BV89: a | BW89: a | BX89: a | BY89: a | BZ89: a | CA89: a | CB89: a

Sheet October
G1: Aaron Byrne | H1: Aidan Knight | I1: Aidan Scanlon | J1: Aidan White | K1: Aiden Desch | L1: Alan Boyle | M1: Anastas Popov | N1: Andy Dunne | O1: Anthony Hughes | P1: Barry Healy | Q1: Brendan Maguire | R1: Brian Mullen | S1: Brian Prendergast | T1: Brian Sotolongo | U1: Chris Hall | V1: Ciaran O'Hart | W1: Cillian Conway | X1: Colin McAnaspie | Y1: Con McSweeney | Z1: Conor Horan | AA1: Craig Calvert | AB1: Dave Green | AC1: Dave McGinley | AD1: David Bone | AE1: David Byrne | AF1: David Cooney | AG1: David Keavney | AH1: Eamon Fox | AI1: Fiachra Moynihan | AJ1: Gareth Pierpoint | AK1: Gary McGurk | AL1: Gavin Morgan | AM1: Gerry Draper | AN1: Gerry Moore | AO1: Ian Healy | AP1: Javier Suarez Barreiro | AQ1: Jenny Ellis | AR1: Joe Behan | AS1: Joe O'Hehir | AT1: Joe Turner | AU1: Jonathan Fox | AV1: Keith Horan | AW1: Kevin Donohoe | AX1: Kevin Philpott | AY1: Konstantin Kulev | AZ1: Kris Stainton | BA1: Liam Butler | BB1: Liam Geraghty | BC1: Maria Jordan | BD1: Mike Hall | BE1: Niall Carroll | BF1: Oisin O'Reilly | BG1: Padraic Carney | BH1: Pat Jordan | BI1: Paul Moore | BJ1: Paul Prendergast | BK1: Paul Stainton | BL1: Peter Behan | BM1: Phil Doyle | BN1: Philip Jordan | BO1: Ralph Goodwin | BP1: Ray Ellis | BQ1: Rhona Devlin | BR1: Richard Johnston | BS1: Sean Moloney | BT1: Sean O'Mairtin | BU1: Shane Horan | BV1: Sharon Behan | BW1: Simon Purdue | BX1: Siobhan Murphy | BY1: Terry Behan | BZ1: Tiago Moreira | CA1: Tom McHugh | CB1: Wayne Donovan
A2: Saturday, October 4th
A3: Hull City | B3: 2 | C3: 0 | D3: Crystal Palace | E3: 15:00:00 | G3: 5 | H3: 5 | I3: 0 | J3: 0 | K3: 10 | L3: 5 | M3: 0 | N3: 5 | O3: 5 | P3: 0 | Q3: 10 | R3: 0 | S3: 5 | T3: 5 | U3: 0 | V3: 0 | W3: 0 | X3: 0 | Y3: 5 | Z3: 0 | AA3: 5 | AB3: 0 | AC3: 5 | AD3: 10 | AE3: 5 | AF3: 0 | AG3: 5 | AH3: 5 | AI3: 5 | AJ3: 0 | AK3: 10 | AL3: 5 | AM3: 0 | AN3: 0 | AO3: 0 | AP3: 0 | AQ3: 5 | AR3: 0 | AS3: 5 | AT3: 5 | AU3: 5 | AV3: 0 | AW3: 5 | AX3: 5 | AY3: 5 | AZ3: 5 | BA3: 0 | BB3: 0 | BC3: 0 | BD3: 0 | BE3: 5 | BF3: 5 | BG3: 5 | BH3: 5 | BI3: 5 | BJ3: 5 | BK3: 0 | BL3: 5 | BM3: 10 | BN3: 5 | BO3: 5 | BP3: 5 | BQ3: 0 | BR3: 0 | BS3: 0 | BT3: 0 | BU3: 5 | BV3: 5 | BW3: 5 | BX3: 5 | BY3: 0 | BZ3: 0 | CA3: 5 | CB3: 5
A4: Leicester City | B4: 2 | C4: 2 | D4: Burnley | E4: 15:00:00 | G4: 0 | H4: 0 | I4: 0 | J4: 0 | K4: 0 | L4: 0 | M4: 0 | N4: 0 | O4: 0 | P4: 0 | Q4: 0 | R4: 0 | S4: 0 | T4: 0 | U4: 0 | V4: 0 | W4: 0 | X4: 0 | Y4: 0 | Z4: 0 | AA4: 0 | AB4: 0 | AC4: 0 | AD4: 0 | AE4: 0 | AF4: 0 | AG4: 0 | AH4: 0 | AI4: 0 | AJ4: 0 | AK4: 0 | AL4: 0 | AM4: 0 | AN4: 0 | AO4: 0 | AP4: 0 | AQ4: 0 | AR4: 0 | AS4: 0 | AT4: 0 | AU4: 0 | AV4: 0 | AW4: 0 | AX4: 0 | AY4: 0 | AZ4: 0 | BA4: 5 | BB4: 0 | BC4: 0 | BD4: 0 | BE4: 0 | BF4: 0 | BG4: 0 | BH4: 0 | BI4: 0 | BJ4: 0 | BK4: 0 | BL4: 0 | BM4: 0 | BN4: 5 | BO4: 0 | BP4: 0 | BQ4: 5 | BR4: 5 | BS4: 0 | BT4: 5 | BU4: 0 | BV4: 5 | BW4: 0 | BX4: 0 | BY4: 0 | BZ4: 0 | CA4: 0 | CB4: 0
A5: Liverpool | B5: 2 | C5: 1 | D5: West Brom | E5: 15:00:00 | G5: 5 | H5: 5 | I5: 10 | J5: 10 | K5: 0 | L5: 5 | M5: 10 | N5: 5 | O5: 5 | P5: 10 | Q5: 0 | R5: 10 | S5: 5 | T5: 5 | U5: 5 | V5: 5 | W5: 10 | X5: 10 | Y5: 5 | Z5: 5 | AA5: 10 | AB5: 5 | AC5: 10 | AD5: 5 | AE5: 5 | AF5: 10 | AG5: 10 | AH5: 5 | AI5: 5 | AJ5: 5 | AK5: 5 | AL5: 5 | AM5: 10 | AN5: 5 | AO5: 5 | AP5: 5 | AQ5: 5 | AR5: 0 | AS5: 5 | AT5: 10 | AU5: 10 | AV5: 10 | AW5: 10 | AX5: 5 | AY5: 5 | AZ5: 0 | BA5: 5 | BB5: 5 | BC5: 5 | BD5: 5 | BE5: 0 | BF5: 5 | BG5: 5 | BH5: 5 | BI5: 10 | BJ5: 5 | BK5: 5 | BL5: 10 | BM5: 0 | BN5: 10 | BO5: 5 | BP5: 5 | BQ5: 5 | BR5: 5 | BS5: 5 | BT5: 5 | BU5: 5 | BV5: 10 | BW5: 10 | BX5: 10 | BY5: 5 | BZ5: 5 | CA5: 10 | CB5: 10
A6: Sunderland | B6: 3 | C6: 1 | D6: Stoke City | E6: 15:00:00 | G6: 0 | H6: 0 | I6: 0 | J6: 5 | K6: 5 | L6: 5 | M6: 0 | N6: 5 | O6: 0 | P6: 0 | Q6: 0 | R6: 0 | S6: 5 | T6: 5 | U6: 5 | V6: 5 | W6: 0 | X6: 0 | Y6: 5 | Z6: 5 | AA6: 0 | AB6: 0 | AC6: 0 | AD6: 0 | AE6: 5 | AF6: 0 | AG6: 5 | AH6: 0 | AI6: 5 | AJ6: 5 | AK6: 5 | AL6: 5 | AM6: 0 | AN6: 0 | AO6: 5 | AP6: 0 | AQ6: 0 | AR6: 5 | AS6: 0 | AT6: 0 | AU6: 5 | AV6: 0 | AW6: 0 | AX6: 0 | AY6: 5 | AZ6: 0 | BA6: 0 | BB6: 0 | BC6: 0 | BD6: 0 | BE6: 5 | BF6: 0 | BG6: 5 | BH6: 5 | BI6: 0 | BJ6: 0 | BK6: 5 | BL6: 0 | BM6: 0 | BN6: 0 | BO6: 5 | BP6: 0 | BQ6: 0 | BR6: 5 | BS6: 0 | BT6: 5 | BU6: 5 | BV6: 0 | BW6: 0 | BX6: 0 | BY6: 0 | BZ6: 0 | CA6: 5 | CB6: 0
A7: Swansea City | B7: 2 | C7: 2 | D7: Newcastle United | E7: 15:00:00 | G7: 5 | H7: 0 | I7: 0 | J7: 0 | K7: 5 | L7: 0 | M7: 0 | N7: 5 | O7: 0 | P7: 0 | Q7: 0 | R7: 10 | S7: 5 | T7: 0 | U7: 0 | V7: 0 | W7: 10 | X7: 0 | Y7: 0 | Z7: 0 | AA7: 0 | AB7: 0 | AC7: 0 | AD7: 10 | AE7: 0 | AF7: 0 | AG7: 0 | AH7: 0 | AI7: 10 | AJ7: 0 | AK7: 10 | AL7: 0 | AM7: 0 | AN7: 0 | AO7: 5 | AP7: 10 | AQ7: 0 | AR7: 0 | AS7: 0 | AT7: 0 | AU7: 0 | AV7: 0 | AW7: 0 | AX7: 0 | AY7: 0 | AZ7: 0 | BA7: 0 | BB7: 0 | BC7: 0 | BD7: 0 | BE7: 10 | BF7: 5 | BG7: 10 | BH7: 0 | BI7: 0 | BJ7: 0 | BK7: 0 | BL7: 0 | BM7: 0 | BN7: 0 | BO7: 0 | BP7: 10 | BQ7: 5 | BR7: 0 | BS7: 0 | BT7: 0 | BU7: 0 | BV7: 0 | BW7: 0 | BX7: 0 | BY7: 0 | BZ7: 0 | CA7: 0 | CB7: 0
A8: Aston Villa | B8: 0 | C8: 2 | D8: Man City | E8: 17:30:00 | G8: 5 | H8: 10 | I8: 5 | J8: 5 | K8: 10 | L8: 5 | M8: 5 | N8: 10 | O8: 0 | P8: 10 | Q8: 5 | R8: 5 | S8: 10 | T8: 5 | U8: 5 | V8: 10 | W8: 5 | X8: 10 | Y8: 10 | Z8: 10 | AA8: 10 | AB8: 5 | AC8: 5 | AD8: 5 | AE8: 5 | AF8: 5 | AG8: 5 | AH8: 10 | AI8: 10 | AJ8: 5 | AK8: 5 | AL8: 10 | AM8: 5 | AN8: 5 | AO8: 5 | AP8: 5 | AQ8: 5 | AR8: 5 | AS8: 5 | AT8: 5 | AU8: 5 | AV8: 10 | AW8: 5 | AX8: 5 | AY8: 0 | AZ8: 5 | BA8: 5 | BB8: 10 | BC8: 10 | BD8: 10 | BE8: 5 | BF8: 5 | BG8: 5 | BH8: 10 | BI8: 5 | BJ8: 10 | BK8: 5 | BL8: 10 | BM8: 5 | BN8: 5 | BO8: 10 | BP8: 5 | BQ8: 5 | BR8: 5 | BS8: 5 | BT8: 5 | BU8: 10 | BV8: 5 | BW8: 5 | BX8: 5 | BY8: 5 | BZ8: 5 | CA8: 0 | CB8: 10
A10: Sunday, October 5th
A11: Man United | B11: 2 | C11: 1 | D11: Everton | E11: 12:00:00 | G11: 10 | H11: 0 | I11: 5 | J11: 0 | K11: 0 | L11: 5 | M11: 5 | N11: 0 | O11: 5 | P11: 10 | Q11: 5 | R11: 0 | S11: 5 | T11: 10 | U11: 5 | V11: 0 | W11: 10 | X11: 0 | Y11: 10 | Z11: 0 | AA11: 5 | AB11: 10 | AC11: 10 | AD11: 5 | AE11: 5 | AF11: 0 | AG11: 0 | AH11: 10 | AI11: 5 | AJ11: 0 | AK11: 5 | AL11: 10 | AM11: 5 | AN11: 0 | AO11: 0 | AP11: 0 | AQ11: 10 | AR11: 0 | AS11: 5 | AT11: 5 | AU11: 10 | AV11: 5 | AW11: 5 | AX11: 5 | AY11: 5 | AZ11: 5 | BA11: 0 | BB11: 0 | BC11: 10 | BD11: 10 | BE11: 5 | BF11: 0 | BG11: 10 | BH11: 10 | BI11: 0 | BJ11: 10 | BK11: 5 | BL11: 5 | BM11: 5 | BN11: 5 | BO11: 5 | BP11: 10 | BQ11: 0 | BR11: 0 | BS11: 5 | BT11: 0 | BU11: 0 | BV11: 10 | BW11: 5 | BX11: 5 | BY11: 5 | BZ11: 10 | CA11: 10 | CB11: 0
A12: Chelsea | B12: 2 | C12: 0 | D12: Arsenal | E12: 14:05:00 | G12: 5 | H12: 0 | I12: 5 | J12: 5 | K12: 5 | L12: 5 | M12: 5 | N12: 5 | O12: 0 | P12: 5 | Q12: 0 | R12: 0 | S12: 5 | T12: 0 | U12: 5 | V12: 10 | W12: 10 | X12: 5 | Y12: 0 | Z12: 5 | AA12: 0 | AB12: 10 | AC12: 5 | AD12: 5 | AE12: 5 | AF12: 10 | AG12: 5 | AH12: 10 | AI12: 5 | AJ12: 10 | AK12: 0 | AL12: 5 | AM12: 10 | AN12: 0 | AO12: 10 | AP12: 5 | AQ12: 5 | AR12: 5 | AS12: 10 | AT12: 5 | AU12: 5 | AV12: 5 | AW12: 5 | AX12: 5 | AY12: 10 | AZ12: 5 | BA12: 0 | BB12: 5 | BC12: 0 | BD12: 10 | BE12: 0 | BF12: 5 | BG12: 5 | BH12: 5 | BI12: 5 | BJ12: 5 | BK12: 5 | BL12: 5 | BM12: 0 | BN12: 10 | BO12: 0 | BP12: 5 | BQ12: 0 | BR12: 0 | BS12: 5 | BT12: 0 | BU12: 0 | BV12: 5 | BW12: 10 | BX12: 10 | BY12: 5 | BZ12: 10 | CA12: 5 | CB12: 5
A13: Tottenham | B13: 1 | C13: 0 | D13: Southampton | E13: 14:05:00 | G13: 5 | H13: 10 | I13: 0 | J13: 0 | K13: 5 | L13: 10 | M13: 0 | N13: 0 | O13: 0 | P13: 0 | Q13: 5 | R13: 5 | S13: 5 | T13: 5 | U13: 0 | V13: 10 | W13: 0 | X13: 5 | Y13: 0 | Z13: 10 | AA13: 0 | AB13: 0 | AC13: 5 | AD13: 10 | AE13: 0 | AF13: 0 | AG13: 0 | AH13: 0 | AI13: 5 | AJ13: 0 | AK13: 0 | AL13: 5 | AM13: 0 | AN13: 0 | AO13: 0 | AP13: 0 | AQ13: 5 | AR13: 0 | AS13: 0 | AT13: 5 | AU13: 10 | AV13: 0 | AW13: 5 | AX13: 0 | AY13: 5 | AZ13: 5 | BA13: 0 | BB13: 0 | BC13: 10 | BD13: 0 | BE13: 0 | BF13: 0 | BG13: 0 | BH13: 0 | BI13: 0 | BJ13: 0 | BK13: 0 | BL13: 0 | BM13: 5 | BN13: 0 | BO13: 0 | BP13: 5 | BQ13: 5 | BR13: 10 | BS13: 0 | BT13: 0 | BU13: 0 | BV13: 0 | BW13: 0 | BX13: 0 | BY13: 5 | BZ13: 0 | CA13: 5 | CB13: 0
A14: West Ham | B14: 2 | C14: 0 | D14: QPR | E14: 16:15:00 | G14: 5 | H14: 10 | I14: 5 | J14: 10 | K14: 5 | L14: 5 | M14: 10 | N14: 5 | O14: 5 | P14: 5 | Q14: 0 | R14: 0 | S14: 5 | T14: 5 | U14: 5 | V14: 0 | W14: 10 | X14: 5 | Y14: 10 | Z14: 10 | AA14: 10 | AB14: 5 | AC14: 5 | AD14: 5 | AE14: 0 | AF14: 5 | AG14: 10 | AH14: 10 | AI14: 5 | AJ14: 10 | AK14: 5 | AL14: 10 | AM14: 5 | AN14: 5 | AO14: 10 | AP14: 0 | AQ14: 10 | AR14: 5 | AS14: 5 | AT14: 10 | AU14: 10 | AV14: 5 | AW14: 10 | AX14: 5 | AY14: 5 | AZ14: 0 | BA14: 10 | BB14: 0 | BC14: 5 | BD14: 5 | BE14: 5 | BF14: 10 | BG14: 10 | BH14: 10 | BI14: 10 | BJ14: 10 | BK14: 10 | BL14: 5 | BM14: 5 | BN14: 5 | BO14: 10 | BP14: 0 | BQ14: 0 | BR14: 5 | BS14: 5 | BT14: 10 | BU14: 5 | BV14: 0 | BW14: 10 | BX14: 10 | BY14: 5 | BZ14: 10 | CA14: 5 | CB14: 5
A16: Saturday, October 18th
A17: Man City | B17: 4 | C17: 1 | D17: Tottenham | E17: 12:45:00 | G17: 5 | H17: 5 | I17: 5 | J17: 5 | K17: 0 | L17: 5 | M17: 5 | N17: 5 | O17: 5 | P17: 5 | Q17: 5 | R17: 5 | S17: 5 | T17: 5 | U17: 5 | V17: 5 | W17: 5 | X17: 5 | Y17: 5 | Z17: 5 | AA17: 5 | AB17: 5 | AC17: 5 | AD17: 5 | AE17: 5 | AF17: 5 | AG17: 5 | AH17: 5 | AI17: 5 | AJ17: 5 | AK17: 5 | AL17: 5 | AM17: 5 | AN17: 5 | AO17: 5 | AP17: 5 | AQ17: 5 | AR17: 5 | AS17: 5 | AT17: 5 | AU17: 5 | AV17: 5 | AW17: 5 | AX17: 5 | AY17: 5 | AZ17: 5 | BA17: 5 | BB17: 5 | BC17: 5 | BD17: 5 | BE17: 5 | BF17: 5 | BG17: 5 | BH17: 5 | BI17: 5 | BJ17: 5 | BK17: 5 | BL17: 5 | BM17: 5 | BN17: 5 | BO17: 5 | BP17: 5 | BQ17: 5 | BR17: 5 | BS17: 5 | BT17: 5 | BU17: 5 | BV17: 5 | BW17: 5 | BX17: 5 | BY17: 10 | BZ17: - | CA17: 5 | CB17: 5
A18: Arsenal | B18: 2 | C18: 2 | D18: Hull City | E18: 15:00:00 | G18: 0 | H18: 0 | I18: 0 | J18: 0 | K18: 0 | L18: 0 | M18: 0 | N18: 0 | O18: 0 | P18: 0 | Q18: 0 | R18: 0 | S18: 0 | T18: 0 | U18: 0 | V18: 0 | W18: 0 | X18: 0 | Y18: 0 | Z18: 0 | AA18: 0 | AB18: 0 | AC18: 0 | AD18: 0 | AE18: 0 | AF18: 0 | AG18: 0 | AH18: 0 | AI18: 0 | AJ18: 0 | AK18: 0 | AL18: 0 | AM18: 0 | AN18: 0 | AO18: 0 | AP18: 0 | AQ18: 0 | AR18: 0 | AS18: 0 | AT18: 0 | AU18: 0 | AV18: 0 | AW18: 0 | AX18: 0 | AY18: 0 | AZ18: 0 | BA18: 0 | BB18: 5 | BC18: 0 | BD18: 0 | BE18: 0 | BF18: 0 | BG18: 0 | BH18: 0 | BI18: 0 | BJ18: 0 | BK18: 0 | BL18: 0 | BM18: 0 | BN18: 0 | BO18: 0 | BP18: 0 | BQ18: 0 | BR18: 0 | BS18: 0 | BT18: 0 | BU18: 0 | BV18: 0 | BW18: 0 | BX18: 0 | BY18: 0 | BZ18: - | CA18: 0 | CB18: 0
A19: Burnley | B19: 1 | C19: 3 | D19: West Ham | E19: 15:00:00 | G19: 5 | H19: 0 | I19: 5 | J19: 0 | K19: 0 | L19: 0 | M19: 0 | N19: 5 | O19: 0 | P19: 0 | Q19: 0 | R19: 0 | S19: 0 | T19: 0 | U19: 0 | V19: 0 | W19: 0 | X19: 0 | Y19: 5 | Z19: 5 | AA19: 5 | AB19: 0 | AC19: 0 | AD19: 0 | AE19: 5 | AF19: 5 | AG19: 5 | AH19: 0 | AI19: 0 | AJ19: 5 | AK19: 0 | AL19: 0 | AM19: 5 | AN19: 0 | AO19: 5 | AP19: 5 | AQ19: 0 | AR19: 0 | AS19: 5 | AT19: 0 | AU19: 0 | AV19: 0 | AW19: 0 | AX19: 5 | AY19: 0 | AZ19: 0 | BA19: 5 | BB19: 0 | BC19: 0 | BD19: 0 | BE19: 0 | BF19: 0 | BG19: 0 | BH19: 0 | BI19: 0 | BJ19: 5 | BK19: 5 | BL19: 5 | BM19: 0 | BN19: 5 | BO19: 0 | BP19: 0 | BQ19: 0 | BR19: 5 | BS19: 5 | BT19: 0 | BU19: 5 | BV19: 0 | BW19: 0 | BX19: 0 | BY19: 0 | BZ19: - | CA19: 0 | CB19: 5
A20: Crystal Palace | B20: 1 | C20: 2 | D20: Chelsea | E20: 15:00:00 | G20: 5 | H20: 0 | I20: 5 | J20: 5 | K20: 5 | L20: 10 | M20: 5 | N20: 5 | O20: 10 | P20: 5 | Q20: 5 | R20: 5 | S20: 10 | T20: 10 | U20: 5 | V20: 0 | W20: 5 | X20: 5 | Y20: 5 | Z20: 5 | AA20: 5 | AB20: 5 | AC20: 10 | AD20: 5 | AE20: 10 | AF20: 5 | AG20: 5 | AH20: 5 | AI20: 5 | AJ20: 5 | AK20: 5 | AL20: 5 | AM20: 10 | AN20: 5 | AO20: 5 | AP20: 5 | AQ20: 5 | AR20: 5 | AS20: 10 | AT20: 5 | AU20: 10 | AV20: 5 | AW20: 5 | AX20: 5 | AY20: 0 | AZ20: 10 | BA20: 10 | BB20: 5 | BC20: 10 | BD20: 5 | BE20: 5 | BF20: 5 | BG20: 0 | BH20: 0 | BI20: 5 | BJ20: 5 | BK20: 5 | BL20: 5 | BM20: 5 | BN20: 5 | BO20: 0 | BP20: 10 | BQ20: 0 | BR20: 5 | BS20: 5 | BT20: 10 | BU20: 5 | BV20: 5 | BW20: 5 | BX20: 5 | BY20: 5 | BZ20: - | CA20: 5 | CB20: 10
A21: Everton | B21: 3 | C21: 0 | D21: Aston Villa | E21: 15:00:00 | G21: 0 | H21: 5 | I21: 5 | J21: 0 | K21: 5 | L21: 5 | M21: 5 | N21: 5 | O21: 0 | P21: 5 | Q21: 5 | R21: 5 | S21: 5 | T21: 5 | U21: 10 | V21: 5 | W21: 5 | X21: 5 | Y21: 5 | Z21: 5 | AA21: 5 | AB21: 5 | AC21: 5 | AD21: 5 | AE21: 5 | AF21: 0 | AG21: 0 | AH21: 5 | AI21: 5 | AJ21: 5 | AK21: 0 | AL21: 5 | AM21: 5 | AN21: 5 | AO21: 5 | AP21: 5 | AQ21: 0 | AR21: 5 | AS21: 5 | AT21: 0 | AU21: 5 | AV21: 0 | AW21: 0 | AX21: 5 | AY21: 5 | AZ21: 0 | BA21: 0 | BB21: 5 | BC21: 0 | BD21: 5 | BE21: 5 | BF21: 0 | BG21: 5 | BH21: 5 | BI21: 5 | BJ21: 0 | BK21: 5 | BL21: 5 | BM21: 5 | BN21: 5 | BO21: 5 | BP21: 5 | BQ21: 5 | BR21: 5 | BS21: 0 | BT21: 5 | BU21: 5 | BV21: 5 | BW21: 5 | BX21: 0 | BY21: 0 | BZ21: - | CA21: 5 | CB21: 0
A22: Newcastle United | B22: 1 | C22: 0 | D22: Leicester City | E22: 15:00:00 | G22: 10 | H22: 5 | I22: 5 | J22: 0 | K22: 10 | L22: 5 | M22: 5 | N22: 0 | O22: 0 | P22: 5 | Q22: 0 | R22: 0 | S22: 5 | T22: 5 | U22: 0 | V22: 5 | W22: 0 | X22: 10 | Y22: 10 | Z22: 0 | AA22: 0 | AB22: 0 | AC22: 0 | AD22: 5 | AE22: 10 | AF22: 0 | AG22: 0 | AH22: 10 | AI22: 5 | AJ22: 5 | AK22: 5 | AL22: 10 | AM22: 5 | AN22: 5 | AO22: 0 | AP22: 5 | AQ22: 5 | AR22: 0 | AS22: 10 | AT22: 5 | AU22: 10 | AV22: 5 | AW22: 5 | AX22: 5 | AY22: 10 | AZ22: 0 | BA22: 0 | BB22: 0 | BC22: 10 | BD22: 0 | BE22: 5 | BF22: 0 | BG22: 5 | BH22: 5 | BI22: 10 | BJ22: 5 | BK22: 5 | BL22: 5 | BM22: 0 | BN22: 5 | BO22: 10 | BP22: 0 | BQ22: 5 | BR22: 0 | BS22: 0 | BT22: 10 | BU22: 10 | BV22: 10 | BW22: 5 | BX22: 10 | BY22: 5 | BZ22: - | CA22: 0 | CB22: 5
A23: Southampton | B23: 8 | C23: 0 | D23: Sunderland | E23: 15:00:00 | G23: 5 | H23: 5 | I23: 5 | J23: 5 | K23: 0 | L23: 5 | M23: 5 | N23: 5 | O23: 5 | P23: 5 | Q23: 5 | R23: 0 | S23: 0 | T23: 5 | U23: 5 | V23: 5 | W23: 5 | X23: 5 | Y23: 5 | Z23: 5 | AA23: 5 | AB23: 0 | AC23: 5 | AD23: 5 | AE23: 5 | AF23: 5 | AG23: 5 | AH23: 5 | AI23: 0 | AJ23: 5 | AK23: 5 | AL23: 5 | AM23: 5 | AN23: 5 | AO23: 5 | AP23: 5 | AQ23: 5 | AR23: 5 | AS23: 5 | AT23: 5 | AU23: 5 | AV23: 5 | AW23: 0 | AX23: 5 | AY23: 5 | AZ23: 5 | BA23: 5 | BB23: 5 | BC23: 5 | BD23: 5 | BE23: 5 | BF23: 5 | BG23: 5 | BH23: 5 | BI23: 5 | BJ23: 5 | BK23: 5 | BL23: 5 | BM23: 5 | BN23: 0 | BO23: 5 | BP23: 5 | BQ23: 5 | BR23: 0 | BS23: 0 | BT23: 5 | BU23: 5 | BV23: 5 | BW23: 5 | BX23: 5 | BY23: 5 | BZ23: - | CA23: 5 | CB23: 0
A25: Sunday, October 19th
A26: QPR | B26: 2 | C26: 3 | D26: Liverpool | E26: 13:30:00 | G26: 5 | H26: 0 | I26: 0 | J26: 5 | K26: 0 | L26: 5 | M26: 5 | N26: 5 | O26: 5 | P26: 5 | Q26: 5 | R26: 5 | S26: 5 | T26: 5 | U26: 5 | V26: 5 | W26: 0 | X26: 5 | Y26: 5 | Z26: 5 | AA26: 5 | AB26: 5 | AC26: 5 | AD26: 5 | AE26: 5 | AF26: 5 | AG26: 5 | AH26: 5 | AI26: 5 | AJ26: 5 | AK26: 5 | AL26: 5 | AM26: 5 | AN26: 5 | AO26: 5 | AP26: 5 | AQ26: 5 | AR26: 5 | AS26: 5 | AT26: 5 | AU26: 5 | AV26: 5 | AW26: 5 | AX26: 5 | AY26: 0 | AZ26: 0 | BA26: 5 | BB26: 5 | BC26: 5 | BD26: 0 | BE26: 0 | BF26: 5 | BG26: 5 | BH26: 0 | BI26: 5 | BJ26: 5 | BK26: 5 | BL26: 5 | BM26: 0 | BN26: 5 | BO26: 0 | BP26: 5 | BQ26: 0 | BR26: 5 | BS26: 0 | BT26: 5 | BU26: 5 | BV26: 5 | BW26: 5 | BX26: 0 | BY26: 5 | BZ26: - | CA26: 5 | CB26: 0
A27: Stoke City | B27: 2 | C27: 1 | D27: Swansea City | E27: 14:05:00 | G27: 5 | H27: 5 | I27: 0 | J27: 0 | K27: 5 | L27: 10 | M27: 10 | N27: 5 | O27: 0 | P27: 0 | Q27: 0 | R27: 0 | S27: 10 | T27: 0 | U27: 5 | V27: 5 | W27: 0 | X27: 5 | Y27: 10 | Z27: 0 | AA27: 0 | AB27: 0 | AC27: 0 | AD27: 0 | AE27: 0 | AF27: 10 | AG27: 0 | AH27: 0 | AI27: 10 | AJ27: 0 | AK27: 0 | AL27: 10 | AM27: 10 | AN27: 0 | AO27: 0 | AP27: 0 | AQ27: 10 | AR27: 0 | AS27: 10 | AT27: 10 | AU27: 5 | AV27: 5 | AW27: 10 | AX27: 0 | AY27: 5 | AZ27: 5 | BA27: 0 | BB27: 0 | BC27: 0 | BD27: 10 | BE27: 5 | BF27: 0 | BG27: 0 | BH27: 10 | BI27: 0 | BJ27: 0 | BK27: 0 | BL27: 0 | BM27: 0 | BN27: 10 | BO27: 5 | BP27: 5 | BQ27: 10 | BR27: 5 | BS27: 0 | BT27: 0 | BU27: 5 | BV27: 5 | BW27: 10 | BX27: 5 | BY27: 0 | BZ27: - | CA27: 0 | CB27: 10
A29: Monday, October 20th
A30: West Brom | B30: 2 | C30: 2 | D30: Man United | E30: 20:00:00 | G30: 0 | H30: 0 | I30: 0 | J30: 0 | K30: 10 | L30: 0 | M30: 0 | N30: 0 | O30: 0 | P30: 0 | Q30: 0 | R30: 0 | S30: 0 | T30: 0 | U30: 0 | V30: 5 | W30: 0 | X30: 0 | Y30: 0 | Z30: 0 | AA30: 0 | AB30: 0 | AC30: 0 | AD30: 0 | AE30: 0 | AF30: 0 | AG30: 0 | AH30: 0 | AI30: 0 | AJ30: 0 | AK30: 0 | AL30: 0 | AM30: 5 | AN30: 0 | AO30: 0 | AP30: 0 | AQ30: 0 | AR30: 5 | AS30: 0 | AT30: 5 | AU30: 0 | AV30: 0 | AW30: 0 | AX30: 0 | AY30: 0 | AZ30: 0 | BA30: 0 | BB30: 10 | BC30: 0 | BD30: 0 | BE30: 0 | BF30: 0 | BG30: 0 | BH30: 0 | BI30: 10 | BJ30: 0 | BK30: 0 | BL30: 0 | BM30: 0 | BN30: 0 | BO30: 0 | BP30: 0 | BQ30: 0 | BR30: 0 | BS30: 0 | BT30: 0 | BU30: 0 | BV30: 0 | BW30: 0 | BX30: 0 | BY30: 0 | BZ30: - | CA30: 0 | CB30: 0
A32: Saturday, October 25th
A33: West Ham | B33: 2 | C33: 1 | D33: Man City | E33: 12:45:00 | G33: 0 | H33: 0 | I33: 0 | J33: 0 | K33: 0 | L33: 0 | M33: 0 | N33: 0 | O33: 0 | P33: 0 | Q33: 0 | R33: 0 | S33: 0 | T33: 10 | U33: 0 | V33: 0 | W33: 0 | X33: 0 | Y33: 0 | Z33: 0 | AA33: 0 | AB33: 0 | AC33: 0 | AD33: 0 | AE33: 5 | AF33: 0 | AG33: 0 | AH33: 0 | AI33: 0 | AJ33: 5 | AK33: 10 | AL33: 0 | AM33: 0 | AN33: 0 | AO33: 0 | AP33: 0 | AQ33: 0 | AR33: 0 | AS33: 0 | AT33: 0 | AU33: 0 | AV33: 0 | AW33: 0 | AX33: 0 | AY33: 5 | AZ33: 0 | BA33: 10 | BB33: 10 | BC33: 0 | BD33: 0 | BE33: 5 | BF33: 0 | BG33: 0 | BH33: 0 | BI33: 10 | BJ33: 0 | BK33: 0 | BL33: 0 | BM33: 0 | BN33: 0 | BO33: 0 | BP33: 0 | BQ33: 0 | BR33: 0 | BS33: 5 | BT33: 0 | BU33: 0 | BV33: 0 | BW33: 0 | BX33: 0 | BY33: 0 | BZ33: 0 | CA33: 10 | CB33: 0
A34: Liverpool | B34: 0 | C34: 0 | D34: Hull City | E34: 15:00:00 | G34: 0 | H34: 0 | I34: 5 | J34: 0 | K34: 10 | L34: 0 | M34: 0 | N34: 0 | O34: 0 | P34: 0 | Q34: 0 | R34: 5 | S34: 0 | T34: 0 | U34: 0 | V34: 0 | W34: 5 | X34: 0 | Y34: 0 | Z34: 0 | AA34: 0 | AB34: 5 | AC34: 0 | AD34: 0 | AE34: 0 | AF34: 5 | AG34: 0 | AH34: 5 | AI34: 0 | AJ34: 0 | AK34: 0 | AL34: 0 | AM34: 0 | AN34: 0 | AO34: 0 | AP34: 0 | AQ34: 0 | AR34: 10 | AS34: 0 | AT34: 0 | AU34: 0 | AV34: 0 | AW34: 0 | AX34: 0 | AY34: 0 | AZ34: 5 | BA34: 0 | BB34: 0 | BC34: 0 | BD34: 0 | BE34: 0 | BF34: 0 | BG34: 0 | BH34: 0 | BI34: 0 | BJ34: 0 | BK34: 5 | BL34: 0 | BM34: 0 | BN34: 0 | BO34: 0 | BP34: 0 | BQ34: 0 | BR34: 0 | BS34: 0 | BT34: 0 | BU34: 0 | BV34: 5 | BW34: 0 | BX34: 10 | BY34: 0 | BZ34: 0 | CA34: 0 | CB34: 0
A35: Southampton | B35: 1 | C35: 0 | D35: Stoke City | E35: 15:00:00 | G35: 5 | H35: 0 | I35: 5 | J35: 5 | K35: 5 | L35: 5 | M35: 10 | N35: 5 | O35: 5 | P35: 5 | Q35: 10 | R35: 5 | S35: 5 | T35: 5 | U35: 10 | V35: 5 | W35: 0 | X35: 5 | Y35: 5 | Z35: 5 | AA35: 5 | AB35: 0 | AC35: 5 | AD35: 5 | AE35: 5 | AF35: 5 | AG35: 5 | AH35: 5 | AI35: 5 | AJ35: 5 | AK35: 5 | AL35: 5 | AM35: 5 | AN35: 5 | AO35: 5 | AP35: 5 | AQ35: 5 | AR35: 5 | AS35: 10 | AT35: 5 | AU35: 10 | AV35: 5 | AW35: 0 | AX35: 5 | AY35: 5 | AZ35: 5 | BA35: 5 | BB35: 5 | BC35: 5 | BD35: 5 | BE35: 5 | BF35: 5 | BG35: 10 | BH35: 5 | BI35: 0 | BJ35: 5 | BK35: 5 | BL35: 5 | BM35: 0 | BN35: 0 | BO35: 5 | BP35: 0 | BQ35: 0 | BR35: 10 | BS35: 5 | BT35: 5 | BU35: 5 | BV35: 0 | BW35: 5 | BX35: 5 | BY35: 5 | BZ35: 10 | CA35: 5 | CB35: 5
A36: Sunderland | B36: 0 | C36: 2 | D36: Arsenal | E36: 15:00:00 | G36: 5 | H36: 5 | I36: 5 | J36: 5 | K36: 5 | L36: 5 | M36: 0 | N36: 10 | O36: 5 | P36: 5 | Q36: 5 | R36: 10 | S36: 0 | T36: 10 | U36: 5 | V36: 0 | W36: 0 | X36: 10 | Y36: 5 | Z36: 5 | AA36: 10 | AB36: 0 | AC36: 5 | AD36: 5 | AE36: 0 | AF36: 5 | AG36: 5 | AH36: 5 | AI36: 5 | AJ36: 0 | AK36: 5 | AL36: 10 | AM36: 5 | AN36: 5 | AO36: 10 | AP36: 5 | AQ36: 5 | AR36: 10 | AS36: 5 | AT36: 5 | AU36: 10 | AV36: 5 | AW36: 0 | AX36: 5 | AY36: 5 | AZ36: 5 | BA36: 0 | BB36: 0 | BC36: 5 | BD36: 5 | BE36: 0 | BF36: 10 | BG36: 0 | BH36: 5 | BI36: 5 | BJ36: 5 | BK36: 5 | BL36: 5 | BM36: 5 | BN36: 5 | BO36: 10 | BP36: 5 | BQ36: 5 | BR36: 5 | BS36: 0 | BT36: 0 | BU36: 5 | BV36: 5 | BW36: 5 | BX36: 5 | BY36: 5 | BZ36: 10 | CA36: 0 | CB36: 0
A37: West Brom | B37: 2 | C37: 2 | D37: Crystal Palace | E37: 15:00:00 | G37: 5 | H37: 0 | I37: 5 | J37: 0 | K37: 0 | L37: 10 | M37: 0 | N37: 0 | O37: 0 | P37: 0 | Q37: 0 | R37: 5 | S37: 0 | T37: 0 | U37: 0 | V37: 5 | W37: 5 | X37: 5 | Y37: 0 | Z37: 0 | AA37: 0 | AB37: 0 | AC37: 0 | AD37: 5 | AE37: 0 | AF37: 0 | AG37: 0 | AH37: 0 | AI37: 0 | AJ37: 0 | AK37: 0 | AL37: 0 | AM37: 0 | AN37: 0 | AO37: 10 | AP37: 5 | AQ37: 0 | AR37: 5 | AS37: 0 | AT37: 0 | AU37: 0 | AV37: 5 | AW37: 0 | AX37: 0 | AY37: 0 | AZ37: 5 | BA37: 0 | BB37: 0 | BC37: 5 | BD37: 0 | BE37: 0 | BF37: 0 | BG37: 0 | BH37: 0 | BI37: 0 | BJ37: 0 | BK37: 10 | BL37: 0 | BM37: 0 | BN37: 5 | BO37: 0 | BP37: 0 | BQ37: 0 | BR37: 5 | BS37: 0 | BT37: 10 | BU37: 0 | BV37: 0 | BW37: 0 | BX37: 0 | BY37: 0 | BZ37: 5 | CA37: 0 | CB37: 5
A38: Swansea City | B38: 2 | C38: 0 | D38: Leicester City | E38: 17:30:00 | G38: 10 | H38: 5 | I38: 5 | J38: 10 | K38: 0 | L38: 5 | M38: 10 | N38: 5 | O38: 5 | P38: 5 | Q38: 10 | R38: 10 | S38: 10 | T38: 5 | U38: 0 | V38: 5 | W38: 0 | X38: 10 | Y38: 10 | Z38: 5 | AA38: 5 | AB38: 0 | AC38: 10 | AD38: 10 | AE38: 10 | AF38: 0 | AG38: 5 | AH38: 5 | AI38: 10 | AJ38: 5 | AK38: 5 | AL38: 5 | AM38: 5 | AN38: 10 | AO38: 5 | AP38: 0 | AQ38: 5 | AR38: 0 | AS38: 5 | AT38: 10 | AU38: 5 | AV38: 0 | AW38: 10 | AX38: 5 | AY38: 5 | AZ38: 5 | BA38: 5 | BB38: 5 | BC38: 5 | BD38: 5 | BE38: 10 | BF38: 5 | BG38: 5 | BH38: 5 | BI38: 10 | BJ38: 5 | BK38: 5 | BL38: 5 | BM38: 0 | BN38: 5 | BO38: 5 | BP38: 5 | BQ38: 0 | BR38: 5 | BS38: 10 | BT38: 5 | BU38: 0 | BV38: 0 | BW38: 5 | BX38: 5 | BY38: 0 | BZ38: 0 | CA38: 5 | CB38: 5
A40: Sunday, October 26th
A41: Burnley | B41: 1 | C41: 3 | D41: Everton | E41: 13:30:00 | G41: 10 | H41: 5 | I41: 10 | J41: 5 | K41: 0 | L41: 10 | M41: 5 | N41: 5 | O41: 5 | P41: 5 | Q41: 0 | R41: 10 | S41: 0 | T41: 5 | U41: 0 | V41: 5 | W41: 0 | X41: 5 | Y41: 5 | Z41: 5 | AA41: 5 | AB41: 0 | AC41: 5 | AD41: 5 | AE41: 0 | AF41: 5 | AG41: 5 | AH41: 5 | AI41: 5 | AJ41: 5 | AK41: 0 | AL41: 5 | AM41: 5 | AN41: 5 | AO41: 5 | AP41: 10 | AQ41: 5 | AR41: 5 | AS41: 5 | AT41: 5 | AU41: 5 | AV41: 5 | AW41: 0 | AX41: 5 | AY41: 5 | AZ41: 5 | BA41: 0 | BB41: 10 | BC41: 5 | BD41: 5 | BE41: 0 | BF41: 5 | BG41: 10 | BH41: 5 | BI41: 5 | BJ41: 5 | BK41: 5 | BL41: 5 | BM41: 5 | BN41: 5 | BO41: 5 | BP41: 10 | BQ41: 0 | BR41: 5 | BS41: 0 | BT41: 5 | BU41: 5 | BV41: 5 | BW41: 5 | BX41: 10 | BY41: 10 | BZ41: 5 | CA41: 0 | CB41: 5
A42: Tottenham | B42: 1 | C42: 2 | D42: Newcastle United | E42: 13:30:00 | G42: 0 | H42: 0 | I42: 0 | J42: 0 | K42: 0 | L42: 0 | M42: 0 | N42: 0 | O42: 0 | P42: 0 | Q42: 0 | R42: 0 | S42: 0 | T42: 0 | U42: 0 | V42: 0 | W42: 0 | X42: 0 | Y42: 0 | Z42: 0 | AA42: 0 | AB42: 0 | AC42: 0 | AD42: 0 | AE42: 0 | AF42: 0 | AG42: 0 | AH42: 0 | AI42: 0 | AJ42: 0 | AK42: 0 | AL42: 0 | AM42: 0 | AN42: 0 | AO42: 0 | AP42: 0 | AQ42: 0 | AR42: 0 | AS42: 0 | AT42: 0 | AU42: 0 | AV42: 0 | AW42: 0 | AX42: 0 | AY42: 0 | AZ42: 0 | BA42: 0 | BB42: 0 | BC42: 0 | BD42: 0 | BE42: 0 | BF42: 0 | BG42: 0 | BH42: 0 | BI42: 0 | BJ42: 0 | BK42: 10 | BL42: 0 | BM42: 0 | BN42: 0 | BO42: 0 | BP42: 0 | BQ42: 0 | BR42: 0 | BS42: 0 | BT42: 0 | BU42: 0 | BV42: 0 | BW42: 0 | BX42: 0 | BY42: 0 | BZ42: 0 | CA42: 0 | CB42: 0
A43: Man United | B43: 1 | C43: 1 | D43: Chelsea | E43: 16:00:00 | G43: 5 | H43: 0 | I43: 0 | J43: 0 | K43: 0 | L43: 10 | M43: 0 | N43: 0 | O43: 0 | P43: 0 | Q43: 0 | R43: 0 | S43: 0 | T43: 0 | U43: 0 | V43: 10 | W43: 10 | X43: 0 | Y43: 5 | Z43: 0 | AA43: 0 | AB43: 5 | AC43: 5 | AD43: 10 | AE43: 0 | AF43: 0 | AG43: 0 | AH43: 10 | AI43: 0 | AJ43: 0 | AK43: 5 | AL43: 0 | AM43: 0 | AN43: 0 | AO43: 0 | AP43: 0 | AQ43: 0 | AR43: 0 | AS43: 0 | AT43: 0 | AU43: 0 | AV43: 10 | AW43: 0 | AX43: 5 | AY43: 0 | AZ43: 0 | BA43: 0 | BB43: 0 | BC43: 0 | BD43: 0 | BE43: 0 | BF43: 0 | BG43: 0 | BH43: 0 | BI43: 5 | BJ43: 0 | BK43: 0 | BL43: 0 | BM43: 0 | BN43: 0 | BO43: 0 | BP43: 0 | BQ43: 5 | BR43: 0 | BS43: 0 | BT43: 0 | BU43: 0 | BV43: 0 | BW43: 0 | BX43: 10 | BY43: 0 | BZ43: 0 | CA43: 0 | CB43: 0
A45: Monday, October 27th
A46: QPR | B46: 2 | C46: 0 | D46: Aston Villa | E46: 20:00:00 | G46: 0 | H46: 0 | I46: 0 | J46: 0 | K46: 0 | L46: 5 | M46: 5 | N46: 5 | O46: 0 | P46: 0 | Q46: 0 | R46: 0 | S46: 0 | T46: 0 | U46: 0 | V46: 5 | W46: 0 | X46: 0 | Y46: 0 | Z46: 5 | AA46: 0 | AB46: 0 | AC46: 0 | AD46: 0 | AE46: 10 | AF46: 10 | AG46: 0 | AH46: 0 | AI46: 0 | AJ46: 5 | AK46: 0 | AL46: 0 | AM46: 0 | AN46: 10 | AO46: 5 | AP46: 0 | AQ46: 0 | AR46: 10 | AS46: 5 | AT46: 0 | AU46: 0 | AV46: 5 | AW46: 0 | AX46: 5 | AY46: 0 | AZ46: 0 | BA46: 5 | BB46: 0 | BC46: 0 | BD46: 5 | BE46: 10 | BF46: 0 | BG46: 0 | BH46: 0 | BI46: 5 | BJ46: 5 | BK46: 5 | BL46: 0 | BM46: 0 | BN46: 5 | BO46: 0 | BP46: 5 | BQ46: 0 | BR46: 5 | BS46: 10 | BT46: 0 | BU46: 5 | BV46: 0 | BW46: 0 | BX46: 5 | BY46: 0 | BZ46: 0 | CA46: 5 | CB46: 5
A48: Golden Boots
A49: Alexis Sanchez - Arsenal | E49: =0+1+2 -> 3 | F49: =COUNT(G49:CB49) -> 14 | H49: =5*$E49 -> 15 | N49: =5*$E49 -> 15 | T49: =5*$E49 -> 15 | Y49: =5*$E49 -> 15 | Z49: =5*$E49 -> 15 | AC49: =5*$E49 -> 15 | AQ49: =5*$E49 -> 15 | AS49: =5*$E49 -> 15 | AZ49: =5*$E49 -> 15 | BF49: =5*$E49 -> 15 | BK49: =5*$E49 -> 15 | BL49: =5*$E49 -> 15 | BV49: =5*$E49 -> 15 | BZ49: =5*$E49 -> 15
A50: Daniel Sturridge - Liverpool | E50: =0+0+0 -> 0 | F50: 52 | G50: =5*$E50 -> 0 | I50: =5*$E50 -> 0 | J50: =5*$E50 -> 0 | K50: =5*$E50 -> 0 | M50: =5*$E50 -> 0 | N50: =5*$E50 -> 0 | O50: =5*$E50 -> 0 | P50: =5*$E50 -> 0 | Q50: =5*$E50 -> 0 | R50: =5*$E50 -> 0 | S50: =5*$E50 -> 0 | V50: =5*$E50 -> 0 | W50: =5*$E50 -> 0 | X50: =5*$E50 -> 0 | Z50: =5*$E50 -> 0 | AA50: =5*$E50 -> 0 | AB50: =5*$E50 -> 0 | AE50: =5*$E50 -> 0 | AF50: =5*$E50 -> 0 | AG50: =5*$E50 -> 0 | AI50: =5*$E50 -> 0 | AJ50: 0 | AK50: 0 | AL50: 0 | AM50: 0 | AO50: 0 | AP50: 0 | AR50: =5*$E50 -> 0 | AS50: =5*$E50 -> 0 | AU50: =5*$E50 -> 0 | AV50: =5*$E50 -> 0 | AX50: =5*$E50 -> 0 | AY50: =5*$E50 -> 0 | BA50: =5*$E50 -> 0 | BB50: =5*$E50 -> 0 | BC50: =5*$E50 -> 0 | BD50: =5*$E50 -> 0 | BE50: =5*$E50 -> 0 | BF50: =5*$E50 -> 0 | BI50: =5*$E50 -> 0 | BJ50: =5*$E50 -> 0 | BK50: =5*$E50 -> 0 | BL50: 0 | BM50: =5*$E50 -> 0 | BQ50: =5*$E50 -> 0 | BS50: =5*$E50 -> 0 | BT50: =5*$E50 -> 0 | BU50: =5*$E50 -> 0 | BW50: =5*$E50 -> 0 | BX50: =5*$E50 -> 0 | CA50: =5*$E50 -> 0 | CB50: =5*$E50 -> 0
A51: Diego Costa - Chelsea | E51: =1+0+0 -> 1 | F51: 39 | H51: =5*$E51 -> 5 | J51: 5 | L51: =5*$E51 -> 5 | M51: =5*$E51 -> 5 | O51: 5 | P51: =5*$E51 -> 5 | S51: =5*$E51 -> 5 | T51: =5*$E51 -> 5 | Z51: =5*$E51 -> 5 | AB51: =5*$E51 -> 5 | AC51: =5*$E51 -> 5 | AE51: 5 | AF51: =5*$E51 -> 5 | AG51: =5*$E51 -> 5 | AH51: =5*$E51 -> 5 | AJ51: =5*$E51 -> 5 | AK51: =5*$E51 -> 5 | AO51: =5*$E51 -> 5 | AP51: =5*$E51 -> 5 | AR51: =5*$E51 -> 5 | AT51: =5*$E51 -> 5 | AU51: 5 | AV51: =5*$E51 -> 5 | AW51: =5*$E51 -> 5 | AZ51: =5*$E51 -> 5 | BA51: =5*$E51 -> 5 | BB51: =5*$E51 -> 5 | BD51: =5*$E51 -> 5 | BF51: =5*$E51 -> 5 | BG51: =5*$E51 -> 5 | BH51: =5*$E51 -> 5 | BI51: =5*$E51 -> 5 | BN51: =5*$E51 -> 5 | BO51: =5*$E51 -> 5 | BP51: =5*$E51 -> 5 | BR51: =5*$E51 -> 5 | BZ51: =5*$E51 -> 5 | CA51: =5*$E51 -> 5 | CB51: 5
A52: Eden Hazard - Chelsea | E52: =1+0+0 -> 1 | F52: 2 | K52: =5*$E52 -> 5 | BX52: =5*$E52 -> 5
A53: Edin Dzeko - Man City | E53: =0+0+0 -> 0 | F53: 6 | L53: =5*$E53 -> 0 | AB53: =5*$E53 -> 0 | AQ53: =5*$E53 -> 0 | AT53: =5*$E53 -> 0 | BP53: =5*$E53 -> 0 | BV53: =5*$E53 -> 0
A54: Emmanuel Adebayor - Tottenham | E54: =0+0+1 -> 1 | F54: 3 | U54: =5*$E54 -> 5 | AN54: =5*$E54 -> 5 | BS54: =5*$E54 -> 5
A55: Olivier Giroud - Arsenal | E55: =0+0+0 -> 0 | F55: 4 | L55: =5*$E55 -> 0 | AD55: =5*$E55 -> 0 | AN55: 0 | AV55: =5*$E55 -> 0
A56: Raheem Sterling - Liverpool | E56: =0+0+0 -> 0 | F56: 3 | AT56: =5*$E56 -> 0 | BQ56: =5*$E56 -> 0 | BU56: =5*$E56 -> 0
A57: Robin van Persie - Man United | E57: =0+0+1 -> 1 | F57: 45 | G57: =5*$E57 -> 5 | H57: =5*$E57 -> 5 | J57: =5*$E57 -> 5 | P57: =5*$E57 -> 5 | Q57: =5*$E57 -> 5 | R57: =5*$E57 -> 5 | S57: =5*$E57 -> 5 | U57: =5*$E57 -> 5 | V57: =5*$E57 -> 5 | X57: =5*$E57 -> 5 | Y57: =5*$E57 -> 5 | AA57: =5*$E57 -> 5 | AD57: =5*$E57 -> 5 | AF57: =5*$E57 -> 5 | AG57: =5*$E57 -> 5 | AH57: =5*$E57 -> 5 | AI57: =5*$E57 -> 5 | AJ57: =5*$E57 -> 5 | AL57: =5*$E57 -> 5 | AM57: =5*$E57 -> 5 | AP57: =5*$E57 -> 5 | AQ57: =5*$E57 -> 5 | AR57: =5*$E57 -> 5 | AU57: =5*$E57 -> 5 | AW57: =5*$E57 -> 5 | AX57: =5*$E57 -> 5 | AY57: =5*$E57 -> 5 | BA57: =5*$E57 -> 5 | BB57: =5*$E57 -> 5 | BC57: =5*$E57 -> 5 | BD57: =5*$E57 -> 5 | BE57: =5*$E57 -> 5 | BG57: =5*$E57 -> 5 | BH57: =5*$E57 -> 5 | BI57: =5*$E57 -> 5 | BJ57: =5*$E57 -> 5 | BM57: =5*$E57 -> 5 | BN57: =5*$E57 -> 5 | BO57: =5*$E57 -> 5 | BP57: =5*$E57 -> 5 | BR57: =5*$E57 -> 5 | BT57: =5*$E57 -> 5 | BX57: =5*$E57 -> 5 | BY57: =5*$E57 -> 5 | CA57: =5*$E57 -> 5
A58: Romelu Lukaku - Everton | E58: =0+1+1 -> 2 | F58: 7 | G58: =5*$E58 -> 10 | I58: =5*$E58 -> 10 | T58: =5*$E58 -> 10 | U58: =5*$E58 -> 10 | AX58: =5*$E58 -> 10 | BY58: =5*$E58 -> 10 | BZ58: =5*$E58 -> 10
A59: Sergio Aguero - Man City | E59: =1+4+0 -> 5 | F59: 21 | M59: =5*$E59 -> 25 | N59: =5*$E59 -> 25 | Q59: =5*$E59 -> 25 | R59: =5*$E59 -> 25 | W59: =5*$E59 -> 25 | X59: =5*$E59 -> 25 | Y59: =5*$E59 -> 25 | AC59: =5*$E59 -> 25 | AD59: =5*$E59 -> 25 | AI59: =5*$E59 -> 25 | AK59: =5*$E59 -> 25 | AL59: =5*$E59 -> 25 | AM59: =5*$E59 -> 25 | AN59: =5*$E59 -> 25 | AO59: =5*$E59 -> 25 | AY59: =5*$E59 -> 25 | BC59: =5*$E59 -> 25 | BG59: =5*$E59 -> 25 | BJ59: =5*$E59 -> 25 | BO59: =5*$E59 -> 25 | BW59: =5*$E59 -> 25
A60: Steven Gerrard - Liverpool | E60: =0+0+0 -> 0 | F60: 1 | BQ60: =5*$E60 -> 0
A61: Wayne Rooney - Man United | E61: =0+0+0 -> 0 | F61: 21 | I61: =5*$E61 -> 0 | K61: =5*$E61 -> 0 | O61: =5*$E61 -> 0 | V61: =5*$E61 -> 0 | W61: =5*$E61 -> 0 | AA61: =5*$E61 -> 0 | AS61: =5*$E61 -> 0 | AW61: =5*$E61 -> 0 | AZ61: =5*$E61 -> 0 | BE61: =5*$E61 -> 0 | BH61: =5*$E61 -> 0 | BK61: =5*$E61 -> 0 | BL61: =5*$E61 -> 0 | BM61: =5*$E61 -> 0 | BN61: =5*$E61 -> 0 | BS61: =5*$E61 -> 0 | BU61: =5*$E61 -> 0 | BV61: =5*$E61 -> 0 | BW61: =5*$E61 -> 0 | BY61: =5*$E61 -> 0 | CB61: =5*$E61 -> 0
A62: Wilfried Bony - Swansea City | E62: =1+1+2 -> 4 | F62: 1 | AH62: =5*$E62 -> 20
A63: Yaya Toure - Man City | E63: =1+0+0 -> 1 | F63: 3 | AE63: =5*$E63 -> 5 | BR63: =5*$E63 -> 5 | BT63: =5*$E63 -> 5
A66: Sack Race
A67: Alan Irvine - West Brom | F67: =COUNT(G67:CB67) -> 5 | M67: =25*$E67 -> 0 | S67: =25*$E67 -> 0 | AG67: =25*$E67 -> 0 | BK67: =25*$E67 -> 0 | BU67: =25*$E67 -> 0
A68: Alan Pardew - Newcastle | F68: 8 | G68: =25*$E68 -> 0 | K68: =25*$E68 -> 0 | U68: =25*$E68 -> 0 | V68: =25*$E68 -> 0 | AK68: =25*$E68 -> 0 | AY68: =25*$E68 -> 0 | BO68: =25*$E68 -> 0 | CB68: =25*$E68 -> 0
A69: Arsene Wenger - Arsenal | F69: 0
A70: Brendan Rodgers - Liverpool | F70: 0
A71: Garry Monk - Swansea City | F71: 6 | AA71: =25*$E71 -> 0 | AB71: =25*$E71 -> 0 | AW71: =25*$E71 -> 0 | BA71: =25*$E71 -> 0 | BC71: =25*$E71 -> 0 | BL71: =25*$E71 -> 0
A72: Gus Poyet - Sunderland | F72: 0
A73: Harry Redknapp - QPR | F73: 2 | AN73: =25*$E73 -> 0 | BR73: =25*$E73 -> 0
A74: Jose Mourinho - Chelsea | F74: 0
A75: Louis van Gaal - Man United | F75: 1 | BQ75: =25*$E75 -> 0
A76: Manuel Pellegrini - Man City | F76: 0
A77: Mark Hughes - Stoke City | F77: 0
A78: Mauricio Pochettino - Tottenham | F78: 0
A79: Nigel Pearson - Leicester City | F79: 3 | L79: =25*$E79 -> 0 | AF79: =25*$E79 -> 0 | AJ79: =25*$E79 -> 0
A80: Paul Lambert - Aston Villa | F80: 13 | T80: =25*$E80 -> 0 | Y80: =25*$E80 -> 0 | Z80: =25*$E80 -> 0 | AD80: =25*$E80 -> 0 | AE80: =25*$E80 -> 0 | AL80: =25*$E80 -> 0 | AM80: =25*$E80 -> 0 | AS80: =25*$E80 -> 0 | AT80: =25*$E80 -> 0 | AV80: =25*$E80 -> 0 | AX80: =25*$E80 -> 0 | BB80: =25*$E80 -> 0 | BM80: =25*$E80 -> 0
A81: Roberto Martinez - Everton | F81: 0
A82: Ronald Koeman - Southampton | F82: 4 | R82: =25*$E82 -> 0 | AP82: =25*$E82 -> 0 | BP82: =25*$E82 -> 0 | BV82: =25*$E82 -> 0
A83: Sam Allardyce - West Ham | F83: 27 | I83: =25*$E83 -> 0 | J83: =25*$E83 -> 0 | N83: =25*$E83 -> 0 | O83: =25*$E83 -> 0 | P83: =25*$E83 -> 0 | Q83: =25*$E83 -> 0 | W83: =25*$E83 -> 0 | X83: =25*$E83 -> 0 | AC83: =25*$E83 -> 0 | AH83: =25*$E83 -> 0 | AI83: =25*$E83 -> 0 | AO83: =25*$E83 -> 0 | AQ83: =25*$E83 -> 0 | AR83: =25*$E83 -> 0 | AU83: =25*$E83 -> 0 | AZ83: =25*$E83 -> 0 | BD83: =25*$E83 -> 0 | BE83: =25*$E83 -> 0 | BH83: =25*$E83 -> 0 | BI83: =25*$E83 -> 0 | BN83: =25*$E83 -> 0 | BS83: =25*$E83 -> 0 | BT83: =25*$E83 -> 0 | BW83: =25*$E83 -> 0 | BX83: =25*$E83 -> 0 | BY83: =25*$E83 -> 0 | CA83: =25*$E83 -> 0
A84: Sean Dyche - Burnley | F84: 4 | H84: =25*$E84 -> 0 | BF84: =25*$E84 -> 0 | BG84: =25*$E84 -> 0 | BJ84: =25*$E84 -> 0
A85: Steve Bruce - Hull City | F85: 1 | BZ85: =25*$E85 -> 0
A87: Total Points - October | G87: =SUM(G2:G86) -> 140 | H87: =SUM(H2:H86) -> 105 | I87: 105 | J87: 90 | K87: 105 | L87: 145 | M87: 135 | N87: 145 | O87: 70 | P87: 100 | Q87: 105 | R87: 125 | S87: 115 | T87: 140 | U87: 100 | V87: 115 | W87: 120 | X87: 140 | Y87: 170 | Z87: 120 | AA87: 100 | AB87: 70 | AC87: 150 | AD87: 155 | AE87: 115 | AF87: 105 | AG87: 95 | AH87: 150 | AI87: 145 | AJ87: 105 | AK87: 130 | AL87: 155 | AM87: 140 | AN87: 110 | AO87: 140 | AP87: 95 | AQ87: 120 | AR87: 105 | AS87: 135 | AT87: 115 | AU87: 145 | AV87: 105 | AW87: 95 | AX87: 110 | AY87: 125 | AZ87: 100 | BA87: 90 | BB87: 100 | BC87: 130 | BD87: 105 | BE87: 100 | BF87: 100 | BG87: 140 | BH87: 110 | BI87: 130 | BJ87: 130 | BK87: 135 | BL87: 110 | BM87: 65 | BN87: 120 | BO87: 130 | BP87: 115 | BQ87: 65 | BR87: 115 | BS87: 75 | BT87: =SUM(BT2:BT86) -> 105 | BU87: 95 | BV87: 110 | BW87: 130 | BX87: 135 | BY87: 95 | BZ87: 100 | CA87: 105 | CB87: 100
G89: =IF(COUNT(G48:G86)=4,"a","g") -> a | H89: a | I89: a | J89: a | K89: a | L89: a | M89: a | N89: a | O89: a | P89: a | Q89: a | R89: a | S89: a | T89: a | U89: a | V89: a | W89: a | X89: a | Y89: a | Z89: a | AA89: a | AB89: a | AC89: a | AD89: a | AE89: a | AF89: a | AG89: a | AH89: a | AI89: a | AJ89: a | AK89: a | AL89: a | AM89: a | AN89: a | AO89: a | AP89: a | AQ89: a | AR89: a | AS89: a | AT89: a | AU89: a | AV89: a | AW89: a | AX89: a | AY89: a | AZ89: a | BA89: a | BB89: a | BC89: a | BD89: a | BE89: a | BF89: a | BG89: a | BH89: a | BI89: a | BJ89: a | BK89: a | BL89: a | BM89: a | BN89: a | BO89: a | BP89: a | BQ89: a | BR89: a | BS89: =IF(COUNT(BS48:BS86)=4,"a","g") -> a | BT89: a | BU89: a | BV89: a | BW89: a | BX89: a | BY89: a | BZ89: a | CA89: a | CB89: a

Sheet November
G1: Aaron Byrne | H1: Aidan Knight | I1: Aidan Scanlon | J1: Aidan White | K1: Aiden Desch | L1: Alan Boyle | M1: Anastas Popov | N1: Andy Dunne | O1: Anthony Hughes | P1: Barry Healy | Q1: Brendan Maguire | R1: Brian Mullen | S1: Brian Prendergast | T1: Brian Sotolongo | U1: Chris Hall | V1: Ciaran O'Hart | W1: Cillian Conway | X1: Colin McAnaspie | Y1: Con McSweeney | Z1: Conor Horan | AA1: Craig Calvert | AB1: Dave Green | AC1: Dave McGinley | AD1: David Bone | AE1: David Byrne | AF1: David Cooney | AG1: David Keavney | AH1: Eamon Fox | AI1: Fiachra Moynihan | AJ1: Gareth Pierpoint | AK1: Gary McGurk | AL1: Gavin Morgan | AM1: Gerry Draper | AN1: Gerry Moore | AO1: Ian Healy | AP1: Javier Suarez Barreiro | AQ1: Jenny Ellis | AR1: Joe Behan | AS1: Joe O'Hehir | AT1: Joe Turner | AU1: Jonathan Fox | AV1: Keith Horan | AW1: Kevin Donohoe | AX1: Kevin Philpott | AY1: Konstantin Kulev | AZ1: Kris Stainton | BA1: Liam Butler | BB1: Liam Geraghty | BC1: Maria Jordan | BD1: Mike Hall | BE1: Niall Carroll | BF1: Oisin O'Reilly | BG1: Padraic Carney | BH1: Pat Jordan | BI1: Paul Moore | BJ1: Paul Prendergast | BK1: Paul Stainton | BL1: Peter Behan | BM1: Phil Doyle | BN1: Philip Jordan | BO1: Ralph Goodwin | BP1: Ray Ellis | BQ1: Rhona Devlin | BR1: Richard Johnston | BS1: Sean Moloney | BT1: Sean O'Mairtin | BU1: Shane Horan | BV1: Sharon Behan | BW1: Simon Purdue | BX1: Siobhan Murphy | BY1: Terry Behan | BZ1: Tiago Moreira | CA1: Tom McHugh | CB1: Wayne Donovan
A2: Saturday, November 1st
A3: Newcastle United | B3: 1 | C3: 0 | D3: Liverpool | E3: 12:45:00 | G3: 0 | H3: 0 | I3: 0 | J3: 0 | K3: 5 | L3: 5 | M3: 5 | N3: 0 | O3: 5 | P3: 0 | Q3: 5 | R3: 5 | S3: 0 | T3: 5 | U3: 0 | V3: 10 | W3: 0 | X3: 0 | Y3: 0 | Z3: 0 | AA3: 0 | AB3: 0 | AC3: 0 | AD3: 0 | AE3: 5 | AF3: 5 | AG3: 0 | AH3: 0 | AI3: 0 | AJ3: 0 | AK3: 0 | AL3: 5 | AM3: 0 | AN3: 0 | AO3: 5 | AP3: 0 | AQ3: 0 | AR3: 0 | AS3: 0 | AT3: 0 | AU3: 0 | AV3: 0 | AW3: 0 | AX3: 5 | AY3: 10 | AZ3: 0 | BA3: 0 | BB3: 5 | BC3: 0 | BD3: 10 | BE3: 5 | BF3: 0 | BG3: 5 | BH3: 0 | BI3: 0 | BJ3: 0 | BK3: 5 | BL3: 5 | BM3: 5 | BN3: 5 | BO3: 0 | BP3: 0 | BQ3: 0 | BR3: 10 | BS3: 5 | BT3: 0 | BU3: 0 | BV3: 0 | BW3: 0 | BX3: 10 | BY3: 5 | BZ3: - | CA3: 5 | CB3: 5
A4: Arsenal | B4: 3 | C4: 0 | D4: Burnley | E4: 15:00:00 | G4: 5 | H4: 10 | I4: 5 | J4: 5 | K4: 5 | L4: 10 | M4: 5 | N4: 10 | O4: 10 | P4: 10 | Q4: 10 | R4: 5 | S4: 10 | T4: 5 | U4: 5 | V4: 10 | W4: 5 | X4: 10 | Y4: 10 | Z4: 10 | AA4: 10 | AB4: 5 | AC4: 10 | AD4: 5 | AE4: 5 | AF4: 5 | AG4: 10 | AH4: 5 | AI4: 10 | AJ4: 5 | AK4: 5 | AL4: 10 | AM4: 5 | AN4: 10 | AO4: 5 | AP4: 10 | AQ4: 5 | AR4: 10 | AS4: 10 | AT4: 5 | AU4: 5 | AV4: 5 | AW4: 10 | AX4: 10 | AY4: 5 | AZ4: 5 | BA4: 10 | BB4: 5 | BC4: 5 | BD4: 5 | BE4: 5 | BF4: 5 | BG4: 10 | BH4: 5 | BI4: 10 | BJ4: 10 | BK4: 5 | BL4: 5 | BM4: 10 | BN4: 5 | BO4: 5 | BP4: 5 | BQ4: 5 | BR4: 5 | BS4: 5 | BT4: 10 | BU4: 10 | BV4: 5 | BW4: 10 | BX4: 5 | BY4: 10 | BZ4: - | CA4: 5 | CB4: 10
A5: Chelsea | B5: 2 | C5: 1 | D5: QPR | E5: 15:00:00 | G5: 5 | H5: 5 | I5: 5 | J5: 5 | K5: 10 | L5: 5 | M5: 5 | N5: 5 | O5: 5 | P5: 5 | Q5: 5 | R5: 5 | S5: 5 | T5: 5 | U5: 5 | V5: 5 | W5: 5 | X5: 5 | Y5: 5 | Z5: 5 | AA5: 5 | AB5: 5 | AC5: 5 | AD5: 5 | AE5: 5 | AF5: 5 | AG5: 5 | AH5: 5 | AI5: 5 | AJ5: 5 | AK5: 5 | AL5: 5 | AM5: 5 | AN5: 5 | AO5: 5 | AP5: 5 | AQ5: 5 | AR5: 5 | AS5: 5 | AT5: 5 | AU5: 5 | AV5: 5 | AW5: 5 | AX5: 5 | AY5: 5 | AZ5: 5 | BA5: 5 | BB5: 5 | BC5: 5 | BD5: 5 | BE5: 5 | BF5: 5 | BG5: 5 | BH5: 5 | BI5: 5 | BJ5: 5 | BK5: 5 | BL5: 5 | BM5: 5 | BN5: 5 | BO5: 5 | BP5: 5 | BQ5: 0 | BR5: 10 | BS5: 5 | BT5: 5 | BU5: 5 | BV5: 5 | BW5: 5 | BX5: 5 | BY5: 5 | BZ5: - | CA5: 10 | CB5: 5
A6: Everton | B6: 0 | C6: 0 | D6: Swansea City | E6: 15:00:00 | G6: 0 | H6: 0 | I6: 0 | J6: 0 | K6: 0 | L6: 0 | M6: 0 | N6: 0 | O6: 0 | P6: 5 | Q6: 0 | R6: 5 | S6: 0 | T6: 0 | U6: 0 | V6: 0 | W6: 0 | X6: 0 | Y6: 0 | Z6: 0 | AA6: 5 | AB6: 5 | AC6: 0 | AD6: 0 | AE6: 0 | AF6: 0 | AG6: 0 | AH6: 0 | AI6: 0 | AJ6: 0 | AK6: 0 | AL6: 0 | AM6: 0 | AN6: 5 | AO6: 0 | AP6: 0 | AQ6: 0 | AR6: 5 | AS6: 0 | AT6: 0 | AU6: 0 | AV6: 5 | AW6: 0 | AX6: 0 | AY6: 5 | AZ6: 0 | BA6: 0 | BB6: 0 | BC6: 5 | BD6: 0 | BE6: 0 | BF6: 0 | BG6: 0 | BH6: 5 | BI6: 0 | BJ6: 0 | BK6: 0 | BL6: 0 | BM6: 5 | BN6: 0 | BO6: 0 | BP6: 0 | BQ6: 5 | BR6: 0 | BS6: 0 | BT6: 0 | BU6: 0 | BV6: 0 | BW6: 0 | BX6: 0 | BY6: 0 | BZ6: - | CA6: 0 | CB6: 0
A7: Hull City | B7: 0 | C7: 1 | D7: Southampton | E7: 15:00:00 | G7: 5 | H7: 5 | I7: 5 | J7: 0 | K7: 0 | L7: 5 | M7: 0 | N7: 5 | O7: 5 | P7: 5 | Q7: 0 | R7: 10 | S7: 0 | T7: 0 | U7: 0 | V7: 0 | W7: 0 | X7: 10 | Y7: 0 | Z7: 10 | AA7: 5 | AB7: 0 | AC7: 0 | AD7: 0 | AE7: 0 | AF7: 0 | AG7: 5 | AH7: 0 | AI7: 0 | AJ7: 0 | AK7: 0 | AL7: 5 | AM7: 0 | AN7: 0 | AO7: 0 | AP7: 0 | AQ7: 5 | AR7: 0 | AS7: 0 | AT7: 0 | AU7: 10 | AV7: 5 | AW7: 0 | AX7: 0 | AY7: 10 | AZ7: 5 | BA7: 5 | BB7: 0 | BC7: 0 | BD7: 0 | BE7: 0 | BF7: 5 | BG7: 0 | BH7: 5 | BI7: 0 | BJ7: 10 | BK7: 0 | BL7: 0 | BM7: 5 | BN7: 0 | BO7: 10 | BP7: 0 | BQ7: 10 | BR7: 0 | BS7: 0 | BT7: 0 | BU7: 5 | BV7: 0 | BW7: 5 | BX7: 5 | BY7: 0 | BZ7: - | CA7: 0 | CB7: 0
A8: Leicester City | B8: 0 | C8: 1 | D8: West Brom | E8: 15:00:00 | G8: 5 | H8: 0 | I8: 0 | J8: 0 | K8: 0 | L8: 0 | M8: 0 | N8: 0 | O8: 5 | P8: 0 | Q8: 0 | R8: 0 | S8: 0 | T8: 0 | U8: 0 | V8: 0 | W8: 0 | X8: 5 | Y8: 0 | Z8: 0 | AA8: 0 | AB8: 0 | AC8: 0 | AD8: 5 | AE8: 0 | AF8: 0 | AG8: 0 | AH8: 0 | AI8: 0 | AJ8: 5 | AK8: 0 | AL8: 0 | AM8: 5 | AN8: 0 | AO8: 0 | AP8: 5 | AQ8: 0 | AR8: 0 | AS8: 0 | AT8: 0 | AU8: 0 | AV8: 0 | AW8: 0 | AX8: 5 | AY8: 0 | AZ8: 0 | BA8: 0 | BB8: 5 | BC8: 0 | BD8: 0 | BE8: 0 | BF8: 0 | BG8: 0 | BH8: 0 | BI8: 0 | BJ8: 5 | BK8: 0 | BL8: 0 | BM8: 5 | BN8: 0 | BO8: 0 | BP8: 0 | BQ8: 10 | BR8: 0 | BS8: 0 | BT8: 0 | BU8: 0 | BV8: 10 | BW8: 0 | BX8: 5 | BY8: 0 | BZ8: - | CA8: 0 | CB8: 0
A9: Stoke City | B9: 2 | C9: 2 | D9: West Ham United | E9: 15:00:00 | G9: 10 | H9: 0 | I9: 5 | J9: 10 | K9: 0 | L9: 5 | M9: 0 | N9: 0 | O9: 5 | P9: 0 | Q9: 0 | R9: 0 | S9: 0 | T9: 10 | U9: 0 | V9: 0 | W9: 0 | X9: 10 | Y9: 0 | Z9: 0 | AA9: 0 | AB9: 10 | AC9: 5 | AD9: 5 | AE9: 0 | AF9: 0 | AG9: 0 | AH9: 0 | AI9: 0 | AJ9: 5 | AK9: 10 | AL9: 0 | AM9: 10 | AN9: 5 | AO9: 0 | AP9: 0 | AQ9: 0 | AR9: 5 | AS9: 0 | AT9: 0 | AU9: 5 | AV9: 0 | AW9: 0 | AX9: 5 | AY9: 5 | AZ9: 0 | BA9: 5 | BB9: 0 | BC9: 0 | BD9: 5 | BE9: 0 | BF9: 0 | BG9: 0 | BH9: 0 | BI9: 10 | BJ9: 5 | BK9: 0 | BL9: 0 | BM9: 10 | BN9: 0 | BO9: 0 | BP9: 0 | BQ9: 0 | BR9: 0 | BS9: 0 | BT9: 0 | BU9: 0 | BV9: 0 | BW9: 0 | BX9: 5 | BY9: 5 | BZ9: - | CA9: 0 | CB9: 5
A11: Sunday, November 2nd
A12: Man City | B12: 1 | C12: 0 | D12: Man United | E12: 13:30:00 | G12: 5 | H12: 5 | I12: 0 | J12: 5 | K12: 5 | L12: 0 | M12: 5 | N12: 5 | O12: 0 | P12: 5 | Q12: 0 | R12: 5 | S12: 5 | T12: 5 | U12: 5 | V12: 5 | W12: 0 | X12: 0 | Y12: 5 | Z12: 5 | AA12: 0 | AB12: 5 | AC12: 0 | AD12: 5 | AE12: 5 | AF12: 5 | AG12: 5 | AH12: 5 | AI12: 5 | AJ12: 5 | AK12: 5 | AL12: 5 | AM12: 5 | AN12: 0 | AO12: 5 | AP12: 5 | AQ12: 5 | AR12: 5 | AS12: 0 | AT12: 5 | AU12: 5 | AV12: 0 | AW12: 5 | AX12: 5 | AY12: 5 | AZ12: 0 | BA12: 5 | BB12: 0 | BC12: 0 | BD12: 5 | BE12: 0 | BF12: 0 | BG12: 5 | BH12: 0 | BI12: 5 | BJ12: 5 | BK12: 5 | BL12: 5 | BM12: 0 | BN12: 0 | BO12: 5 | BP12: 5 | BQ12: 0 | BR12: 5 | BS12: 5 | BT12: 0 | BU12: 5 | BV12: 5 | BW12: 0 | BX12: 0 | BY12: 0 | BZ12: - | CA12: 5 | CB12: 5
A13: Aston Villa | B13: 1 | C13: 2 | D13: Tottenham | E13: 16:00:00 | G13: 0 | H13: 10 | I13: 10 | J13: 10 | K13: 0 | L13: 0 | M13: 0 | N13: 0 | O13: 5 | P13: 5 | Q13: 0 | R13: 0 | S13: 0 | T13: 10 | U13: 0 | V13: 5 | W13: 0 | X13: 0 | Y13: 0 | Z13: 5 | AA13: 0 | AB13: 10 | AC13: 0 | AD13: 10 | AE13: 0 | AF13: 5 | AG13: 0 | AH13: 0 | AI13: 0 | AJ13: 5 | AK13: 0 | AL13: 0 | AM13: 0 | AN13: 0 | AO13: 0 | AP13: 0 | AQ13: 0 | AR13: 5 | AS13: 0 | AT13: 0 | AU13: 5 | AV13: 5 | AW13: 0 | AX13: 0 | AY13: 10 | AZ13: 0 | BA13: 0 | BB13: 10 | BC13: 10 | BD13: 5 | BE13: 0 | BF13: 0 | BG13: 0 | BH13: 0 | BI13: 0 | BJ13: 5 | BK13: 0 | BL13: 0 | BM13: 10 | BN13: 0 | BO13: 0 | BP13: 0 | BQ13: 0 | BR13: 10 | BS13: 0 | BT13: 0 | BU13: 5 | BV13: 10 | BW13: 10 | BX13: 5 | BY13: 0 | BZ13: - | CA13: 0 | CB13: 0
A15: Monday, November 3rd
A16: Crystal Palace | B16: 1 | C16: 3 | D16: Sunderland | E16: 20:00:00 | G16: 0 | H16: 0 | I16: 0 | J16: 0 | K16: 0 | L16: 0 | M16: 0 | N16: 0 | O16: 0 | P16: 0 | Q16: 0 | R16: 0 | S16: 0 | T16: 0 | U16: 0 | V16: 0 | W16: 0 | X16: 0 | Y16: 0 | Z16: 0 | AA16: 0 | AB16: 0 | AC16: 0 | AD16: 0 | AE16: 0 | AF16: 0 | AG16: 0 | AH16: 0 | AI16: 0 | AJ16: 0 | AK16: 0 | AL16: 0 | AM16: 0 | AN16: 0 | AO16: 0 | AP16: 5 | AQ16: 0 | AR16: 0 | AS16: 0 | AT16: 0 | AU16: 0 | AV16: 0 | AW16: 0 | AX16: 0 | AY16: 0 | AZ16: 0 | BA16: 0 | BB16: 5 | BC16: 0 | BD16: 0 | BE16: 0 | BF16: 5 | BG16: 0 | BH16: 0 | BI16: 0 | BJ16: 0 | BK16: 0 | BL16: 0 | BM16: 0 | BN16: 0 | BO16: 0 | BP16: 0 | BQ16: 0 | BR16: 5 | BS16: 0 | BT16: 0 | BU16: 0 | BV16: 0 | BW16: 0 | BX16: 0 | BY16: 0 | BZ16: - | CA16: 0 | CB16: 0
A18: Saturday, November 8th
A19: Liverpool | B19: 1 | C19: 2 | D19: Chelsea | E19: 12:45:00 | G19: 0 | H19: 0 | I19: 10 | J19: 10 | K19: 5 | L19: 0 | M19: 5 | N19: 10 | O19: 10 | P19: 5 | Q19: 5 | R19: 10 | S19: 0 | T19: 10 | U19: 5 | V19: 0 | W19: 10 | X19: 5 | Y19: 5 | Z19: 0 | AA19: 5 | AB19: 0 | AC19: 10 | AD19: 5 | AE19: 0 | AF19: 10 | AG19: 5 | AH19: 10 | AI19: 10 | AJ19: 5 | AK19: 0 | AL19: 10 | AM19: 5 | AN19: 10 | AO19: 0 | AP19: 10 | AQ19: 5 | AR19: 5 | AS19: 0 | AT19: 0 | AU19: 5 | AV19: 5 | AW19: 0 | AX19: 10 | AY19: 5 | AZ19: 5 | BA19: 10 | BB19: 5 | BC19: 10 | BD19: 5 | BE19: 0 | BF19: 10 | BG19: 0 | BH19: 5 | BI19: 0 | BJ19: 0 | BK19: 5 | BL19: 0 | BM19: 0 | BN19: 5 | BO19: 0 | BP19: 0 | BQ19: 0 | BR19: 0 | BS19: 0 | BT19: 0 | BU19: 5 | BV19: 10 | BW19: 10 | BX19: 5 | BY19: 0 | BZ19: 5 | CA19: 10 | CB19: 5
A20: Burnley | B20: 1 | C20: 0 | D20: Hull City | E20: 15:00:00 | G20: 10 | H20: 0 | I20: 0 | J20: 10 | K20: 0 | L20: 5 | M20: 0 | N20: 0 | O20: 0 | P20: 0 | Q20: 0 | R20: 10 | S20: 10 | T20: 10 | U20: 5 | V20: 10 | W20: 10 | X20: 0 | Y20: 0 | Z20: 5 | AA20: 0 | AB20: 0 | AC20: 0 | AD20: 0 | AE20: 10 | AF20: 0 | AG20: 0 | AH20: 0 | AI20: 10 | AJ20: 0 | AK20: 5 | AL20: 10 | AM20: 0 | AN20: 0 | AO20: 5 | AP20: 0 | AQ20: 0 | AR20: 0 | AS20: 0 | AT20: 10 | AU20: 0 | AV20: 0 | AW20: 10 | AX20: 0 | AY20: 0 | AZ20: 0 | BA20: 0 | BB20: 0 | BC20: 0 | BD20: 0 | BE20: 0 | BF20: 0 | BG20: 0 | BH20: 0 | BI20: 10 | BJ20: 0 | BK20: 0 | BL20: 5 | BM20: 5 | BN20: 0 | BO20: 10 | BP20: 0 | BQ20: 0 | BR20: 0 | BS20: 5 | BT20: 0 | BU20: 0 | BV20: 0 | BW20: 0 | BX20: 0 | BY20: 0 | BZ20: 0 | CA20: 0 | CB20: 0
A21: Man United | B21: 1 | C21: 0 | D21: Crystal Palace | E21: 15:00:00 | G21: 5 | H21: 5 | I21: 5 | J21: 5 | K21: 5 | L21: 5 | M21: 5 | N21: 5 | O21: 5 | P21: 5 | Q21: 5 | R21: 5 | S21: 5 | T21: 5 | U21: 5 | V21: 5 | W21: 5 | X21: 5 | Y21: 5 | Z21: 5 | AA21: 5 | AB21: 5 | AC21: 5 | AD21: 5 | AE21: 5 | AF21: 5 | AG21: 5 | AH21: 5 | AI21: 5 | AJ21: 5 | AK21: 5 | AL21: 5 | AM21: 5 | AN21: 0 | AO21: 5 | AP21: 5 | AQ21: 5 | AR21: 5 | AS21: 5 | AT21: 5 | AU21: 5 | AV21: 5 | AW21: 5 | AX21: 5 | AY21: 5 | AZ21: 5 | BA21: 5 | BB21: 0 | BC21: 5 | BD21: 5 | BE21: 5 | BF21: 5 | BG21: 5 | BH21: 5 | BI21: 5 | BJ21: 5 | BK21: 5 | BL21: 5 | BM21: 5 | BN21: 5 | BO21: 10 | BP21: 5 | BQ21: 10 | BR21: 5 | BS21: 5 | BT21: 5 | BU21: 5 | BV21: 5 | BW21: 5 | BX21: 5 | BY21: 5 | BZ21: 5 | CA21: 5 | CB21: 5
A22: Southampton | B22: 2 | C22: 0 | D22: Leicester City | E22: 15:00:00 | G22: 5 | H22: 10 | I22: 10 | J22: 5 | K22: 5 | L22: 5 | M22: 5 | N22: 5 | O22: 10 | P22: 10 | Q22: 5 | R22: 5 | S22: 5 | T22: 5 | U22: 0 | V22: 10 | W22: 10 | X22: 5 | Y22: 5 | Z22: 5 | AA22: 5 | AB22: 5 | AC22: 10 | AD22: 10 | AE22: 5 | AF22: 5 | AG22: 10 | AH22: 10 | AI22: 10 | AJ22: 10 | AK22: 10 | AL22: 10 | AM22: 10 | AN22: 10 | AO22: 10 | AP22: 10 | AQ22: 10 | AR22: 10 | AS22: 10 | AT22: 10 | AU22: 5 | AV22: 10 | AW22: 5 | AX22: 5 | AY22: 10 | AZ22: 10 | BA22: 10 | BB22: 5 | BC22: 5 | BD22: 5 | BE22: 5 | BF22: 5 | BG22: 10 | BH22: 5 | BI22: 5 | BJ22: 10 | BK22: 5 | BL22: 5 | BM22: 5 | BN22: 10 | BO22: 5 | BP22: 5 | BQ22: 0 | BR22: 5 | BS22: 10 | BT22: 10 | BU22: 5 | BV22: 5 | BW22: 10 | BX22: 10 | BY22: 5 | BZ22: 10 | CA22: 10 | CB22: 10
A23: West Ham | B23: 0 | C23: 0 | D23: Aston Villa | E23: 15:00:00 | G23: 5 | H23: 0 | I23: 0 | J23: 5 | K23: 0 | L23: 5 | M23: 0 | N23: 0 | O23: 5 | P23: 0 | Q23: 0 | R23: 0 | S23: 0 | T23: 0 | U23: 0 | V23: 5 | W23: 0 | X23: 0 | Y23: 0 | Z23: 0 | AA23: 0 | AB23: 0 | AC23: 0 | AD23: 0 | AE23: 0 | AF23: 0 | AG23: 0 | AH23: 0 | AI23: 0 | AJ23: 0 | AK23: 0 | AL23: 0 | AM23: 0 | AN23: 0 | AO23: 5 | AP23: 0 | AQ23: 5 | AR23: 0 | AS23: 0 | AT23: 0 | AU23: 0 | AV23: 0 | AW23: 5 | AX23: 0 | AY23: 0 | AZ23: 0 | BA23: 0 | BB23: 5 | BC23: 5 | BD23: 0 | BE23: 0 | BF23: 5 | BG23: 0 | BH23: 0 | BI23: 5 | BJ23: 0 | BK23: 0 | BL23: 0 | BM23: 5 | BN23: 0 | BO23: 0 | BP23: 5 | BQ23: 0 | BR23: 0 | BS23: 0 | BT23: 0 | BU23: 5 | BV23: 5 | BW23: 0 | BX23: 0 | BY23: 0 | BZ23: 0 | CA23: 5 | CB23: 0
A24: QPR | B24: 2 | C24: 2 | D24: Man City | E24: 17:30:00 | G24: 0 | H24: 0 | I24: 10 | J24: 0 | K24: 0 | L24: 5 | M24: 0 | N24: 0 | O24: 0 | P24: 0 | Q24: 0 | R24: 0 | S24: 0 | T24: 0 | U24: 0 | V24: 0 | W24: 0 | X24: 0 | Y24: 0 | Z24: 0 | AA24: 0 | AB24: 0 | AC24: 0 | AD24: 0 | AE24: 0 | AF24: 0 | AG24: 0 | AH24: 0 | AI24: 0 | AJ24: 0 | AK24: 0 | AL24: 0 | AM24: 0 | AN24: 5 | AO24: 0 | AP24: 0 | AQ24: 0 | AR24: 0 | AS24: 0 | AT24: 0 | AU24: 0 | AV24: 10 | AW24: 0 | AX24: 0 | AY24: 0 | AZ24: 5 | BA24: 0 | BB24: 0 | BC24: 0 | BD24: 0 | BE24: 0 | BF24: 0 | BG24: 0 | BH24: 0 | BI24: 0 | BJ24: 0 | BK24: 10 | BL24: 0 | BM24: 0 | BN24: 0 | BO24: 0 | BP24: 0 | BQ24: 5 | BR24: 0 | BS24: 0 | BT24: 0 | BU24: 0 | BV24: 0 | BW24: 0 | BX24: 0 | BY24: 0 | BZ24: 0 | CA24: 0 | CB24: 0
A26: Sunday, November 9th
A27: Sunderland | B27: 1 | C27: 1 | D27: Everton | E27: 13:30:00 | G27: 0 | H27: 0 | I27: 5 | J27: 0 | K27: 10 | L27: 0 | M27: 0 | N27: 0 | O27: 0 | P27: 0 | Q27: 10 | R27: 0 | S27: 10 | T27: 0 | U27: 10 | V27: 10 | W27: 0 | X27: 0 | Y27: 0 | Z27: 0 | AA27: 0 | AB27: 0 | AC27: 0 | AD27: 10 | AE27: 5 | AF27: 5 | AG27: 0 | AH27: 0 | AI27: 10 | AJ27: 0 | AK27: 10 | AL27: 10 | AM27: 0 | AN27: 0 | AO27: 0 | AP27: 0 | AQ27: 0 | AR27: 0 | AS27: 10 | AT27: 0 | AU27: 0 | AV27: 0 | AW27: 10 | AX27: 10 | AY27: 10 | AZ27: 0 | BA27: 0 | BB27: 0 | BC27: 0 | BD27: 10 | BE27: 0 | BF27: 10 | BG27: 5 | BH27: 0 | BI27: 10 | BJ27: 10 | BK27: 0 | BL27: 0 | BM27: 5 | BN27: 0 | BO27: 0 | BP27: 0 | BQ27: 0 | BR27: 0 | BS27: 0 | BT27: 0 | BU27: 0 | BV27: 0 | BW27: 0 | BX27: 10 | BY27: 5 | BZ27: 0 | CA27: 0 | CB27: 10
A28: Tottenham | B28: 1 | C28: 2 | D28: Stoke City | E28: 13:30:00 | G28: 0 | H28: 0 | I28: 0 | J28: 0 | K28: 0 | L28: 0 | M28: 0 | N28: 0 | O28: 0 | P28: 0 | Q28: 0 | R28: 0 | S28: 0 | T28: 0 | U28: 5 | V28: 0 | W28: 0 | X28: 0 | Y28: 0 | Z28: 0 | AA28: 0 | AB28: 0 | AC28: 0 | AD28: 0 | AE28: 0 | AF28: 0 | AG28: 0 | AH28: 0 | AI28: 0 | AJ28: 0 | AK28: 0 | AL28: 0 | AM28: 0 | AN28: 0 | AO28: 0 | AP28: 0 | AQ28: 0 | AR28: 0 | AS28: 0 | AT28: 0 | AU28: 0 | AV28: 5 | AW28: 0 | AX28: 0 | AY28: 0 | AZ28: 0 | BA28: 0 | BB28: 0 | BC28: 0 | BD28: 0 | BE28: 0 | BF28: 0 | BG28: 0 | BH28: 0 | BI28: 0 | BJ28: 0 | BK28: 5 | BL28: 0 | BM28: 0 | BN28: 0 | BO28: 0 | BP28: 0 | BQ28: 0 | BR28: 0 | BS28: 0 | BT28: 0 | BU28: 0 | BV28: 0 | BW28: 0 | BX28: 0 | BY28: 0 | BZ28: 0 | CA28: 0 | CB28: 0
A29: West Brom | B29: 0 | C29: 2 | D29: Newcastle United | E29: 13:30:00 | G29: 5 | H29: 0 | I29: 0 | J29: 0 | K29: 0 | L29: 5 | M29: 0 | N29: 0 | O29: 5 | P29: 0 | Q29: 0 | R29: 5 | S29: 0 | T29: 0 | U29: 0 | V29: 0 | W29: 0 | X29: 0 | Y29: 0 | Z29: 0 | AA29: 0 | AB29: 0 | AC29: 0 | AD29: 0 | AE29: 0 | AF29: 0 | AG29: 0 | AH29: 0 | AI29: 0 | AJ29: 0 | AK29: 0 | AL29: 0 | AM29: 0 | AN29: 0 | AO29: 0 | AP29: 0 | AQ29: 0 | AR29: 0 | AS29: 0 | AT29: 0 | AU29: 0 | AV29: 5 | AW29: 0 | AX29: 0 | AY29: 0 | AZ29: 0 | BA29: 5 | BB29: 10 | BC29: 10 | BD29: 0 | BE29: 5 | BF29: 0 | BG29: 0 | BH29: 0 | BI29: 0 | BJ29: 0 | BK29: 5 | BL29: 0 | BM29: 10 | BN29: 5 | BO29: 0 | BP29: 0 | BQ29: 10 | BR29: 5 | BS29: 0 | BT29: 5 | BU29: 5 | BV29: 0 | BW29: 0 | BX29: 0 | BY29: 0 | BZ29: 0 | CA29: 0 | CB29: 5
A30: Swansea City | B30: 2 | C30: 1 | D30: Arsenal | E30: 16:00:00 | G30: 0 | H30: 0 | I30: 10 | J30: 0 | K30: 10 | L30: 0 | M30: 0 | N30: 0 | O30: 0 | P30: 0 | Q30: 10 | R30: 0 | S30: 0 | T30: 0 | U30: 0 | V30: 0 | W30: 0 | X30: 0 | Y30: 0 | Z30: 0 | AA30: 0 | AB30: 0 | AC30: 0 | AD30: 0 | AE30: 0 | AF30: 10 | AG30: 0 | AH30: 0 | AI30: 0 | AJ30: 0 | AK30: 5 | AL30: 0 | AM30: 0 | AN30: 0 | AO30: 0 | AP30: 0 | AQ30: 0 | AR30: 0 | AS30: 0 | AT30: 0 | AU30: 0 | AV30: 0 | AW30: 0 | AX30: 0 | AY30: 0 | AZ30: 0 | BA30: 0 | BB30: 0 | BC30: 0 | BD30: 0 | BE30: 0 | BF30: 0 | BG30: 0 | BH30: 10 | BI30: 0 | BJ30: 0 | BK30: 5 | BL30: 10 | BM30: 0 | BN30: 0 | BO30: 5 | BP30: 0 | BQ30: 0 | BR30: 0 | BS30: - | BT30: 0 | BU30: 0 | BV30: 0 | BW30: 0 | BX30: 0 | BY30: 0 | BZ30: 0 | CA30: 0 | CB30: 0
A32: Saturday, November 22nd
A33: Chelsea | B33: 2 | C33: 0 | D33: West Brom | E33: 15:00:00 | G33: 10 | H33: 10 | I33: 5 | J33: 5 | K33: 5 | L33: 5 | M33: 10 | N33: 5 | O33: 10 | P33: 10 | Q33: 5 | R33: 5 | S33: 5 | T33: 5 | U33: 5 | V33: 10 | W33: 5 | X33: 5 | Y33: 10 | Z33: 5 | AA33: 10 | AB33: 5 | AC33: 10 | AD33: 5 | AE33: 5 | AF33: 5 | AG33: 10 | AH33: 5 | AI33: 5 | AJ33: 5 | AK33: 10 | AL33: 5 | AM33: 10 | AN33: 5 | AO33: 10 | AP33: 5 | AQ33: 5 | AR33: 5 | AS33: 5 | AT33: 10 | AU33: 10 | AV33: 5 | AW33: 5 | AX33: 10 | AY33: 10 | AZ33: 5 | BA33: 5 | BB33: 10 | BC33: 5 | BD33: 5 | BE33: 5 | BF33: 5 | BG33: 10 | BH33: 5 | BI33: 5 | BJ33: 10 | BK33: 10 | BL33: 5 | BM33: 5 | BN33: 5 | BO33: 5 | BP33: 5 | BQ33: 5 | BR33: 5 | BS33: - | BT33: 10 | BU33: 10 | BV33: 10 | BW33: 5 | BX33: 5 | BY33: 5 | BZ33: - | CA33: - | CB33: 5
A34: Everton | B34: 2 | C34: 1 | D34: West Ham | E34: 15:00:00 | G34: 0 | H34: 5 | I34: 10 | J34: 5 | K34: 10 | L34: 5 | M34: 5 | N34: 5 | O34: 5 | P34: 10 | Q34: 5 | R34: 5 | S34: 5 | T34: 10 | U34: 10 | V34: 0 | W34: 5 | X34: 10 | Y34: 5 | Z34: 0 | AA34: 10 | AB34: 0 | AC34: 10 | AD34: 5 | AE34: 10 | AF34: 10 | AG34: 5 | AH34: 10 | AI34: 10 | AJ34: 5 | AK34: 0 | AL34: 10 | AM34: 5 | AN34: 0 | AO34: 5 | AP34: 10 | AQ34: 5 | AR34: 10 | AS34: 10 | AT34: 5 | AU34: 5 | AV34: 0 | AW34: 5 | AX34: 10 | AY34: 0 | AZ34: 0 | BA34: 0 | BB34: 0 | BC34: 10 | BD34: 5 | BE34: 0 | BF34: 10 | BG34: 5 | BH34: 0 | BI34: 0 | BJ34: 5 | BK34: 10 | BL34: 10 | BM34: 10 | BN34: 0 | BO34: 10 | BP34: 10 | BQ34: 5 | BR34: 10 | BS34: - | BT34: 5 | BU34: 5 | BV34: 10 | BW34: 10 | BX34: 0 | BY34: 10 | BZ34: - | CA34: - | CB34: 0
A35: Leicester City | B35: 0 | C35: 0 | D35: Sunderland | E35: 15:00:00 | G35: 0 | H35: 5 | I35: 5 | J35: 0 | K35: 5 | L35: 5 | M35: 0 | N35: 0 | O35: 5 | P35: 5 | Q35: 5 | R35: 5 | S35: 0 | T35: 0 | U35: 0 | V35: 0 | W35: 5 | X35: 5 | Y35: 0 | Z35: 10 | AA35: 0 | AB35: 0 | AC35: 5 | AD35: 0 | AE35: 0 | AF35: 5 | AG35: 0 | AH35: 0 | AI35: 0 | AJ35: 0 | AK35: 0 | AL35: 0 | AM35: 5 | AN35: 10 | AO35: 0 | AP35: 0 | AQ35: 5 | AR35: 0 | AS35: 0 | AT35: 0 | AU35: 0 | AV35: 0 | AW35: 0 | AX35: 5 | AY35: 0 | AZ35: 0 | BA35: 5 | BB35: 5 | BC35: 0 | BD35: 0 | BE35: 5 | BF35: 5 | BG35: 5 | BH35: 0 | BI35: 5 | BJ35: 0 | BK35: 5 | BL35: 5 | BM35: 5 | BN35: 0 | BO35: 0 | BP35: 0 | BQ35: 10 | BR35: 0 | BS35: - | BT35: 0 | BU35: 5 | BV35: 5 | BW35: 5 | BX35: 5 | BY35: 5 | BZ35: - | CA35: - | CB35: 5
A36: Man City | B36: 2 | C36: 1 | D36: Swansea City | E36: 15:00:00 | G36: 5 | H36: 5 | I36: 5 | J36: 5 | K36: 5 | L36: 5 | M36: 5 | N36: 5 | O36: 5 | P36: 10 | Q36: 5 | R36: 10 | S36: 10 | T36: 10 | U36: 5 | V36: 5 | W36: 5 | X36: 10 | Y36: 5 | Z36: 5 | AA36: 5 | AB36: 5 | AC36: 5 | AD36: 10 | AE36: 5 | AF36: 5 | AG36: 5 | AH36: 10 | AI36: 5 | AJ36: 5 | AK36: 5 | AL36: 5 | AM36: 5 | AN36: 0 | AO36: 5 | AP36: 0 | AQ36: 10 | AR36: 5 | AS36: 5 | AT36: 5 | AU36: 5 | AV36: 10 | AW36: 5 | AX36: 5 | AY36: 10 | AZ36: 0 | BA36: 5 | BB36: 10 | BC36: 5 | BD36: 5 | BE36: 5 | BF36: 5 | BG36: 5 | BH36: 0 | BI36: 0 | BJ36: 5 | BK36: 10 | BL36: 5 | BM36: 5 | BN36: 0 | BO36: 5 | BP36: 5 | BQ36: 5 | BR36: 5 | BS36: - | BT36: 5 | BU36: 10 | BV36: 5 | BW36: 5 | BX36: 5 | BY36: 5 | BZ36: - | CA36: - | CB36: 10
A37: Newcastle United | B37: 1 | C37: 0 | D37: QPR | E37: 15:00:00 | G37: 5 | H37: 10 | I37: 5 | J37: 10 | K37: 5 | L37: 5 | M37: 5 | N37: 5 | O37: 5 | P37: 5 | Q37: 5 | R37: 5 | S37: 5 | T37: 5 | U37: 0 | V37: 5 | W37: 0 | X37: 5 | Y37: 5 | Z37: 5 | AA37: 5 | AB37: 0 | AC37: 5 | AD37: 5 | AE37: 5 | AF37: 5 | AG37: 10 | AH37: 5 | AI37: 5 | AJ37: 10 | AK37: 5 | AL37: 5 | AM37: 5 | AN37: 0 | AO37: 5 | AP37: 5 | AQ37: 10 | AR37: 5 | AS37: 5 | AT37: 5 | AU37: 10 | AV37: 10 | AW37: 5 | AX37: 5 | AY37: 5 | AZ37: 10 | BA37: 5 | BB37: 5 | BC37: 10 | BD37: 10 | BE37: 5 | BF37: 5 | BG37: 5 | BH37: 0 | BI37: 10 | BJ37: 5 | BK37: 5 | BL37: 10 | BM37: 5 | BN37: 5 | BO37: 5 | BP37: 10 | BQ37: 0 | BR37: 5 | BS37: - | BT37: 5 | BU37: 5 | BV37: 10 | BW37: 5 | BX37: 5 | BY37: 5 | BZ37: - | CA37: - | CB37: 5
A38: Stoke City | B38: 1 | C38: 2 | D38: Burnley | E38: 15:00:00 | G38: 0 | H38: 0 | I38: 0 | J38: 0 | K38: 0 | L38: 0 | M38: 0 | N38: 0 | O38: 0 | P38: 0 | Q38: 0 | R38: 0 | S38: 0 | T38: 0 | U38: 0 | V38: 0 | W38: 0 | X38: 0 | Y38: 0 | Z38: 0 | AA38: 0 | AB38: 0 | AC38: 0 | AD38: 0 | AE38: 0 | AF38: 0 | AG38: 0 | AH38: 0 | AI38: 0 | AJ38: 0 | AK38: 0 | AL38: 0 | AM38: 0 | AN38: 0 | AO38: 0 | AP38: 0 | AQ38: 0 | AR38: 0 | AS38: 0 | AT38: 0 | AU38: 0 | AV38: 0 | AW38: 0 | AX38: 0 | AY38: 0 | AZ38: 0 | BA38: 0 | BB38: 0 | BC38: 0 | BD38: 0 | BE38: 0 | BF38: 0 | BG38: 0 | BH38: 0 | BI38: 0 | BJ38: 0 | BK38: 0 | BL38: 0 | BM38: 0 | BN38: 0 | BO38: 0 | BP38: 0 | BQ38: 0 | BR38: 0 | BS38: - | BT38: 0 | BU38: 0 | BV38: 0 | BW38: 0 | BX38: 0 | BY38: 0 | BZ38: - | CA38: - | CB38: 0
A39: Arsenal | B39: 1 | C39: 2 | D39: Man United | E39: 17:30:00 | G39: 0 | H39: 0 | I39: 5 | J39: 0 | K39: 0 | L39: 0 | M39: 0 | N39: 0 | O39: 0 | P39: 0 | Q39: 5 | R39: 0 | S39: 0 | T39: 0 | U39: 0 | V39: 0 | W39: 0 | X39: 0 | Y39: 0 | Z39: 0 | AA39: 10 | AB39: 0 | AC39: 0 | AD39: 0 | AE39: 0 | AF39: 0 | AG39: 0 | AH39: 0 | AI39: 0 | AJ39: 0 | AK39: 0 | AL39: 0 | AM39: 0 | AN39: 0 | AO39: 0 | AP39: 0 | AQ39: 0 | AR39: 0 | AS39: 0 | AT39: 0 | AU39: 0 | AV39: 0 | AW39: 0 | AX39: 0 | AY39: 10 | AZ39: 10 | BA39: 0 | BB39: 0 | BC39: 10 | BD39: 0 | BE39: 0 | BF39: 0 | BG39: 0 | BH39: 10 | BI39: 0 | BJ39: 0 | BK39: 10 | BL39: 0 | BM39: 10 | BN39: 0 | BO39: 0 | BP39: 0 | BQ39: 10 | BR39: 0 | BS39: - | BT39: 0 | BU39: 0 | BV39: 0 | BW39: 0 | BX39: 0 | BY39: 0 | BZ39: - | CA39: - | CB39: 0
A41: Sunday, November 23rd
A42: Crystal Palace | B42: 3 | C42: 1 | D42: Liverpool | E42: 13:30:00 | G42: 0 | H42: 0 | I42: 0 | J42: 0 | K42: 0 | L42: 0 | M42: 0 | N42: 0 | O42: 0 | P42: 0 | Q42: 0 | R42: 0 | S42: 0 | T42: 0 | U42: 0 | V42: 0 | W42: 0 | X42: 0 | Y42: 0 | Z42: 0 | AA42: 0 | AB42: 0 | AC42: 0 | AD42: 0 | AE42: 0 | AF42: 0 | AG42: 0 | AH42: 0 | AI42: 0 | AJ42: 0 | AK42: 0 | AL42: 5 | AM42: 0 | AN42: 0 | AO42: 5 | AP42: 0 | AQ42: 0 | AR42: 0 | AS42: 0 | AT42: 0 | AU42: 0 | AV42: 5 | AW42: 0 | AX42: 0 | AY42: 0 | AZ42: 0 | BA42: 0 | BB42: 0 | BC42: 0 | BD42: 5 | BE42: 5 | BF42: 0 | BG42: 0 | BH42: 0 | BI42: 0 | BJ42: 0 | BK42: 5 | BL42: 0 | BM42: 0 | BN42: 5 | BO42: 0 | BP42: 0 | BQ42: 0 | BR42: 0 | BS42: - | BT42: 0 | BU42: 0 | BV42: 0 | BW42: 0 | BX42: 5 | BY42: 0 | BZ42: - | CA42: - | CB42: 0
A43: Hull City | B43: 1 | C43: 2 | D43: Tottenham | E43: 16:00:00 | G43: 5 | H43: 0 | I43: 0 | J43: 5 | K43: 10 | L43: 5 | M43: 0 | N43: 0 | O43: 10 | P43: 10 | Q43: 10 | R43: 5 | S43: 0 | T43: 0 | U43: 5 | V43: 5 | W43: 10 | X43: 5 | Y43: 0 | Z43: 10 | AA43: 10 | AB43: 10 | AC43: 0 | AD43: 0 | AE43: 0 | AF43: 0 | AG43: 0 | AH43: 0 | AI43: 0 | AJ43: 0 | AK43: 5 | AL43: 0 | AM43: 0 | AN43: 0 | AO43: 0 | AP43: 5 | AQ43: 0 | AR43: 0 | AS43: 0 | AT43: 0 | AU43: 0 | AV43: 0 | AW43: 0 | AX43: 10 | AY43: 0 | AZ43: 10 | BA43: 10 | BB43: 0 | BC43: 0 | BD43: 0 | BE43: 0 | BF43: 10 | BG43: 0 | BH43: 10 | BI43: 5 | BJ43: 0 | BK43: 0 | BL43: 5 | BM43: 5 | BN43: 0 | BO43: 0 | BP43: 10 | BQ43: 0 | BR43: 5 | BS43: - | BT43: 0 | BU43: 5 | BV43: 0 | BW43: 0 | BX43: 10 | BY43: 0 | BZ43: - | CA43: - | CB43: 0
A45: Monday, November 24th
A46: Aston Villa | B46: 1 | C46: 1 | D46: Southampton | E46: 20:00:00 | G46: 10 | H46: 10 | I46: 0 | J46: 10 | K46: 0 | L46: 10 | M46: 0 | N46: 0 | O46: 10 | P46: 0 | Q46: 10 | R46: 0 | S46: 0 | T46: 10 | U46: 0 | V46: 10 | W46: 0 | X46: 0 | Y46: 0 | Z46: 0 | AA46: 0 | AB46: 0 | AC46: 0 | AD46: 10 | AE46: 10 | AF46: 0 | AG46: 0 | AH46: 0 | AI46: 10 | AJ46: 0 | AK46: 0 | AL46: 10 | AM46: 5 | AN46: 0 | AO46: - | AP46: 0 | AQ46: 0 | AR46: 0 | AS46: 0 | AT46: 0 | AU46: 0 | AV46: 0 | AW46: 0 | AX46: 10 | AY46: 0 | AZ46: 0 | BA46: 10 | BB46: 0 | BC46: 0 | BD46: 0 | BE46: 10 | BF46: 0 | BG46: 0 | BH46: 0 | BI46: 10 | BJ46: 0 | BK46: 10 | BL46: 10 | BM46: 0 | BN46: 0 | BO46: 0 | BP46: 10 | BQ46: 0 | BR46: 0 | BS46: - | BT46: 0 | BU46: 0 | BV46: 0 | BW46: 0 | BX46: 0 | BY46: 0 | BZ46: - | CA46: - | CB46: 0
A48: Saturday, November 29th
A49: West Brom | B49: 0 | C49: 1 | D49: Arsenal | E49: 12:45:00 | G49: 5 | H49: 5 | I49: 5 | J49: 5 | K49: 5 | L49: 5 | M49: 5 | N49: 5 | O49: 5 | P49: 5 | Q49: 0 | R49: 5 | S49: 5 | T49: 5 | U49: 5 | V49: 0 | W49: 5 | X49: 5 | Y49: 5 | Z49: 5 | AA49: 0 | AB49: 5 | AC49: 0 | AD49: 5 | AE49: 0 | AF49: 5 | AG49: 5 | AH49: 0 | AI49: 0 | AJ49: 5 | AK49: 5 | AL49: 5 | AM49: 5 | AN49: 5 | AO49: - | AP49: 5 | AQ49: 0 | AR49: 5 | AS49: 5 | AT49: 0 | AU49: 5 | AV49: 5 | AW49: 5 | AX49: 5 | AY49: 10 | AZ49: 10 | BA49: 5 | BB49: 5 | BC49: 5 | BD49: 5 | BE49: 5 | BF49: 5 | BG49: 0 | BH49: 5 | BI49: 5 | BJ49: 5 | BK49: 5 | BL49: 5 | BM49: 5 | BN49: 5 | BO49: 5 | BP49: 0 | BQ49: 5 | BR49: 0 | BS49: - | BT49: 5 | BU49: 5 | BV49: 5 | BW49: 5 | BX49: 5 | BY49: 5 | BZ49: - | CA49: 5 | CB49: 5
A50: Burnley | B50: 1 | C50: 1 | D50: Aston Villa | E50: 15:00:00 | G50: 10 | H50: 10 | I50: 0 | J50: 0 | K50: 10 | L50: 0 | M50: 0 | N50: 0 | O50: 10 | P50: 0 | Q50: 0 | R50: 10 | S50: 5 | T50: 10 | U50: 0 | V50: 0 | W50: 10 | X50: 10 | Y50: 10 | Z50: 0 | AA50: 0 | AB50: 10 | AC50: 0 | AD50: 10 | AE50: 0 | AF50: 10 | AG50: 0 | AH50: 0 | AI50: 0 | AJ50: 0 | AK50: 0 | AL50: 0 | AM50: 5 | AN50: 0 | AO50: - | AP50: 0 | AQ50: 0 | AR50: 10 | AS50: 0 | AT50: 0 | AU50: 0 | AV50: 10 | AW50: 0 | AX50: 10 | AY50: 0 | AZ50: 10 | BA50: 0 | BB50: 0 | BC50: 10 | BD50: 5 | BE50: 0 | BF50: 10 | BG50: 0 | BH50: 0 | BI50: 10 | BJ50: 10 | BK50: 0 | BL50: 10 | BM50: 0 | BN50: 5 | BO50: 10 | BP50: 0 | BQ50: 0 | BR50: 0 | BS50: - | BT50: 0 | BU50: 10 | BV50: 10 | BW50: 0 | BX50: 0 | BY50: 10 | BZ50: - | CA50: 5 | CB50: 10
A51: Liverpool | B51: 1 | C51: 0 | D51: Stoke City | E51: 15:00:00 | G51: 5 | H51: 10 | I51: 0 | J51: 5 | K51: 10 | L51: 5 | M51: 0 | N51: 10 | O51: 5 | P51: 0 | Q51: 0 | R51: 5 | S51: 5 | T51: 5 | U51: 5 | V51: 0 | W51: 10 | X51: 0 | Y51: 5 | Z51: 10 | AA51: 0 | AB51: 10 | AC51: 5 | AD51: 5 | AE51: 5 | AF51: 5 | AG51: 10 | AH51: 5 | AI51: 10 | AJ51: 5 | AK51: 5 | AL51: 5 | AM51: 5 | AN51: 0 | AO51: - | AP51: 5 | AQ51: 10 | AR51: 0 | AS51: 5 | AT51: 5 | AU51: 5 | AV51: 10 | AW51: 5 | AX51: 5 | AY51: 10 | AZ51: 0 | BA51: 5 | BB51: 0 | BC51: 10 | BD51: 5 | BE51: 0 | BF51: 5 | BG51: 10 | BH51: 0 | BI51: 5 | BJ51: 5 | BK51: 0 | BL51: 5 | BM51: 0 | BN51: 5 | BO51: 5 | BP51: 10 | BQ51: 5 | BR51: 0 | BS51: - | BT51: 5 | BU51: 5 | BV51: 5 | BW51: 0 | BX51: 0 | BY51: 5 | BZ51: - | CA51: 0 | CB51: 0
A52: Man United | B52: 3 | C52: 0 | D52: Hull City | E52: 15:00:00 | G52: 5 | H52: 10 | I52: 5 | J52: 5 | K52: 5 | L52: 10 | M52: 5 | N52: 5 | O52: 5 | P52: 5 | Q52: 10 | R52: 5 | S52: 10 | T52: 5 | U52: 5 | V52: 5 | W52: 5 | X52: 10 | Y52: 10 | Z52: 5 | AA52: 5 | AB52: 5 | AC52: 5 | AD52: 5 | AE52: 5 | AF52: 5 | AG52: 5 | AH52: 5 | AI52: 5 | AJ52: 5 | AK52: 5 | AL52: 5 | AM52: 5 | AN52: 5 | AO52: - | AP52: 10 | AQ52: 5 | AR52: 5 | AS52: 5 | AT52: 5 | AU52: 5 | AV52: 5 | AW52: 5 | AX52: 5 | AY52: 5 | AZ52: 10 | BA52: 5 | BB52: 5 | BC52: 5 | BD52: 5 | BE52: 5 | BF52: 5 | BG52: 5 | BH52: 5 | BI52: 5 | BJ52: 5 | BK52: 10 | BL52: 10 | BM52: 10 | BN52: 10 | BO52: 5 | BP52: 5 | BQ52: 0 | BR52: 5 | BS52: - | BT52: 5 | BU52: 5 | BV52: 5 | BW52: 5 | BX52: 5 | BY52: 5 | BZ52: - | CA52: 5 | CB52: 5
A53: QPR | B53: 3 | C53: 2 | D53: Leicester City | E53: 15:00:00 | G53: 5 | H53: 5 | I53: 5 | J53: 0 | K53: 0 | L53: 5 | M53: 5 | N53: 5 | O53: 5 | P53: 0 | Q53: 5 | R53: 0 | S53: 0 | T53: 5 | U53: 0 | V53: 5 | W53: 5 | X53: 0 | Y53: 0 | Z53: 0 | AA53: 5 | AB53: 5 | AC53: 5 | AD53: 5 | AE53: 5 | AF53: 0 | AG53: 5 | AH53: 5 | AI53: 5 | AJ53: 5 | AK53: 5 | AL53: 0 | AM53: 5 | AN53: 5 | AO53: - | AP53: 0 | AQ53: 5 | AR53: 5 | AS53: 5 | AT53: 5 | AU53: 5 | AV53: 5 | AW53: 5 | AX53: 5 | AY53: 5 | AZ53: 5 | BA53: 0 | BB53: 0 | BC53: 5 | BD53: 5 | BE53: 5 | BF53: 0 | BG53: 5 | BH53: 5 | BI53: 0 | BJ53: 5 | BK53: 5 | BL53: 5 | BM53: 0 | BN53: 5 | BO53: 5 | BP53: 5 | BQ53: 5 | BR53: 0 | BS53: - | BT53: 5 | BU53: 5 | BV53: 0 | BW53: 5 | BX53: 0 | BY53: 5 | BZ53: - | CA53: 0 | CB53: 5
A54: Swansea City | B54: 1 | C54: 1 | D54: Crystal Palace | E54: 15:00:00 | G54: 0 | H54: 5 | I54: 0 | J54: 0 | K54: 0 | L54: 0 | M54: 0 | N54: 0 | O54: 0 | P54: 0 | Q54: 0 | R54: 0 | S54: 0 | T54: 0 | U54: 0 | V54: 10 | W54: 10 | X54: 0 | Y54: 0 | Z54: 0 | AA54: 0 | AB54: 0 | AC54: 0 | AD54: 0 | AE54: 0 | AF54: 0 | AG54: 0 | AH54: 0 | AI54: 0 | AJ54: 5 | AK54: 0 | AL54: 0 | AM54: 0 | AN54: 0 | AO54: - | AP54: 0 | AQ54: 0 | AR54: 0 | AS54: 0 | AT54: 0 | AU54: 0 | AV54: 0 | AW54: 10 | AX54: 0 | AY54: 0 | AZ54: 0 | BA54: 0 | BB54: 0 | BC54: 0 | BD54: 0 | BE54: 0 | BF54: 0 | BG54: 0 | BH54: 0 | BI54: 0 | BJ54: 0 | BK54: 5 | BL54: 0 | BM54: 0 | BN54: 0 | BO54: 0 | BP54: 0 | BQ54: 10 | BR54: 0 | BS54: - | BT54: 10 | BU54: 0 | BV54: 0 | BW54: 0 | BX54: 0 | BY54: 10 | BZ54: - | CA54: 0 | CB54: 0
A55: West Ham | B55: 1 | C55: 0 | D55: Newcastle United | E55: 15:00:00 | G55: 0 | H55: 10 | I55: 0 | J55: 0 | K55: 5 | L55: 0 | M55: 5 | N55: 5 | O55: 0 | P55: 0 | Q55: 0 | R55: 0 | S55: 0 | T55: 5 | U55: 10 | V55: 0 | W55: 0 | X55: 0 | Y55: 0 | Z55: 10 | AA55: 0 | AB55: 0 | AC55: 0 | AD55: 10 | AE55: 5 | AF55: 0 | AG55: 5 | AH55: 5 | AI55: 10 | AJ55: 0 | AK55: 5 | AL55: 5 | AM55: 5 | AN55: 0 | AO55: - | AP55: 0 | AQ55: 10 | AR55: 0 | AS55: 5 | AT55: 5 | AU55: 10 | AV55: 0 | AW55: 0 | AX55: 5 | AY55: 0 | AZ55: 5 | BA55: 5 | BB55: 0 | BC55: 0 | BD55: 10 | BE55: 0 | BF55: 0 | BG55: 5 | BH55: 0 | BI55: 0 | BJ55: 0 | BK55: 0 | BL55: 5 | BM55: 0 | BN55: 0 | BO55: 0 | BP55: 10 | BQ55: 0 | BR55: 0 | BS55: - | BT55: 0 | BU55: 0 | BV55: 0 | BW55: 0 | BX55: 0 | BY55: 0 | BZ55: - | CA55: 5 | CB55: 0
A56: Sunderland | B56: 0 | C56: 0 | D56: Chelsea | E56: 17:30:00 | G56: 0 | H56: 0 | I56: 0 | J56: 0 | K56: 0 | L56: 0 | M56: 0 | N56: 0 | O56: 0 | P56: 0 | Q56: 0 | R56: 0 | S56: 5 | T56: 0 | U56: 0 | V56: 0 | W56: 0 | X56: 0 | Y56: 0 | Z56: 0 | AA56: 0 | AB56: 0 | AC56: 0 | AD56: 5 | AE56: 0 | AF56: 0 | AG56: 0 | AH56: 0 | AI56: 0 | AJ56: 0 | AK56: 0 | AL56: 0 | AM56: 0 | AN56: 0 | AO56: - | AP56: 0 | AQ56: 0 | AR56: 0 | AS56: 0 | AT56: 0 | AU56: 0 | AV56: 0 | AW56: 0 | AX56: 0 | AY56: 0 | AZ56: 0 | BA56: 0 | BB56: 0 | BC56: 0 | BD56: 0 | BE56: 0 | BF56: 0 | BG56: 0 | BH56: 0 | BI56: 0 | BJ56: 0 | BK56: 0 | BL56: 0 | BM56: 0 | BN56: 0 | BO56: 0 | BP56: 0 | BQ56: 0 | BR56: 0 | BS56: - | BT56: 0 | BU56: 0 | BV56: 0 | BW56: 0 | BX56: 0 | BY56: 0 | BZ56: 0 | CA56: 0 | CB56: 0
A58: Sunday, November 30th
A59: Southampton | B59: 0 | C59: 3 | D59: Man City | E59: 13:30:00 | G59: 0 | H59: 5 | I59: 0 | J59: 5 | K59: 0 | L59: 0 | M59: 0 | N59: 0 | O59: 0 | P59: 5 | Q59: 5 | R59: 5 | S59: 5 | T59: 5 | U59: 5 | V59: 0 | W59: 0 | X59: 5 | Y59: 0 | Z59: 5 | AA59: 0 | AB59: 5 | AC59: 5 | AD59: 0 | AE59: 0 | AF59: 0 | AG59: 0 | AH59: 0 | AI59: 0 | AJ59: 5 | AK59: 0 | AL59: 5 | AM59: 0 | AN59: 0 | AO59: - | AP59: 5 | AQ59: 0 | AR59: 0 | AS59: 0 | AT59: 0 | AU59: 5 | AV59: 0 | AW59: 5 | AX59: 5 | AY59: 5 | AZ59: 0 | BA59: 0 | BB59: 0 | BC59: 5 | BD59: 5 | BE59: 5 | BF59: 5 | BG59: 5 | BH59: 0 | BI59: 0 | BJ59: 5 | BK59: 0 | BL59: 5 | BM59: 5 | BN59: 0 | BO59: 5 | BP59: 0 | BQ59: 0 | BR59: 5 | BS59: - | BT59: 0 | BU59: 5 | BV59: 5 | BW59: 0 | BX59: 5 | BY59: 5 | BZ59: 0 | CA59: 5 | CB59: 0
A60: Tottenham | B60: 2 | C60: 1 | D60: Everton | E60: 16:00:00 | G60: 0 | H60: 0 | I60: 0 | J60: 0 | K60: 10 | L60: 10 | M60: 0 | N60: 0 | O60: 0 | P60: 0 | Q60: 0 | R60: 0 | S60: 10 | T60: 10 | U60: 0 | V60: 10 | W60: 0 | X60: 0 | Y60: 0 | Z60: 0 | AA60: 0 | AB60: 0 | AC60: 0 | AD60: 0 | AE60: 5 | AF60: 0 | AG60: 0 | AH60: 0 | AI60: 5 | AJ60: 0 | AK60: 0 | AL60: 0 | AM60: 0 | AN60: 0 | AO60: - | AP60: 10 | AQ60: 5 | AR60: 0 | AS60: 0 | AT60: 0 | AU60: 0 | AV60: 0 | AW60: 0 | AX60: 10 | AY60: 10 | AZ60: 10 | BA60: 10 | BB60: 10 | BC60: 0 | BD60: 10 | BE60: 0 | BF60: 0 | BG60: 0 | BH60: 0 | BI60: 0 | BJ60: 10 | BK60: 0 | BL60: 0 | BM60: 10 | BN60: 10 | BO60: 10 | BP60: 5 | BQ60: 0 | BR60: 0 | BS60: - | BT60: 0 | BU60: 5 | BV60: 0 | BW60: 0 | BX60: 0 | BY60: 0 | BZ60: 0 | CA60: 5 | CB60: 0
A63: Golden Boots
A64: Alexis Sanchez - Arsenal | E64: =2+1+0+0 -> 3 | F64: =COUNT(G64:CB64) -> 14 | H64: =5*$E64 -> 15 | N64: =5*$E64 -> 15 | T64: =5*$E64 -> 15 | Y64: =5*$E64 -> 15 | Z64: =5*$E64 -> 15 | AC64: =5*$E64 -> 15 | AQ64: =5*$E64 -> 15 | AS64: =5*$E64 -> 15 | AZ64: =5*$E64 -> 15 | BF64: =5*$E64 -> 15 | BK64: =5*$E64 -> 15 | BL64: =5*$E64 -> 15 | BV64: =5*$E64 -> 15 | BZ64: =5*$E64 -> 15
A65: Daniel Sturridge - Liverpool | E65: =0+0+0+0 -> 0 | F65: 52 | G65: =5*$E65 -> 0 | I65: =5*$E65 -> 0 | J65: =5*$E65 -> 0 | K65: =5*$E65 -> 0 | M65: =5*$E65 -> 0 | N65: =5*$E65 -> 0 | O65: =5*$E65 -> 0 | P65: =5*$E65 -> 0 | Q65: =5*$E65 -> 0 | R65: =5*$E65 -> 0 | S65: =5*$E65 -> 0 | V65: =5*$E65 -> 0 | W65: =5*$E65 -> 0 | X65: =5*$E65 -> 0 | Z65: =5*$E65 -> 0 | AA65: =5*$E65 -> 0 | AB65: =5*$E65 -> 0 | AE65: =5*$E65 -> 0 | AF65: =5*$E65 -> 0 | AG65: =5*$E65 -> 0 | AI65: =5*$E65 -> 0 | AJ65: 0 | AK65: 0 | AL65: 0 | AM65: 0 | AO65: 0 | AP65: 0 | AR65: =5*$E65 -> 0 | AS65: =5*$E65 -> 0 | AU65: =5*$E65 -> 0 | AV65: =5*$E65 -> 0 | AX65: =5*$E65 -> 0 | AY65: =5*$E65 -> 0 | BA65: =5*$E65 -> 0 | BB65: =5*$E65 -> 0 | BC65: =5*$E65 -> 0 | BD65: =5*$E65 -> 0 | BE65: =5*$E65 -> 0 | BF65: =5*$E65 -> 0 | BI65: =5*$E65 -> 0 | BJ65: =5*$E65 -> 0 | BK65: =5*$E65 -> 0 | BL65: 0 | BM65: =5*$E65 -> 0 | BQ65: =5*$E65 -> 0 | BS65: =5*$E65 -> 0 | BT65: =5*$E65 -> 0 | BU65: =5*$E65 -> 0 | BW65: =5*$E65 -> 0 | BX65: =5*$E65 -> 0 | CA65: =5*$E65 -> 0 | CB65: =5*$E65 -> 0
A66: Diego Costa - Chelsea | E66: =0+1+1+0 -> 2 | F66: 39 | H66: =5*$E66 -> 10 | J66: 10 | L66: =5*$E66 -> 10 | M66: =5*$E66 -> 10 | O66: 10 | P66: =5*$E66 -> 10 | S66: =5*$E66 -> 10 | T66: =5*$E66 -> 10 | Z66: =5*$E66 -> 10 | AB66: =5*$E66 -> 10 | AC66: =5*$E66 -> 10 | AE66: 10 | AF66: =5*$E66 -> 10 | AG66: =5*$E66 -> 10 | AH66: =5*$E66 -> 10 | AJ66: =5*$E66 -> 10 | AK66: =5*$E66 -> 10 | AO66: =5*$E66 -> 10 | AP66: =5*$E66 -> 10 | AR66: =5*$E66 -> 10 | AT66: =5*$E66 -> 10 | AU66: 10 | AV66: =5*$E66 -> 10 | AW66: =5*$E66 -> 10 | AZ66: =5*$E66 -> 10 | BA66: =5*$E66 -> 10 | BB66: =5*$E66 -> 10 | BD66: =5*$E66 -> 10 | BF66: =5*$E66 -> 10 | BG66: =5*$E66 -> 10 | BH66: =5*$E66 -> 10 | BI66: =5*$E66 -> 10 | BN66: =5*$E66 -> 10 | BO66: =5*$E66 -> 10 | BP66: =5*$E66 -> 10 | BR66: =5*$E66 -> 10 | BZ66: =5*$E66 -> 10 | CA66: =5*$E66 -> 10 | CB66: 10
A67: Eden Hazard - Chelsea | E67: =1+0+1+0 -> 2 | F67: 2 | K67: =5*$E67 -> 10 | BX67: =5*$E67 -> 10
A68: Edin Dzeko - Man City | E68: =0+0+0+0 -> 0 | F68: 6 | L68: =5*$E68 -> 0 | AB68: =5*$E68 -> 0 | AQ68: =5*$E68 -> 0 | AT68: =5*$E68 -> 0 | BP68: =5*$E68 -> 0 | BV68: =5*$E68 -> 0
A69: Emmanuel Adebayor - Tottenham | E69: =1+0+0+0 -> 1 | F69: 3 | U69: =5*$E69 -> 5 | AN69: =5*$E69 -> 5 | BS69: =5*$E69 -> 5
A70: Olivier Giroud - Arsenal | E70: =1+0+1+0 -> 2 | F70: 4 | L70: =5*$E70 -> 10 | AD70: =5*$E70 -> 10 | AN70: 10 | AV70: =5*$E70 -> 10
A71: Raheem Sterling - Liverpool | E71: =0+0+0+0 -> 0 | F71: 3 | AT71: =5*$E71 -> 0 | BQ71: =5*$E71 -> 0 | BU71: =5*$E71 -> 0
A72: Robin van Persie - Man United | E72: =0+0+0+1 -> 1 | F72: 45 | G72: =5*$E72 -> 5 | H72: =5*$E72 -> 5 | J72: =5*$E72 -> 5 | P72: =5*$E72 -> 5 | Q72: =5*$E72 -> 5 | R72: =5*$E72 -> 5 | S72: =5*$E72 -> 5 | U72: =5*$E72 -> 5 | V72: =5*$E72 -> 5 | X72: =5*$E72 -> 5 | Y72: =5*$E72 -> 5 | AA72: =5*$E72 -> 5 | AD72: =5*$E72 -> 5 | AF72: =5*$E72 -> 5 | AG72: =5*$E72 -> 5 | AH72: =5*$E72 -> 5 | AI72: =5*$E72 -> 5 | AJ72: =5*$E72 -> 5 | AL72: =5*$E72 -> 5 | AM72: =5*$E72 -> 5 | AP72: =5*$E72 -> 5 | AQ72: =5*$E72 -> 5 | AR72: =5*$E72 -> 5 | AU72: =5*$E72 -> 5 | AW72: =5*$E72 -> 5 | AX72: =5*$E72 -> 5 | AY72: =5*$E72 -> 5 | BA72: =5*$E72 -> 5 | BB72: =5*$E72 -> 5 | BC72: =5*$E72 -> 5 | BD72: =5*$E72 -> 5 | BE72: =5*$E72 -> 5 | BG72: =5*$E72 -> 5 | BH72: =5*$E72 -> 5 | BI72: =5*$E72 -> 5 | BJ72: =5*$E72 -> 5 | BM72: =5*$E72 -> 5 | BN72: =5*$E72 -> 5 | BO72: =5*$E72 -> 5 | BP72: =5*$E72 -> 5 | BR72: =5*$E72 -> 5 | BT72: =5*$E72 -> 5 | BX72: =5*$E72 -> 5 | BY72: =5*$E72 -> 5 | CA72: =5*$E72 -> 5
A73: Romelu Lukaku - Everton | E73: =1+0+1+0 -> 2 | F73: 7 | G73: =5*$E73 -> 10 | I73: =5*$E73 -> 10 | T73: =5*$E73 -> 10 | U73: =5*$E73 -> 10 | AX73: =5*$E73 -> 10 | BY73: =5*$E73 -> 10 | BZ73: =5*$E73 -> 10
A74: Sergio Aguero - Man City | E74: =1+2+0+0 -> 3 | F74: 21 | M74: =5*$E74 -> 15 | N74: =5*$E74 -> 15 | Q74: =5*$E74 -> 15 | R74: =5*$E74 -> 15 | W74: =5*$E74 -> 15 | X74: =5*$E74 -> 15 | Y74: =5*$E74 -> 15 | AC74: =5*$E74 -> 15 | AD74: =5*$E74 -> 15 | AI74: =5*$E74 -> 15 | AK74: =5*$E74 -> 15 | AL74: =5*$E74 -> 15 | AM74: =5*$E74 -> 15 | AN74: =5*$E74 -> 15 | AO74: =5*$E74 -> 15 | AY74: =5*$E74 -> 15 | BC74: =5*$E74 -> 15 | BG74: =5*$E74 -> 15 | BJ74: =5*$E74 -> 15 | BO74: =5*$E74 -> 15 | BW74: =5*$E74 -> 15
A75: Steven Gerrard - Liverpool | E75: =0+0+0+0 -> 0 | F75: 1 | BQ75: =5*$E75 -> 0
A76: Wayne Rooney - Man United | E76: =0+0+1+1 -> 2 | F76: 21 | I76: =5*$E76 -> 10 | K76: =5*$E76 -> 10 | O76: =5*$E76 -> 10 | V76: =5*$E76 -> 10 | W76: =5*$E76 -> 10 | AA76: =5*$E76 -> 10 | AS76: =5*$E76 -> 10 | AW76: =5*$E76 -> 10 | AZ76: =5*$E76 -> 10 | BE76: =5*$E76 -> 10 | BH76: =5*$E76 -> 10 | BK76: =5*$E76 -> 10 | BL76: =5*$E76 -> 10 | BM76: =5*$E76 -> 10 | BN76: =5*$E76 -> 10 | BS76: =5*$E76 -> 10 | BU76: =5*$E76 -> 10 | BV76: =5*$E76 -> 10 | BW76: =5*$E76 -> 10 | BY76: =5*$E76 -> 10 | CB76: =5*$E76 -> 10
A77: Wilfried Bony - Swansea City | E77: =0+0+1+1 -> 2 | F77: 1 | AH77: =5*$E77 -> 10
A78: Yaya Toure - Man City | E78: =0+0+1+1 -> 2 | F78: 3 | AE78: =5*$E78 -> 10 | BR78: =5*$E78 -> 10 | BT78: =5*$E78 -> 10
A81: Sack Race
A82: Alan Irvine - West Brom | F82: =COUNT(G82:CB82) -> 5 | M82: =25*$E82 -> 0 | S82: =25*$E82 -> 0 | AG82: =25*$E82 -> 0 | BK82: =25*$E82 -> 0 | BU82: =25*$E82 -> 0
A83: Alan Pardew - Newcastle | F83: 8 | G83: =25*$E83 -> 0 | K83: =25*$E83 -> 0 | U83: =25*$E83 -> 0 | V83: =25*$E83 -> 0 | AK83: =25*$E83 -> 0 | AY83: =25*$E83 -> 0 | BO83: =25*$E83 -> 0 | CB83: =25*$E83 -> 0
A84: Arsene Wenger - Arsenal | F84: 0
A85: Brendan Rodgers - Liverpool | F85: 0
A86: Garry Monk - Swansea City | F86: 6 | AA86: =25*$E86 -> 0 | AB86: =25*$E86 -> 0 | AW86: =25*$E86 -> 0 | BA86: =25*$E86 -> 0 | BC86: =25*$E86 -> 0 | BL86: =25*$E86 -> 0
A87: Gus Poyet - Sunderland | F87: 0
A88: Harry Redknapp - QPR | F88: 2 | AN88: =25*$E88 -> 0 | BR88: =25*$E88 -> 0
A89: Jose Mourinho - Chelsea | F89: 0
A90: Louis van Gaal - Man United | F90: 1 | BQ90: =25*$E90 -> 0
A91: Manuel Pellegrini - Man City | F91: 0
A92: Mark Hughes - Stoke City | F92: 0
A93: Mauricio Pochettino - Tottenham | F93: 0
A94: Nigel Pearson - Leicester City | F94: 3 | L94: =25*$E94 -> 0 | AF94: =25*$E94 -> 0 | AJ94: =25*$E94 -> 0
A95: Paul Lambert - Aston Villa | F95: 13 | T95: =25*$E95 -> 0 | Y95: =25*$E95 -> 0 | Z95: =25*$E95 -> 0 | AD95: =25*$E95 -> 0 | AE95: =25*$E95 -> 0 | AL95: =25*$E95 -> 0 | AM95: =25*$E95 -> 0 | AS95: =25*$E95 -> 0 | AT95: =25*$E95 -> 0 | AV95: =25*$E95 -> 0 | AX95: =25*$E95 -> 0 | BB95: =25*$E95 -> 0 | BM95: =25*$E95 -> 0
A96: Roberto Martinez - Everton | F96: 0
A97: Ronald Koeman - Southampton | F97: 4 | R97: =25*$E97 -> 0 | AP97: =25*$E97 -> 0 | BP97: =25*$E97 -> 0 | BV97: =25*$E97 -> 0
A98: Sam Allardyce - West Ham | F98: 27 | I98: =25*$E98 -> 0 | J98: =25*$E98 -> 0 | N98: =25*$E98 -> 0 | O98: =25*$E98 -> 0 | P98: =25*$E98 -> 0 | Q98: =25*$E98 -> 0 | W98: =25*$E98 -> 0 | X98: =25*$E98 -> 0 | AC98: =25*$E98 -> 0 | AH98: =25*$E98 -> 0 | AI98: =25*$E98 -> 0 | AO98: =25*$E98 -> 0 | AQ98: =25*$E98 -> 0 | AR98: =25*$E98 -> 0 | AU98: =25*$E98 -> 0 | AZ98: =25*$E98 -> 0 | BD98: =25*$E98 -> 0 | BE98: =25*$E98 -> 0 | BH98: =25*$E98 -> 0 | BI98: =25*$E98 -> 0 | BN98: =25*$E98 -> 0 | BS98: =25*$E98 -> 0 | BT98: =25*$E98 -> 0 | BW98: =25*$E98 -> 0 | BX98: =25*$E98 -> 0 | BY98: =25*$E98 -> 0 | CA98: =25*$E98 -> 0
A99: Sean Dyche - Burnley | F99: 4 | H99: =25*$E99 -> 0 | BF99: =25*$E99 -> 0 | BG99: =25*$E99 -> 0 | BJ99: =25*$E99 -> 0
A100: Steve Bruce - Hull City | F100: 1 | BZ100: =25*$E100 -> 0
A102: Total Points - November | G102: =SUM(G2:G101) -> 145 | H102: 185 | I102: 150 | J102: 145 | K102: 165 | L102: 155 | M102: 105 | N102: 125 | O102: 175 | P102: 135 | Q102: 145 | R102: 155 | S102: 135 | T102: 195 | U102: 120 | V102: 155 | W102: 145 | X102: 145 | Y102: 125 | Z102: 145 | AA102: 115 | AB102: 120 | AC102: 140 | AD102: 175 | AE102: 125 | AF102: 130 | AG102: 120 | AH102: 115 | AI102: 155 | AJ102: 120 | AK102: 135 | AL102: 160 | AM102: =SUM(AM2:AM101) -> 135 | AN102: 110 | AO102: 100 | AP102: 130 | AQ102: 135 | AR102: 120 | AS102: 115 | AT102: 95 | AU102: 130 | AV102: 150 | AW102: 135 | AX102: 185 | AY102: 185 | AZ102: 160 | BA102: 145 | BB102: 125 | BC102: 160 | BD102: 155 | BE102: 100 | BF102: 150 | BG102: 135 | BH102: 110 | BI102: 140 | BJ102: 160 | BK102: 175 | BL102: 165 | BM102: 180 | BN102: 120 | BO102: 155 | BP102: 130 | BQ102: 115 | BR102: 125 | BS102: =SUM(BS2:BS101) -> 55 | BT102: 105 | BU102: 145 | BV102: 155 | BW102: 125 | BX102: 135 | BY102: 140 | BZ102: 55 | CA102: 100 | CB102: 135
G104: =IF(COUNT(G63:G101)=4,"a","g") -> a | H104: a | I104: a | J104: a | K104: a | L104: a | M104: a | N104: a | O104: a | P104: a | Q104: a | R104: a | S104: a | T104: a | U104: a | V104: a | W104: a | X104: a | Y104: a | Z104: a | AA104: a | AB104: a | AC104: a | AD104: a | AE104: a | AF104: a | AG104: a | AH104: a | AI104: a | AJ104: a | AK104: a | AL104: a | AM104: a | AN104: a | AO104: a | AP104: a | AQ104: a | AR104: a | AS104: a | AT104: a | AU104: a | AV104: a | AW104: a | AX104: a | AY104: a | AZ104: a | BA104: a | BB104: a | BC104: a | BD104: a | BE104: a | BF104: a | BG104: a | BH104: a | BI104: a | BJ104: a | BK104: a | BL104: a | BM104: a | BN104: a | BO104: a | BP104: a | BQ104: a | BR104: a | BS104: =IF(COUNT(BS63:BS101)=4,"a","g") -> a | BT104: a | BU104: a | BV104: a | BW104: a | BX104: a | BY104: a | BZ104: a | CA104: a | CB104: a

Sheet December
G1: Aaron Byrne | H1: Aidan Knight | I1: Aidan Scanlon | J1: Aidan White | K1: Aiden Desch | L1: Alan Boyle | M1: Anastas Popov | N1: Andy Dunne | O1: Anthony Hughes | P1: Barry Healy | Q1: Brendan Maguire | R1: Brian Mullen | S1: Brian Prendergast | T1: Brian Sotolongo | U1: Chris Hall | V1: Ciaran O'Hart | W1: Cillian Conway | X1: Colin McAnaspie | Y1: Con McSweeney | Z1: Conor Horan | AA1: Craig Calvert | AB1: Dave Green | AC1: Dave McGinley | AD1: David Bone | AE1: David Byrne | AF1: David Cooney | AG1: David Keavney | AH1: Eamon Fox | AI1: Fiachra Moynihan | AJ1: Gareth Pierpoint | AK1: Gary McGurk | AL1: Gavin Morgan | AM1: Gerry Draper | AN1: Gerry Moore | AO1: Ian Healy | AP1: Javier Suarez Barreiro | AQ1: Jenny Ellis | AR1: Joe Behan | AS1: Joe O'Hehir | AT1: Joe Turner | AU1: Jonathan Fox | AV1: Keith Horan | AW1: Kevin Donohoe | AX1: Kevin Philpott | AY1: Konstantin Kulev | AZ1: Kris Stainton | BA1: Liam Butler | BB1: Liam Geraghty | BC1: Maria Jordan | BD1: Mike Hall | BE1: Niall Carroll | BF1: Oisin O'Reilly | BG1: Padraic Carney | BH1: Pat Jordan | BI1: Paul Moore | BJ1: Paul Prendergast | BK1: Paul Stainton | BL1: Peter Behan | BM1: Phil Doyle | BN1: Philip Jordan | BO1: Ralph Goodwin | BP1: Ray Ellis | BQ1: Rhona Devlin | BR1: Richard Johnston | BS1: Sean Moloney | BT1: Sean O'Mairtin | BU1: Shane Horan | BV1: Sharon Behan | BW1: Simon Purdue | BX1: Siobhan Murphy | BY1: Terry Behan | BZ1: Tiago Moreira | CA1: Tom McHugh | CB1: Wayne Donovan
A2: Tuesday, December 2nd
A3: Burnley | B3: 1 | C3: 1 | D3: Newcastle United | E3: 19:45:00 | G3: 0 | H3: 0 | I3: 0 | J3: 10 | K3: 0 | L3: 0 | M3: 0 | N3: 0 | O3: 10 | P3: 10 | Q3: 0 | R3: 0 | S3: 5 | T3: 0 | U3: 0 | V3: 10 | W3: 10 | X3: 0 | Y3: 0 | Z3: 0 | AA3: 0 | AB3: 10 | AC3: 0 | AD3: 0 | AE3: - | AF3: 10 | AG3: 0 | AH3: 10 | AI3: 10 | AJ3: 0 | AK3: 0 | AL3: 0 | AM3: 0 | AN3: 0 | AO3: - | AP3: 0 | AQ3: 0 | AR3: 10 | AS3: 10 | AT3: 5 | AU3: 0 | AV3: 0 | AW3: 0 | AX3: 0 | AY3: 0 | AZ3: 0 | BA3: 0 | BB3: 0 | BC3: 0 | BD3: 0 | BE3: 10 | BF3: 0 | BG3: 10 | BH3: 0 | BI3: 0 | BJ3: 0 | BK3: 0 | BL3: 0 | BM3: 10 | BN3: 0 | BO3: 0 | BP3: 0 | BQ3: 0 | BR3: 0 | BS3: - | BT3: 0 | BU3: 0 | BV3: 10 | BW3: 10 | BX3: 0 | BY3: 0 | BZ3: 0 | CA3: 0 | CB3: 0
A4: Leicester City | B4: 1 | C4: 3 | D4: Liverpool | E4: 19:45:00 | G4: 5 | H4: 0 | I4: 0 | J4: 0 | K4: 0 | L4: 0 | M4: 5 | N4: 5 | O4: 0 | P4: 5 | Q4: 0 | R4: 0 | S4: 5 | T4: 0 | U4: 5 | V4: 0 | W4: 5 | X4: 5 | Y4: 5 | Z4: 0 | AA4: 5 | AB4: 5 | AC4: 5 | AD4: 0 | AE4: - | AF4: 5 | AG4: 0 | AH4: 5 | AI4: 5 | AJ4: 10 | AK4: 10 | AL4: 5 | AM4: 5 | AN4: 0 | AO4: - | AP4: 5 | AQ4: 0 | AR4: 0 | AS4: 5 | AT4: 5 | AU4: 5 | AV4: 10 | AW4: 5 | AX4: 5 | AY4: 0 | AZ4: 0 | BA4: 5 | BB4: 5 | BC4: 5 | BD4: 5 | BE4: 0 | BF4: 5 | BG4: 0 | BH4: 5 | BI4: 5 | BJ4: 5 | BK4: 0 | BL4: 5 | BM4: 5 | BN4: 5 | BO4: 5 | BP4: 0 | BQ4: 5 | BR4: 10 | BS4: - | BT4: 5 | BU4: 5 | BV4: 5 | BW4: 5 | BX4: 0 | BY4: 0 | BZ4: 0 | CA4: 5 | CB4: 0
A5: Man United | B5: 2 | C5: 1 | D5: Stoke City | E5: 19:45:00 | G5: 5 | H5: 5 | I5: 5 | J5: 5 | K5: 0 | L5: 5 | M5: 5 | N5: 10 | O5: 5 | P5: 5 | Q5: 5 | R5: 5 | S5: 5 | T5: 10 | U5: 5 | V5: 5 | W5: 5 | X5: 10 | Y5: 5 | Z5: 5 | AA5: 5 | AB5: 5 | AC5: 5 | AD5: 5 | AE5: - | AF5: 5 | AG5: 5 | AH5: 5 | AI5: 5 | AJ5: 5 | AK5: 5 | AL5: 5 | AM5: 5 | AN5: 10 | AO5: - | AP5: 5 | AQ5: 5 | AR5: 5 | AS5: 5 | AT5: 5 | AU5: 5 | AV5: 0 | AW5: 10 | AX5: 10 | AY5: 5 | AZ5: 5 | BA5: 5 | BB5: 0 | BC5: 5 | BD5: 10 | BE5: 5 | BF5: 10 | BG5: 5 | BH5: 10 | BI5: 5 | BJ5: 5 | BK5: 5 | BL5: 5 | BM5: 5 | BN5: 5 | BO5: 5 | BP5: 5 | BQ5: 0 | BR5: 5 | BS5: - | BT5: 5 | BU5: 5 | BV5: 10 | BW5: 5 | BX5: 5 | BY5: 5 | BZ5: 5 | CA5: 5 | CB5: 10
A6: Swansea City | B6: 2 | C6: 0 | D6: QPR | E6: 19:45:00 | G6: 5 | H6: 5 | I6: 10 | J6: 0 | K6: 0 | L6: 5 | M6: 10 | N6: 5 | O6: 5 | P6: 10 | Q6: 10 | R6: 5 | S6: 10 | T6: 5 | U6: 0 | V6: 0 | W6: 0 | X6: 5 | Y6: 5 | Z6: 5 | AA6: 5 | AB6: 0 | AC6: 5 | AD6: 10 | AE6: - | AF6: 10 | AG6: 5 | AH6: 10 | AI6: 10 | AJ6: 5 | AK6: 10 | AL6: 5 | AM6: 5 | AN6: 5 | AO6: - | AP6: 0 | AQ6: 5 | AR6: 5 | AS6: 5 | AT6: 10 | AU6: 5 | AV6: 0 | AW6: 5 | AX6: 5 | AY6: 5 | AZ6: 0 | BA6: 5 | BB6: 0 | BC6: 0 | BD6: 5 | BE6: 0 | BF6: 10 | BG6: 5 | BH6: 5 | BI6: 5 | BJ6: 5 | BK6: 5 | BL6: 5 | BM6: 0 | BN6: 5 | BO6: 5 | BP6: 5 | BQ6: 0 | BR6: 5 | BS6: - | BT6: 5 | BU6: 5 | BV6: 5 | BW6: 5 | BX6: 5 | BY6: 10 | BZ6: 0 | CA6: 5 | CB6: 5
A7: Crystal Palace | B7: 0 | C7: 1 | D7: Aston Villa | E7: 20:00:00 | G7: 0 | H7: 0 | I7: 0 | J7: 0 | K7: 0 | L7: 0 | M7: 0 | N7: 0 | O7: 0 | P7: 0 | Q7: 0 | R7: 0 | S7: 0 | T7: 0 | U7: 0 | V7: 0 | W7: 0 | X7: 0 | Y7: 0 | Z7: 0 | AA7: 0 | AB7: 0 | AC7: 0 | AD7: 0 | AE7: - | AF7: 0 | AG7: 0 | AH7: 0 | AI7: 0 | AJ7: 0 | AK7: 0 | AL7: 0 | AM7: 0 | AN7: 0 | AO7: - | AP7: 5 | AQ7: 0 | AR7: 0 | AS7: 5 | AT7: 0 | AU7: 0 | AV7: 0 | AW7: 0 | AX7: 0 | AY7: 0 | AZ7: 0 | BA7: 5 | BB7: 5 | BC7: 10 | BD7: 0 | BE7: 0 | BF7: 0 | BG7: 0 | BH7: 0 | BI7: 0 | BJ7: 0 | BK7: 0 | BL7: 0 | BM7: 5 | BN7: 0 | BO7: 0 | BP7: 0 | BQ7: 0 | BR7: 0 | BS7: - | BT7: 0 | BU7: 0 | BV7: 0 | BW7: 0 | BX7: 0 | BY7: 0 | BZ7: 0 | CA7: 0 | CB7: 0
A8: West Brom | B8: 1 | C8: 2 | D8: West Ham United | E8: 20:00:00 | G8: 0 | H8: 0 | I8: 0 | J8: 0 | K8: 0 | L8: 0 | M8: 10 | N8: 0 | O8: 5 | P8: 0 | Q8: 0 | R8: 0 | S8: 0 | T8: 0 | U8: 0 | V8: 10 | W8: 0 | X8: 5 | Y8: 0 | Z8: 0 | AA8: 5 | AB8: 0 | AC8: 0 | AD8: 0 | AE8: - | AF8: 10 | AG8: 5 | AH8: 0 | AI8: 0 | AJ8: 10 | AK8: 0 | AL8: 0 | AM8: 0 | AN8: 0 | AO8: - | AP8: 5 | AQ8: 0 | AR8: 5 | AS8: 10 | AT8: 0 | AU8: 5 | AV8: 5 | AW8: 0 | AX8: 0 | AY8: 0 | AZ8: 5 | BA8: 0 | BB8: 0 | BC8: 0 | BD8: 0 | BE8: 10 | BF8: 0 | BG8: 0 | BH8: 10 | BI8: 0 | BJ8: 0 | BK8: 0 | BL8: 5 | BM8: 0 | BN8: 10 | BO8: 10 | BP8: 0 | BQ8: 0 | BR8: 5 | BS8: - | BT8: 0 | BU8: 0 | BV8: 0 | BW8: 10 | BX8: 5 | BY8: 0 | BZ8: 0 | CA8: 0 | CB8: 10
A10: Wednesday, December 3rd
A11: Arsenal | B11: 1 | C11: 0 | D11: Southampton | E11: 19:45:00 | G11: 5 | H11: 5 | I11: 5 | J11: 5 | K11: 10 | L11: 5 | M11: 10 | N11: 0 | O11: 0 | P11: 5 | Q11: 5 | R11: 5 | S11: 5 | T11: 5 | U11: 10 | V11: 5 | W11: 5 | X11: 0 | Y11: 5 | Z11: 10 | AA11: 5 | AB11: 0 | AC11: 5 | AD11: 0 | AE11: - | AF11: 0 | AG11: 5 | AH11: 5 | AI11: 5 | AJ11: 5 | AK11: 0 | AL11: 5 | AM11: 5 | AN11: 5 | AO11: - | AP11: 0 | AQ11: 10 | AR11: 0 | AS11: 5 | AT11: 5 | AU11: 10 | AV11: 5 | AW11: 5 | AX11: 5 | AY11: 5 | AZ11: 0 | BA11: 5 | BB11: 0 | BC11: 5 | BD11: 5 | BE11: 5 | BF11: 0 | BG11: 5 | BH11: 0 | BI11: 5 | BJ11: 5 | BK11: 0 | BL11: 5 | BM11: 5 | BN11: 0 | BO11: 5 | BP11: 10 | BQ11: 0 | BR11: 10 | BS11: - | BT11: 5 | BU11: 5 | BV11: 10 | BW11: 5 | BX11: 5 | BY11: 5 | BZ11: 5 | CA11: 0 | CB11: 5
A12: Chelsea | B12: 3 | C12: 0 | D12: Tottenham | E12: 19:45:00 | G12: 5 | H12: 10 | I12: 5 | J12: 0 | K12: 0 | L12: 5 | M12: 5 | N12: 5 | O12: 5 | P12: 5 | Q12: 10 | R12: 5 | S12: 5 | T12: 5 | U12: 5 | V12: 5 | W12: 5 | X12: 5 | Y12: 5 | Z12: 5 | AA12: 5 | AB12: 5 | AC12: 5 | AD12: 5 | AE12: - | AF12: 10 | AG12: 10 | AH12: 5 | AI12: 10 | AJ12: 5 | AK12: 5 | AL12: 5 | AM12: 5 | AN12: 5 | AO12: - | AP12: 5 | AQ12: 5 | AR12: 10 | AS12: 10 | AT12: 5 | AU12: 5 | AV12: 5 | AW12: 5 | AX12: 5 | AY12: 5 | AZ12: 0 | BA12: 5 | BB12: 5 | BC12: 5 | BD12: 5 | BE12: 0 | BF12: 5 | BG12: 5 | BH12: 5 | BI12: 5 | BJ12: 5 | BK12: 5 | BL12: 5 | BM12: 5 | BN12: 10 | BO12: 10 | BP12: 5 | BQ12: 5 | BR12: 5 | BS12: - | BT12: 5 | BU12: 5 | BV12: 5 | BW12: 5 | BX12: 5 | BY12: 5 | BZ12: 5 | CA12: 5 | CB12: 5
A13: Everton | B13: 1 | C13: 1 | D13: Hull City | E13: 19:45:00 | G13: 0 | H13: 0 | I13: 0 | J13: 0 | K13: 0 | L13: 0 | M13: 0 | N13: 0 | O13: 0 | P13: 0 | Q13: 0 | R13: 0 | S13: 0 | T13: 0 | U13: 10 | V13: 0 | W13: 0 | X13: 0 | Y13: 0 | Z13: 0 | AA13: 0 | AB13: 0 | AC13: 0 | AD13: 0 | AE13: - | AF13: 0 | AG13: 0 | AH13: 0 | AI13: 0 | AJ13: 0 | AK13: 0 | AL13: 0 | AM13: 0 | AN13: 0 | AO13: - | AP13: 0 | AQ13: 0 | AR13: 0 | AS13: 0 | AT13: 0 | AU13: 0 | AV13: 10 | AW13: 0 | AX13: 0 | AY13: 0 | AZ13: 0 | BA13: 0 | BB13: 0 | BC13: 0 | BD13: 0 | BE13: 0 | BF13: 10 | BG13: 0 | BH13: 0 | BI13: 10 | BJ13: 0 | BK13: 0 | BL13: 0 | BM13: 0 | BN13: 0 | BO13: 0 | BP13: 0 | BQ13: 10 | BR13: 0 | BS13: - | BT13: 0 | BU13: 0 | BV13: 0 | BW13: 0 | BX13: 0 | BY13: 0 | BZ13: 0 | CA13: 10 | CB13: 0
A14: Sunderland | B14: 1 | C14: 4 | D14: Man City | E14: 19:45:00 | G14: 5 | H14: 0 | I14: 0 | J14: 5 | K14: 5 | L14: 5 | M14: 5 | N14: 5 | O14: 0 | P14: 5 | Q14: 5 | R14: 5 | S14: 5 | T14: 5 | U14: 0 | V14: 5 | W14: 5 | X14: 5 | Y14: 5 | Z14: 5 | AA14: 5 | AB14: 5 | AC14: 5 | AD14: 5 | AE14: - | AF14: 5 | AG14: 5 | AH14: 5 | AI14: 5 | AJ14: 5 | AK14: 0 | AL14: 5 | AM14: 5 | AN14: 0 | AO14: - | AP14: 5 | AQ14: - | AR14: 5 | AS14: 5 | AT14: 5 | AU14: 5 | AV14: 0 | AW14: 5 | AX14: 5 | AY14: 5 | AZ14: 5 | BA14: 5 | BB14: 5 | BC14: 5 | BD14: 5 | BE14: 5 | BF14: 5 | BG14: 5 | BH14: 5 | BI14: 5 | BJ14: 5 | BK14: 0 | BL14: 5 | BM14: 5 | BN14: 5 | BO14: 5 | BP14: 0 | BQ14: 5 | BR14: 5 | BS14: - | BT14: 5 | BU14: 5 | BV14: 5 | BW14: 5 | BX14: 5 | BY14: 0 | BZ14: 0 | CA14: 0 | CB14: 0
A16: Saturday, December 6th
A17: Newcastle United | B17: 2 | C17: 1 | D17: Chelsea | E17: 12:45:00 | G17: 10 | H17: 0 | I17: 0 | J17: 0 | K17: 0 | L17: 0 | M17: 0 | N17: 0 | O17: 0 | P17: 0 | Q17: 0 | R17: 5 | S17: 0 | T17: 0 | U17: 0 | V17: 0 | W17: 0 | X17: 0 | Y17: 0 | Z17: 0 | AA17: 0 | AB17: 0 | AC17: 0 | AD17: 0 | AE17: 0 | AF17: 0 | AG17: 5 | AH17: 0 | AI17: 0 | AJ17: 0 | AK17: 0 | AL17: 0 | AM17: 0 | AN17: 0 | AO17: - | AP17: 0 | AQ17: - | AR17: 0 | AS17: 0 | AT17: 0 | AU17: 0 | AV17: 0 | AW17: 0 | AX17: 0 | AY17: 0 | AZ17: 0 | BA17: 0 | BB17: 0 | BC17: 0 | BD17: 0 | BE17: 0 | BF17: 0 | BG17: 0 | BH17: 0 | BI17: 0 | BJ17: 0 | BK17: - | BL17: 10 | BM17: 0 | BN17: 0 | BO17: 0 | BP17: 5 | BQ17: 0 | BR17: 0 | BS17: - | BT17: 0 | BU17: 0 | BV17: 0 | BW17: 0 | BX17: 0 | BY17: 0 | BZ17: - | CA17: 0 | CB17: 0
A18: Hull City | B18: 0 | C18: 0 | D18: West Brom | E18: 15:00:00 | G18: 0 | H18: 0 | I18: 0 | J18: 5 | K18: 5 | L18: 0 | M18: 0 | N18: 0 | O18: 5 | P18: 5 | Q18: 0 | R18: 0 | S18: 0 | T18: 0 | U18: 0 | V18: 0 | W18: 0 | X18: 5 | Y18: 0 | Z18: 5 | AA18: 0 | AB18: 5 | AC18: 0 | AD18: 5 | AE18: 0 | AF18: 0 | AG18: 0 | AH18: 0 | AI18: 0 | AJ18: 0 | AK18: 0 | AL18: 0 | AM18: 5 | AN18: 10 | AO18: - | AP18: 10 | AQ18: - | AR18: 0 | AS18: 5 | AT18: 0 | AU18: 0 | AV18: 0 | AW18: 0 | AX18: 0 | AY18: 0 | AZ18: 0 | BA18: 0 | BB18: 0 | BC18: 0 | BD18: 5 | BE18: 0 | BF18: 5 | BG18: 0 | BH18: 0 | BI18: 0 | BJ18: 0 | BK18: - | BL18: 0 | BM18: 0 | BN18: 5 | BO18: 5 | BP18: 0 | BQ18: 0 | BR18: 5 | BS18: - | BT18: 5 | BU18: 5 | BV18: 5 | BW18: 5 | BX18: 5 | BY18: 5 | BZ18: - | CA18: 10 | CB18: 0
A19: Liverpool | B19: 0 | C19: 0 | D19: Sunderland | E19: 15:00:00 | G19: 0 | H19: 0 | I19: 0 | J19: 0 | K19: 0 | L19: 0 | M19: 0 | N19: 0 | O19: 0 | P19: 0 | Q19: 5 | R19: 0 | S19: 0 | T19: 0 | U19: 0 | V19: 0 | W19: 0 | X19: 0 | Y19: 0 | Z19: 0 | AA19: 0 | AB19: 0 | AC19: 0 | AD19: 0 | AE19: 0 | AF19: 0 | AG19: 0 | AH19: 0 | AI19: 0 | AJ19: 0 | AK19: 0 | AL19: 0 | AM19: 0 | AN19: 0 | AO19: - | AP19: 0 | AQ19: - | AR19: 0 | AS19: 0 | AT19: 0 | AU19: 0 | AV19: 0 | AW19: 0 | AX19: 0 | AY19: 0 | AZ19: 0 | BA19: 0 | BB19: 0 | BC19: 0 | BD19: 0 | BE19: 5 | BF19: 0 | BG19: 0 | BH19: 0 | BI19: 0 | BJ19: 0 | BK19: - | BL19: 0 | BM19: 5 | BN19: 0 | BO19: 0 | BP19: 0 | BQ19: 0 | BR19: 0 | BS19: - | BT19: 0 | BU19: 0 | BV19: 0 | BW19: 0 | BX19: 0 | BY19: 0 | BZ19: - | CA19: 0 | CB19: 5
A20: QPR | B20: 2 | C20: 0 | D20: Burnley | E20: 15:00:00 | G20: 5 | H20: 5 | I20: 5 | J20: 0 | K20: 5 | L20: 5 | M20: 5 | N20: 5 | O20: 5 | P20: 5 | Q20: 10 | R20: 10 | S20: 10 | T20: 5 | U20: 5 | V20: 5 | W20: 5 | X20: 0 | Y20: 5 | Z20: 5 | AA20: 5 | AB20: 0 | AC20: 0 | AD20: 5 | AE20: 5 | AF20: 0 | AG20: 5 | AH20: 5 | AI20: 5 | AJ20: 5 | AK20: 5 | AL20: 0 | AM20: 10 | AN20: 5 | AO20: - | AP20: 0 | AQ20: - | AR20: 0 | AS20: 5 | AT20: 10 | AU20: 5 | AV20: 0 | AW20: 5 | AX20: 5 | AY20: 5 | AZ20: 5 | BA20: 5 | BB20: 0 | BC20: 0 | BD20: 5 | BE20: 10 | BF20: 10 | BG20: 5 | BH20: 5 | BI20: 0 | BJ20: 5 | BK20: - | BL20: 5 | BM20: 5 | BN20: 5 | BO20: 5 | BP20: 5 | BQ20: 0 | BR20: 5 | BS20: - | BT20: 0 | BU20: 5 | BV20: 5 | BW20: 5 | BX20: 5 | BY20: 5 | BZ20: - | CA20: 5 | CB20: 5
A21: Stoke City | B21: 3 | C21: 2 | D21: Arsenal | E21: 15:00:00 | G21: 5 | H21: 0 | I21: 0 | J21: 0 | K21: 0 | L21: 0 | M21: 0 | N21: 0 | O21: 0 | P21: 0 | Q21: 0 | R21: 5 | S21: 0 | T21: 0 | U21: 0 | V21: 0 | W21: 0 | X21: 0 | Y21: 0 | Z21: 0 | AA21: 0 | AB21: 0 | AC21: 0 | AD21: 0 | AE21: 0 | AF21: 0 | AG21: 5 | AH21: 0 | AI21: 0 | AJ21: 0 | AK21: 0 | AL21: 0 | AM21: 0 | AN21: 0 | AO21: - | AP21: 0 | AQ21: - | AR21: 0 | AS21: 0 | AT21: 0 | AU21: 0 | AV21: 0 | AW21: 0 | AX21: 0 | AY21: 0 | AZ21: 0 | BA21: 0 | BB21: 0 | BC21: 0 | BD21: 0 | BE21: 0 | BF21: 0 | BG21: 0 | BH21: 0 | BI21: 0 | BJ21: 0 | BK21: - | BL21: 5 | BM21: 0 | BN21: 5 | BO21: 0 | BP21: - | BQ21: 5 | BR21: 0 | BS21: - | BT21: 0 | BU21: 0 | BV21: 0 | BW21: 0 | BX21: 0 | BY21: 0 | BZ21: - | CA21: 0 | CB21: 0
A22: Tottenham | B22: 0 | C22: 0 | D22: Crystal Palace | E22: 15:00:00 | G22: 0 | H22: 0 | I22: 0 | J22: 0 | K22: 0 | L22: 0 | M22: 0 | N22: 0 | O22: 0 | P22: 0 | Q22: 0 | R22: 0 | S22: 0 | T22: 0 | U22: 0 | V22: 0 | W22: 0 | X22: 0 | Y22: 0 | Z22: 0 | AA22: 0 | AB22: 0 | AC22: 0 | AD22: 0 | AE22: 0 | AF22: 0 | AG22: 0 | AH22: 0 | AI22: 0 | AJ22: 0 | AK22: 0 | AL22: 0 | AM22: 0 | AN22: 5 | AO22: - | AP22: 0 | AQ22: - | AR22: 0 | AS22: 0 | AT22: 0 | AU22: 0 | AV22: 0 | AW22: 0 | AX22: 0 | AY22: 0 | AZ22: 0 | BA22: 0 | BB22: 5 | BC22: 0 | BD22: 0 | BE22: 0 | BF22: 0 | BG22: 0 | BH22: 0 | BI22: 0 | BJ22: 0 | BK22: - | BL22: 0 | BM22: 0 | BN22: 0 | BO22: 0 | BP22: - | BQ22: 0 | BR22: 0 | BS22: - | BT22: 0 | BU22: 0 | BV22: 0 | BW22: 0 | BX22: 0 | BY22: 0 | BZ22: - | CA22: 0 | CB22: 0
A23: Man City | B23: 1 | C23: 0 | D23: Everton | E23: 17:30:00 | G23: 5 | H23: 5 | I23: 5 | J23: 5 | K23: 5 | L23: 5 | M23: 5 | N23: 5 | O23: 5 | P23: 5 | Q23: 5 | R23: 5 | S23: 5 | T23: 5 | U23: 5 | V23: 5 | W23: 5 | X23: 5 | Y23: 5 | Z23: 5 | AA23: 5 | AB23: 5 | AC23: 5 | AD23: 5 | AE23: 5 | AF23: 5 | AG23: 10 | AH23: 5 | AI23: 5 | AJ23: 5 | AK23: 5 | AL23: 5 | AM23: 5 | AN23: 5 | AO23: - | AP23: 0 | AQ23: - | AR23: 5 | AS23: 5 | AT23: 5 | AU23: 5 | AV23: 5 | AW23: 5 | AX23: 5 | AY23: 5 | AZ23: 5 | BA23: 5 | BB23: 5 | BC23: 5 | BD23: 5 | BE23: 5 | BF23: 5 | BG23: 5 | BH23: 5 | BI23: 5 | BJ23: 5 | BK23: - | BL23: 5 | BM23: 5 | BN23: 5 | BO23: 5 | BP23: - | BQ23: 5 | BR23: 5 | BS23: - | BT23: 5 | BU23: 5 | BV23: 5 | BW23: 5 | BX23: 5 | BY23: 10 | BZ23: - | CA23: 5 | CB23: 5
A25: Sunday, December 7th
A26: West Ham United | B26: 3 | C26: 1 | D26: Swansea City | E26: 13:30:00 | G26: 5 | H26: 5 | I26: 0 | J26: 0 | K26: 5 | L26: 10 | M26: 5 | N26: 5 | O26: 0 | P26: 0 | Q26: 0 | R26: 5 | S26: 0 | T26: 5 | U26: 5 | V26: 0 | W26: 5 | X26: 5 | Y26: 5 | Z26: 0 | AA26: 0 | AB26: 0 | AC26: 5 | AD26: 0 | AE26: 0 | AF26: 5 | AG26: 5 | AH26: 5 | AI26: 5 | AJ26: 5 | AK26: 5 | AL26: 5 | AM26: 5 | AN26: 0 | AO26: - | AP26: 5 | AQ26: - | AR26: 0 | AS26: 5 | AT26: 0 | AU26: 5 | AV26: 5 | AW26: 5 | AX26: 0 | AY26: 5 | AZ26: 5 | BA26: 5 | BB26: 0 | BC26: 0 | BD26: 5 | BE26: 5 | BF26: 0 | BG26: 5 | BH26: 0 | BI26: 0 | BJ26: 5 | BK26: - | BL26: 5 | BM26: 0 | BN26: 5 | BO26: 0 | BP26: - | BQ26: 5 | BR26: 5 | BS26: - | BT26: 5 | BU26: 0 | BV26: 0 | BW26: 0 | BX26: 5 | BY26: 5 | BZ26: - | CA26: 0 | CB26: 0
A27: Aston Villa | B27: 2 | C27: 1 | D27: Leicester City | E27: 16:00:00 | G27: 10 | H27: 10 | I27: 10 | J27: 5 | K27: 0 | L27: 0 | M27: 5 | N27: 10 | O27: 10 | P27: 10 | Q27: 5 | R27: 5 | S27: 5 | T27: 10 | U27: 5 | V27: 5 | W27: 5 | X27: 5 | Y27: 10 | Z27: 0 | AA27: 10 | AB27: 10 | AC27: 0 | AD27: 10 | AE27: 5 | AF27: 0 | AG27: 5 | AH27: 10 | AI27: 10 | AJ27: 10 | AK27: 10 | AL27: 10 | AM27: 5 | AN27: 5 | AO27: - | AP27: 5 | AQ27: - | AR27: 5 | AS27: 5 | AT27: 0 | AU27: 10 | AV27: 10 | AW27: 5 | AX27: 10 | AY27: 5 | AZ27: 0 | BA27: 0 | BB27: 0 | BC27: 0 | BD27: 10 | BE27: 5 | BF27: 10 | BG27: 5 | BH27: 10 | BI27: 5 | BJ27: 5 | BK27: - | BL27: 10 | BM27: 5 | BN27: 5 | BO27: 5 | BP27: - | BQ27: 0 | BR27: 0 | BS27: - | BT27: 5 | BU27: 10 | BV27: 5 | BW27: 5 | BX27: 5 | BY27: 5 | BZ27: - | CA27: 5 | CB27: 5
A29: Monday, December 8th
A30: Southampton | B30: 1 | C30: 2 | D30: Man United | E30: 20:00:00 | G30: 0 | H30: 10 | I30: 5 | J30: 5 | K30: 0 | L30: 0 | M30: 5 | N30: 0 | O30: 10 | P30: 10 | Q30: 10 | R30: 0 | S30: 0 | T30: 0 | U30: 10 | V30: 0 | W30: 10 | X30: 0 | Y30: 0 | Z30: 10 | AA30: 10 | AB30: 10 | AC30: 10 | AD30: 0 | AE30: 0 | AF30: 0 | AG30: 0 | AH30: 0 | AI30: 10 | AJ30: 0 | AK30: 0 | AL30: 0 | AM30: 0 | AN30: 0 | AO30: - | AP30: 0 | AQ30: - | AR30: 0 | AS30: 5 | AT30: 5 | AU30: 5 | AV30: 5 | AW30: 10 | AX30: 10 | AY30: 0 | AZ30: 5 | BA30: 5 | BB30: 0 | BC30: 5 | BD30: 0 | BE30: 0 | BF30: 10 | BG30: 0 | BH30: 5 | BI30: 5 | BJ30: 0 | BK30: - | BL30: 0 | BM30: 10 | BN30: 5 | BO30: 0 | BP30: - | BQ30: 5 | BR30: 5 | BS30: - | BT30: 10 | BU30: 0 | BV30: 10 | BW30: 10 | BX30: 5 | BY30: 0 | BZ30: - | CA30: 0 | CB30: 0
A32: Saturday, December 13th
A33: Burnley | B33: 1 | C33: 0 | D33: Southampton | E33: 15:00:00 | G33: 0 | H33: 0 | I33: 0 | J33: 10 | K33: 0 | L33: 0 | M33: 0 | N33: 0 | O33: 0 | P33: 0 | Q33: 0 | R33: 0 | S33: 0 | T33: 0 | U33: 0 | V33: 0 | W33: 0 | X33: 0 | Y33: 0 | Z33: 0 | AA33: 0 | AB33: 0 | AC33: 0 | AD33: 0 | AE33: 0 | AF33: 0 | AG33: 0 | AH33: 0 | AI33: 0 | AJ33: 0 | AK33: 0 | AL33: 0 | AM33: 0 | AN33: 0 | AO33: - | AP33: 0 | AQ33: - | AR33: 0 | AS33: 0 | AT33: 10 | AU33: 0 | AV33: 0 | AW33: 0 | AX33: 5 | AY33: 0 | AZ33: 0 | BA33: 0 | BB33: 0 | BC33: 0 | BD33: 0 | BE33: 0 | BF33: 0 | BG33: 5 | BH33: 0 | BI33: 0 | BJ33: 0 | BK33: - | BL33: 0 | BM33: 0 | BN33: 0 | BO33: 0 | BP33: 0 | BQ33: 0 | BR33: 0 | BS33: - | BT33: 0 | BU33: 0 | BV33: 0 | BW33: 0 | BX33: 0 | BY33: 0 | BZ33: 0 | CA33: 0 | CB33: 0
A34: Chelsea | B34: 2 | C34: 0 | D34: Hull City | E34: 15:00:00 | G34: 5 | H34: 5 | I34: 5 | J34: 5 | K34: 10 | L34: 5 | M34: 10 | N34: 5 | O34: 10 | P34: 5 | Q34: 5 | R34: 5 | S34: 10 | T34: 10 | U34: 5 | V34: 10 | W34: 5 | X34: 10 | Y34: 10 | Z34: 5 | AA34: 5 | AB34: 5 | AC34: 5 | AD34: 5 | AE34: 5 | AF34: 5 | AG34: 10 | AH34: 5 | AI34: 5 | AJ34: 5 | AK34: 5 | AL34: 5 | AM34: 10 | AN34: 10 | AO34: - | AP34: 5 | AQ34: - | AR34: 10 | AS34: 5 | AT34: 5 | AU34: 10 | AV34: 5 | AW34: 10 | AX34: 5 | AY34: 5 | AZ34: 5 | BA34: 5 | BB34: 10 | BC34: 5 | BD34: 10 | BE34: 5 | BF34: 10 | BG34: 5 | BH34: 5 | BI34: 5 | BJ34: 5 | BK34: - | BL34: 5 | BM34: 10 | BN34: 5 | BO34: 5 | BP34: 5 | BQ34: 5 | BR34: 5 | BS34: - | BT34: 5 | BU34: 10 | BV34: 10 | BW34: 5 | BX34: 10 | BY34: 5 | BZ34: 10 | CA34: 5 | CB34: 10
A35: Crystal Palace | B35: 1 | C35: 1 | D35: Stoke City | E35: 15:00:00 | G35: 0 | H35: 10 | I35: 10 | J35: 0 | K35: 10 | L35: 0 | M35: 10 | N35: 5 | O35: 10 | P35: 0 | Q35: 0 | R35: 0 | S35: 0 | T35: 0 | U35: 0 | V35: 0 | W35: 10 | X35: 10 | Y35: 10 | Z35: 10 | AA35: 10 | AB35: 10 | AC35: 0 | AD35: 0 | AE35: 0 | AF35: 5 | AG35: 0 | AH35: 10 | AI35: 0 | AJ35: 5 | AK35: 10 | AL35: 0 | AM35: 0 | AN35: 0 | AO35: - | AP35: 5 | AQ35: - | AR35: 10 | AS35: 0 | AT35: 0 | AU35: 0 | AV35: 5 | AW35: 0 | AX35: 0 | AY35: 0 | AZ35: 0 | BA35: 10 | BB35: 0 | BC35: 0 | BD35: 10 | BE35: 0 | BF35: 0 | BG35: 10 | BH35: 0 | BI35: 0 | BJ35: 10 | BK35: - | BL35: 5 | BM35: 10 | BN35: 0 | BO35: 0 | BP35: 0 | BQ35: 0 | BR35: 10 | BS35: - | BT35: 0 | BU35: 0 | BV35: 0 | BW35: 10 | BX35: 0 | BY35: 0 | BZ35: 0 | CA35: 10 | CB35: 10
A36: Leicester City | B36: 0 | C36: 1 | D36: Man City | E36: 15:00:00 | G36: 5 | H36: 5 | I36: 5 | J36: 0 | K36: 5 | L36: 5 | M36: 5 | N36: 5 | O36: 5 | P36: 5 | Q36: 5 | R36: 5 | S36: 5 | T36: 5 | U36: 5 | V36: 0 | W36: 5 | X36: 5 | Y36: 5 | Z36: 5 | AA36: 5 | AB36: 5 | AC36: 5 | AD36: 5 | AE36: 5 | AF36: 5 | AG36: 5 | AH36: 5 | AI36: 5 | AJ36: 5 | AK36: 5 | AL36: 5 | AM36: 5 | AN36: 5 | AO36: - | AP36: 5 | AQ36: - | AR36: 10 | AS36: 5 | AT36: 5 | AU36: 5 | AV36: 5 | AW36: 5 | AX36: 0 | AY36: 5 | AZ36: 5 | BA36: 5 | BB36: 0 | BC36: 5 | BD36: 5 | BE36: 5 | BF36: 5 | BG36: 5 | BH36: 5 | BI36: 5 | BJ36: 5 | BK36: - | BL36: 5 | BM36: 5 | BN36: 5 | BO36: 5 | BP36: 5 | BQ36: 5 | BR36: 5 | BS36: - | BT36: 5 | BU36: 5 | BV36: 5 | BW36: 5 | BX36: 5 | BY36: 5 | BZ36: 5 | CA36: 5 | CB36: 5
A37: Sunderland | B37: 1 | C37: 1 | D37: West Ham United | E37: 15:00:00 | G37: 10 | H37: 0 | I37: 0 | J37: 0 | K37: 10 | L37: 0 | M37: 10 | N37: 0 | O37: 10 | P37: 10 | Q37: 0 | R37: 10 | S37: 0 | T37: 0 | U37: 0 | V37: 0 | W37: 0 | X37: 10 | Y37: 10 | Z37: 0 | AA37: 0 | AB37: 0 | AC37: 10 | AD37: 0 | AE37: 0 | AF37: 10 | AG37: 0 | AH37: 10 | AI37: 10 | AJ37: 0 | AK37: 0 | AL37: 0 | AM37: 10 | AN37: 5 | AO37: - | AP37: 0 | AQ37: - | AR37: 0 | AS37: 10 | AT37: 5 | AU37: 0 | AV37: 0 | AW37: 10 | AX37: 0 | AY37: 0 | AZ37: 0 | BA37: 10 | BB37: 0 | BC37: 0 | BD37: 0 | BE37: 10 | BF37: 0 | BG37: 10 | BH37: 0 | BI37: 10 | BJ37: 10 | BK37: - | BL37: 10 | BM37: 0 | BN37: 5 | BO37: 10 | BP37: 10 | BQ37: 10 | BR37: 10 | BS37: - | BT37: 0 | BU37: 0 | BV37: 10 | BW37: 0 | BX37: 10 | BY37: 0 | BZ37: 0 | CA37: 0 | CB37: 10
A38: West Brom | B38: 1 | C38: 0 | D38: Aston Villa | E38: 15:00:00 | G38: 0 | H38: 10 | I38: 0 | J38: 10 | K38: 0 | L38: 5 | M38: 0 | N38: 0 | O38: 0 | P38: 0 | Q38: 0 | R38: 0 | S38: 10 | T38: 0 | U38: 0 | V38: 0 | W38: 0 | X38: 5 | Y38: 0 | Z38: 0 | AA38: 0 | AB38: 5 | AC38: 0 | AD38: 0 | AE38: 5 | AF38: 0 | AG38: 0 | AH38: 0 | AI38: 0 | AJ38: 5 | AK38: 0 | AL38: 0 | AM38: 0 | AN38: 0 | AO38: - | AP38: 0 | AQ38: - | AR38: 0 | AS38: 0 | AT38: 0 | AU38: 0 | AV38: 0 | AW38: 10 | AX38: 5 | AY38: 0 | AZ38: 0 | BA38: 10 | BB38: 0 | BC38: 0 | BD38: 0 | BE38: 0 | BF38: 0 | BG38: 0 | BH38: 5 | BI38: 0 | BJ38: 5 | BK38: - | BL38: 0 | BM38: 0 | BN38: 0 | BO38: 0 | BP38: 5 | BQ38: 0 | BR38: 0 | BS38: - | BT38: 0 | BU38: 0 | BV38: 0 | BW38: 10 | BX38: 10 | BY38: 0 | BZ38: 0 | CA38: 0 | CB38: 0
A39: Arsenal | B39: 4 | C39: 1 | D39: Newcastle United | E39: 17:30:00 | G39: 5 | H39: 5 | I39: 0 | J39: 5 | K39: 0 | L39: 5 | M39: 5 | N39: 5 | O39: 5 | P39: 5 | Q39: 5 | R39: 5 | S39: 5 | T39: 5 | U39: 5 | V39: 0 | W39: 5 | X39: 5 | Y39: 5 | Z39: 5 | AA39: 5 | AB39: 0 | AC39: 5 | AD39: 5 | AE39: 5 | AF39: 5 | AG39: 5 | AH39: 5 | AI39: 5 | AJ39: 5 | AK39: 5 | AL39: 5 | AM39: 5 | AN39: 5 | AO39: - | AP39: 5 | AQ39: - | AR39: 0 | AS39: 5 | AT39: 5 | AU39: 5 | AV39: 5 | AW39: 5 | AX39: 5 | AY39: 0 | AZ39: 0 | BA39: 5 | BB39: 0 | BC39: 5 | BD39: 0 | BE39: 5 | BF39: 0 | BG39: 5 | BH39: 5 | BI39: 0 | BJ39: 5 | BK39: - | BL39: 5 | BM39: 5 | BN39: 0 | BO39: 5 | BP39: 5 | BQ39: 5 | BR39: 5 | BS39: - | BT39: 5 | BU39: 5 | BV39: 5 | BW39: 5 | BX39: 5 | BY39: 5 | BZ39: 5 | CA39: 5 | CB39: 5
A41: Sunday, December 14th
A42: Man United | B42: 3 | C42: 0 | D42: Liverpool | E42: 13:30:00 | G42: 0 | H42: 5 | I42: 5 | J42: 5 | K42: 0 | L42: 5 | M42: 5 | N42: 0 | O42: 5 | P42: 5 | Q42: 5 | R42: 0 | S42: 10 | T42: 5 | U42: 5 | V42: 5 | W42: 5 | X42: 5 | Y42: 5 | Z42: 5 | AA42: 5 | AB42: 5 | AC42: 5 | AD42: 5 | AE42: 5 | AF42: 5 | AG42: 5 | AH42: 5 | AI42: 5 | AJ42: 5 | AK42: 5 | AL42: 5 | AM42: 5 | AN42: 0 | AO42: - | AP42: 0 | AQ42: - | AR42: 5 | AS42: 5 | AT42: 5 | AU42: 5 | AV42: 5 | AW42: 5 | AX42: 5 | AY42: 5 | AZ42: 5 | BA42: 0 | BB42: 0 | BC42: 5 | BD42: 5 | BE42: 10 | BF42: 0 | BG42: 5 | BH42: 5 | BI42: 0 | BJ42: 0 | BK42: - | BL42: 5 | BM42: 5 | BN42: 5 | BO42: 5 | BP42: 5 | BQ42: 0 | BR42: 0 | BS42: - | BT42: 5 | BU42: 5 | BV42: 5 | BW42: 5 | BX42: 10 | BY42: 5 | BZ42: 5 | CA42: 5 | CB42: 5
A43: Swansea City | B43: 1 | C43: 2 | D43: Tottenham | E43: 16:00:00 | G43: 5 | H43: 0 | I43: 0 | J43: 0 | K43: 10 | L43: 0 | M43: 0 | N43: 0 | O43: 0 | P43: 0 | Q43: 0 | R43: 0 | S43: 0 | T43: 0 | U43: 5 | V43: 0 | W43: 0 | X43: 5 | Y43: 0 | Z43: 0 | AA43: 0 | AB43: 10 | AC43: 0 | AD43: 0 | AE43: 0 | AF43: 0 | AG43: 0 | AH43: 0 | AI43: 0 | AJ43: 0 | AK43: 0 | AL43: 0 | AM43: 0 | AN43: 0 | AO43: - | AP43: 0 | AQ43: - | AR43: 0 | AS43: 0 | AT43: 0 | AU43: 0 | AV43: 0 | AW43: 0 | AX43: 0 | AY43: 0 | AZ43: 0 | BA43: 0 | BB43: 0 | BC43: 0 | BD43: 0 | BE43: 0 | BF43: 0 | BG43: 0 | BH43: 0 | BI43: 0 | BJ43: 0 | BK43: - | BL43: 0 | BM43: 0 | BN43: 0 | BO43: 0 | BP43: 10 | BQ43: 0 | BR43: 10 | BS43: - | BT43: 0 | BU43: 5 | BV43: 5 | BW43: 0 | BX43: 0 | BY43: 0 | BZ43: 0 | CA43: 0 | CB43: 0
A45: Monday, December 15th
A46: Everton | B46: 3 | C46: 1 | D46: QPR | E46: 20:00:00 | G46: 5 | H46: 5 | I46: 5 | J46: 5 | K46: 10 | L46: 5 | M46: 5 | N46: 5 | O46: 5 | P46: 5 | Q46: 5 | R46: 5 | S46: 5 | T46: 5 | U46: 0 | V46: 5 | W46: 5 | X46: 5 | Y46: 5 | Z46: 5 | AA46: 5 | AB46: 5 | AC46: 5 | AD46: 5 | AE46: 5 | AF46: 5 | AG46: 5 | AH46: 5 | AI46: 5 | AJ46: 5 | AK46: 5 | AL46: 5 | AM46: 5 | AN46: 5 | AO46: - | AP46: 5 | AQ46: - | AR46: 5 | AS46: 5 | AT46: 5 | AU46: 5 | AV46: 5 | AW46: 5 | AX46: 5 | AY46: 0 | AZ46: 0 | BA46: 5 | BB46: 5 | BC46: 5 | BD46: 5 | BE46: 5 | BF46: 5 | BG46: 5 | BH46: 5 | BI46: 5 | BJ46: 5 | BK46: - | BL46: 5 | BM46: 5 | BN46: 5 | BO46: 5 | BP46: 10 | BQ46: 0 | BR46: 5 | BS46: - | BT46: 5 | BU46: 5 | BV46: 5 | BW46: 5 | BX46: 5 | BY46: 5 | BZ46: 5 | CA46: 10 | CB46: 5
A48: Saturday, December 20th
A49: Man City | B49: 3 | C49: 0 | D49: Crystal Palace | E49: 12:45:00 | G49: 5 | H49: 5 | I49: 5 | J49: 10 | K49: 5 | L49: 5 | M49: 5 | N49: 10 | O49: 5 | P49: 5 | Q49: 10 | R49: 5 | S49: 5 | T49: 10 | U49: 5 | V49: 5 | W49: 10 | X49: 10 | Y49: 5 | Z49: 5 | AA49: 5 | AB49: 10 | AC49: 5 | AD49: 10 | AE49: - | AF49: 10 | AG49: 10 | AH49: 5 | AI49: 5 | AJ49: 10 | AK49: 5 | AL49: 10 | AM49: 5 | AN49: 5 | AO49: - | AP49: 10 | AQ49: - | AR49: 5 | AS49: 10 | AT49: 5 | AU49: 5 | AV49: 5 | AW49: 0 | AX49: 5 | AY49: 5 | AZ49: 5 | BA49: 10 | BB49: 5 | BC49: 5 | BD49: 5 | BE49: 5 | BF49: 10 | BG49: 5 | BH49: 10 | BI49: 5 | BJ49: 10 | BK49: - | BL49: 5 | BM49: 10 | BN49: 10 | BO49: 10 | BP49: - | BQ49: 5 | BR49: 5 | BS49: - | BT49: 5 | BU49: 5 | BV49: 10 | BW49: 5 | BX49: 5 | BY49: 10 | BZ49: - | CA49: 10 | CB49: 5
A50: Aston Villa | B50: 1 | C50: 1 | D50: Man United | E50: 15:00:00 | G50: 0 | H50: 0 | I50: 0 | J50: 0 | K50: 5 | L50: 0 | M50: 0 | N50: 0 | O50: 0 | P50: 0 | Q50: 0 | R50: 0 | S50: 0 | T50: 0 | U50: 0 | V50: 10 | W50: 0 | X50: 0 | Y50: 0 | Z50: 0 | AA50: 0 | AB50: 0 | AC50: 0 | AD50: 0 | AE50: - | AF50: 0 | AG50: 0 | AH50: 0 | AI50: 0 | AJ50: 0 | AK50: 0 | AL50: 0 | AM50: 10 | AN50: 0 | AO50: - | AP50: 10 | AQ50: - | AR50: 0 | AS50: 0 | AT50: 0 | AU50: 0 | AV50: 0 | AW50: 10 | AX50: 0 | AY50: 0 | AZ50: 0 | BA50: 0 | BB50: 10 | BC50: 0 | BD50: 0 | BE50: 0 | BF50: 0 | BG50: 0 | BH50: 0 | BI50: 0 | BJ50: 0 | BK50: 0 | BL50: 0 | BM50: 0 | BN50: 0 | BO50: 0 | BP50: - | BQ50: 10 | BR50: 0 | BS50: - | BT50: 0 | BU50: 0 | BV50: 0 | BW50: 0 | BX50: 0 | BY50: 0 | BZ50: - | CA50: 0 | CB50: 0
A51: Hull City | B51: 0 | C51: 1 | D51: Swansea City | E51: 15:00:00 | G51: 0 | H51: 0 | I51: 0 | J51: 0 | K51: 0 | L51: 0 | M51: 0 | N51: 0 | O51: 5 | P51: 10 | Q51: 0 | R51: 10 | S51: 0 | T51: 0 | U51: 0 | V51: 0 | W51: 0 | X51: 0 | Y51: 0 | Z51: 10 | AA51: 5 | AB51: 5 | AC51: 0 | AD51: 0 | AE51: - | AF51: 0 | AG51: 0 | AH51: 0 | AI51: 0 | AJ51: 0 | AK51: 0 | AL51: 0 | AM51: 0 | AN51: 0 | AO51: - | AP51: 0 | AQ51: - | AR51: 0 | AS51: 0 | AT51: 0 | AU51: 0 | AV51: 5 | AW51: 0 | AX51: 0 | AY51: 10 | AZ51: 0 | BA51: 0 | BB51: 0 | BC51: 0 | BD51: 0 | BE51: 0 | BF51: 5 | BG51: 0 | BH51: 5 | BI51: 0 | BJ51: 0 | BK51: 0 | BL51: 0 | BM51: 0 | BN51: 0 | BO51: 0 | BP51: - | BQ51: 0 | BR51: 5 | BS51: - | BT51: 0 | BU51: 5 | BV51: 0 | BW51: 5 | BX51: 0 | BY51: 0 | BZ51: - | CA51: 10 | CB51: 0
A52: QPR | B52: 3 | C52: 2 | D52: West Brom | E52: 15:00:00 | G52: 0 | H52: 5 | I52: 5 | J52: 0 | K52: 0 | L52: 0 | M52: 5 | N52: 0 | O52: 5 | P52: 5 | Q52: 0 | R52: 0 | S52: 5 | T52: 0 | U52: 5 | V52: 0 | W52: 5 | X52: 0 | Y52: 5 | Z52: 5 | AA52: 5 | AB52: 0 | AC52: 5 | AD52: 0 | AE52: - | AF52: 5 | AG52: 5 | AH52: 5 | AI52: 0 | AJ52: 5 | AK52: 0 | AL52: 5 | AM52: 5 | AN52: 0 | AO52: - | AP52: 0 | AQ52: - | AR52: 0 | AS52: 5 | AT52: 5 | AU52: 5 | AV52: 0 | AW52: 0 | AX52: 5 | AY52: 5 | AZ52: 5 | BA52: 5 | BB52: 0 | BC52: 5 | BD52: 5 | BE52: 5 | BF52: 0 | BG52: 5 | BH52: 5 | BI52: 5 | BJ52: 5 | BK52: 5 | BL52: 5 | BM52: 0 | BN52: 5 | BO52: 5 | BP52: - | BQ52: 5 | BR52: 0 | BS52: - | BT52: 5 | BU52: 5 | BV52: 0 | BW52: 5 | BX52: 5 | BY52: 5 | BZ52: - | CA52: 0 | CB52: 5
A53: Southampton | B53: 3 | C53: 0 | D53: Everton | E53: 15:00:00 | G53: 0 | H53: 0 | I53: 0 | J53: 0 | K53: 5 | L53: 0 | M53: 5 | N53: 5 | O53: 0 | P53: 0 | Q53: 0 | R53: 0 | S53: 0 | T53: 5 | U53: 5 | V53: 5 | W53: 0 | X53: 0 | Y53: 5 | Z53: 0 | AA53: 0 | AB53: 0 | AC53: 0 | AD53: 5 | AE53: - | AF53: 0 | AG53: 0 | AH53: 0 | AI53: 0 | AJ53: 0 | AK53: 5 | AL53: 0 | AM53: 0 | AN53: 0 | AO53: - | AP53: 0 | AQ53: - | AR53: 0 | AS53: 0 | AT53: 0 | AU53: 5 | AV53: 0 | AW53: 0 | AX53: 0 | AY53: 0 | AZ53: 0 | BA53: 0 | BB53: 0 | BC53: 0 | BD53: 5 | BE53: 0 | BF53: 0 | BG53: 0 | BH53: 0 | BI53: 5 | BJ53: 0 | BK53: 0 | BL53: 5 | BM53: 5 | BN53: 0 | BO53: 5 | BP53: - | BQ53: 0 | BR53: 0 | BS53: - | BT53: 0 | BU53: 0 | BV53: 0 | BW53: 0 | BX53: 5 | BY53: 0 | BZ53: - | CA53: 0 | CB53: 0
A54: Tottenham | B54: 2 | C54: 1 | D54: Burnley | E54: 15:00:00 | G54: 5 | H54: 5 | I54: 5 | J54: 5 | K54: 5 | L54: 10 | M54: 5 | N54: 5 | O54: 5 | P54: 10 | Q54: 5 | R54: 5 | S54: 5 | T54: 5 | U54: 5 | V54: 5 | W54: 5 | X54: 5 | Y54: 5 | Z54: 10 | AA54: 5 | AB54: 10 | AC54: 5 | AD54: 5 | AE54: - | AF54: 5 | AG54: 5 | AH54: 5 | AI54: 5 | AJ54: 10 | AK54: 5 | AL54: 5 | AM54: 5 | AN54: 5 | AO54: - | AP54: 5 | AQ54: - | AR54: 5 | AS54: 10 | AT54: 5 | AU54: 5 | AV54: 5 | AW54: 0 | AX54: 5 | AY54: 5 | AZ54: 5 | BA54: 5 | BB54: 5 | BC54: 10 | BD54: 5 | BE54: 5 | BF54: 5 | BG54: 5 | BH54: 10 | BI54: 0 | BJ54: 5 | BK54: 5 | BL54: 10 | BM54: 5 | BN54: 10 | BO54: 5 | BP54: - | BQ54: 0 | BR54: 10 | BS54: - | BT54: 5 | BU54: 10 | BV54: 5 | BW54: 5 | BX54: 5 | BY54: 5 | BZ54: - | CA54: 5 | CB54: 5
A55: West Ham United | B55: 2 | C55: 0 | D55: Leicester City | E55: 15:00:00 | G55: 5 | H55: 5 | I55: 10 | J55: 5 | K55: 5 | L55: 5 | M55: 10 | N55: 10 | O55: 5 | P55: 10 | Q55: 10 | R55: 5 | S55: 10 | T55: 5 | U55: 5 | V55: 5 | W55: 5 | X55: 10 | Y55: 10 | Z55: 5 | AA55: 10 | AB55: 10 | AC55: 10 | AD55: 10 | AE55: - | AF55: 10 | AG55: 10 | AH55: 5 | AI55: 5 | AJ55: 10 | AK55: 10 | AL55: 10 | AM55: 10 | AN55: 5 | AO55: - | AP55: 10 | AQ55: - | AR55: 5 | AS55: 5 | AT55: 10 | AU55: 5 | AV55: 5 | AW55: 0 | AX55: 5 | AY55: 10 | AZ55: 5 | BA55: 10 | BB55: 5 | BC55: 0 | BD55: 5 | BE55: 5 | BF55: 5 | BG55: 5 | BH55: 5 | BI55: 10 | BJ55: 10 | BK55: 5 | BL55: 5 | BM55: 5 | BN55: 5 | BO55: 5 | BP55: - | BQ55: 0 | BR55: 10 | BS55: - | BT55: 10 | BU55: 5 | BV55: 5 | BW55: 10 | BX55: 5 | BY55: 0 | BZ55: - | CA55: 5 | CB55: 10
A57: Sunday, December 21st
A58: Newcastle United | B58: 0 | C58: 1 | D58: Sunderland | E58: 13:30:00 | G58: 0 | H58: 0 | I58: 0 | J58: 0 | K58: 0 | L58: 0 | M58: 0 | N58: 0 | O58: 0 | P58: 0 | Q58: 0 | R58: 0 | S58: 0 | T58: 0 | U58: 0 | V58: 0 | W58: 0 | X58: 0 | Y58: 0 | Z58: 0 | AA58: 0 | AB58: 0 | AC58: 0 | AD58: 0 | AE58: - | AF58: 0 | AG58: 5 | AH58: 0 | AI58: 0 | AJ58: 0 | AK58: 5 | AL58: 0 | AM58: 0 | AN58: 0 | AO58: - | AP58: 0 | AQ58: - | AR58: 0 | AS58: 5 | AT58: 0 | AU58: 0 | AV58: 0 | AW58: 0 | AX58: 0 | AY58: 0 | AZ58: 0 | BA58: 0 | BB58: 10 | BC58: 0 | BD58: 0 | BE58: 0 | BF58: 0 | BG58: 0 | BH58: 0 | BI58: 0 | BJ58: 0 | BK58: 0 | BL58: 0 | BM58: 0 | BN58: 0 | BO58: 0 | BP58: - | BQ58: 0 | BR58: 0 | BS58: - | BT58: 0 | BU58: 0 | BV58: 0 | BW58: 0 | BX58: 0 | BY58: 0 | BZ58: - | CA58: 0 | CB58: 0
A59: Liverpool | B59: 2 | C59: 2 | D59: Arsenal | E59: 16:00:00 | G59: 5 | H59: 0 | I59: 0 | J59: 0 | K59: 0 | L59: 0 | M59: 0 | N59: 0 | O59: 5 | P59: 0 | Q59: 0 | R59: 0 | S59: 10 | T59: 0 | U59: 0 | V59: 10 | W59: 5 | X59: 5 | Y59: 0 | Z59: 0 | AA59: 10 | AB59: 5 | AC59: 5 | AD59: 0 | AE59: - | AF59: 0 | AG59: 0 | AH59: 5 | AI59: 5 | AJ59: 0 | AK59: 0 | AL59: 0 | AM59: 0 | AN59: 0 | AO59: - | AP59: 5 | AQ59: - | AR59: 0 | AS59: 0 | AT59: 10 | AU59: 0 | AV59: 10 | AW59: 5 | AX59: 0 | AY59: 0 | AZ59: 0 | BA59: 0 | BB59: 5 | BC59: 5 | BD59: 5 | BE59: 5 | BF59: 10 | BG59: 10 | BH59: 0 | BI59: 10 | BJ59: 0 | BK59: 0 | BL59: 0 | BM59: 10 | BN59: 10 | BO59: 0 | BP59: - | BQ59: 0 | BR59: 0 | BS59: - | BT59: 10 | BU59: 0 | BV59: 0 | BW59: 0 | BX59: 0 | BY59: 0 | BZ59: - | CA59: 0 | CB59: 5
A61: Monday, December 22nd
A62: Stoke City | B62: 0 | C62: 2 | D62: Chelsea | E62: 20:00:00 | G62: 5 | H62: 5 | I62: 5 | J62: 10 | K62: 5 | L62: 0 | M62: 10 | N62: 5 | O62: 0 | P62: 5 | Q62: 10 | R62: 5 | S62: 5 | T62: 5 | U62: 5 | V62: 10 | W62: 5 | X62: 10 | Y62: 10 | Z62: 5 | AA62: 10 | AB62: 5 | AC62: 5 | AD62: 5 | AE62: - | AF62: 5 | AG62: 5 | AH62: 10 | AI62: 10 | AJ62: 10 | AK62: 0 | AL62: 10 | AM62: 10 | AN62: 0 | AO62: - | AP62: 5 | AQ62: - | AR62: 10 | AS62: 5 | AT62: 0 | AU62: 5 | AV62: 5 | AW62: 0 | AX62: 10 | AY62: 10 | AZ62: 10 | BA62: 5 | BB62: 5 | BC62: 10 | BD62: 5 | BE62: 5 | BF62: 5 | BG62: 0 | BH62: 5 | BI62: 10 | BJ62: 10 | BK62: 0 | BL62: 0 | BM62: 5 | BN62: 5 | BO62: 10 | BP62: - | BQ62: 0 | BR62: 0 | BS62: - | BT62: 5 | BU62: 5 | BV62: 5 | BW62: 5 | BX62: 10 | BY62: 0 | BZ62: - | CA62: 5 | CB62: 5
A64: Friday, December 26th
A65: Chelsea | B65: 2 | C65: 0 | D65: West Ham United | E65: 12:45:00 | G65: 5 | H65: 10 | I65: 5 | J65: 5 | K65: 0 | L65: 0 | M65: 10 | N65: 5 | O65: 5 | P65: 5 | Q65: 5 | R65: 10 | S65: 10 | T65: 5 | U65: 5 | V65: 5 | W65: 10 | X65: 5 | Y65: 10 | Z65: 5 | AA65: 10 | AB65: 5 | AC65: 10 | AD65: 10 | AE65: 5 | AF65: 10 | AG65: 10 | AH65: 10 | AI65: 5 | AJ65: 5 | AK65: 10 | AL65: 10 | AM65: 10 | AN65: 5 | AO65: - | AP65: 10 | AQ65: - | AR65: 5 | AS65: 5 | AT65: 10 | AU65: 5 | AV65: 10 | AW65: 5 | AX65: 5 | AY65: 5 | AZ65: 5 | BA65: 10 | BB65: 5 | BC65: 5 | BD65: 5 | BE65: 10 | BF65: 10 | BG65: 10 | BH65: 5 | BI65: 10 | BJ65: 10 | BK65: 10 | BL65: - | BM65: 5 | BN65: 5 | BO65: 10 | BP65: - | BQ65: 0 | BR65: 5 | BS65: - | BT65: 10 | BU65: 5 | BV65: 5 | BW65: 5 | BX65: 5 | BY65: 0 | BZ65: - | CA65: 5 | CB65: 5
A66: Burnley | B66: 0 | C66: 1 | D66: Liverpool | E66: 15:00:00 | G66: 5 | H66: 5 | I66: 5 | J66: 5 | K66: 5 | L66: 0 | M66: 5 | N66: 5 | O66: 0 | P66: 5 | Q66: 0 | R66: 10 | S66: 5 | T66: 5 | U66: 5 | V66: 0 | W66: 5 | X66: 5 | Y66: 5 | Z66: 10 | AA66: 5 | AB66: 5 | AC66: 5 | AD66: 5 | AE66: 5 | AF66: 0 | AG66: 5 | AH66: 5 | AI66: 5 | AJ66: 10 | AK66: 10 | AL66: 5 | AM66: 5 | AN66: 0 | AO66: - | AP66: 5 | AQ66: - | AR66: 0 | AS66: 5 | AT66: 5 | AU66: 10 | AV66: 0 | AW66: 5 | AX66: 10 | AY66: 5 | AZ66: 10 | BA66: 5 | BB66: 5 | BC66: 5 | BD66: 5 | BE66: 0 | BF66: 5 | BG66: 0 | BH66: 5 | BI66: 5 | BJ66: 5 | BK66: 0 | BL66: - | BM66: 5 | BN66: 5 | BO66: 10 | BP66: - | BQ66: 5 | BR66: 5 | BS66: - | BT66: 5 | BU66: 5 | BV66: 5 | BW66: 5 | BX66: 0 | BY66: 5 | BZ66: - | CA66: 5 | CB66: 5
A67: Crystal Palace | B67: 1 | C67: 3 | D67: Southampton | E67: 15:00:00 | G67: 5 | H67: 0 | I67: 5 | J67: 5 | K67: 0 | L67: 0 | M67: 5 | N67: 5 | O67: 0 | P67: 5 | Q67: 0 | R67: 5 | S67: 0 | T67: 0 | U67: 5 | V67: 0 | W67: 0 | X67: 5 | Y67: 0 | Z67: 5 | AA67: 5 | AB67: 5 | AC67: 0 | AD67: 10 | AE67: 0 | AF67: 5 | AG67: 0 | AH67: 5 | AI67: 0 | AJ67: 0 | AK67: 0 | AL67: 0 | AM67: 5 | AN67: 5 | AO67: - | AP67: 5 | AQ67: - | AR67: 0 | AS67: 0 | AT67: 0 | AU67: 5 | AV67: 0 | AW67: 0 | AX67: 5 | AY67: 5 | AZ67: 5 | BA67: 5 | BB67: 5 | BC67: 0 | BD67: 0 | BE67: 0 | BF67: 5 | BG67: 0 | BH67: 10 | BI67: 0 | BJ67: 0 | BK67: 0 | BL67: - | BM67: 0 | BN67: 0 | BO67: 5 | BP67: - | BQ67: 0 | BR67: 0 | BS67: - | BT67: 0 | BU67: 5 | BV67: 5 | BW67: 5 | BX67: 5 | BY67: 0 | BZ67: - | CA67: 5 | CB67: 0
A68: Everton | B68: 0 | C68: 1 | D68: Stoke City | E68: 15:00:00 | G68: 0 | H68: 0 | I68: 0 | J68: 0 | K68: 0 | L68: 0 | M68: 0 | N68: 0 | O68: 0 | P68: 0 | Q68: 0 | R68: 0 | S68: 0 | T68: 0 | U68: 0 | V68: 0 | W68: 0 | X68: 0 | Y68: 0 | Z68: 0 | AA68: 0 | AB68: 0 | AC68: 0 | AD68: 0 | AE68: 0 | AF68: 0 | AG68: 0 | AH68: 0 | AI68: 0 | AJ68: 0 | AK68: 0 | AL68: 0 | AM68: 0 | AN68: 0 | AO68: - | AP68: 0 | AQ68: - | AR68: 0 | AS68: 0 | AT68: 0 | AU68: 0 | AV68: 0 | AW68: 0 | AX68: 0 | AY68: 0 | AZ68: 0 | BA68: 0 | BB68: 0 | BC68: 0 | BD68: 0 | BE68: 0 | BF68: 0 | BG68: 0 | BH68: 0 | BI68: 0 | BJ68: 0 | BK68: 0 | BL68: - | BM68: 0 | BN68: 0 | BO68: 0 | BP68: - | BQ68: 0 | BR68: 0 | BS68: - | BT68: 0 | BU68: 0 | BV68: 0 | BW68: 0 | BX68: 5 | BY68: 0 | BZ68: - | CA68: 0 | CB68: 0
A69: Leicester City | B69: 1 | C69: 2 | D69: Tottenham | E69: 15:00:00 | G69: 5 | H69: 10 | I69: 5 | J69: 5 | K69: 5 | L69: 10 | M69: 5 | N69: 10 | O69: 0 | P69: 5 | Q69: 0 | R69: 5 | S69: 5 | T69: 10 | U69: 0 | V69: 5 | W69: 5 | X69: 5 | Y69: 0 | Z69: 10 | AA69: 5 | AB69: 5 | AC69: 10 | AD69: 0 | AE69: 5 | AF69: 10 | AG69: 0 | AH69: 10 | AI69: 5 | AJ69: 0 | AK69: 5 | AL69: 5 | AM69: 10 | AN69: 10 | AO69: - | AP69: 10 | AQ69: - | AR69: 5 | AS69: 5 | AT69: 5 | AU69: 5 | AV69: 0 | AW69: 10 | AX69: 5 | AY69: 5 | AZ69: 10 | BA69: 5 | BB69: 10 | BC69: 0 | BD69: 10 | BE69: 0 | BF69: 5 | BG69: 10 | BH69: 10 | BI69: 0 | BJ69: 5 | BK69: 0 | BL69: - | BM69: 5 | BN69: 10 | BO69: 0 | BP69: - | BQ69: 0 | BR69: 10 | BS69: - | BT69: 0 | BU69: 5 | BV69: 5 | BW69: 5 | BX69: 5 | BY69: 0 | BZ69: - | CA69: 5 | CB69: 5
A70: Man United | B70: 3 | C70: 1 | D70: Newcastle United | E70: 15:00:00 | G70: 10 | H70: 5 | I70: 10 | J70: 5 | K70: 5 | L70: 10 | M70: 5 | N70: 5 | O70: 5 | P70: 5 | Q70: 5 | R70: 5 | S70: 5 | T70: 10 | U70: 10 | V70: 5 | W70: 5 | X70: 5 | Y70: 5 | Z70: 5 | AA70: 10 | AB70: 5 | AC70: 5 | AD70: 5 | AE70: 5 | AF70: 5 | AG70: 5 | AH70: 5 | AI70: 10 | AJ70: 5 | AK70: 5 | AL70: 5 | AM70: 5 | AN70: 5 | AO70: - | AP70: 5 | AQ70: - | AR70: 5 | AS70: 5 | AT70: 5 | AU70: 5 | AV70: 5 | AW70: 5 | AX70: 5 | AY70: 5 | AZ70: 10 | BA70: 0 | BB70: 0 | BC70: 5 | BD70: 5 | BE70: 5 | BF70: 5 | BG70: 5 | BH70: 10 | BI70: 0 | BJ70: 5 | BK70: 5 | BL70: - | BM70: 10 | BN70: 5 | BO70: 5 | BP70: - | BQ70: 5 | BR70: 5 | BS70: - | BT70: 0 | BU70: 5 | BV70: 5 | BW70: 5 | BX70: 5 | BY70: 10 | BZ70: - | CA70: 10 | CB70: 5
A71: Sunderland | B71: 1 | C71: 3 | D71: Hull City | E71: 15:00:00 | G71: 0 | H71: 0 | I71: 0 | J71: 0 | K71: 0 | L71: 0 | M71: 0 | N71: 0 | O71: 0 | P71: 0 | Q71: 0 | R71: 0 | S71: 0 | T71: 0 | U71: 0 | V71: 0 | W71: 0 | X71: 0 | Y71: 0 | Z71: 0 | AA71: 0 | AB71: 0 | AC71: 0 | AD71: 0 | AE71: 0 | AF71: 0 | AG71: 0 | AH71: 0 | AI71: 0 | AJ71: 0 | AK71: 0 | AL71: 0 | AM71: 0 | AN71: 0 | AO71: - | AP71: 0 | AQ71: - | AR71: 0 | AS71: 0 | AT71: 0 | AU71: 0 | AV71: 0 | AW71: 0 | AX71: 0 | AY71: 0 | AZ71: 0 | BA71: 0 | BB71: 0 | BC71: 0 | BD71: 0 | BE71: 0 | BF71: 0 | BG71: 0 | BH71: 0 | BI71: 0 | BJ71: 0 | BK71: 0 | BL71: - | BM71: 0 | BN71: 0 | BO71: 0 | BP71: - | BQ71: 0 | BR71: 0 | BS71: - | BT71: 0 | BU71: 0 | BV71: 0 | BW71: 0 | BX71: 0 | BY71: 0 | BZ71: - | CA71: 5 | CB71: 0
A72: Swansea City | B72: 1 | C72: 0 | D72: Aston Villa | E72: 15:00:00 | G72: 0 | H72: 5 | I72: 0 | J72: 0 | K72: 10 | L72: 0 | M72: 10 | N72: 5 | O72: 5 | P72: 5 | Q72: 5 | R72: 5 | S72: 5 | T72: 10 | U72: 0 | V72: 0 | W72: 0 | X72: 0 | Y72: 5 | Z72: 5 | AA72: 5 | AB72: 5 | AC72: 5 | AD72: 10 | AE72: 5 | AF72: 5 | AG72: 5 | AH72: 10 | AI72: 5 | AJ72: 5 | AK72: 5 | AL72: 5 | AM72: 0 | AN72: 5 | AO72: - | AP72: 0 | AQ72: - | AR72: 5 | AS72: 5 | AT72: 5 | AU72: 10 | AV72: 5 | AW72: 0 | AX72: 5 | AY72: 10 | AZ72: 0 | BA72: 0 | BB72: 0 | BC72: 0 | BD72: 5 | BE72: 5 | BF72: 0 | BG72: 5 | BH72: 5 | BI72: 10 | BJ72: 10 | BK72: 5 | BL72: - | BM72: 0 | BN72: 5 | BO72: 5 | BP72: - | BQ72: 0 | BR72: 0 | BS72: - | BT72: 5 | BU72: 5 | BV72: 0 | BW72: 5 | BX72: 10 | BY72: 5 | BZ72: - | CA72: 5 | CB72: 5
A73: West Brom | B73: 1 | C73: 3 | D73: Man City | E73: 15:00:00 | G73: 5 | H73: 5 | I73: 5 | J73: 5 | K73: 10 | L73: 5 | M73: 5 | N73: 5 | O73: 0 | P73: 5 | Q73: 5 | R73: 5 | S73: 5 | T73: 5 | U73: 5 | V73: 10 | W73: 5 | X73: 5 | Y73: 5 | Z73: 5 | AA73: 5 | AB73: 10 | AC73: 5 | AD73: 5 | AE73: 5 | AF73: 10 | AG73: 5 | AH73: 5 | AI73: 5 | AJ73: 5 | AK73: 5 | AL73: 5 | AM73: 5 | AN73: 10 | AO73: - | AP73: 5 | AQ73: - | AR73: 5 | AS73: 5 | AT73: 10 | AU73: 5 | AV73: 0 | AW73: 10 | AX73: 5 | AY73: 5 | AZ73: 5 | BA73: 10 | BB73: 5 | BC73: 5 | BD73: 5 | BE73: 0 | BF73: 5 | BG73: 5 | BH73: 5 | BI73: 5 | BJ73: 5 | BK73: 0 | BL73: - | BM73: 5 | BN73: 5 | BO73: 5 | BP73: - | BQ73: 0 | BR73: 10 | BS73: - | BT73: 10 | BU73: 10 | BV73: 10 | BW73: 5 | BX73: 5 | BY73: 5 | BZ73: - | CA73: 10 | CB73: 5
A74: Arsenal | B74: 2 | C74: 1 | D74: QPR | E74: 17:30:00 | G74: 10 | H74: 5 | I74: 5 | J74: 5 | K74: 5 | L74: 5 | M74: 5 | N74: 10 | O74: 10 | P74: 5 | Q74: 5 | R74: 5 | S74: 10 | T74: 5 | U74: 5 | V74: 5 | W74: 5 | X74: 5 | Y74: 5 | Z74: 5 | AA74: 5 | AB74: 5 | AC74: 5 | AD74: 5 | AE74: 10 | AF74: 5 | AG74: 5 | AH74: 5 | AI74: 5 | AJ74: 5 | AK74: 5 | AL74: 5 | AM74: 5 | AN74: 5 | AO74: - | AP74: 5 | AQ74: - | AR74: 5 | AS74: 5 | AT74: 5 | AU74: 5 | AV74: 5 | AW74: 5 | AX74: 5 | AY74: 5 | AZ74: 10 | BA74: 5 | BB74: 5 | BC74: 10 | BD74: 10 | BE74: 5 | BF74: 10 | BG74: 5 | BH74: 5 | BI74: 5 | BJ74: 10 | BK74: 5 | BL74: - | BM74: 5 | BN74: 10 | BO74: 5 | BP74: - | BQ74: 0 | BR74: 5 | BS74: - | BT74: 5 | BU74: 5 | BV74: 5 | BW74: 5 | BX74: 5 | BY74: 5 | BZ74: - | CA74: 5 | CB74: 10
A76: Sunday, December 28th
A77: Tottenham | B77: 0 | C77: 0 | D77: Man United | E77: 12:00:00 | G77: 0 | H77: 0 | I77: 0 | J77: 0 | K77: 0 | L77: 0 | M77: 5 | N77: 5 | O77: 0 | P77: 5 | Q77: 0 | R77: 5 | S77: 0 | T77: 0 | U77: 0 | V77: 0 | W77: 0 | X77: 0 | Y77: 0 | Z77: 0 | AA77: 0 | AB77: 5 | AC77: 0 | AD77: 5 | AE77: 5 | AF77: 5 | AG77: 0 | AH77: 5 | AI77: 5 | AJ77: 0 | AK77: 5 | AL77: 5 | AM77: 5 | AN77: 5 | AO77: - | AP77: 0 | AQ77: - | AR77: 0 | AS77: 0 | AT77: 0 | AU77: 0 | AV77: 0 | AW77: 5 | AX77: 0 | AY77: 0 | AZ77: 0 | BA77: 0 | BB77: 0 | BC77: 0 | BD77: 0 | BE77: 0 | BF77: 0 | BG77: 0 | BH77: 0 | BI77: 0 | BJ77: 5 | BK77: 0 | BL77: 5 | BM77: 0 | BN77: 0 | BO77: 0 | BP77: - | BQ77: 0 | BR77: 0 | BS77: - | BT77: 0 | BU77: 0 | BV77: 0 | BW77: 0 | BX77: 5 | BY77: 5 | BZ77: - | CA77: 5 | CB77: 5
A78: Southampton | B78: 1 | C78: 1 | D78: Chelsea | E78: 14:05:00 | G78: 0 | H78: 0 | I78: 0 | J78: 0 | K78: 0 | L78: 0 | M78: 0 | N78: 0 | O78: 0 | P78: 0 | Q78: 0 | R78: 0 | S78: 0 | T78: 0 | U78: 0 | V78: 0 | W78: 0 | X78: 0 | Y78: 10 | Z78: 0 | AA78: 0 | AB78: 0 | AC78: 0 | AD78: 0 | AE78: 0 | AF78: 0 | AG78: 0 | AH78: 0 | AI78: 0 | AJ78: 0 | AK78: 10 | AL78: 0 | AM78: 0 | AN78: 10 | AO78: - | AP78: 0 | AQ78: - | AR78: 0 | AS78: 0 | AT78: 0 | AU78: 0 | AV78: 0 | AW78: 0 | AX78: 0 | AY78: 0 | AZ78: 5 | BA78: 0 | BB78: 0 | BC78: 0 | BD78: 0 | BE78: 0 | BF78: 0 | BG78: 10 | BH78: 0 | BI78: 0 | BJ78: 0 | BK78: 0 | BL78: 0 | BM78: 10 | BN78: 0 | BO78: 0 | BP78: - | BQ78: 0 | BR78: 0 | BS78: - | BT78: 5 | BU78: 0 | BV78: 0 | BW78: 0 | BX78: 0 | BY78: 0 | BZ78: - | CA78: 0 | CB78: 0
A79: Aston Villa | B79: 0 | C79: 0 | D79: Sunderland | E79: 15:00:00 | G79: 0 | H79: 5 | I79: 5 | J79: 0 | K79: 0 | L79: 0 | M79: 5 | N79: 5 | O79: 0 | P79: 5 | Q79: 0 | R79: 0 | S79: 0 | T79: 0 | U79: 0 | V79: 0 | W79: 5 | X79: 0 | Y79: 5 | Z79: 5 | AA79: 0 | AB79: 5 | AC79: 0 | AD79: 5 | AE79: 0 | AF79: 5 | AG79: 5 | AH79: 0 | AI79: 0 | AJ79: 5 | AK79: 0 | AL79: 5 | AM79: 0 | AN79: 10 | AO79: - | AP79: 0 | AQ79: - | AR79: 0 | AS79: 5 | AT79: 0 | AU79: 0 | AV79: 0 | AW79: 5 | AX79: 0 | AY79: 0 | AZ79: 0 | BA79: 0 | BB79: 5 | BC79: 5 | BD79: 0 | BE79: 0 | BF79: 5 | BG79: 0 | BH79: 0 | BI79: 0 | BJ79: 0 | BK79: 0 | BL79: 0 | BM79: 5 | BN79: 0 | BO79: 0 | BP79: - | BQ79: 0 | BR79: 5 | BS79: - | BT79: 0 | BU79: 0 | BV79: 5 | BW79: 5 | BX79: 5 | BY79: 0 | BZ79: - | CA79: 10 | CB79: 5
A80: Hull City | B80: 0 | C80: 1 | D80: Leicester City | E80: 15:00:00 | G80: 0 | H80: 0 | I80: 0 | J80: 0 | K80: 0 | L80: 0 | M80: 0 | N80: 0 | O80: 0 | P80: 0 | Q80: 0 | R80: 0 | S80: 0 | T80: 0 | U80: 0 | V80: 0 | W80: 0 | X80: 0 | Y80: 0 | Z80: 0 | AA80: 0 | AB80: 0 | AC80: 0 | AD80: 0 | AE80: 0 | AF80: 0 | AG80: 0 | AH80: 0 | AI80: 0 | AJ80: 0 | AK80: 0 | AL80: 0 | AM80: 0 | AN80: 0 | AO80: - | AP80: 0 | AQ80: - | AR80: 0 | AS80: 0 | AT80: 0 | AU80: 0 | AV80: 0 | AW80: 0 | AX80: 0 | AY80: 0 | AZ80: 0 | BA80: 0 | BB80: 0 | BC80: 0 | BD80: 0 | BE80: 0 | BF80: 0 | BG80: 0 | BH80: 0 | BI80: 0 | BJ80: 0 | BK80: 0 | BL80: 0 | BM80: 0 | BN80: 0 | BO80: 0 | BP80: - | BQ80: 0 | BR80: 0 | BS80: - | BT80: 0 | BU80: 0 | BV80: 0 | BW80: 0 | BX80: 0 | BY80: 0 | BZ80: - | CA80: 5 | CB80: 0
A81: Man City | B81: 2 | C81: 2 | D81: Burnley | E81: 15:00:00 | G81: 0 | H81: 0 | I81: 0 | J81: 0 | K81: 0 | L81: 0 | M81: 0 | N81: 0 | O81: 0 | P81: 0 | Q81: 0 | R81: 0 | S81: 0 | T81: 0 | U81: 0 | V81: 0 | W81: 0 | X81: 0 | Y81: 0 | Z81: 0 | AA81: 0 | AB81: 0 | AC81: 0 | AD81: 0 | AE81: 0 | AF81: 0 | AG81: 0 | AH81: 0 | AI81: 0 | AJ81: 0 | AK81: 0 | AL81: 0 | AM81: 0 | AN81: 0 | AO81: - | AP81: 0 | AQ81: - | AR81: 0 | AS81: 0 | AT81: 0 | AU81: 0 | AV81: 0 | AW81: 0 | AX81: 0 | AY81: 0 | AZ81: 0 | BA81: 0 | BB81: 0 | BC81: 0 | BD81: 0 | BE81: 0 | BF81: 0 | BG81: 0 | BH81: 0 | BI81: 0 | BJ81: 0 | BK81: 0 | BL81: 0 | BM81: 0 | BN81: 0 | BO81: 0 | BP81: - | BQ81: 5 | BR81: 0 | BS81: - | BT81: 0 | BU81: 0 | BV81: 0 | BW81: 0 | BX81: 0 | BY81: 0 | BZ81: - | CA81: 0 | CB81: 0
A82: QPR | B82: 0 | C82: 0 | D82: Crystal Palace | E82: 15:00:00 | G82: 0 | H82: 0 | I82: 0 | J82: 0 | K82: 0 | L82: 5 | M82: 5 | N82: 5 | O82: 0 | P82: 5 | Q82: 0 | R82: 0 | S82: 10 | T82: 0 | U82: 5 | V82: 5 | W82: 0 | X82: 0 | Y82: 0 | Z82: 5 | AA82: 0 | AB82: 0 | AC82: 0 | AD82: 5 | AE82: 0 | AF82: 0 | AG82: 0 | AH82: 0 | AI82: 5 | AJ82: 5 | AK82: 0 | AL82: 5 | AM82: 0 | AN82: 0 | AO82: - | AP82: 10 | AQ82: - | AR82: 0 | AS82: 0 | AT82: 0 | AU82: 0 | AV82: 0 | AW82: 0 | AX82: 0 | AY82: 0 | AZ82: 0 | BA82: 10 | BB82: 0 | BC82: 5 | BD82: 0 | BE82: 0 | BF82: 0 | BG82: 0 | BH82: 0 | BI82: 5 | BJ82: 0 | BK82: 0 | BL82: 0 | BM82: 0 | BN82: 0 | BO82: 0 | BP82: - | BQ82: 0 | BR82: 5 | BS82: - | BT82: 0 | BU82: 0 | BV82: 5 | BW82: 0 | BX82: 0 | BY82: 10 | BZ82: - | CA82: 0 | CB82: 0
A83: Stoke City | B83: 2 | C83: 0 | D83: West Brom | E83: 15:00:00 | G83: 5 | H83: 0 | I83: 5 | J83: 5 | K83: 10 | L83: 5 | M83: 5 | N83: 0 | O83: 10 | P83: 5 | Q83: 5 | R83: 0 | S83: 10 | T83: 5 | U83: 5 | V83: 5 | W83: 5 | X83: 0 | Y83: 0 | Z83: 0 | AA83: 10 | AB83: 5 | AC83: 5 | AD83: 0 | AE83: 10 | AF83: 5 | AG83: 5 | AH83: 5 | AI83: 5 | AJ83: 5 | AK83: 10 | AL83: 5 | AM83: 10 | AN83: 10 | AO83: - | AP83: 5 | AQ83: - | AR83: 5 | AS83: 10 | AT83: 5 | AU83: 5 | AV83: 10 | AW83: 5 | AX83: 5 | AY83: 10 | AZ83: 0 | BA83: 5 | BB83: 0 | BC83: 0 | BD83: 5 | BE83: 10 | BF83: 0 | BG83: 5 | BH83: 5 | BI83: 5 | BJ83: 0 | BK83: 5 | BL83: 5 | BM83: 0 | BN83: 5 | BO83: 5 | BP83: - | BQ83: 0 | BR83: 5 | BS83: - | BT83: 0 | BU83: 0 | BV83: 5 | BW83: 5 | BX83: 5 | BY83: 0 | BZ83: - | CA83: 0 | CB83: 5
A84: West Ham United | B84: 1 | C84: 2 | D84: Arsenal | E84: 15:00:00 | G84: 0 | H84: 5 | I84: 0 | J84: 0 | K84: 0 | L84: 10 | M84: 0 | N84: 0 | O84: 0 | P84: 10 | Q84: 0 | R84: 5 | S84: 0 | T84: 0 | U84: 5 | V84: 0 | W84: 0 | X84: 10 | Y84: 10 | Z84: 0 | AA84: 0 | AB84: 5 | AC84: 0 | AD84: 5 | AE84: 0 | AF84: 0 | AG84: 0 | AH84: 10 | AI84: 10 | AJ84: 0 | AK84: 5 | AL84: 10 | AM84: 10 | AN84: 10 | AO84: - | AP84: 10 | AQ84: - | AR84: 0 | AS84: 0 | AT84: 0 | AU84: 5 | AV84: 0 | AW84: 5 | AX84: 10 | AY84: 0 | AZ84: 10 | BA84: 0 | BB84: 5 | BC84: 10 | BD84: 0 | BE84: 0 | BF84: 10 | BG84: 5 | BH84: 5 | BI84: 0 | BJ84: 0 | BK84: 0 | BL84: 10 | BM84: 10 | BN84: 0 | BO84: 5 | BP84: - | BQ84: 5 | BR84: 0 | BS84: - | BT84: 0 | BU84: 5 | BV84: 10 | BW84: 0 | BX84: 0 | BY84: 10 | BZ84: - | CA84: 0 | CB84: 0
A85: Newcastle United | B85: 3 | C85: 2 | D85: Everton | E85: 16:15:00 | G85: 5 | H85: 0 | I85: 5 | J85: 0 | K85: 5 | L85: 0 | M85: 5 | N85: 0 | O85: 5 | P85: 0 | Q85: 5 | R85: 0 | S85: 5 | T85: 5 | U85: 5 | V85: 0 | W85: 0 | X85: 0 | Y85: 0 | Z85: 0 | AA85: 0 | AB85: 0 | AC85: 5 | AD85: 5 | AE85: 0 | AF85: 5 | AG85: 0 | AH85: 0 | AI85: 0 | AJ85: 0 | AK85: 0 | AL85: 0 | AM85: 5 | AN85: 0 | AO85: - | AP85: 0 | AQ85: - | AR85: 0 | AS85: 0 | AT85: 5 | AU85: 5 | AV85: 5 | AW85: 0 | AX85: 5 | AY85: 5 | AZ85: 0 | BA85: 0 | BB85: 0 | BC85: 0 | BD85: 0 | BE85: 5 | BF85: 0 | BG85: 0 | BH85: 0 | BI85: 5 | BJ85: 5 | BK85: 5 | BL85: 5 | BM85: 0 | BN85: 0 | BO85: 5 | BP85: - | BQ85: 0 | BR85: 0 | BS85: - | BT85: 0 | BU85: 0 | BV85: 0 | BW85: 5 | BX85: 0 | BY85: 0 | BZ85: - | CA85: 5 | CB85: 0
A87: Monday, December 29th
A88: Liverpool | D88: Swansea City | E88: 20:00:00 | G88: 5 | H88: 5 | I88: 0 | J88: 5 | K88: 0 | L88: 5 | M88: 0 | N88: 5 | O88: 5 | P88: 5 | Q88: 5 | R88: 5 | S88: 5 | T88: 5 | U88: 5 | V88: 5 | W88: 5 | X88: 5 | Y88: 5 | Z88: 5 | AA88: 0 | AB88: 5 | AC88: 5 | AD88: 5 | AE88: 5 | AF88: 5 | AG88: 5 | AH88: 5 | AI88: 0 | AJ88: 5 | AK88: 0 | AL88: 5 | AM88: 0 | AN88: 0 | AO88: - | AP88: 5 | AQ88: - | AR88: 0 | AS88: 5 | AT88: 0 | AU88: 5 | AV88: 5 | AW88: 5 | AX88: 5 | AY88: 5 | AZ88: 5 | BA88: 5 | BB88: 5 | BC88: 5 | BD88: 0 | BE88: 5 | BF88: 0 | BG88: 5 | BH88: 5 | BI88: 5 | BJ88: 5 | BK88: 0 | BL88: 5 | BM88: 0 | BN88: 5 | BO88: 5 | BP88: - | BQ88: 5 | BR88: 5 | BS88: - | BT88: 5 | BU88: 5 | BV88: 5 | BW88: 0 | BX88: 0 | BY88: 5 | BZ88: - | CA88: 0 | CB88: 5
A90: Golden Boots
A91: Alexis Sanchez - Arsenal | E91: =1+0+0+0+1+0 -> 2 | F91: =COUNT(G91:CB91) -> 14 | H91: =5*$E91 -> 10 | N91: =5*$E91 -> 10 | T91: =5*$E91 -> 10 | Y91: =5*$E91 -> 10 | Z91: =5*$E91 -> 10 | AC91: =5*$E91 -> 10 | AQ91: =5*$E91 -> 10 | AS91: =5*$E91 -> 10 | AZ91: =5*$E91 -> 10 | BF91: =5*$E91 -> 10 | BK91: =5*$E91 -> 10 | BL91: =5*$E91 -> 10 | BV91: =5*$E91 -> 10 | BZ91: =5*$E91 -> 10
A92: Daniel Sturridge - Liverpool | E92: =0+0+0+0+0+0 -> 0 | F92: 52 | G92: =5*$E92 -> 0 | I92: =5*$E92 -> 0 | J92: =5*$E92 -> 0 | K92: =5*$E92 -> 0 | M92: =5*$E92 -> 0 | N92: =5*$E92 -> 0 | O92: =5*$E92 -> 0 | P92: =5*$E92 -> 0 | Q92: =5*$E92 -> 0 | R92: =5*$E92 -> 0 | S92: =5*$E92 -> 0 | V92: =5*$E92 -> 0 | W92: =5*$E92 -> 0 | X92: =5*$E92 -> 0 | Z92: =5*$E92 -> 0 | AA92: =5*$E92 -> 0 | AB92: =5*$E92 -> 0 | AE92: =5*$E92 -> 0 | AF92: =5*$E92 -> 0 | AG92: =5*$E92 -> 0 | AI92: =5*$E92 -> 0 | AJ92: 0 | AK92: 0 | AL92: 0 | AM92: 0 | AO92: 0 | AP92: 0 | AR92: =5*$E92 -> 0 | AS92: =5*$E92 -> 0 | AU92: =5*$E92 -> 0 | AV92: =5*$E92 -> 0 | AX92: =5*$E92 -> 0 | AY92: =5*$E92 -> 0 | BA92: =5*$E92 -> 0 | BB92: =5*$E92 -> 0 | BC92: =5*$E92 -> 0 | BD92: =5*$E92 -> 0 | BE92: =5*$E92 -> 0 | BF92: =5*$E92 -> 0 | BI92: =5*$E92 -> 0 | BJ92: =5*$E92 -> 0 | BK92: =5*$E92 -> 0 | BL92: 0 | BM92: =5*$E92 -> 0 | BQ92: =5*$E92 -> 0 | BS92: =5*$E92 -> 0 | BT92: =5*$E92 -> 0 | BU92: =5*$E92 -> 0 | BW92: =5*$E92 -> 0 | BX92: =5*$E92 -> 0 | CA92: =5*$E92 -> 0 | CB92: =5*$E92 -> 0
A93: Diego Costa - Chelsea | E93: =0+0+1+0+1+0 -> 2 | F93: 39 | H93: =5*$E93 -> 10 | J93: 10 | L93: =5*$E93 -> 10 | M93: =5*$E93 -> 10 | O93: 10 | P93: =5*$E93 -> 10 | S93: =5*$E93 -> 10 | T93: =5*$E93 -> 10 | Z93: =5*$E93 -> 10 | AB93: =5*$E93 -> 10 | AC93: =5*$E93 -> 10 | AE93: 10 | AF93: =5*$E93 -> 10 | AG93: =5*$E93 -> 10 | AH93: =5*$E93 -> 10 | AJ93: =5*$E93 -> 10 | AK93: =5*$E93 -> 10 | AO93: =5*$E93 -> 10 | AP93: =5*$E93 -> 10 | AR93: =5*$E93 -> 10 | AT93: =5*$E93 -> 10 | AU93: 10 | AV93: =5*$E93 -> 10 | AW93: =5*$E93 -> 10 | AZ93: =5*$E93 -> 10 | BA93: =5*$E93 -> 10 | BB93: =5*$E93 -> 10 | BD93: =5*$E93 -> 10 | BF93: =5*$E93 -> 10 | BG93: =5*$E93 -> 10 | BH93: =5*$E93 -> 10 | BI93: =5*$E93 -> 10 | BN93: =5*$E93 -> 10 | BO93: =5*$E93 -> 10 | BP93: =5*$E93 -> 10 | BR93: =5*$E93 -> 10 | BZ93: =5*$E93 -> 10 | CA93: =5*$E93 -> 10 | CB93: 10
A94: Eden Hazard - Chelsea | E94: =1+0+1+0+0+1 -> 3 | F94: 2 | K94: =5*$E94 -> 15 | BX94: =5*$E94 -> 15
A95: Edin Dzeko - Man City | E95: =0+0+0+0+0+0 -> 0 | F95: 6 | L95: =5*$E95 -> 0 | AB95: =5*$E95 -> 0 | AQ95: =5*$E95 -> 0 | AT95: =5*$E95 -> 0 | BP95: =5*$E95 -> 0 | BV95: =5*$E95 -> 0
A96: Emmanuel Adebayor - Tottenham | E96: =0+0+0+0+0+0 -> 0 | F96: 3 | U96: =5*$E96 -> 0 | AN96: =5*$E96 -> 0 | BS96: =5*$E96 -> 0
A97: Olivier Giroud - Arsenal | E97: =0+0+2+1+0+0 -> 3 | F97: 4 | L97: =5*$E97 -> 15 | AD97: =5*$E97 -> 15 | AN97: 15 | AV97: =5*$E97 -> 15
A98: Raheem Sterling - Liverpool | E98: =0+0+0+0+1+0 -> 1 | F98: 3 | AT98: =5*$E98 -> 5 | BQ98: =5*$E98 -> 5 | BU98: =5*$E98 -> 5
A99: Robin van Persie - Man United | E99: =0+2+1+0+1+0 -> 4 | F99: 45 | G99: =5*$E99 -> 20 | H99: =5*$E99 -> 20 | J99: =5*$E99 -> 20 | P99: =5*$E99 -> 20 | Q99: =5*$E99 -> 20 | R99: =5*$E99 -> 20 | S99: =5*$E99 -> 20 | U99: =5*$E99 -> 20 | V99: =5*$E99 -> 20 | X99: =5*$E99 -> 20 | Y99: =5*$E99 -> 20 | AA99: =5*$E99 -> 20 | AD99: =5*$E99 -> 20 | AF99: =5*$E99 -> 20 | AG99: =5*$E99 -> 20 | AH99: =5*$E99 -> 20 | AI99: =5*$E99 -> 20 | AJ99: =5*$E99 -> 20 | AL99: =5*$E99 -> 20 | AM99: =5*$E99 -> 20 | AP99: =5*$E99 -> 20 | AQ99: =5*$E99 -> 20 | AR99: =5*$E99 -> 20 | AU99: =5*$E99 -> 20 | AW99: =5*$E99 -> 20 | AX99: =5*$E99 -> 20 | AY99: =5*$E99 -> 20 | BA99: =5*$E99 -> 20 | BB99: =5*$E99 -> 20 | BC99: =5*$E99 -> 20 | BD99: =5*$E99 -> 20 | BE99: =5*$E99 -> 20 | BG99: =5*$E99 -> 20 | BH99: =5*$E99 -> 20 | BI99: =5*$E99 -> 20 | BJ99: =5*$E99 -> 20 | BM99: =5*$E99 -> 20 | BN99: =5*$E99 -> 20 | BO99: =5*$E99 -> 20 | BP99: =5*$E99 -> 20 | BR99: =5*$E99 -> 20 | BT99: =5*$E99 -> 20 | BX99: =5*$E99 -> 20 | BY99: =5*$E99 -> 20 | CA99: =5*$E99 -> 20
A100: Romelu Lukaku - Everton | E100: =1+0+0+0+0+0 -> 1 | F100: 7 | G100: =5*$E100 -> 5 | I100: =5*$E100 -> 5 | T100: =5*$E100 -> 5 | U100: =5*$E100 -> 5 | AX100: =5*$E100 -> 5 | BY100: =5*$E100 -> 5 | BZ100: =5*$E100 -> 5
A101: Sergio Aguero - Man City | E101: =2+0+0+0+0+0 -> 2 | F101: 21 | M101: =5*$E101 -> 10 | N101: =5*$E101 -> 10 | Q101: =5*$E101 -> 10 | R101: =5*$E101 -> 10 | W101: =5*$E101 -> 10 | X101: =5*$E101 -> 10 | Y101: =5*$E101 -> 10 | AC101: =5*$E101 -> 10 | AD101: =5*$E101 -> 10 | AI101: =5*$E101 -> 10 | AK101: =5*$E101 -> 10 | AL101: =5*$E101 -> 10 | AM101: =5*$E101 -> 10 | AN101: =5*$E101 -> 10 | AO101: =5*$E101 -> 10 | AY101: =5*$E101 -> 10 | BC101: =5*$E101 -> 10 | BG101: =5*$E101 -> 10 | BJ101: =5*$E101 -> 10 | BO101: =5*$E101 -> 10 | BW101: =5*$E101 -> 10
A102: Steven Gerrard - Liverpool | E102: =1+0+0+0+0+0 -> 1 | F102: 1 | BQ102: =5*$E102 -> 5
A103: Wayne Rooney - Man United | E103: =0+0+1+0+2+0 -> 3 | F103: 21 | I103: =5*$E103 -> 15 | K103: =5*$E103 -> 15 | O103: =5*$E103 -> 15 | V103: =5*$E103 -> 15 | W103: =5*$E103 -> 15 | AA103: =5*$E103 -> 15 | AS103: =5*$E103 -> 15 | AW103: =5*$E103 -> 15 | AZ103: =5*$E103 -> 15 | BE103: =5*$E103 -> 15 | BH103: =5*$E103 -> 15 | BK103: =5*$E103 -> 15 | BL103: =5*$E103 -> 15 | BM103: =5*$E103 -> 15 | BN103: =5*$E103 -> 15 | BS103: =5*$E103 -> 15 | BU103: =5*$E103 -> 15 | BV103: =5*$E103 -> 15 | BW103: =5*$E103 -> 15 | BY103: =5*$E103 -> 15 | CB103: =5*$E103 -> 15
A104: Wilfried Bony - Swansea City | E104: =0+1+1+0+0+0 -> 2 | F104: 1 | AH104: =5*$E104 -> 10
A105: Yaya Toure - Man City | E105: =1+1+0+1+1+0 -> 4 | F105: 3 | AE105: =5*$E105 -> 20 | BR105: =5*$E105 -> 20 | BT105: =5*$E105 -> 20
A108: Sack Race
A109: Alan Irvine - West Brom | F109: =COUNT(G109:CB109) -> 5 | M109: =25*$E109 -> 0 | S109: =25*$E109 -> 0 | AG109: =25*$E109 -> 0 | BK109: =25*$E109 -> 0 | BU109: =25*$E109 -> 0
A110: Alan Pardew - Newcastle | F110: 8 | G110: =25*$E110 -> 0 | K110: =25*$E110 -> 0 | U110: =25*$E110 -> 0 | V110: =25*$E110 -> 0 | AK110: =25*$E110 -> 0 | AY110: =25*$E110 -> 0 | BO110: =25*$E110 -> 0 | CB110: =25*$E110 -> 0
A111: Arsene Wenger - Arsenal | F111: 0
A112: Brendan Rodgers - Liverpool | F112: 0
A113: Garry Monk - Swansea City | F113: 6 | AA113: =25*$E113 -> 0 | AB113: =25*$E113 -> 0 | AW113: =25*$E113 -> 0 | BA113: =25*$E113 -> 0 | BC113: =25*$E113 -> 0 | BL113: =25*$E113 -> 0
A114: Gus Poyet - Sunderland | F114: 0
A115: Harry Redknapp - QPR | F115: 2 | AN115: =25*$E115 -> 0 | BR115: =25*$E115 -> 0
A116: Jose Mourinho - Chelsea | F116: 0
A117: Louis van Gaal - Man United | F117: 1 | BQ117: =25*$E117 -> 0
A118: Manuel Pellegrini - Man City | F118: 0
A119: Mark Hughes - Stoke City | F119: 0
A120: Mauricio Pochettino - Tottenham | F120: 0
A121: Nigel Pearson - Leicester City | F121: 3 | L121: =25*$E121 -> 0 | AF121: =25*$E121 -> 0 | AJ121: =25*$E121 -> 0
A122: Paul Lambert - Aston Villa | F122: 13 | T122: =25*$E122 -> 0 | Y122: =25*$E122 -> 0 | Z122: =25*$E122 -> 0 | AD122: =25*$E122 -> 0 | AE122: =25*$E122 -> 0 | AL122: =25*$E122 -> 0 | AM122: =25*$E122 -> 0 | AS122: =25*$E122 -> 0 | AT122: =25*$E122 -> 0 | AV122: =25*$E122 -> 0 | AX122: =25*$E122 -> 0 | BB122: =25*$E122 -> 0 | BM122: =25*$E122 -> 0
A123: Roberto Martinez - Everton | F123: 0
A124: Ronald Koeman - Southampton | F124: 4 | R124: =25*$E124 -> 0 | AP124: =25*$E124 -> 0 | BP124: =25*$E124 -> 0 | BV124: =25*$E124 -> 0
A125: Sam Allardyce - West Ham | F125: 27 | I125: =25*$E125 -> 0 | J125: =25*$E125 -> 0 | N125: =25*$E125 -> 0 | O125: =25*$E125 -> 0 | P125: =25*$E125 -> 0 | Q125: =25*$E125 -> 0 | W125: =25*$E125 -> 0 | X125: =25*$E125 -> 0 | AC125: =25*$E125 -> 0 | AH125: =25*$E125 -> 0 | AI125: =25*$E125 -> 0 | AO125: =25*$E125 -> 0 | AQ125: =25*$E125 -> 0 | AR125: =25*$E125 -> 0 | AU125: =25*$E125 -> 0 | AZ125: =25*$E125 -> 0 | BD125: =25*$E125 -> 0 | BE125: =25*$E125 -> 0 | BH125: =25*$E125 -> 0 | BI125: =25*$E125 -> 0 | BN125: =25*$E125 -> 0 | BS125: =25*$E125 -> 0 | BT125: =25*$E125 -> 0 | BW125: =25*$E125 -> 0 | BX125: =25*$E125 -> 0 | BY125: =25*$E125 -> 0 | CA125: =25*$E125 -> 0
A126: Sean Dyche - Burnley | F126: 4 | H126: =25*$E126 -> 0 | BF126: =25*$E126 -> 0 | BG126: =25*$E126 -> 0 | BJ126: =25*$E126 -> 0
A127: Steve Bruce - Hull City | F127: 1 | BZ127: =25*$E127 -> 0
A129: Total Points - December | G129: =SUM(G2:G128) -> 215 | H129: =SUM(H2:H128) -> 230 | I129: 185 | J129: 190 | K129: 205 | L129: 175 | M129: 260 | N129: 205 | O129: 215 | P129: 265 | Q129: 200 | R129: 215 | S129: 250 | T129: 205 | U129: 205 | V129: 205 | W129: 210 | X129: 235 | Y129: 250 | Z129: 215 | AA129: 245 | AB129: 230 | AC129: 210 | AD129: 235 | AE129: 135 | AF129: 245 | AG129: 220 | AH129: 270 | AI129: 245 | AJ129: 235 | AK129: 215 | AL129: 220 | AM129: 250 | AN129: 215 | AO129: 20 | AP129: 225 | AQ129: 55 | AR129: 180 | AS129: 245 | AT129: 205 | AU129: 230 | AV129: 195 | AW129: 240 | AX129: 220 | AY129: 200 | AZ129: 190 | BA129: 230 | BB129: 170 | BC129: 190 | BD129: 215 | BE129: 215 | BF129: 225 | BG129: 240 | BH129: 250 | BI129: 210 | BJ129: 230 | BK129: 90 | BL129: 200 | BM129: 245 | BN129: 245 | BO129: 245 | BP129: 120 | BQ129: 125 | BR129: 260 | BS129: 15 | BT129: =SUM(BT2:BT128) -> 210 | BU129: 200 | BV129: 245 | BW129: 240 | BX129: 245 | BY129: 200 | BZ129: 70 | CA129: 240 | CB129: 225
G131: =IF(COUNT(G90:G128)=4,"a","g") -> a | H131: a | I131: a | J131: a | K131: a | L131: a | M131: a | N131: a | O131: a | P131: a | Q131: a | R131: a | S131: a | T131: a | U131: a | V131: a | W131: a | X131: a | Y131: a | Z131: a | AA131: a | AB131: a | AC131: a | AD131: a | AE131: a | AF131: a | AG131: a | AH131: a | AI131: a | AJ131: a | AK131: a | AL131: a | AM131: a | AN131: a | AO131: a | AP131: a | AQ131: a | AR131: a | AS131: a | AT131: a | AU131: a | AV131: a | AW131: a | AX131: a | AY131: a | AZ131: a | BA131: a | BB131: a | BC131: a | BD131: a | BE131: a | BF131: a | BG131: a | BH131: a | BI131: a | BJ131: a | BK131: a | BL131: a | BM131: a | BN131: a | BO131: a | BP131: a | BQ131: a | BR131: a | BS131: =IF(COUNT(BS90:BS128)=4,"a","g") -> a | BT131: a | BU131: a | BV131: a | BW131: a | BX131: a | BY131: a | BZ131: a | CA131: a | CB131: a

Sheet January
G1: Aaron Byrne | H1: Aidan Knight | I1: Aidan Scanlon | J1: Aidan White | K1: Aiden Desch | L1: Alan Boyle | M1: Anastas Popov | N1: Andy Dunne | O1: Anthony Hughes | P1: Barry Healy | Q1: Brendan Maguire | R1: Brian Mullen | S1: Brian Prendergast | T1: Brian Sotolongo | U1: Chris Hall | V1: Ciaran O'Hart | W1: Cillian Conway | X1: Colin McAnaspie | Y1: Con McSweeney | Z1: Conor Horan | AA1: Craig Calvert | AB1: Dave Green | AC1: Dave McGinley | AD1: David Bone | AE1: David Byrne | AF1: David Cooney | AG1: David Keavney | AH1: Eamon Fox | AI1: Fiachra Moynihan | AJ1: Gareth Pierpoint | AK1: Gary McGurk | AL1: Gavin Morgan | AM1: Gerry Draper | AN1: Gerry Moore | AO1: Ian Healy | AP1: Javier Suarez Barreiro | AQ1: Jenny Ellis | AR1: Joe Behan | AS1: Joe O'Hehir | AT1: Joe Turner | AU1: Jonathan Fox | AV1: Keith Horan | AW1: Kevin Donohoe | AX1: Kevin Philpott | AY1: Konstantin Kulev | AZ1: Kris Stainton | BA1: Liam Butler | BB1: Liam Geraghty | BC1: Maria Jordan | BD1: Mike Hall | BE1: Niall Carroll | BF1: Oisin O'Reilly | BG1: Padraic Carney | BH1: Pat Jordan | BI1: Paul Moore | BJ1: Paul Prendergast | BK1: Paul Stainton | BL1: Peter Behan | BM1: Phil Doyle | BN1: Philip Jordan | BO1: Ralph Goodwin | BP1: Ray Ellis | BQ1: Rhona Devlin | BR1: Richard Johnston | BS1: Sean Moloney | BT1: Sean O'Mairtin | BU1: Shane Horan | BV1: Sharon Behan | BW1: Simon Purdue | BX1: Siobhan Murphy | BY1: Terry Behan | BZ1: Tiago Moreira | CA1: Tom McHugh | CB1: Wayne Donovan
A2: Thursday, January 1st
A3: Stoke City | B3: 1 | C3: 1 | D3: Man United | E3: 12:45:00 | G3: 0 | H3: 0 | I3: 0 | J3: 0 | K3: 0 | L3: 0 | M3: 0 | N3: 0 | O3: 0 | P3: 0 | Q3: 0 | R3: 0 | S3: 0 | T3: 10 | U3: 0 | V3: 0 | W3: 0 | X3: 0 | Y3: 0 | Z3: 0 | AA3: 0 | AB3: 0 | AC3: 0 | AD3: 0 | AE3: 10 | AF3: 0 | AG3: 0 | AH3: 0 | AI3: 0 | AJ3: 5 | AK3: 0 | AL3: 0 | AM3: 10 | AN3: 10 | AO3: - | AP3: 0 | AQ3: - | AR3: 0 | AS3: 0 | AT3: 5 | AU3: 0 | AV3: 0 | AW3: 0 | AX3: 0 | AY3: 0 | AZ3: 0 | BA3: 0 | BB3: 10 | BC3: 0 | BD3: 0 | BE3: 0 | BF3: 0 | BG3: 0 | BH3: 0 | BI3: 0 | BJ3: 10 | BK3: 0 | BL3: 0 | BM3: 0 | BN3: 0 | BO3: 0 | BP3: 0 | BQ3: 0 | BR3: 0 | BS3: - | BT3: 10 | BU3: 10 | BV3: 0 | BW3: 0 | BX3: 0 | BY3: 10 | BZ3: - | CA3: 0 | CB3: 0
A4: Aston Villa | B4: 0 | C4: 0 | D4: Crystal Palace | E4: 15:00:00 | G4: 0 | H4: 0 | I4: 0 | J4: 5 | K4: 0 | L4: 0 | M4: 0 | N4: 0 | O4: 0 | P4: 0 | Q4: 0 | R4: 0 | S4: 0 | T4: 0 | U4: 0 | V4: 5 | W4: 0 | X4: 0 | Y4: 10 | Z4: 0 | AA4: 0 | AB4: 0 | AC4: 5 | AD4: 5 | AE4: 0 | AF4: 0 | AG4: 0 | AH4: 0 | AI4: 0 | AJ4: 10 | AK4: 0 | AL4: 0 | AM4: 10 | AN4: 0 | AO4: - | AP4: 0 | AQ4: - | AR4: 0 | AS4: 0 | AT4: 0 | AU4: 0 | AV4: 0 | AW4: 0 | AX4: 5 | AY4: 0 | AZ4: 0 | BA4: 0 | BB4: 0 | BC4: 5 | BD4: 0 | BE4: 0 | BF4: 0 | BG4: 0 | BH4: 0 | BI4: 0 | BJ4: 0 | BK4: 0 | BL4: 0 | BM4: 0 | BN4: 5 | BO4: 0 | BP4: 0 | BQ4: 0 | BR4: 0 | BS4: - | BT4: 0 | BU4: 0 | BV4: 0 | BW4: 0 | BX4: 0 | BY4: 0 | BZ4: - | CA4: 10 | CB4: 0
A5: Hull City | B5: 2 | C5: 0 | D5: Everton | E5: 15:00:00 | G5: 0 | H5: 0 | I5: 0 | J5: 5 | K5: 0 | L5: 0 | M5: 5 | N5: 0 | O5: 0 | P5: 0 | Q5: 0 | R5: 10 | S5: 0 | T5: 0 | U5: 10 | V5: 0 | W5: 0 | X5: 0 | Y5: 0 | Z5: 0 | AA5: 0 | AB5: 0 | AC5: 0 | AD5: 0 | AE5: 0 | AF5: 0 | AG5: 5 | AH5: 0 | AI5: 0 | AJ5: 0 | AK5: 0 | AL5: 0 | AM5: 0 | AN5: 0 | AO5: - | AP5: 0 | AQ5: - | AR5: 5 | AS5: 0 | AT5: 5 | AU5: 0 | AV5: 10 | AW5: 5 | AX5: 0 | AY5: 0 | AZ5: 0 | BA5: 0 | BB5: 10 | BC5: 0 | BD5: 0 | BE5: 0 | BF5: 0 | BG5: 0 | BH5: 0 | BI5: 0 | BJ5: 0 | BK5: 0 | BL5: 0 | BM5: 0 | BN5: 0 | BO5: 5 | BP5: 5 | BQ5: 0 | BR5: 0 | BS5: - | BT5: 0 | BU5: 0 | BV5: 0 | BW5: 0 | BX5: 0 | BY5: 0 | BZ5: - | CA5: 0 | CB5: 0
A6: Liverpool | B6: 2 | C6: 2 | D6: Leicester City | E6: 15:00:00 | G6: 0 | H6: 0 | I6: 0 | J6: 0 | K6: 5 | L6: 0 | M6: 0 | N6: 0 | O6: 0 | P6: 0 | Q6: 0 | R6: 0 | S6: 0 | T6: 0 | U6: 0 | V6: 0 | W6: 0 | X6: 0 | Y6: 0 | Z6: 0 | AA6: 0 | AB6: 0 | AC6: 0 | AD6: 0 | AE6: 0 | AF6: 0 | AG6: 0 | AH6: 0 | AI6: 0 | AJ6: 0 | AK6: 0 | AL6: 0 | AM6: 0 | AN6: 0 | AO6: - | AP6: 0 | AQ6: - | AR6: 0 | AS6: 0 | AT6: 0 | AU6: 0 | AV6: 0 | AW6: 0 | AX6: 0 | AY6: 0 | AZ6: 0 | BA6: 0 | BB6: 0 | BC6: 0 | BD6: 0 | BE6: 5 | BF6: 0 | BG6: 0 | BH6: 0 | BI6: 0 | BJ6: 0 | BK6: 0 | BL6: 0 | BM6: 0 | BN6: 0 | BO6: 0 | BP6: 0 | BQ6: 0 | BR6: 0 | BS6: - | BT6: 0 | BU6: 0 | BV6: 0 | BW6: 0 | BX6: 0 | BY6: 0 | BZ6: - | CA6: 0 | CB6: 0
A7: Man City | B7: 3 | C7: 2 | D7: Sunderland | E7: 15:00:00 | G7: 5 | H7: 5 | I7: 5 | J7: 5 | K7: 5 | L7: 5 | M7: 5 | N7: 5 | O7: 5 | P7: 5 | Q7: 5 | R7: 5 | S7: 5 | T7: 5 | U7: 5 | V7: 5 | W7: 5 | X7: 5 | Y7: 5 | Z7: 10 | AA7: 5 | AB7: 5 | AC7: 5 | AD7: 5 | AE7: 5 | AF7: 5 | AG7: 5 | AH7: 5 | AI7: 5 | AJ7: 5 | AK7: 5 | AL7: 5 | AM7: 5 | AN7: 5 | AO7: - | AP7: 5 | AQ7: - | AR7: 5 | AS7: 5 | AT7: 5 | AU7: 5 | AV7: 5 | AW7: 5 | AX7: 5 | AY7: 5 | AZ7: 5 | BA7: 5 | BB7: 0 | BC7: 5 | BD7: 5 | BE7: 5 | BF7: 5 | BG7: 5 | BH7: 5 | BI7: 5 | BJ7: 5 | BK7: 0 | BL7: 5 | BM7: 5 | BN7: 5 | BO7: 5 | BP7: 5 | BQ7: 5 | BR7: 5 | BS7: - | BT7: 5 | BU7: 5 | BV7: 5 | BW7: 5 | BX7: 5 | BY7: 5 | BZ7: - | CA7: 0 | CB7: 5
A8: Newcastle United | B8: 3 | C8: 3 | D8: Burnley | E8: 15:00:00 | G8: 0 | H8: 0 | I8: 0 | J8: 0 | K8: 5 | L8: 0 | M8: 0 | N8: 0 | O8: 5 | P8: 0 | Q8: 0 | R8: 0 | S8: 0 | T8: 0 | U8: 0 | V8: 0 | W8: 0 | X8: 0 | Y8: 0 | Z8: 0 | AA8: 0 | AB8: 0 | AC8: 0 | AD8: 0 | AE8: 0 | AF8: 5 | AG8: 0 | AH8: 0 | AI8: 0 | AJ8: 0 | AK8: 0 | AL8: 0 | AM8: 0 | AN8: 5 | AO8: - | AP8: 0 | AQ8: - | AR8: 0 | AS8: 0 | AT8: 0 | AU8: 0 | AV8: 0 | AW8: 5 | AX8: 0 | AY8: 0 | AZ8: 0 | BA8: 5 | BB8: 0 | BC8: 0 | BD8: 5 | BE8: 0 | BF8: 0 | BG8: 5 | BH8: 0 | BI8: 0 | BJ8: 0 | BK8: 0 | BL8: 0 | BM8: 5 | BN8: 0 | BO8: 0 | BP8: 0 | BQ8: 5 | BR8: 0 | BS8: - | BT8: 0 | BU8: 0 | BV8: 0 | BW8: 0 | BX8: 0 | BY8: 0 | BZ8: - | CA8: 0 | CB8: 0
A9: QPR | B9: 1 | C9: 1 | D9: Swansea City | E9: 15:00:00 | G9: 0 | H9: 0 | I9: 0 | J9: 10 | K9: 0 | L9: 0 | M9: 0 | N9: 10 | O9: 0 | P9: 0 | Q9: 0 | R9: 0 | S9: 0 | T9: 0 | U9: 10 | V9: 0 | W9: 10 | X9: 0 | Y9: 0 | Z9: 10 | AA9: 0 | AB9: 5 | AC9: 5 | AD9: 10 | AE9: 10 | AF9: 0 | AG9: 0 | AH9: 10 | AI9: 5 | AJ9: 0 | AK9: 5 | AL9: 0 | AM9: 10 | AN9: 10 | AO9: - | AP9: 10 | AQ9: - | AR9: 0 | AS9: 0 | AT9: 5 | AU9: 5 | AV9: 0 | AW9: 0 | AX9: 10 | AY9: 10 | AZ9: 10 | BA9: 0 | BB9: 0 | BC9: 0 | BD9: 0 | BE9: 0 | BF9: 0 | BG9: 0 | BH9: 0 | BI9: 10 | BJ9: 0 | BK9: 0 | BL9: 0 | BM9: 0 | BN9: 10 | BO9: 0 | BP9: 0 | BQ9: 0 | BR9: 0 | BS9: - | BT9: 5 | BU9: 0 | BV9: 0 | BW9: 0 | BX9: 10 | BY9: 0 | BZ9: - | CA9: 0 | CB9: 0
A10: Southampton | B10: 2 | C10: 0 | D10: Arsenal | E10: 15:00:00 | G10: 0 | H10: 0 | I10: 5 | J10: 0 | K10: 5 | L10: 5 | M10: 5 | N10: 5 | O10: 0 | P10: 0 | Q10: 0 | R10: 10 | S10: 0 | T10: 0 | U10: 0 | V10: 0 | W10: 0 | X10: 0 | Y10: 0 | Z10: 0 | AA10: 0 | AB10: 0 | AC10: 0 | AD10: 0 | AE10: 10 | AF10: 0 | AG10: 5 | AH10: 5 | AI10: 0 | AJ10: 0 | AK10: 0 | AL10: 5 | AM10: 0 | AN10: 0 | AO10: - | AP10: 0 | AQ10: - | AR10: 0 | AS10: 0 | AT10: 0 | AU10: 0 | AV10: 10 | AW10: 0 | AX10: 0 | AY10: 0 | AZ10: 0 | BA10: 0 | BB10: 0 | BC10: 0 | BD10: 0 | BE10: 0 | BF10: 0 | BG10: 0 | BH10: 0 | BI10: 0 | BJ10: 0 | BK10: 10 | BL10: 0 | BM10: 5 | BN10: 0 | BO10: 0 | BP10: 0 | BQ10: 0 | BR10: 0 | BS10: - | BT10: 10 | BU10: 0 | BV10: 0 | BW10: 0 | BX10: 0 | BY10: 0 | BZ10: - | CA10: 0 | CB10: 0
A11: West Ham United | B11: 1 | C11: 1 | D11: West Brom | E11: 15:00:00 | G11: 0 | H11: 0 | I11: 0 | J11: 10 | K11: 0 | L11: 0 | M11: 0 | N11: 0 | O11: 0 | P11: 0 | Q11: 0 | R11: 0 | S11: 0 | T11: 0 | U11: 0 | V11: 0 | W11: 0 | X11: 0 | Y11: 0 | Z11: 0 | AA11: 0 | AB11: 0 | AC11: 0 | AD11: 0 | AE11: 0 | AF11: 0 | AG11: 0 | AH11: 0 | AI11: 0 | AJ11: 0 | AK11: 0 | AL11: 0 | AM11: 0 | AN11: 0 | AO11: - | AP11: 0 | AQ11: - | AR11: 0 | AS11: 0 | AT11: 0 | AU11: 0 | AV11: 0 | AW11: 0 | AX11: 0 | AY11: 0 | AZ11: 0 | BA11: 0 | BB11: 0 | BC11: 0 | BD11: 0 | BE11: 0 | BF11: 0 | BG11: 0 | BH11: 0 | BI11: 0 | BJ11: 0 | BK11: 0 | BL11: 0 | BM11: 5 | BN11: 0 | BO11: 0 | BP11: 5 | BQ11: 5 | BR11: 0 | BS11: - | BT11: 0 | BU11: 0 | BV11: 0 | BW11: 0 | BX11: 0 | BY11: 0 | BZ11: - | CA11: 0 | CB11: 0
A12: Tottenham | B12: 5 | C12: 3 | D12: Chelsea | E12: 17:30:00 | G12: 0 | H12: 0 | I12: 0 | J12: 0 | K12: 5 | L12: 0 | M12: 0 | N12: 0 | O12: 0 | P12: 0 | Q12: 0 | R12: 5 | S12: 0 | T12: 0 | U12: 0 | V12: 0 | W12: 0 | X12: 0 | Y12: 0 | Z12: 0 | AA12: 0 | AB12: 0 | AC12: 0 | AD12: 0 | AE12: 0 | AF12: 0 | AG12: 0 | AH12: 0 | AI12: 0 | AJ12: 0 | AK12: 0 | AL12: 0 | AM12: 0 | AN12: 0 | AO12: - | AP12: 0 | AQ12: - | AR12: 0 | AS12: 0 | AT12: 0 | AU12: 0 | AV12: 5 | AW12: 0 | AX12: 0 | AY12: 0 | AZ12: 0 | BA12: 0 | BB12: 0 | BC12: 0 | BD12: 0 | BE12: 0 | BF12: 0 | BG12: 0 | BH12: 0 | BI12: 0 | BJ12: 0 | BK12: 0 | BL12: 0 | BM12: 0 | BN12: 0 | BO12: 0 | BP12: 0 | BQ12: 0 | BR12: 0 | BS12: - | BT12: 0 | BU12: 0 | BV12: 0 | BW12: 0 | BX12: 0 | BY12: 0 | BZ12: - | CA12: 0 | CB12: 0
A14: Saturday, January 10th
A15: Sunderland | B15: 0 | C15: 1 | D15: Liverpool | E15: 12:45:00 | G15: 0 | H15: 10 | I15: 5 | J15: 10 | K15: 0 | L15: 0 | M15: 0 | N15: 5 | O15: 5 | P15: 5 | Q15: 0 | R15: 0 | S15: 0 | T15: 0 | U15: 0 | V15: 0 | W15: 0 | X15: 5 | Y15: 0 | Z15: 5 | AA15: 5 | AB15: 0 | AC15: 0 | AD15: 0 | AE15: 5 | AF15: 0 | AG15: 0 | AH15: 0 | AI15: 0 | AJ15: 5 | AK15: 5 | AL15: 0 | AM15: 0 | AN15: 0 | AO15: - | AP15: 10 | AQ15: - | AR15: 0 | AS15: 0 | AT15: 0 | AU15: 10 | AV15: - | AW15: 0 | AX15: 10 | AY15: 0 | AZ15: 0 | BA15: 5 | BB15: 5 | BC15: 10 | BD15: 10 | BE15: 0 | BF15: 5 | BG15: 0 | BH15: 5 | BI15: 5 | BJ15: 0 | BK15: 5 | BL15: - | BM15: 5 | BN15: 0 | BO15: 10 | BP15: - | BQ15: 5 | BR15: 5 | BS15: - | BT15: 5 | BU15: 5 | BV15: 5 | BW15: 0 | BX15: 0 | BY15: 0 | BZ15: - | CA15: 5 | CB15: 0
A16: Burnley | B16: 2 | C16: 1 | D16: QPR | E16: 15:00:00 | G16: 0 | H16: 5 | I16: 0 | J16: 5 | K16: 5 | L16: 0 | M16: 5 | N16: 0 | O16: 10 | P16: 5 | Q16: 0 | R16: 5 | S16: 5 | T16: 0 | U16: 5 | V16: 5 | W16: 5 | X16: 0 | Y16: 10 | Z16: 0 | AA16: 10 | AB16: 0 | AC16: 5 | AD16: 5 | AE16: 5 | AF16: 10 | AG16: 10 | AH16: 5 | AI16: 10 | AJ16: 5 | AK16: 0 | AL16: 5 | AM16: 10 | AN16: 5 | AO16: - | AP16: 0 | AQ16: - | AR16: 5 | AS16: 0 | AT16: 10 | AU16: 5 | AV16: - | AW16: 10 | AX16: 0 | AY16: 5 | AZ16: 0 | BA16: 5 | BB16: 0 | BC16: 0 | BD16: 0 | BE16: 0 | BF16: 0 | BG16: 5 | BH16: 0 | BI16: 10 | BJ16: 5 | BK16: 0 | BL16: - | BM16: 0 | BN16: 0 | BO16: 0 | BP16: 5 | BQ16: 0 | BR16: 0 | BS16: - | BT16: 10 | BU16: 0 | BV16: 0 | BW16: 10 | BX16: 10 | BY16: 10 | BZ16: - | CA16: 5 | CB16: 10
A17: Chelsea | B17: 2 | C17: 0 | D17: Newcastle United | E17: 15:00:00 | G17: 10 | H17: 5 | I17: 5 | J17: 10 | K17: 5 | L17: 5 | M17: 10 | N17: 10 | O17: 5 | P17: 10 | Q17: 5 | R17: 10 | S17: 10 | T17: 5 | U17: 5 | V17: 10 | W17: 5 | X17: 5 | Y17: 5 | Z17: 10 | AA17: 5 | AB17: 5 | AC17: 5 | AD17: 10 | AE17: 5 | AF17: 5 | AG17: 5 | AH17: 5 | AI17: 5 | AJ17: 5 | AK17: 10 | AL17: 10 | AM17: 10 | AN17: 5 | AO17: - | AP17: 5 | AQ17: - | AR17: 5 | AS17: 5 | AT17: 10 | AU17: 10 | AV17: - | AW17: 5 | AX17: 10 | AY17: 10 | AZ17: 5 | BA17: 5 | BB17: 10 | BC17: 5 | BD17: 5 | BE17: 10 | BF17: 5 | BG17: 10 | BH17: 5 | BI17: 5 | BJ17: 5 | BK17: 5 | BL17: - | BM17: 5 | BN17: 5 | BO17: 10 | BP17: 5 | BQ17: 0 | BR17: 5 | BS17: - | BT17: 5 | BU17: 5 | BV17: 10 | BW17: 10 | BX17: 5 | BY17: 5 | BZ17: - | CA17: 5 | CB17: 10
A18: Everton | B18: 1 | C18: 1 | D18: Man City | E18: 15:00:00 | G18: 0 | H18: 0 | I18: 0 | J18: 0 | K18: 0 | L18: 10 | M18: 0 | N18: 0 | O18: 0 | P18: 0 | Q18: 0 | R18: 0 | S18: 0 | T18: 0 | U18: 0 | V18: 0 | W18: 0 | X18: 0 | Y18: 0 | Z18: 0 | AA18: 0 | AB18: 0 | AC18: 0 | AD18: 0 | AE18: 0 | AF18: 0 | AG18: 0 | AH18: 0 | AI18: 0 | AJ18: 0 | AK18: 0 | AL18: 0 | AM18: 0 | AN18: 0 | AO18: - | AP18: 0 | AQ18: - | AR18: 0 | AS18: 0 | AT18: 0 | AU18: 0 | AV18: - | AW18: 0 | AX18: 0 | AY18: 0 | AZ18: 0 | BA18: 0 | BB18: 10 | BC18: 0 | BD18: 0 | BE18: 10 | BF18: 0 | BG18: 0 | BH18: 0 | BI18: 5 | BJ18: 0 | BK18: 5 | BL18: - | BM18: 0 | BN18: 0 | BO18: 0 | BP18: 0 | BQ18: 5 | BR18: 0 | BS18: - | BT18: 10 | BU18: 0 | BV18: 0 | BW18: 0 | BX18: 0 | BY18: 0 | BZ18: - | CA18: 0 | CB18: 10
A19: Leicester City | B19: 1 | C19: 0 | D19: Aston Villa | E19: 15:00:00 | G19: 0 | H19: 10 | I19: 0 | J19: 0 | K19: 10 | L19: 5 | M19: 0 | N19: 0 | O19: 0 | P19: 0 | Q19: 5 | R19: 0 | S19: 5 | T19: 5 | U19: 10 | V19: 10 | W19: 0 | X19: 0 | Y19: 5 | Z19: 0 | AA19: 5 | AB19: 0 | AC19: 0 | AD19: 0 | AE19: 10 | AF19: 0 | AG19: 0 | AH19: 0 | AI19: 10 | AJ19: 0 | AK19: 10 | AL19: 0 | AM19: 0 | AN19: 10 | AO19: - | AP19: 0 | AQ19: - | AR19: 5 | AS19: 0 | AT19: 5 | AU19: 10 | AV19: - | AW19: 5 | AX19: 0 | AY19: 0 | AZ19: 0 | BA19: 0 | BB19: 5 | BC19: 10 | BD19: 0 | BE19: 0 | BF19: 0 | BG19: 10 | BH19: 5 | BI19: 5 | BJ19: 0 | BK19: 5 | BL19: - | BM19: 0 | BN19: 0 | BO19: 0 | BP19: 0 | BQ19: 0 | BR19: 0 | BS19: - | BT19: 0 | BU19: 10 | BV19: 0 | BW19: 0 | BX19: 0 | BY19: 0 | BZ19: - | CA19: 0 | CB19: 0
A20: Swansea City | B20: 1 | C20: 1 | D20: West Ham United | E20: 15:00:00 | G20: 0 | H20: 10 | I20: 0 | J20: 0 | K20: 0 | L20: 10 | M20: 0 | N20: 10 | O20: 10 | P20: 0 | Q20: 0 | R20: 0 | S20: 0 | T20: 10 | U20: 0 | V20: 5 | W20: 10 | X20: 0 | Y20: 10 | Z20: 10 | AA20: 5 | AB20: 10 | AC20: 0 | AD20: 0 | AE20: 0 | AF20: 0 | AG20: 0 | AH20: 10 | AI20: 0 | AJ20: 0 | AK20: 10 | AL20: 0 | AM20: 10 | AN20: 10 | AO20: - | AP20: 10 | AQ20: - | AR20: 10 | AS20: 0 | AT20: 0 | AU20: 0 | AV20: - | AW20: 10 | AX20: 0 | AY20: 10 | AZ20: 0 | BA20: 0 | BB20: 10 | BC20: 10 | BD20: 0 | BE20: 10 | BF20: 5 | BG20: 5 | BH20: 0 | BI20: 0 | BJ20: 0 | BK20: 0 | BL20: - | BM20: 0 | BN20: 0 | BO20: 0 | BP20: 0 | BQ20: 0 | BR20: 10 | BS20: - | BT20: 5 | BU20: 0 | BV20: 5 | BW20: 0 | BX20: 0 | BY20: 0 | BZ20: - | CA20: 5 | CB20: 10
A21: West Brom | B21: 1 | C21: 0 | D21: Hull City | E21: 15:00:00 | G21: 5 | H21: 0 | I21: 5 | J21: 0 | K21: 0 | L21: 5 | M21: 5 | N21: 0 | O21: 5 | P21: 5 | Q21: 5 | R21: 0 | S21: 5 | T21: 0 | U21: 5 | V21: 10 | W21: 5 | X21: 0 | Y21: 5 | Z21: 0 | AA21: 10 | AB21: 0 | AC21: 5 | AD21: 5 | AE21: 5 | AF21: 0 | AG21: 0 | AH21: 10 | AI21: 5 | AJ21: 10 | AK21: 10 | AL21: 5 | AM21: 5 | AN21: 10 | AO21: - | AP21: 5 | AQ21: - | AR21: 0 | AS21: 0 | AT21: 5 | AU21: 10 | AV21: - | AW21: 5 | AX21: 10 | AY21: 10 | AZ21: 0 | BA21: 0 | BB21: 0 | BC21: 10 | BD21: 10 | BE21: 5 | BF21: 0 | BG21: 5 | BH21: 5 | BI21: 0 | BJ21: 10 | BK21: 5 | BL21: - | BM21: 0 | BN21: 5 | BO21: 5 | BP21: 10 | BQ21: 0 | BR21: 10 | BS21: - | BT21: 10 | BU21: 0 | BV21: 0 | BW21: 5 | BX21: 5 | BY21: 10 | BZ21: - | CA21: 0 | CB21: 5
A22: Crystal Palace | B22: 2 | C22: 1 | D22: Tottenham | E22: 17:30:00 | G22: 0 | H22: 0 | I22: 0 | J22: 0 | K22: 0 | L22: 0 | M22: 0 | N22: 0 | O22: 0 | P22: 0 | Q22: 0 | R22: 0 | S22: 0 | T22: 0 | U22: 0 | V22: 0 | W22: 0 | X22: 0 | Y22: 5 | Z22: 0 | AA22: 0 | AB22: 0 | AC22: 0 | AD22: 0 | AE22: 0 | AF22: 5 | AG22: 0 | AH22: 0 | AI22: 0 | AJ22: 0 | AK22: 0 | AL22: 0 | AM22: 0 | AN22: 0 | AO22: - | AP22: 0 | AQ22: - | AR22: 0 | AS22: 0 | AT22: 10 | AU22: 0 | AV22: - | AW22: 5 | AX22: 0 | AY22: 0 | AZ22: 0 | BA22: 0 | BB22: 0 | BC22: 0 | BD22: 5 | BE22: 0 | BF22: 0 | BG22: 5 | BH22: 0 | BI22: 0 | BJ22: 0 | BK22: 0 | BL22: - | BM22: 0 | BN22: 0 | BO22: 0 | BP22: 0 | BQ22: 0 | BR22: 0 | BS22: - | BT22: 0 | BU22: 0 | BV22: 0 | BW22: 0 | BX22: 0 | BY22: 0 | BZ22: - | CA22: 5 | CB22: 0
A24: Sunday, January 11th
A25: Arsenal | B25: 3 | C25: 0 | D25: Stoke City | E25: 13:30:00 | G25: 5 | H25: 5 | I25: 5 | J25: 5 | K25: 0 | L25: 5 | M25: 5 | N25: 5 | O25: 0 | P25: 5 | Q25: 5 | R25: 5 | S25: 5 | T25: 5 | U25: 10 | V25: 5 | W25: 5 | X25: 5 | Y25: 5 | Z25: 5 | AA25: 5 | AB25: 0 | AC25: 5 | AD25: 10 | AE25: 5 | AF25: 5 | AG25: 5 | AH25: 5 | AI25: 5 | AJ25: 5 | AK25: 5 | AL25: 5 | AM25: 5 | AN25: 5 | AO25: - | AP25: 10 | AQ25: - | AR25: 0 | AS25: 5 | AT25: 5 | AU25: 5 | AV25: - | AW25: 5 | AX25: 5 | AY25: 10 | AZ25: 5 | BA25: 5 | BB25: 5 | BC25: 5 | BD25: 5 | BE25: 5 | BF25: 5 | BG25: 5 | BH25: 5 | BI25: 5 | BJ25: 5 | BK25: 0 | BL25: - | BM25: 5 | BN25: 5 | BO25: 5 | BP25: 0 | BQ25: 5 | BR25: 5 | BS25: - | BT25: 5 | BU25: 5 | BV25: 5 | BW25: 5 | BX25: 5 | BY25: 5 | BZ25: - | CA25: 5 | CB25: 5
A26: Man United | B26: 0 | C26: 1 | D26: Southampton | E26: 16:00:00 | G26: 0 | H26: 0 | I26: 0 | J26: 0 | K26: 0 | L26: 0 | M26: 0 | N26: 0 | O26: 0 | P26: 0 | Q26: 0 | R26: 0 | S26: 0 | T26: 0 | U26: 0 | V26: 0 | W26: 0 | X26: 0 | Y26: 0 | Z26: 0 | AA26: 0 | AB26: 0 | AC26: 0 | AD26: 0 | AE26: 0 | AF26: 0 | AG26: 0 | AH26: 0 | AI26: 0 | AJ26: 0 | AK26: 0 | AL26: 0 | AM26: 0 | AN26: 5 | AO26: - | AP26: 0 | AQ26: - | AR26: 10 | AS26: 0 | AT26: 0 | AU26: 0 | AV26: - | AW26: 0 | AX26: 0 | AY26: 0 | AZ26: 0 | BA26: 0 | BB26: 0 | BC26: 0 | BD26: 0 | BE26: 0 | BF26: 0 | BG26: 0 | BH26: 0 | BI26: 0 | BJ26: 0 | BK26: 0 | BL26: - | BM26: 0 | BN26: 0 | BO26: 0 | BP26: 0 | BQ26: 0 | BR26: 0 | BS26: - | BT26: 0 | BU26: 0 | BV26: 0 | BW26: 0 | BX26: 0 | BY26: 0 | BZ26: - | CA26: 0 | CB26: 0
A28: Saturday, January 17th
A29: Aston Villa | B29: 0 | C29: 2 | D29: Liverpool | E29: 15:00:00 | G29: 5 | H29: 5 | I29: 0 | J29: 10 | K29: 0 | L29: 5 | M29: 0 | N29: 5 | O29: 5 | P29: 5 | Q29: 0 | R29: 5 | S29: 0 | T29: 5 | U29: 5 | V29: 10 | W29: 5 | X29: 5 | Y29: 5 | Z29: 5 | AA29: 10 | AB29: 5 | AC29: 5 | AD29: 0 | AE29: 10 | AF29: 10 | AG29: 5 | AH29: 5 | AI29: 5 | AJ29: 5 | AK29: 5 | AL29: 5 | AM29: 5 | AN29: 10 | AO29: - | AP29: 5 | AQ29: - | AR29: 5 | AS29: 5 | AT29: 0 | AU29: 5 | AV29: - | AW29: 0 | AX29: 5 | AY29: 5 | AZ29: 5 | BA29: 0 | BB29: 5 | BC29: 5 | BD29: 5 | BE29: 0 | BF29: 5 | BG29: 0 | BH29: 5 | BI29: 10 | BJ29: 10 | BK29: - | BL29: - | BM29: 5 | BN29: 0 | BO29: 5 | BP29: 5 | BQ29: 5 | BR29: 5 | BS29: - | BT29: 5 | BU29: 5 | BV29: 5 | BW29: 0 | BX29: 0 | BY29: 5 | BZ29: 10 | CA29: - | CB29: 5
A30: Burnley | B30: 2 | C30: 3 | D30: Crystal Palace | E30: 15:00:00 | G30: 0 | H30: 0 | I30: 5 | J30: 0 | K30: 0 | L30: 0 | M30: 0 | N30: 0 | O30: 0 | P30: 0 | Q30: 0 | R30: 0 | S30: 0 | T30: 0 | U30: 0 | V30: 0 | W30: 0 | X30: 0 | Y30: 0 | Z30: 0 | AA30: 0 | AB30: 0 | AC30: 0 | AD30: 5 | AE30: 0 | AF30: 0 | AG30: 0 | AH30: 0 | AI30: 0 | AJ30: 0 | AK30: 0 | AL30: 0 | AM30: 0 | AN30: 0 | AO30: - | AP30: 0 | AQ30: - | AR30: 0 | AS30: 0 | AT30: 0 | AU30: 0 | AV30: - | AW30: 0 | AX30: 0 | AY30: 0 | AZ30: 0 | BA30: 5 | BB30: 5 | BC30: 0 | BD30: 0 | BE30: 0 | BF30: 0 | BG30: 0 | BH30: 0 | BI30: 0 | BJ30: 0 | BK30: - | BL30: - | BM30: 0 | BN30: 0 | BO30: 0 | BP30: 0 | BQ30: 5 | BR30: 0 | BS30: - | BT30: 0 | BU30: 5 | BV30: 0 | BW30: 0 | BX30: 0 | BY30: 0 | BZ30: 0 | CA30: - | CB30: 0
A31: Leicester City | B31: 0 | C31: 1 | D31: Stoke City | E31: 15:00:00 | G31: 0 | H31: 0 | I31: 0 | J31: 0 | K31: 0 | L31: 0 | M31: 0 | N31: 0 | O31: 0 | P31: 10 | Q31: 5 | R31: 10 | S31: 0 | T31: 5 | U31: 0 | V31: 0 | W31: 0 | X31: 10 | Y31: 0 | Z31: 0 | AA31: 0 | AB31: 0 | AC31: 0 | AD31: 0 | AE31: 0 | AF31: 0 | AG31: 0 | AH31: 0 | AI31: 0 | AJ31: 0 | AK31: 0 | AL31: 10 | AM31: 0 | AN31: 0 | AO31: - | AP31: 0 | AQ31: - | AR31: 0 | AS31: 5 | AT31: 0 | AU31: 0 | AV31: - | AW31: 0 | AX31: 10 | AY31: 0 | AZ31: 10 | BA31: 0 | BB31: 5 | BC31: 0 | BD31: 0 | BE31: 0 | BF31: 10 | BG31: 0 | BH31: 5 | BI31: 0 | BJ31: 0 | BK31: - | BL31: - | BM31: 0 | BN31: 0 | BO31: 0 | BP31: 0 | BQ31: 0 | BR31: 0 | BS31: - | BT31: 0 | BU31: 0 | BV31: 10 | BW31: 5 | BX31: 0 | BY31: 0 | BZ31: 0 | CA31: - | CB31: 0
A32: QPR | B32: 0 | C32: 2 | D32: Man United | E32: 15:00:00 | G32: 10 | H32: 5 | I32: 5 | J32: 5 | K32: 0 | L32: 5 | M32: 5 | N32: 5 | O32: 10 | P32: 5 | Q32: 5 | R32: 5 | S32: 0 | T32: 10 | U32: 5 | V32: 0 | W32: 10 | X32: 10 | Y32: 10 | Z32: 5 | AA32: 5 | AB32: 5 | AC32: 5 | AD32: 5 | AE32: 0 | AF32: 5 | AG32: 5 | AH32: 5 | AI32: 5 | AJ32: 5 | AK32: 10 | AL32: 10 | AM32: 0 | AN32: 0 | AO32: - | AP32: 5 | AQ32: - | AR32: 10 | AS32: 5 | AT32: 10 | AU32: 10 | AV32: - | AW32: 5 | AX32: 10 | AY32: 5 | AZ32: 5 | BA32: 5 | BB32: 0 | BC32: 5 | BD32: 5 | BE32: 5 | BF32: 5 | BG32: 5 | BH32: 5 | BI32: 5 | BJ32: 5 | BK32: - | BL32: - | BM32: 5 | BN32: 5 | BO32: 10 | BP32: 5 | BQ32: 5 | BR32: 5 | BS32: - | BT32: 0 | BU32: 5 | BV32: 10 | BW32: 5 | BX32: 10 | BY32: 5 | BZ32: 10 | CA32: - | CB32: 0
A33: Swansea City | B33: 0 | C33: 5 | D33: Chelsea | E33: 15:00:00 | G33: 5 | H33: 5 | I33: 5 | J33: 5 | K33: 5 | L33: 5 | M33: 5 | N33: 5 | O33: 0 | P33: 5 | Q33: 5 | R33: 5 | S33: 5 | T33: 5 | U33: 5 | V33: 5 | W33: 5 | X33: 5 | Y33: 5 | Z33: 5 | AA33: 5 | AB33: 5 | AC33: 5 | AD33: 5 | AE33: 5 | AF33: 5 | AG33: 5 | AH33: 5 | AI33: 5 | AJ33: 5 | AK33: 5 | AL33: 5 | AM33: 5 | AN33: 5 | AO33: - | AP33: 5 | AQ33: - | AR33: 5 | AS33: 5 | AT33: 5 | AU33: 5 | AV33: - | AW33: 5 | AX33: 5 | AY33: 5 | AZ33: 5 | BA33: 5 | BB33: 5 | BC33: 5 | BD33: 5 | BE33: 5 | BF33: 5 | BG33: 5 | BH33: 5 | BI33: 5 | BJ33: 5 | BK33: - | BL33: - | BM33: 5 | BN33: 5 | BO33: 5 | BP33: 5 | BQ33: 0 | BR33: 5 | BS33: - | BT33: 5 | BU33: 5 | BV33: 5 | BW33: 5 | BX33: 5 | BY33: 5 | BZ33: 5 | CA33: - | CB33: 5
A34: Tottenham | B34: 2 | C34: 1 | D34: Sunderland | E34: 15:00:00 | G34: 5 | H34: 5 | I34: 10 | J34: 5 | K34: 5 | L34: 10 | M34: 5 | N34: 5 | O34: 10 | P34: 5 | Q34: 5 | R34: 5 | S34: 5 | T34: 10 | U34: 5 | V34: 5 | W34: 5 | X34: 5 | Y34: 5 | Z34: 10 | AA34: 5 | AB34: 10 | AC34: 5 | AD34: 0 | AE34: 5 | AF34: 5 | AG34: 10 | AH34: 5 | AI34: 5 | AJ34: 5 | AK34: 5 | AL34: 10 | AM34: 5 | AN34: 5 | AO34: - | AP34: 0 | AQ34: - | AR34: 5 | AS34: 5 | AT34: 5 | AU34: 5 | AV34: - | AW34: 5 | AX34: 10 | AY34: 5 | AZ34: 5 | BA34: 5 | BB34: 5 | BC34: 5 | BD34: 5 | BE34: 5 | BF34: 5 | BG34: 5 | BH34: 5 | BI34: 5 | BJ34: 5 | BK34: - | BL34: - | BM34: 10 | BN34: 10 | BO34: 5 | BP34: 10 | BQ34: 5 | BR34: 10 | BS34: - | BT34: 5 | BU34: 5 | BV34: 5 | BW34: 10 | BX34: 10 | BY34: 5 | BZ34: 10 | CA34: - | CB34: 10
A35: Newcastle United | B35: 1 | C35: 2 | D35: Southampton | E35: 17:30:00 | G35: 10 | H35: 0 | I35: 10 | J35: 0 | K35: 0 | L35: 0 | M35: 0 | N35: 10 | O35: 5 | P35: 5 | Q35: 0 | R35: 0 | S35: 10 | T35: 0 | U35: 5 | V35: 0 | W35: 0 | X35: 0 | Y35: 10 | Z35: 0 | AA35: 0 | AB35: 5 | AC35: 5 | AD35: 10 | AE35: 10 | AF35: 5 | AG35: 10 | AH35: 5 | AI35: 0 | AJ35: 5 | AK35: 0 | AL35: 0 | AM35: 5 | AN35: 5 | AO35: - | AP35: 0 | AQ35: - | AR35: 10 | AS35: 10 | AT35: 0 | AU35: 5 | AV35: - | AW35: 0 | AX35: 0 | AY35: 5 | AZ35: 10 | BA35: 5 | BB35: 10 | BC35: 0 | BD35: 0 | BE35: 10 | BF35: 10 | BG35: 0 | BH35: 10 | BI35: 0 | BJ35: 0 | BK35: - | BL35: - | BM35: 10 | BN35: 0 | BO35: 5 | BP35: 0 | BQ35: 0 | BR35: 10 | BS35: - | BT35: 10 | BU35: 10 | BV35: 5 | BW35: 10 | BX35: 0 | BY35: 0 | BZ35: 0 | CA35: - | CB35: 0
A37: Sunday, January 18th
A38: West Ham | B38: 3 | C38: 0 | D38: Hull City | E38: 13:30:00 | G38: 5 | H38: 5 | I38: 5 | J38: 5 | K38: 5 | L38: 5 | M38: 5 | N38: 5 | O38: 5 | P38: 5 | Q38: 5 | R38: 0 | S38: 5 | T38: 5 | U38: 5 | V38: 0 | W38: 5 | X38: 5 | Y38: 5 | Z38: 5 | AA38: 5 | AB38: 5 | AC38: 5 | AD38: 5 | AE38: 5 | AF38: 5 | AG38: 5 | AH38: 5 | AI38: 5 | AJ38: 10 | AK38: 5 | AL38: 5 | AM38: 5 | AN38: 5 | AO38: - | AP38: 5 | AQ38: - | AR38: 5 | AS38: 5 | AT38: 5 | AU38: 5 | AV38: - | AW38: 5 | AX38: 5 | AY38: 5 | AZ38: 5 | BA38: 5 | BB38: 0 | BC38: 5 | BD38: 5 | BE38: 5 | BF38: 5 | BG38: 5 | BH38: 5 | BI38: 0 | BJ38: 5 | BK38: - | BL38: - | BM38: 5 | BN38: 5 | BO38: 5 | BP38: 0 | BQ38: 5 | BR38: 5 | BS38: - | BT38: 5 | BU38: 0 | BV38: 5 | BW38: 5 | BX38: 5 | BY38: 10 | BZ38: 0 | CA38: - | CB38: 5
A39: Man City | B39: 0 | C39: 2 | D39: Arsenal | E39: 16:00:00 | G39: 0 | H39: 0 | I39: 0 | J39: 0 | K39: 0 | L39: 0 | M39: 0 | N39: 0 | O39: 0 | P39: 0 | Q39: 0 | R39: 0 | S39: 0 | T39: 0 | U39: 0 | V39: 0 | W39: 0 | X39: 0 | Y39: 0 | Z39: 0 | AA39: 0 | AB39: 0 | AC39: 0 | AD39: 0 | AE39: 0 | AF39: 0 | AG39: 0 | AH39: 0 | AI39: 0 | AJ39: 0 | AK39: 0 | AL39: 0 | AM39: 0 | AN39: 0 | AO39: - | AP39: 0 | AQ39: - | AR39: 0 | AS39: 0 | AT39: 0 | AU39: 0 | AV39: - | AW39: 0 | AX39: 0 | AY39: 0 | AZ39: 0 | BA39: 0 | BB39: 0 | BC39: 0 | BD39: 0 | BE39: 0 | BF39: 0 | BG39: 0 | BH39: 0 | BI39: 0 | BJ39: 0 | BK39: - | BL39: - | BM39: 0 | BN39: 0 | BO39: 0 | BP39: 0 | BQ39: 0 | BR39: 0 | BS39: - | BT39: 0 | BU39: 0 | BV39: 0 | BW39: 0 | BX39: 0 | BY39: 0 | BZ39: 0 | CA39: - | CB39: 0
A41: Monday, January 19th
A42: Everton | B42: 0 | C42: 0 | D42: West Brom | E42: 20:00:00 | G42: 0 | H42: 0 | I42: 5 | J42: 5 | K42: 0 | L42: 0 | M42: 0 | N42: 0 | O42: 0 | P42: 0 | Q42: 0 | R42: 0 | S42: 0 | T42: 0 | U42: 0 | V42: 0 | W42: 5 | X42: 0 | Y42: 0 | Z42: 0 | AA42: 0 | AB42: 0 | AC42: 0 | AD42: 0 | AE42: 5 | AF42: 0 | AG42: 0 | AH42: 0 | AI42: 0 | AJ42: 0 | AK42: 0 | AL42: 0 | AM42: 0 | AN42: 0 | AO42: - | AP42: 0 | AQ42: - | AR42: 0 | AS42: 0 | AT42: 5 | AU42: 0 | AV42: - | AW42: 0 | AX42: 0 | AY42: 5 | AZ42: 5 | BA42: 0 | BB42: 0 | BC42: 5 | BD42: 0 | BE42: 5 | BF42: 5 | BG42: 0 | BH42: 0 | BI42: 5 | BJ42: 0 | BK42: - | BL42: - | BM42: 0 | BN42: 0 | BO42: 0 | BP42: 0 | BQ42: 0 | BR42: 0 | BS42: - | BT42: 0 | BU42: 0 | BV42: 0 | BW42: 5 | BX42: 0 | BY42: 10 | BZ42: 0 | CA42: - | CB42: 0
A44: Saturday, January 31st
A45: Hull City | B45: 0 | C45: 3 | D45: Newcastle United | E45: 12:45:00 | G45: 0 | H45: 0 | I45: 0 | J45: 0 | K45: 0 | L45: 0 | M45: 0 | N45: 0 | O45: 5 | P45: 5 | Q45: 0 | R45: 0 | S45: 0 | T45: 5 | U45: 0 | V45: 0 | W45: 0 | X45: 0 | Y45: 0 | Z45: 0 | AA45: 0 | AB45: 5 | AC45: 0 | AD45: 5 | AE45: 0 | AF45: 0 | AG45: 0 | AH45: 0 | AI45: 0 | AJ45: 0 | AK45: 0 | AL45: 0 | AM45: 0 | AN45: 0 | AO45: - | AP45: 5 | AQ45: - | AR45: 0 | AS45: 0 | AT45: 0 | AU45: 5 | AV45: - | AW45: 0 | AX45: 0 | AY45: - | AZ45: 0 | BA45: 0 | BB45: 0 | BC45: 5 | BD45: 5 | BE45: - | BF45: 5 | BG45: 0 | BH45: 5 | BI45: 0 | BJ45: 5 | BK45: - | BL45: - | BM45: 0 | BN45: 0 | BO45: 0 | BP45: 5 | BQ45: 0 | BR45: 0 | BS45: - | BT45: 0 | BU45: 0 | BV45: 0 | BW45: 0 | BX45: 5 | BY45: 0 | BZ45: - | CA45: 0 | CB45: 0
A46: Crystal Palace | B46: 0 | C46: 1 | D46: Everton | E46: 15:00:00 | G46: 0 | H46: 5 | I46: 0 | J46: 0 | K46: 0 | L46: 5 | M46: 0 | N46: 0 | O46: 0 | P46: 0 | Q46: 0 | R46: 5 | S46: 0 | T46: 0 | U46: 5 | V46: 0 | W46: 0 | X46: 10 | Y46: 0 | Z46: 5 | AA46: 0 | AB46: 0 | AC46: 0 | AD46: 0 | AE46: 0 | AF46: 0 | AG46: 0 | AH46: 0 | AI46: 0 | AJ46: 0 | AK46: 0 | AL46: 0 | AM46: 10 | AN46: 0 | AO46: - | AP46: 0 | AQ46: - | AR46: 0 | AS46: 0 | AT46: 0 | AU46: 0 | AV46: - | AW46: 0 | AX46: 0 | AY46: 10 | AZ46: 0 | BA46: 0 | BB46: 0 | BC46: 0 | BD46: 0 | BE46: 0 | BF46: 5 | BG46: 0 | BH46: 5 | BI46: 0 | BJ46: 0 | BK46: - | BL46: - | BM46: 0 | BN46: 0 | BO46: 0 | BP46: 0 | BQ46: 5 | BR46: 5 | BS46: - | BT46: 0 | BU46: 0 | BV46: 0 | BW46: 0 | BX46: 0 | BY46: 0 | BZ46: - | CA46: 5 | CB46: 0
A47: Liverpool | B47: 2 | C47: 0 | D47: West Ham | E47: 15:00:00 | G47: 5 | H47: 5 | I47: 5 | J47: 5 | K47: 5 | L47: 5 | M47: 5 | N47: 10 | O47: 5 | P47: 5 | Q47: 0 | R47: 5 | S47: 5 | T47: 0 | U47: 5 | V47: 5 | W47: 5 | X47: 10 | Y47: 5 | Z47: 5 | AA47: 0 | AB47: 0 | AC47: 0 | AD47: 5 | AE47: 5 | AF47: 0 | AG47: 5 | AH47: 5 | AI47: 5 | AJ47: 5 | AK47: 5 | AL47: 5 | AM47: 0 | AN47: 5 | AO47: - | AP47: 5 | AQ47: - | AR47: 0 | AS47: 5 | AT47: 0 | AU47: 5 | AV47: - | AW47: 5 | AX47: 5 | AY47: 10 | AZ47: 0 | BA47: 0 | BB47: 5 | BC47: 5 | BD47: 0 | BE47: 0 | BF47: 5 | BG47: 5 | BH47: 5 | BI47: 10 | BJ47: 10 | BK47: - | BL47: - | BM47: 0 | BN47: 5 | BO47: 5 | BP47: 5 | BQ47: 10 | BR47: 5 | BS47: - | BT47: 5 | BU47: 5 | BV47: 0 | BW47: 5 | BX47: 0 | BY47: 5 | BZ47: - | CA47: 5 | CB47: 0
A48: Man United | B48: 3 | C48: 1 | D48: Leicester City | E48: 15:00:00 | G48: 5 | H48: 5 | I48: 5 | J48: 5 | K48: 5 | L48: 5 | M48: 5 | N48: 5 | O48: 5 | P48: 5 | Q48: 10 | R48: 5 | S48: 5 | T48: 5 | U48: 5 | V48: 5 | W48: 10 | X48: 5 | Y48: 5 | Z48: 5 | AA48: 5 | AB48: 5 | AC48: 5 | AD48: 10 | AE48: 5 | AF48: 5 | AG48: 5 | AH48: 5 | AI48: 5 | AJ48: 5 | AK48: 5 | AL48: 5 | AM48: 5 | AN48: 5 | AO48: - | AP48: 5 | AQ48: - | AR48: 5 | AS48: 10 | AT48: 5 | AU48: 5 | AV48: - | AW48: 10 | AX48: 5 | AY48: 5 | AZ48: 5 | BA48: 5 | BB48: 5 | BC48: 5 | BD48: 5 | BE48: 5 | BF48: 5 | BG48: 5 | BH48: 10 | BI48: 5 | BJ48: 5 | BK48: - | BL48: - | BM48: 10 | BN48: 5 | BO48: 5 | BP48: 5 | BQ48: 5 | BR48: 5 | BS48: - | BT48: 10 | BU48: 5 | BV48: 5 | BW48: 5 | BX48: 5 | BY48: 5 | BZ48: - | CA48: 5 | CB48: 5
A49: Stoke City | B49: 3 | C49: 1 | D49: QPR | E49: 15:00:00 | G49: 5 | H49: 5 | I49: 5 | J49: 5 | K49: 5 | L49: 5 | M49: 5 | N49: 5 | O49: 5 | P49: 5 | Q49: 5 | R49: 0 | S49: 5 | T49: 5 | U49: 5 | V49: 5 | W49: 5 | X49: 5 | Y49: 5 | Z49: 5 | AA49: 5 | AB49: 5 | AC49: 5 | AD49: 5 | AE49: 5 | AF49: 5 | AG49: 5 | AH49: 5 | AI49: 0 | AJ49: 5 | AK49: 5 | AL49: 5 | AM49: 5 | AN49: 5 | AO49: - | AP49: 0 | AQ49: - | AR49: 5 | AS49: 5 | AT49: 5 | AU49: 5 | AV49: - | AW49: 0 | AX49: 5 | AY49: 5 | AZ49: 5 | BA49: 5 | BB49: 5 | BC49: 0 | BD49: 0 | BE49: 5 | BF49: 0 | BG49: 5 | BH49: 5 | BI49: 5 | BJ49: 5 | BK49: - | BL49: - | BM49: 5 | BN49: 0 | BO49: 5 | BP49: 5 | BQ49: 0 | BR49: 5 | BS49: - | BT49: 5 | BU49: 5 | BV49: 5 | BW49: 5 | BX49: 0 | BY49: 0 | BZ49: - | CA49: 0 | CB49: 5
A50: Sunderland | B50: 2 | C50: 0 | D50: Burnley | E50: 15:00:00 | G50: 5 | H50: 5 | I50: 10 | J50: 0 | K50: 5 | L50: 5 | M50: 10 | N50: 0 | O50: 5 | P50: 0 | Q50: 0 | R50: 5 | S50: 5 | T50: 5 | U50: 0 | V50: 5 | W50: 0 | X50: 5 | Y50: 0 | Z50: 0 | AA50: 0 | AB50: 5 | AC50: 0 | AD50: 5 | AE50: 0 | AF50: 5 | AG50: 5 | AH50: 5 | AI50: 5 | AJ50: 0 | AK50: 5 | AL50: 5 | AM50: 5 | AN50: 5 | AO50: - | AP50: 5 | AQ50: - | AR50: 0 | AS50: 10 | AT50: 5 | AU50: 5 | AV50: - | AW50: 5 | AX50: 5 | AY50: 5 | AZ50: 5 | BA50: 0 | BB50: - | BC50: 5 | BD50: 5 | BE50: 0 | BF50: 5 | BG50: 0 | BH50: 5 | BI50: 0 | BJ50: 10 | BK50: - | BL50: - | BM50: 10 | BN50: 5 | BO50: 10 | BP50: 5 | BQ50: 0 | BR50: 5 | BS50: - | BT50: 5 | BU50: 5 | BV50: 0 | BW50: 5 | BX50: 5 | BY50: 0 | BZ50: - | CA50: 5 | CB50: 5
A51: West Brom | B51: 0 | C51: 3 | D51: Tottenham | E51: 15:00:00 | G51: 0 | H51: 5 | I51: 0 | J51: 5 | K51: 0 | L51: 5 | M51: 5 | N51: 0 | O51: 5 | P51: 5 | Q51: 5 | R51: 5 | S51: 0 | T51: 5 | U51: 0 | V51: 0 | W51: 5 | X51: 5 | Y51: 5 | Z51: 5 | AA51: 0 | AB51: 5 | AC51: 0 | AD51: 0 | AE51: 0 | AF51: 5 | AG51: 5 | AH51: 0 | AI51: 0 | AJ51: 0 | AK51: 0 | AL51: 5 | AM51: 5 | AN51: 0 | AO51: - | AP51: 5 | AQ51: - | AR51: 0 | AS51: 0 | AT51: 0 | AU51: 5 | AV51: - | AW51: 0 | AX51: 0 | AY51: 0 | AZ51: 5 | BA51: 5 | BB51: - | BC51: 5 | BD51: 0 | BE51: 0 | BF51: 5 | BG51: 0 | BH51: 5 | BI51: 5 | BJ51: 5 | BK51: - | BL51: - | BM51: 5 | BN51: 5 | BO51: 0 | BP51: 5 | BQ51: 5 | BR51: 5 | BS51: - | BT51: 0 | BU51: 0 | BV51: 0 | BW51: 0 | BX51: 0 | BY51: 0 | BZ51: - | CA51: 0 | CB51: 0
A52: Chelsea | B52: 1 | C52: 1 | D52: Man City | E52: 17:30:00 | G52: 0 | H52: 0 | I52: 0 | J52: 0 | K52: 0 | L52: 10 | M52: 0 | N52: 0 | O52: 0 | P52: 0 | Q52: 10 | R52: 5 | S52: 5 | T52: 0 | U52: 0 | V52: 10 | W52: 10 | X52: 0 | Y52: 10 | Z52: 0 | AA52: 0 | AB52: 0 | AC52: 0 | AD52: 0 | AE52: 0 | AF52: 0 | AG52: 0 | AH52: 10 | AI52: 10 | AJ52: 0 | AK52: 0 | AL52: 0 | AM52: 0 | AN52: 0 | AO52: - | AP52: 0 | AQ52: - | AR52: 0 | AS52: 0 | AT52: 0 | AU52: 0 | AV52: - | AW52: 10 | AX52: 0 | AY52: 0 | AZ52: 5 | BA52: 0 | BB52: - | BC52: 0 | BD52: 0 | BE52: 10 | BF52: 0 | BG52: 10 | BH52: 0 | BI52: 0 | BJ52: 0 | BK52: - | BL52: - | BM52: 5 | BN52: 0 | BO52: 10 | BP52: 0 | BQ52: 5 | BR52: 0 | BS52: - | BT52: 5 | BU52: 0 | BV52: 0 | BW52: 0 | BX52: 10 | BY52: 10 | BZ52: - | CA52: 0 | CB52: 0
A54: Golden Boots
A55: Alexis Sanchez - Arsenal | E55: =0+2+0 -> 2 | F55: =COUNT(G55:CB55) -> 14 | H55: =5*$E55 -> 10 | N55: =5*$E55 -> 10 | T55: =5*$E55 -> 10 | Y55: =5*$E55 -> 10 | Z55: =5*$E55 -> 10 | AC55: =5*$E55 -> 10 | AQ55: =5*$E55 -> 10 | AS55: =5*$E55 -> 10 | AZ55: =5*$E55 -> 10 | BF55: =5*$E55 -> 10 | BK55: =5*$E55 -> 10 | BL55: =5*$E55 -> 10 | BV55: =5*$E55 -> 10 | BZ55: =5*$E55 -> 10
A56: Daniel Sturridge - Liverpool | E56: =0+0+0+1 -> 1 | F56: 52 | G56: =5*$E56 -> 5 | I56: =5*$E56 -> 5 | J56: =5*$E56 -> 5 | K56: =5*$E56 -> 5 | M56: =5*$E56 -> 5 | N56: =5*$E56 -> 5 | O56: =5*$E56 -> 5 | P56: =5*$E56 -> 5 | Q56: =5*$E56 -> 5 | R56: =5*$E56 -> 5 | S56: =5*$E56 -> 5 | V56: =5*$E56 -> 5 | W56: =5*$E56 -> 5 | X56: =5*$E56 -> 5 | Z56: =5*$E56 -> 5 | AA56: =5*$E56 -> 5 | AB56: =5*$E56 -> 5 | AE56: =5*$E56 -> 5 | AF56: =5*$E56 -> 5 | AG56: =5*$E56 -> 5 | AI56: =5*$E56 -> 5 | AJ56: 5 | AK56: 5 | AL56: 5 | AM56: 5 | AO56: 5 | AP56: 5 | AR56: =5*$E56 -> 5 | AS56: =5*$E56 -> 5 | AU56: =5*$E56 -> 5 | AV56: =5*$E56 -> 5 | AX56: =5*$E56 -> 5 | AY56: =5*$E56 -> 5 | BA56: =5*$E56 -> 5 | BB56: =5*$E56 -> 5 | BC56: =5*$E56 -> 5 | BD56: =5*$E56 -> 5 | BE56: =5*$E56 -> 5 | BF56: =5*$E56 -> 5 | BI56: =5*$E56 -> 5 | BJ56: =5*$E56 -> 5 | BK56: =5*$E56 -> 5 | BL56: 5 | BM56: =5*$E56 -> 5 | BQ56: =5*$E56 -> 5 | BS56: =5*$E56 -> 5 | BT56: =5*$E56 -> 5 | BU56: =5*$E56 -> 5 | BW56: =5*$E56 -> 5 | BX56: =5*$E56 -> 5 | CA56: =5*$E56 -> 5 | CB56: =5*$E56 -> 5
A57: Diego Costa - Chelsea | E57: =1+1+2+0 -> 4 | F57: 39 | H57: =5*$E57 -> 20 | J57: 20 | L57: =5*$E57 -> 20 | M57: =5*$E57 -> 20 | O57: 20 | P57: =5*$E57 -> 20 | S57: =5*$E57 -> 20 | T57: =5*$E57 -> 20 | Z57: =5*$E57 -> 20 | AB57: =5*$E57 -> 20 | AC57: =5*$E57 -> 20 | AE57: 20 | AF57: =5*$E57 -> 20 | AG57: =5*$E57 -> 20 | AH57: =5*$E57 -> 20 | AJ57: =5*$E57 -> 20 | AK57: =5*$E57 -> 20 | AO57: =5*$E57 -> 20 | AP57: =5*$E57 -> 20 | AR57: =5*$E57 -> 20 | AT57: =5*$E57 -> 20 | AU57: 20 | AV57: =5*$E57 -> 20 | AW57: =5*$E57 -> 20 | AZ57: =5*$E57 -> 20 | BA57: =5*$E57 -> 20 | BB57: =5*$E57 -> 20 | BD57: =5*$E57 -> 20 | BF57: =5*$E57 -> 20 | BG57: =5*$E57 -> 20 | BH57: =5*$E57 -> 20 | BI57: =5*$E57 -> 20 | BN57: =5*$E57 -> 20 | BO57: =5*$E57 -> 20 | BP57: =5*$E57 -> 20 | BR57: =5*$E57 -> 20 | BZ57: =5*$E57 -> 20 | CA57: =5*$E57 -> 20 | CB57: 20
A58: Eden Hazard - Chelsea | E58: =1+0+0+0 -> 1 | F58: 2 | K58: =5*$E58 -> 5 | BX58: =5*$E58 -> 5
A59: Edin Dzeko - Man City | E59: =0+0+0+0 -> 0 | F59: 6 | L59: =5*$E59 -> 0 | AB59: =5*$E59 -> 0 | AQ59: =5*$E59 -> 0 | AT59: =5*$E59 -> 0 | BP59: =5*$E59 -> 0 | BV59: =5*$E59 -> 0
A60: Emmanuel Adebayor - Tottenham | E60: =0+0+0+0 -> 0 | F60: 3 | U60: =5*$E60 -> 0 | AN60: =5*$E60 -> 0 | BS60: =5*$E60 -> 0
A61: Olivier Giroud - Arsenal | E61: =0+0+1 -> 1 | F61: 4 | L61: =5*$E61 -> 5 | AD61: =5*$E61 -> 5 | AN61: 5 | AV61: =5*$E61 -> 5
A62: Raheem Sterling - Liverpool | E62: =0+0+0+1 -> 1 | F62: 3 | AT62: =5*$E62 -> 5 | BQ62: =5*$E62 -> 5 | BU62: =5*$E62 -> 5
A63: Robin van Persie - Man United | E63: =0+0+0+1 -> 1 | F63: 45 | G63: =5*$E63 -> 5 | H63: =5*$E63 -> 5 | J63: =5*$E63 -> 5 | P63: =5*$E63 -> 5 | Q63: =5*$E63 -> 5 | R63: =5*$E63 -> 5 | S63: =5*$E63 -> 5 | U63: =5*$E63 -> 5 | V63: =5*$E63 -> 5 | X63: =5*$E63 -> 5 | Y63: =5*$E63 -> 5 | AA63: =5*$E63 -> 5 | AD63: =5*$E63 -> 5 | AF63: =5*$E63 -> 5 | AG63: =5*$E63 -> 5 | AH63: =5*$E63 -> 5 | AI63: =5*$E63 -> 5 | AJ63: =5*$E63 -> 5 | AL63: =5*$E63 -> 5 | AM63: =5*$E63 -> 5 | AP63: =5*$E63 -> 5 | AQ63: =5*$E63 -> 5 | AR63: =5*$E63 -> 5 | AU63: =5*$E63 -> 5 | AW63: =5*$E63 -> 5 | AX63: =5*$E63 -> 5 | AY63: =5*$E63 -> 5 | BA63: =5*$E63 -> 5 | BB63: =5*$E63 -> 5 | BC63: =5*$E63 -> 5 | BD63: =5*$E63 -> 5 | BE63: =5*$E63 -> 5 | BG63: =5*$E63 -> 5 | BH63: =5*$E63 -> 5 | BI63: =5*$E63 -> 5 | BJ63: =5*$E63 -> 5 | BM63: =5*$E63 -> 5 | BN63: =5*$E63 -> 5 | BO63: =5*$E63 -> 5 | BP63: =5*$E63 -> 5 | BR63: =5*$E63 -> 5 | BT63: =5*$E63 -> 5 | BX63: =5*$E63 -> 5 | BY63: =5*$E63 -> 5 | CA63: =5*$E63 -> 5
A64: Romelu Lukaku - Everton | E64: =0+0+0+1 -> 1 | F64: 7 | G64: =5*$E64 -> 5 | I64: =5*$E64 -> 5 | T64: =5*$E64 -> 5 | U64: =5*$E64 -> 5 | AX64: =5*$E64 -> 5 | BY64: =5*$E64 -> 5 | BZ64: =5*$E64 -> 5
A65: Sergio Aguero - Man City | E65: =0+0+0+0 -> 0 | F65: 21 | M65: =5*$E65 -> 0 | N65: =5*$E65 -> 0 | Q65: =5*$E65 -> 0 | R65: =5*$E65 -> 0 | W65: =5*$E65 -> 0 | X65: =5*$E65 -> 0 | Y65: =5*$E65 -> 0 | AC65: =5*$E65 -> 0 | AD65: =5*$E65 -> 0 | AI65: =5*$E65 -> 0 | AK65: =5*$E65 -> 0 | AL65: =5*$E65 -> 0 | AM65: =5*$E65 -> 0 | AN65: =5*$E65 -> 0 | AO65: =5*$E65 -> 0 | AY65: =5*$E65 -> 0 | BC65: =5*$E65 -> 0 | BG65: =5*$E65 -> 0 | BJ65: =5*$E65 -> 0 | BO65: =5*$E65 -> 0 | BW65: =5*$E65 -> 0
A66: Steven Gerrard - Liverpool | E66: =2+0+0+0 -> 2 | F66: 1 | BQ66: =5*$E66 -> 10
A67: Wayne Rooney - Man United | E67: =0+0+0+0 -> 0 | F67: 21 | I67: =5*$E67 -> 0 | K67: =5*$E67 -> 0 | O67: =5*$E67 -> 0 | V67: =5*$E67 -> 0 | W67: =5*$E67 -> 0 | AA67: =5*$E67 -> 0 | AS67: =5*$E67 -> 0 | AW67: =5*$E67 -> 0 | AZ67: =5*$E67 -> 0 | BE67: =5*$E67 -> 0 | BH67: =5*$E67 -> 0 | BK67: =5*$E67 -> 0 | BL67: =5*$E67 -> 0 | BM67: =5*$E67 -> 0 | BN67: =5*$E67 -> 0 | BS67: =5*$E67 -> 0 | BU67: =5*$E67 -> 0 | BV67: =5*$E67 -> 0 | BW67: =5*$E67 -> 0 | BY67: =5*$E67 -> 0 | CB67: =5*$E67 -> 0
A68: Wilfried Bony - Swansea Man City | E68: =1+0+0+0 -> 1 | F68: 1 | AH68: =5*$E68 -> 5
A69: Yaya Toure - Man City | E69: =1+0+0+0 -> 1 | F69: 3 | AE69: =5*$E69 -> 5 | BR69: =5*$E69 -> 5 | BT69: =5*$E69 -> 5
A71: Total Points - January | G71: =SUM(G2:G70) -> 100 | H71: 140 | I71: 110 | J71: 150 | K71: 90 | L71: 145 | M71: 115 | N71: 120 | O71: 135 | P71: 130 | Q71: 90 | R71: 120 | S71: 115 | T71: 140 | U71: 120 | V71: 115 | W71: 120 | X71: 110 | Y71: 145 | Z71: 140 | AA71: 100 | AB71: 110 | AC71: 105 | AD71: 120 | AE71: 155 | AF71: 120 | AG71: 130 | AH71: 145 | AI71: 105 | AJ71: 130 | AK71: 135 | AL71: 115 | AM71: =SUM(AM2:AM70) -> 140 | AN71: 135 | AO71: 25 | AP71: 130 | AQ71: 15 | AR71: 125 | AS71: 100 | AT71: 135 | AU71: 155 | AV71: 60 | AW71: 135 | AX71: 135 | AY71: 140 | AZ71: 130 | BA71: 105 | BB71: 145 | BC71: 125 | BD71: 115 | BE71: 115 | BF71: 140 | BG71: 125 | BH71: 135 | BI71: 135 | BJ71: 120 | BK71: 50 | BL71: 20 | BM71: 120 | BN71: 105 | BO71: 135 | BP71: 115 | BQ71: 105 | BR71: 140 | BS71: =SUM(BS2:BS70) -> 5 | BT71: 155 | BU71: 105 | BV71: 95 | BW71: 105 | BX71: 110 | BY71: 115 | BZ71: 70 | CA71: 90 | CB71: 120
G73: =IF(COUNT(G54:G70)=3,"a","g") -> a | H73: =IF(COUNT(H54:H70)=3,"a","g") -> a | I73: a | J73: a | K73: a | L73: a | M73: a | N73: a | O73: a | P73: a | Q73: a | R73: a | S73: a | T73: a | U73: a | V73: a | W73: a | X73: a | Y73: a | Z73: a | AA73: a | AB73: a | AC73: a | AD73: a | AE73: a | AF73: a | AG73: a | AH73: a | AI73: a | AJ73: a | AK73: a | AL73: a | AM73: a | AN73: a | AO73: a | AP73: a | AQ73: a | AR73: a | AS73: a | AT73: a | AU73: a | AV73: a | AW73: a | AX73: a | AY73: a | AZ73: a | BA73: a | BB73: a | BC73: a | BD73: a | BE73: a | BF73: a | BG73: a | BH73: a | BI73: a | BJ73: a | BK73: a | BL73: a | BM73: a | BN73: a | BO73: a | BP73: a | BQ73: a | BR73: a | BS73: a | BT73: =IF(COUNT(BT54:BT70)=3,"a","g") -> a | BU73: a | BV73: a | BW73: a | BX73: a | BY73: a | BZ73: a | CA73: a | CB73: a

Sheet February
G1: Aaron Byrne | H1: Aidan Knight | I1: Aidan Scanlon | J1: Aidan White | K1: Aiden Desch | L1: Alan Boyle | M1: Anastas Popov | N1: Andy Dunne | O1: Anthony Hughes | P1: Barry Healy | Q1: Brendan Maguire | R1: Brian Mullen | S1: Brian Prendergast | T1: Brian Sotolongo | U1: Chris Hall | V1: Ciaran O'Hart | W1: Cillian Conway | X1: Colin McAnaspie | Y1: Con McSweeney | Z1: Conor Horan | AA1: Craig Calvert | AB1: Dave Green | AC1: Dave McGinley | AD1: David Bone | AE1: David Byrne | AF1: David Cooney | AG1: David Keavney | AH1: Eamon Fox | AI1: Fiachra Moynihan | AJ1: Gareth Pierpoint | AK1: Gary McGurk | AL1: Gavin Morgan | AM1: Gerry Draper | AN1: Gerry Moore | AO1: Ian Healy | AP1: Javier Suarez Barreiro | AQ1: Jenny Ellis | AR1: Joe Behan | AS1: Joe O'Hehir | AT1: Joe Turner | AU1: Jonathan Fox | AV1: Keith Horan | AW1: Kevin Donohoe | AX1: Kevin Philpott | AY1: Konstantin Kulev | AZ1: Kris Stainton | BA1: Liam Butler | BB1: Liam Geraghty | BC1: Maria Jordan | BD1: Mike Hall | BE1: Niall Carroll | BF1: Oisin O'Reilly | BG1: Padraic Carney | BH1: Pat Jordan | BI1: Paul Moore | BJ1: Paul Prendergast | BK1: Paul Stainton | BL1: Peter Behan | BM1: Phil Doyle | BN1: Philip Jordan | BO1: Ralph Goodwin | BP1: Ray Ellis | BQ1: Rhona Devlin | BR1: Richard Johnston | BS1: Sean Moloney | BT1: Sean O'Mairtin | BU1: Shane Horan | BV1: Sharon Behan | BW1: Simon Purdue | BX1: Siobhan Murphy | BY1: Terry Behan | BZ1: Tiago Moreira | CA1: Tom McHugh | CB1: Wayne Donovan
A2: Sunday, February 1st
A3: Arsenal | B3: 5 | C3: 0 | D3: Aston Villa | E3: 13:30:00 | G3: 5 | H3: 5 | I3: 5 | J3: 5 | K3: 5 | L3: 5 | M3: 5 | N3: 5 | O3: 5 | P3: 5 | Q3: 5 | R3: 5 | S3: 5 | T3: 5 | U3: 5 | V3: 5 | W3: 5 | X3: 5 | Y3: 5 | Z3: 5 | AA3: 5 | AB3: 5 | AC3: 5 | AD3: 5 | AE3: 5 | AF3: 5 | AG3: 5 | AH3: 5 | AI3: 5 | AJ3: 5 | AK3: 5 | AL3: 5 | AM3: 5 | AN3: 5 | AO3: - | AP3: 5 | AQ3: - | AR3: 5 | AS3: 5 | AT3: 5 | AU3: 5 | AV3: - | AW3: 5 | AX3: 5 | AY3: - | AZ3: 5 | BA3: 5 | BB3: 5 | BC3: 5 | BD3: 5 | BE3: 5 | BF3: 5 | BG3: 5 | BH3: 5 | BI3: 5 | BJ3: 5 | BK3: - | BL3: - | BM3: 5 | BN3: 5 | BO3: 5 | BP3: 5 | BQ3: 0 | BR3: 5 | BS3: - | BT3: 5 | BU3: 5 | BV3: 5 | BW3: 5 | BX3: 5 | BY3: 5 | BZ3: 5 | CA3: 5 | CB3: 5
A4: Southampton | B4: 0 | C4: 1 | D4: Swansea City | E4: 16:00:00 | G4: - | H4: 0 | I4: 0 | J4: 0 | K4: 0 | L4: 0 | M4: 0 | N4: 0 | O4: 0 | P4: 0 | Q4: 0 | R4: 0 | S4: 0 | T4: 0 | U4: 0 | V4: 0 | W4: 0 | X4: 0 | Y4: 0 | Z4: 0 | AA4: 0 | AB4: 0 | AC4: 0 | AD4: 0 | AE4: 0 | AF4: 0 | AG4: 0 | AH4: 0 | AI4: 0 | AJ4: 0 | AK4: 0 | AL4: 0 | AM4: 0 | AN4: 0 | AO4: - | AP4: 0 | AQ4: - | AR4: 0 | AS4: 0 | AT4: 0 | AU4: 0 | AV4: - | AW4: 0 | AX4: 0 | AY4: 0 | AZ4: 0 | BA4: 0 | BB4: 0 | BC4: 0 | BD4: 0 | BE4: 0 | BF4: 0 | BG4: 0 | BH4: 0 | BI4: 0 | BJ4: 0 | BK4: - | BL4: - | BM4: 0 | BN4: 0 | BO4: 0 | BP4: 0 | BQ4: 0 | BR4: 0 | BS4: - | BT4: 0 | BU4: 0 | BV4: 0 | BW4: 0 | BX4: 0 | BY4: 0 | BZ4: 0 | CA4: 0 | CB4: 0
A6: Saturday, February 7th
A7: Tottenham | B7: 2 | C7: 1 | D7: Arsenal | E7: 12:45:00 | G7: - | H7: 0 | I7: 0 | J7: 0 | K7: 5 | L7: 0 | M7: 10 | N7: 0 | O7: 0 | P7: 0 | Q7: 0 | R7: 0 | S7: 10 | T7: 0 | U7: 0 | V7: 0 | W7: 0 | X7: 0 | Y7: 0 | Z7: 5 | AA7: 0 | AB7: 0 | AC7: 0 | AD7: 0 | AE7: - | AF7: 0 | AG7: 0 | AH7: 0 | AI7: 0 | AJ7: 0 | AK7: 10 | AL7: 0 | AM7: 0 | AN7: 0 | AO7: - | AP7: 0 | AQ7: - | AR7: 0 | AS7: 0 | AT7: 10 | AU7: 0 | AV7: - | AW7: 0 | AX7: 0 | AY7: - | AZ7: 0 | BA7: 10 | BB7: 0 | BC7: 0 | BD7: 0 | BE7: 0 | BF7: 0 | BG7: 0 | BH7: 0 | BI7: 0 | BJ7: 0 | BK7: - | BL7: - | BM7: 0 | BN7: 0 | BO7: 0 | BP7: 5 | BQ7: 0 | BR7: 5 | BS7: - | BT7: 0 | BU7: 5 | BV7: 0 | BW7: 0 | BX7: 0 | BY7: 0 | BZ7: 0 | CA7: 0 | CB7: 10
A8: Aston Villa | B8: 1 | C8: 2 | D8: Chelsea | E8: 15:00:00 | G8: - | H8: 5 | I8: 5 | J8: 5 | K8: 5 | L8: 5 | M8: 10 | N8: 5 | O8: 5 | P8: 5 | Q8: 5 | R8: 5 | S8: 5 | T8: 5 | U8: 5 | V8: 5 | W8: 5 | X8: 5 | Y8: 5 | Z8: 10 | AA8: 5 | AB8: 5 | AC8: 5 | AD8: 5 | AE8: - | AF8: 5 | AG8: 5 | AH8: 5 | AI8: 5 | AJ8: 5 | AK8: 5 | AL8: 5 | AM8: 5 | AN8: 5 | AO8: - | AP8: 5 | AQ8: - | AR8: 5 | AS8: 5 | AT8: 5 | AU8: 5 | AV8: - | AW8: 0 | AX8: 5 | AY8: 5 | AZ8: 5 | BA8: 0 | BB8: 5 | BC8: 5 | BD8: 5 | BE8: 5 | BF8: 5 | BG8: 5 | BH8: 5 | BI8: 5 | BJ8: 5 | BK8: 5 | BL8: - | BM8: 5 | BN8: 5 | BO8: 5 | BP8: 10 | BQ8: 0 | BR8: 5 | BS8: - | BT8: 5 | BU8: 10 | BV8: 5 | BW8: 5 | BX8: 5 | BY8: 5 | BZ8: 5 | CA8: 5 | CB8: 0
A9: Leicester City | B9: 0 | C9: 1 | D9: Crystal Palace | E9: 15:00:00 | G9: - | H9: 0 | I9: 5 | J9: 0 | K9: 0 | L9: 0 | M9: 5 | N9: 0 | O9: 0 | P9: 5 | Q9: 0 | R9: 0 | S9: 0 | T9: 5 | U9: 0 | V9: 0 | W9: 0 | X9: 10 | Y9: 0 | Z9: 0 | AA9: 0 | AB9: 0 | AC9: 0 | AD9: 0 | AE9: - | AF9: 0 | AG9: 5 | AH9: 10 | AI9: 0 | AJ9: 0 | AK9: 5 | AL9: 10 | AM9: 0 | AN9: 0 | AO9: - | AP9: 0 | AQ9: - | AR9: 5 | AS9: 0 | AT9: 0 | AU9: 0 | AV9: - | AW9: 0 | AX9: 5 | AY9: 0 | AZ9: 10 | BA9: 0 | BB9: 0 | BC9: 0 | BD9: 5 | BE9: 5 | BF9: 0 | BG9: 0 | BH9: 0 | BI9: 0 | BJ9: 0 | BK9: 5 | BL9: - | BM9: 5 | BN9: 0 | BO9: 0 | BP9: 0 | BQ9: 0 | BR9: 5 | BS9: - | BT9: 0 | BU9: 10 | BV9: 0 | BW9: 5 | BX9: 0 | BY9: 0 | BZ9: 0 | CA9: 0 | CB9: 0
A10: Man City | B10: 1 | C10: 1 | D10: Hull City | E10: 15:00:00 | G10: - | H10: 0 | I10: 0 | J10: 0 | K10: 0 | L10: 0 | M10: 0 | N10: 0 | O10: 0 | P10: 0 | Q10: 0 | R10: 0 | S10: 0 | T10: 0 | U10: 0 | V10: 0 | W10: 0 | X10: 0 | Y10: 0 | Z10: 0 | AA10: 0 | AB10: 0 | AC10: 0 | AD10: 0 | AE10: - | AF10: 0 | AG10: 0 | AH10: 0 | AI10: 0 | AJ10: 0 | AK10: 0 | AL10: 0 | AM10: 0 | AN10: 0 | AO10: - | AP10: 0 | AQ10: - | AR10: 0 | AS10: 0 | AT10: 0 | AU10: 0 | AV10: - | AW10: 10 | AX10: 0 | AY10: 0 | AZ10: 0 | BA10: 0 | BB10: 0 | BC10: 0 | BD10: 0 | BE10: 0 | BF10: 0 | BG10: 0 | BH10: 0 | BI10: 0 | BJ10: 0 | BK10: 0 | BL10: - | BM10: 0 | BN10: 0 | BO10: 0 | BP10: 0 | BQ10: 0 | BR10: 0 | BS10: - | BT10: 0 | BU10: 0 | BV10: 0 | BW10: 0 | BX10: 0 | BY10: 0 | BZ10: 0 | CA10: 0 | CB10: 0
A11: QPR | B11: 0 | C11: 1 | D11: Southampton | E11: 15:00:00 | G11: - | H11: 5 | I11: 0 | J11: 5 | K11: 0 | L11: 5 | M11: 5 | N11: 5 | O11: 5 | P11: 5 | Q11: 5 | R11: 10 | S11: 0 | T11: 0 | U11: 5 | V11: 5 | W11: 0 | X11: 10 | Y11: 5 | Z11: 5 | AA11: 5 | AB11: 5 | AC11: 5 | AD11: 0 | AE11: - | AF11: 0 | AG11: 5 | AH11: 5 | AI11: 0 | AJ11: 5 | AK11: 5 | AL11: 10 | AM11: 0 | AN11: 5 | AO11: - | AP11: 5 | AQ11: - | AR11: 5 | AS11: 5 | AT11: 0 | AU11: 5 | AV11: - | AW11: 0 | AX11: 5 | AY11: 10 | AZ11: 5 | BA11: 0 | BB11: 5 | BC11: 0 | BD11: 0 | BE11: 0 | BF11: 5 | BG11: 5 | BH11: 5 | BI11: 0 | BJ11: 0 | BK11: 0 | BL11: - | BM11: 5 | BN11: 0 | BO11: 10 | BP11: 0 | BQ11: 0 | BR11: 0 | BS11: - | BT11: 0 | BU11: 5 | BV11: 5 | BW11: 10 | BX11: 10 | BY11: 0 | BZ11: 0 | CA11: 5 | CB11: 0
